Workbook

Sheet Revision Control
A5: Date | B5: Author | C5: Revision | D5: Changes Made
A6: 2015-08-01 | B6: Samantha Reese | C6: A | D6: Initial Model
A7: 42625 | B7: Samantha Reese | C7: B | D7: Model with DCF Working
A8: 42626 | B8: Samantha Reese | C8: C | D8: Fixed some broken variable links
A9: 42633 | B9: Samantha Reese | C9: E | D9: Added drop down of country list, cleaned up formating, added some highlighted cells
A10: 42636 | B10: Samantha Reese | C10: F | D10: Updated inputs to DCF to correct some formatting oversights
A11: 42639 | B11: Samantha Reese | C11: G | D11: Updated Building depreciation to use MACRS
B12: Samantha Reese | C12: H | D12: Updated some mistakes in % vs decimal
B13: Samantha Reese | C13: I | D13: Added straightline to depreciation
B14: Samantha Reese | C14: K | D14: Corrected error to DCF Calculation
B15: Samantha Reese | C15: L | D15: corrected error to depreciation calculation
A16: 42724 | B16: Samantha Reese | C16: M | D16: Changed to standarized country names used in CEMAC Benchmark Report
C17: N | D17: Changed depreciation Cal to no longer have a multiplier on equipment replacement Adjusted DCF Graph to have MSP as a DOT Adjusted the names of the calculated fields to remove capital and depreciable tooling
A18: 42836 | B18: Sertac Akar | D18: Process Inputs and Assembly inputs changed

Sheet Flow Chart

Sheet Process Inputs
C1: Value Used in Calculation | D1: Base Value | E1: Low Value | F1: High Value | J1: Date Updated: | K1: Notes: | L1: Previous Date: | M1: Previuos Value & Note
A3: Country Specific Inputs
A4: Countries to be Analyzed
A5: Materials
A7: Location Agnostic Inputs
A8: Facility Operations
A9: Part Parameters
A10: Global Blanking Parameters
A11: Global Press Line Parameters
A13: DCF (MSP) Calculation Specific input
A17: Country Specific Inputs
A19: Countries to be Analyzed (Drop down menu)
B20: Country Name
B21: 1
B22: 2
B23: 3
B24: 4
B25: 5
A28: Materials
B29: QTY
A30: Rotating Blades | B30: =B21 -> 1 | C30: 39617
B31: 2 | C31: 37813.74167
B32: 3 | C32: 37138.37294
B33: 4 | C33: 36475.06657
B34: 5 | C34: 35823.60712
A36: Stationary Blades | B36: =B21 -> 1 | C36: 11738
B37: 2 | C37: 11203.71809
B38: 3 | C38: 11003.61515
B39: 4 | C39: 10807.08613
B40: 5 | C40: 10614.0672
A42: Discs | B42: =B21 -> 1 | C42: 7650
B43: 2 | C43: 7301.792761
B44: 3 | C44: 7171.379787
B45: 4 | C45: 7043.296041
B46: 5 | C46: 6917.499923
A48: Rotor/Shaft | B48: =B21 -> 1 | C48: 30600
B49: 2 | C49: 29207.17104
B50: 3 | C50: 28685.51915
B51: 4 | C51: 28173.18416
B52: 5 | C52: 27669.99969
A54: Casing (inner/Outer) | B54: =B21 -> 1 | C54: 61200
B55: 2 | C55: 58414.34208
B56: 3 | C56: 57371.03829
B57: 4 | C57: 56346.36833
B58: 5 | C58: 55339.99938
A60: Valves (Governer, Trip, Strainer) | B60: =B21 -> 1 | C60: 1530
B61: 2 | C61: 1460.358552
B62: 3 | C62: 1434.275957
B63: 4 | C63: 1408.659208
B64: 5 | C64: 1383.499985
A66: Skid Frame | B66: =B21 -> 1 | C66: 6750
B67: 2 | C67: 6442.758318
B68: 3 | C68: 6327.688047
B69: 4 | C69: 6214.672977
B70: 5 | C70: 6103.676403
A75: Location Agnostic Inputs
A76: Facility Operations
A77: parts/yr | B77: Annual Production Volume | C77: see Specific case
A78: days/yr | B78: Days per Year | C78: 250 | J78: 42230 | K78: ULSAC COST MODEL:model developed by: Camanoe Associates in association with: The MIT Materials Systems Laboratory http://www.worldautosteel.org/projects/cost-models/
A79: yr | B79: Equipment Depreciation Life | C79: 20
A80: yr | B80: Depreciable Tooling Life
B81: Indirect workers/ Direct Worker (part fabrication) | C81: 0.25 | J81: 42230 | K81: ULSAC COST MODEL:model developed by: Camanoe Associates in association with: The MIT Materials Systems Laboratory http://www.worldautosteel.org/projects/cost-models/
A82: $/sqm | B82: Building Unit Cost | C82: 800 | J82: 42230 | K82: ULSAC COST MODEL:model developed by: Camanoe Associates in association with: The MIT Materials Systems Laboratory http://www.worldautosteel.org/projects/cost-models/
A83: yrs | B83: Production Life | C83: 5 | J83: 42230 | K83: ULSAC COST MODEL:model developed by: Camanoe Associates in association with: The MIT Materials Systems Laboratory http://www.worldautosteel.org/projects/cost-models/
A84: yrs | B84: Facilities Life (Building) | C84: 25 | J84: 42230 | K84: ULSAC COST MODEL:model developed by: Camanoe Associates in association with: The MIT Materials Systems Laboratory http://www.worldautosteel.org/projects/cost-models/
B85: Downtimes: | J85: 42230 | K85: ULSAC COST MODEL:model developed by: Camanoe Associates in association with: The MIT Materials Systems Laboratory http://www.worldautosteel.org/projects/cost-models/
A86: hrs/day | B86: Non-Production/Shift time | C86: 8.375 | J86: 42230 | K86: ULSAC COST MODEL:model developed by: Camanoe Associates in association with: The MIT Materials Systems Laboratory http://www.worldautosteel.org/projects/cost-models/
A87: hrs/day | B87: Worker unpaid breaks | C87: 0.625 | J87: 42230 | K87: ULSAC COST MODEL:model developed by: Camanoe Associates in association with: The MIT Materials Systems Laboratory http://www.worldautosteel.org/projects/cost-models/
A88: hrs/day | B88: Worker paid breaks | C88: 1
A92: Assembly | B92: Process on? | C92: 1
A93: kW | B93: Assembly Energy Consumption Rate | C93: 150 | J93: 42230 | K93: ULSAC COST MODEL:model developed by: Camanoe Associates in association with: The MIT Materials Systems Laboratory http://www.worldautosteel.org/projects/cost-models/
A94: sqm/line | B94: Assembly Line Space Requirement | C94: 1200 | J94: 42230 | K94: ULSAC COST MODEL:model developed by: Camanoe Associates in association with: The MIT Materials Systems Laboratory http://www.worldautosteel.org/projects/cost-models/
A95: #/line | B95: Workers Assembly Line | C95: 1 | J95: 42230 | K95: ULSAC COST MODEL:model developed by: Camanoe Associates in association with: The MIT Materials Systems Laboratory http://www.worldautosteel.org/projects/cost-models/
A96: hr/day | B96: Assembly Unplanned Downtime | C96: 2 | J96: 42230 | K96: ULSAC COST MODEL:model developed by: Camanoe Associates in association with: The MIT Materials Systems Laboratory http://www.worldautosteel.org/projects/cost-models/
B97: Assembly Installation Percent | C97: 0.25 | J97: 42230 | K97: ULSAC COST MODEL:model developed by: Camanoe Associates in association with: The MIT Materials Systems Laboratory http://www.worldautosteel.org/projects/cost-models/
B98: Assembly Maintenance Percent | C98: 0.1 | J98: 42230 | K98: ULSAC COST MODEL:model developed by: Camanoe Associates in association with: The MIT Materials Systems Laboratory http://www.worldautosteel.org/projects/cost-models/
B99: Yield Loss | C99: 0.01 | J99: 42230 | K99: ULSAC COST MODEL:model developed by: Camanoe Associates in association with: The MIT Materials Systems Laboratory http://www.worldautosteel.org/projects/cost-models/
A101: $ | B101: Assembly Equipement Cost | C101: 150000 | J101: 42230 | K101: ULSAC COST MODEL:model developed by: Camanoe Associates in association with: The MIT Materials Systems Laboratory http://www.worldautosteel.org/projects/cost-models/
A103: hrs /part | B103: Assembly Rate | C103: 200 | J103: 42230 | K103: ULSAC COST MODEL:model developed by: Camanoe Associates in association with: The MIT Materials Systems Laboratory http://www.worldautosteel.org/projects/cost-models/
A111: DCF (MSP) Calculation Specific input (items in Yellow must be entered)
A112: Corporate tax rate % | B112: =B21 -> 1 | C112: 0.3
B113: 2 | C113: 0.3
B114: 3 | C114: 0.3
B115: 4 | C115: 0.3
B116: 5 | C116: 0.3
A118: Cost of Equity % | B118: =B21 -> 1 | C118: 0.1059
B119: 2 | C119: 0.1059
B120: 3 | C120: 0.1059
B121: 4 | C121: 0.1059
B122: 5 | C122: 0.1059
A125: Table Type ->tbl_Corporate_Interest_Rates | K125: You can use the defaults from the indices or manually overide and type your numbers
A126: Corporate Interest Rate % | B126: =B21 -> 1 | C126: 0.0325
B127: 2 | C127: 0.0325
B128: 3 | C128: 0.0325
B129: 4 | C129: 0.0325
B130: 5 | C130: 0.0325
A133: Equipment Depreciation Schedule | B133: =B21 -> 1 | C133: 7 Year Straighline | K133: Drop Down
B134: 2 | C134: 7 Year Straighline | K134: PowerCoSim Model 2016
B135: 3 | C135: 7 Year Straighline
B136: 4 | C136: 7 Year Straighline
B137: 5 | C137: 7 Year Straighline
A140: Tooling Depreciation Schedule | B140: =B21 -> 1 | C140: 3 Year Straighline | K140: Drop Down
B141: 2 | C141: 3 Year Straighline
B142: 3 | C142: 3 Year Straighline
B143: 4 | C143: 3 Year Straighline
B144: 5 | C144: 3 Year Straighline
A147: Building Depreciation Schedule | B147: =B21 -> 1 | C147: 15 Year Straighline | K147: Drop Down
B148: 2 | C148: 15 Year Straighline | K148: PowerCoSim Model 2016
B149: 3 | C149: 15 Year Straighline
B150: 4 | C150: 15 Year Straighline
B151: 5 | C151: 15 Year Straighline
B154: Annual Production Volume (From Above) | C154: SEE ABOVE
B155: Equipment Life | C155: See each process sheet
B156: Facilities Life | C156: SEE ABOVE
A158: decimal | B158: Sales Increase Rate | C158: 0 | K158: Typical Value_(How much more will you sell)
A159: decimal | B159: Inflation on Cost of Goods Sold (COGS) | C159: 0.03
A160: decimal | B160: Selling, general & admin (SG & A) expenses [Advertising/Marketing] | C160: 0.1
A161: decimal | B161: D & E expenses | C161: 0.2
A162: years | B162: Initial Loan (or bond) maturity | C162: 10 | K162: 30 years is typical
A163: decimal | B163: Dividend payout rate | C163: 0 | K163: Does't affect MSP, for future calculations
A164: years | B164: Cash flow analysis period, years | C164: 20
A165: days | B165: Working Capital Collection Period | C165: 10
A166: per year | B166: Working Capital Inventory Turnover | C166: 4
A167: days | B167: Working Capital Payable Period | C167: 10
A168: decimal | B168: CAPEX Initial Target capiture structure, % of debt in (debt + equity) | C168: 0.64
A170: % of Direct Depreciable Capital Cost | B170: Engineering and supervision | C170: 0 | F170: 0.05 | J170: 42760 | K170: Use only if you feel
A171: % of Direct Depreciable Capital Cost | B171: Construction expenses | C171: 0 | F171: 0.05 | J171: 42760
A172: % of Direct Depreciable Capital Cost | B172: One-time licensing and permitting fees | C172: 0 | F172: 0.05 | J172: 42760
A173: % of Direct Depreciable Capital Cost | B173: Contractor's fee | C173: 0 | F173: 0.03 | J173: 42760
A174: % of Direct Depreciable Capital Cost | B174: Contingency | C174: 0 | F174: 0.1 | J174: 42760
A176: % | B176: CAPEX-Replacement Equipment Target capiture structure, % of debt in (debt + equity) | C176: 0.5 | K176: Does't affect MSP, for future calculations
A177: years | B177: Capital Replacement Loan maturity | C177: 10 | K177: Does't affect MSP, for future calculations

Sheet DCF Summary
B1: Input for DCF Calculation
D5: LOCATION
D6: ='Process Inputs'!B21 -> 1 | E6: ='Process Inputs'!B22 -> 2 | F6: ='Process Inputs'!B23 -> 3 | G6: ='Process Inputs'!B24 -> 4 | H6: ='Process Inputs'!B25 -> 5
K8: Minimum Sustainable Price | M8: 6346059.514 | N8: 4040760.428 | O8: 3345419.321 | P8: 2998734.771 | Q8: 2790865.385 | R8: -9.36456237e+11 | U8: Variable Name | V8: Value
T9: Country to Start Cal | V9: 1
D10: From Model Summary | K10: Production Volume | L10: VARIABLE_DESCRIPTION | M10: =D30 -> 1 | N10: =E30 -> 2 | O10: =F30 -> 3 | P10: =G30 -> 4 | Q10: =H30 -> 5 | T10: Country Being Calculated | U10: AnalysisCountry | V10: =AnalysisCountry -> 1
D11: =D6 -> 1 | E11: 2 | F11: 3 | G11: 4 | H11: 5 | K11: Incomes | L11: Annual Production Volume | M11: =M10 -> 1 | N11: =N10 -> 2 | O11: 3 | P11: 4 | Q11: 5 | T11: Annual Production Volume | U11: Product_per_yr | V11: =INDEX(DCF_Calculation_Table,MATCH(T11,VARIABLE_DESCRIPTION,0),MATCH(AnalysisCountry,CName,0)) -> 1
B12: Materials | D12: 162180 | E12: 159283.3996 | F12: 157613.0392 | G12: 156438.5336 | H12: 155533.5469
B13: Labor | D13: 1387975 | E13: 1032004.167 | F13: 918152.7778 | G13: 862128.125 | H13: 828801.6667 | L13: Sales Increase Rate | M13: =$C$44 -> 0 | N13: 0 | O13: 0 | P13: 0 | Q13: 0 | T13: Sales Increase Rate | U13: CSI_SalesIncrease | V13: =INDEX(DCF_Calculation_Table,MATCH(T13,VARIABLE_DESCRIPTION,0),MATCH(AnalysisCountry,CName,0)) -> 0
B14: Energy and Utilities | D14: 261214.669 | E14: 233104.9665 | F14: 223741.279 | G14: 219060.6003 | H14: 216252.5658 | L14: Cost of = Labor + Material + Energy + Maintenance | M14: =SUM(D12:D16) -> 1851387.243 | N14: =SUM(E12:E16) -> 1461145.274 | O14: =SUM(F12:F16) -> 1335215.881 | P14: =SUM(G12:G16) -> 1272818.439 | Q14: =SUM(H12:H16) -> 1235467.276 | T14: Cost of = Labor + Material + Energy + Maintenance | U14: O_COGS | V14: =INDEX(DCF_Calculation_Table,MATCH(T14,VARIABLE_DESCRIPTION,0),MATCH(AnalysisCountry,CName,0)) -> 1851387.243
B15: Outsourced Parts | D15: 22949.5 | E15: 22939 | F15: 22928.5 | G15: 22918 | H15: 22907.5 | L15: Inflation on Cost of Goods Sold (COGS) | M15: =$C$45 -> 0.03 | N15: 0.03 | O15: 0.03 | P15: 0.03 | Q15: 0.03 | T15: Inflation on Cost of Goods Sold (COGS) | U15: CSI_inflation | V15: 0.03
B16: Maintenance | D16: 17068.0743 | E16: 13813.74128 | F16: 12780.28538 | G16: 12273.18027 | H16: 11971.9965 | L16: Selling, general & admin (SG & A) expenses [Advertising/Marketing] | M16: =$C$46 -> 0.1 | N16: 0.1 | O16: 0.1 | P16: 0.1 | Q16: 0.1 | T16: Selling, general & admin (SG & A) expenses [Advertising/Marketing] | U16: CSI_advertising | V16: 0.1
B17: Equipment | D17: 456676.9775 | E17: 362734.3037 | F17: 335967.4913 | G17: 323436.7249 | H17: 316191.1098 | L17: R & D expenses | M17: =$C$47 -> 0.2 | N17: 0.2 | O17: 0.2 | P17: 0.2 | Q17: 0.2 | T17: R & D expenses | U17: CSI_RandD | V17: 0.2
B18: Facilities | D18: 524246.7918 | E18: 390199.3625 | F18: 347638.4419 | G18: 326755.7734 | H18: 314353.4656 | L18: Corporate Interest Rate | M18: =D34 -> 0.0325 | N18: =E34 -> 0.0325 | O18: =F34 -> 0.0325 | P18: =G34 -> 0.0325 | Q18: =H34 -> 0.0325 | T18: Corporate Interest Rate | U18: CSI_Interest | V18: =INDEX(DCF_Calculation_Table,MATCH(T18,VARIABLE_DESCRIPTION,0),MATCH(AnalysisCountry,CName,0)) -> 0.0325
L19: Initial Loan (or bond) maturity | M19: =$C$48 -> 10 | N19: 10 | O19: 10 | P19: 10 | Q19: 10 | T19: Initial Loan (or bond) maturity | U19: CSI_loan_yrs | V19: 10
L20: Corporate tax rate % | M20: =D32 -> 0.3 | N20: =E32 -> 0.3 | O20: =F32 -> 0.3 | P20: =G32 -> 0.3 | Q20: =H32 -> 0.3 | T20: Corporate tax rate % | U20: CSI_TaxRate | V20: 0.3
D21: From Each Model's DCF | L21: Dividend payout rate | M21: =$C$49 -> 0 | N21: 0 | O21: 0 | P21: 0 | Q21: 0 | T21: Dividend payout rate | U21: CSI_dividend_rate | V21: 0
K22: WACC | L22: Cost of Equity % | M22: =D33 -> 0.1059 | N22: =E33 -> 0.1059 | O22: =F33 -> 0.1059 | P22: =G33 -> 0.1059 | Q22: =H33 -> 0.1059 | T22: Cost of Equity % | U22: CSI_equity_rate | V22: 0.1059
B23: =Global_Blanking_Parameters -> Assembly | D23: =D6 -> 1 | E23: =E6 -> 2 | F23: =F6 -> 3 | G23: =G6 -> 4 | H23: =H6 -> 5 | L23: Calculated WACC | M23: =M22*(1-M28)+M18*M28*(1-M20) -> 0.052684 | N23: 0.052684 | O23: 0.052684 | P23: 0.052684 | Q23: 0.052684 | T23: Calculated WACC | V23: =INDEX(DCF_Calculation_Table,MATCH(T23,VARIABLE_DESCRIPTION,0),MATCH(AnalysisCountry,CName,0)) -> 0.052684
B24: Equipment $ | D24: 7700000 | E24: 6000000 | F24: 6000000 | G24: 6000000 | H24: 6000000 | L24: Cash flow analysis period, years | M24: =$C$50 -> 20 | N24: 20 | O24: 20 | P24: 20 | Q24: 20 | T24: Cash flow analysis period, years | U24: CSI_analysis_yrs | V24: 20
B25: Facilities $ | D25: 18327200 | E25: 18327200 | F25: 18327200 | G25: 18327200 | H25: 18327200 | K25: Working | L25: Working Capital Collection Period | M25: =$C$51 -> 10 | N25: 10 | O25: 10 | P25: 10 | Q25: 10 | T25: Working Capital Collection Period | U25: CSI_Collection_days | V25: 10
B26: Equipment Life | D26: 20 | E26: 20 | F26: 20 | G26: 20 | H26: 20 | K26: Capital | L26: Working Capital Inventory Turnover | M26: =$C$52 -> 4 | N26: 4 | O26: 4 | P26: 4 | Q26: 4 | T26: Working Capital Inventory Turnover | U26: CSI_Turnover | V26: 4
L27: Working Capital Payable Period | M27: =$C$53 -> 10 | N27: 10 | O27: 10 | P27: 10 | Q27: 10 | T27: Working Capital Payable Period | U27: CSI_Payable_days | V27: 10
K28: Capex, | L28: CAPEX Initial Target capiture structure, % of debt in (debt + equity) | M28: =$C$54 -> 0.64 | N28: 0.64 | O28: 0.64 | P28: 0.64 | Q28: 0.64 | T28: CAPEX Initial Target capiture structure, % of debt in (debt + equity) | U28: CSI_percent_debt | V28: 0.64
K29: at Year 0 | L29: Total Facilities $ | M29: =M59 -> 18327200 | N29: 18327200 | O29: 18327200 | P29: 18327200 | Q29: 18327200 | T29: Total Facilities $ | U29: CSI_Building | V29: 18327200
D30: =D6 -> 1 | E30: =E6 -> 2 | F30: =F6 -> 3 | G30: =G6 -> 4 | H30: =H6 -> 5 | L30: Equipment | M30: =D24 -> 7700000 | N30: =E24 -> 6000000 | O30: =F24 -> 6000000 | P30: =G24 -> 6000000 | Q30: =H24 -> 6000000 | T30: Equipment | U30: O_EquipmentInv | V30: 7700000
K31: Payables at Year 1 | L31: Wages Payable | M31: =M64 -> 1387975 | N31: 2064008.333 | O31: 2754458.333 | P31: 3448512.5 | Q31: 4144008.333 | T31: Wages Payable | U31: O_Y1wages | V31: =INDEX(DCF_Calculation_Table,MATCH(T31,VARIABLE_DESCRIPTION,0),MATCH(AnalysisCountry,CName,0)) -> 1387975
B32: Corporate tax rate % | D32: ='Process Inputs'!C112 -> 0.3 | E32: ='Process Inputs'!C113 -> 0.3 | F32: ='Process Inputs'!C114 -> 0.3 | G32: ='Process Inputs'!C115 -> 0.3 | H32: ='Process Inputs'!C116 -> 0.3 | K32: Capex, later | L32: Replacement Equipment Target capiture structure, % of debt in (debt + equity) | M32: =$C$63 -> 0.5 | N32: =$C$63 -> 0.5 | O32: 0.5 | P32: 0.5 | Q32: 0.5 | T32: Replacement Equipment Target capiture structure, % of debt in (debt + equity) | U32: CSI_newPercent_debt | V32: 0.5
B33: Cost of Equity % | D33: ='Process Inputs'!C118 -> 0.1059 | E33: ='Process Inputs'!C119 -> 0.1059 | F33: ='Process Inputs'!C120 -> 0.1059 | G33: ='Process Inputs'!C121 -> 0.1059 | H33: ='Process Inputs'!C122 -> 0.1059 | L33: Depreciable life for plant | M33: =$C$42 -> 25 | N33: =$C$42 -> 25 | O33: 25 | P33: 25 | Q33: 25 | T33: Depreciable life for plant | U33: CSI_plant_life | V33: 25
B34: Corporate Interest Rate % | D34: ='Process Inputs'!C126 -> 0.0325 | E34: ='Process Inputs'!C127 -> 0.0325 | F34: ='Process Inputs'!C128 -> 0.0325 | G34: ='Process Inputs'!C129 -> 0.0325 | H34: ='Process Inputs'!C130 -> 0.0325 | L34: Capital Replacement Loan maturity | M34: =$C$64 -> 10 | N34: =$C$64 -> 10 | O34: 10 | P34: 10 | Q34: 10 | T34: Capital Replacement Loan maturity | U34: CSI_newLoan_yrs | V34: 10
B35: Equipment Depreciation Length | D35: ='Process Inputs'!C133 -> 7 Year Straighline | E35: ='Process Inputs'!C134 -> 7 Year Straighline | F35: ='Process Inputs'!C135 -> 7 Year Straighline | G35: ='Process Inputs'!C136 -> 7 Year Straighline | H35: ='Process Inputs'!C137 -> 7 Year Straighline | L35: Equipment Depreciation type | M35: =D35 -> 7 Year Straighline | N35: 7 Year Straighline | O35: 7 Year Straighline | P35: 7 Year Straighline | Q35: 7 Year Straighline | T35: Equipment Depreciation type | U35: CSI_Equipment_deprec | V35: =INDEX(DCF_Calculation_Table,MATCH(T35,VARIABLE_DESCRIPTION,0),MATCH(AnalysisCountry,CName,0)) -> 7 Year Straighline
B36: Tooling Depreciation Length | D36: ='Process Inputs'!C140 -> 3 Year Straighline | E36: ='Process Inputs'!C141 -> 3 Year Straighline | F36: ='Process Inputs'!C142 -> 3 Year Straighline | G36: ='Process Inputs'!C143 -> 3 Year Straighline | H36: ='Process Inputs'!C144 -> 3 Year Straighline | L36: Tooling Depreciation type | M36: 3 Year Straighline | N36: 3 Year Straighline | O36: 3 Year Straighline | P36: 3 Year Straighline | Q36: 3 Year Straighline | T36: Tooling Depreciation type | U36: CSI_Tooling_deprec | V36: 3 Year Straighline
B37: Building Depreciation Length | D37: ='Process Inputs'!C147 -> 15 Year Straighline | E37: ='Process Inputs'!C148 -> 15 Year Straighline | F37: ='Process Inputs'!C149 -> 15 Year Straighline | G37: ='Process Inputs'!C150 -> 15 Year Straighline | H37: ='Process Inputs'!C151 -> 15 Year Straighline | L37: Building Depreciation type | M37: 15 Year Straighline | N37: 15 Year Straighline | O37: 15 Year Straighline | P37: 15 Year Straighline | Q37: 15 Year Straighline | T37: Building Depreciation type | U37: CSI_Building_deprec | V37: 15 Year Straighline
K38: Depreciation Variables | T38: Depreciable Tooling | U38: O_ToolingInv | V38: 0
K39: =B70 -> 0 | T39: Tooling Depreciation type | U39: CSI_Tooling_deprec | V39: 3 Year Straighline
L40: Equipment Life 1 | M40: =D26 -> 20 | N40: =E26 -> 20 | O40: =F26 -> 20 | P40: =G26 -> 20 | Q40: =H26 -> 20
B41: ='Process Inputs'!B77 -> Annual Production Volume | C41: ='Process Inputs'!C77 -> see Specific case | D41: ='Process Inputs'!A77 -> parts/yr | L41: Equipment Cost w/ Equipment Life 1 | M41: =D24 -> 7700000 | N41: =E24 -> 6000000 | O41: =F24 -> 6000000 | P41: =G24 -> 6000000 | Q41: =H24 -> 6000000
B42: ='Process Inputs'!B156 -> Facilities Life | C42: ='Process Inputs'!C84 -> 25 | D42: ='Process Inputs'!A84 -> yrs | L42: Equipment Life 2 | M42: 1 | N42: 1 | O42: 1 | P42: 1 | Q42: 1
L43: Equipment Cost w/ Equipment Life 2
B44: ='Process Inputs'!B158 -> Sales Increase Rate | C44: ='Process Inputs'!C158 -> 0 | D44: ='Process Inputs'!A158 -> decimal | L44: Equipment Life 3 | M44: 1 | N44: 1 | O44: 1 | P44: 1 | Q44: 1
B45: ='Process Inputs'!B159 -> Inflation on Cost of Goods Sold (COGS) | C45: ='Process Inputs'!C159 -> 0.03 | D45: ='Process Inputs'!A159 -> decimal | L45: Equipment Cost w/ Equipment Life 3
B46: ='Process Inputs'!B160 -> Selling, general & admin (SG & A) expenses [Advertising/Marketing] | C46: ='Process Inputs'!C160 -> 0.1 | D46: ='Process Inputs'!A160 -> decimal | L46: Equipment Life 4 | M46: 1 | N46: 1 | O46: 1 | P46: 1 | Q46: 1
B47: ='Process Inputs'!B161 -> D & E expenses | C47: ='Process Inputs'!C161 -> 0.2 | D47: ='Process Inputs'!A161 -> decimal | L47: Equipment Cost w/ Equipment Life 4
B48: ='Process Inputs'!B162 -> Initial Loan (or bond) maturity | C48: ='Process Inputs'!C162 -> 10 | D48: ='Process Inputs'!A162 -> years
B49: ='Process Inputs'!B163 -> Dividend payout rate | C49: ='Process Inputs'!C163 -> 0 | D49: ='Process Inputs'!A163 -> decimal
B50: ='Process Inputs'!B164 -> Cash flow analysis period, years | C50: ='Process Inputs'!C164 -> 20 | D50: ='Process Inputs'!A164 -> years | K50: Total Facility Cost | M50: =D25 -> 18327200 | N50: =E25 -> 18327200 | O50: =F25 -> 18327200 | P50: =G25 -> 18327200 | Q50: =H25 -> 18327200
B51: ='Process Inputs'!B165 -> Working Capital Collection Period | C51: ='Process Inputs'!C165 -> 10 | D51: ='Process Inputs'!A165 -> days
B52: ='Process Inputs'!B166 -> Working Capital Inventory Turnover | C52: ='Process Inputs'!C166 -> 4 | D52: ='Process Inputs'!A166 -> per year | K52: SUM OF OTHER FACILITY AREAS
B53: ='Process Inputs'!B167 -> Working Capital Payable Period | C53: ='Process Inputs'!C167 -> 10 | D53: ='Process Inputs'!A167 -> days | K53: Engineering and supervision | L53: $ | M53: =M50*$C$56 -> 0 | N53: 0 | O53: 0 | P53: 0 | Q53: 0
B54: ='Process Inputs'!B168 -> CAPEX Initial Target capiture structure, % of debt in (debt + equity) | C54: ='Process Inputs'!C168 -> 0.64 | D54: ='Process Inputs'!A168 -> decimal | K54: Construction expenses | L54: $ | M54: =M50*$C$57 -> 0 | N54: 0 | O54: 0 | P54: 0 | Q54: 0
K55: One-time licensing and permitting fees | L55: $ | M55: =M50*$C$58 -> 0 | N55: 0 | O55: 0 | P55: 0 | Q55: 0
B56: ='Process Inputs'!B170 -> Engineering and supervision | C56: ='Process Inputs'!C170 -> 0 | D56: ='Process Inputs'!A170 -> % of Direct Depreciable Capital Cost | K56: Contractor's fee | L56: $ | M56: =M50*$C$59 -> 0 | N56: 0 | O56: 0 | P56: 0 | Q56: 0
B57: ='Process Inputs'!B171 -> Construction expenses | C57: ='Process Inputs'!C171 -> 0 | D57: ='Process Inputs'!A171 -> % of Direct Depreciable Capital Cost | K57: Contingency | L57: $ | M57: =M50*$C$60 -> 0 | N57: 0 | O57: 0 | P57: 0 | Q57: 0
B58: ='Process Inputs'!B172 -> One-time licensing and permitting fees | C58: ='Process Inputs'!C172 -> 0 | D58: ='Process Inputs'!A172 -> % of Direct Depreciable Capital Cost
B59: ='Process Inputs'!B173 -> Contractor's fee | C59: ='Process Inputs'!C173 -> 0 | D59: ='Process Inputs'!A173 -> % of Direct Depreciable Capital Cost | K59: Total Building Cost (direct + indirect) | M59: =M50+SUM(M53:M57) -> 18327200 | N59: 18327200 | O59: 18327200 | P59: 18327200 | Q59: 18327200
B60: ='Process Inputs'!B174 -> Contingency | C60: ='Process Inputs'!C174 -> 0 | D60: ='Process Inputs'!A174 -> % of Direct Depreciable Capital Cost
B63: ='Process Inputs'!B176 -> CAPEX-Replacement Equipment Target capiture structure, % of debt in (debt + equity) | C63: ='Process Inputs'!C176 -> 0.5 | D63: ='Process Inputs'!A176 -> % | K63: Wages Payable (Add Direct Labor and SG&A (Sales, General, and Administrative) | L63: per/piece | M63: =D13 -> 1387975 | N63: =E13 -> 1032004.167 | O63: 918152.7778 | P63: 862128.125 | Q63: 828801.6667
B64: ='Process Inputs'!B177 -> Capital Replacement Loan maturity | C64: ='Process Inputs'!C177 -> 10 | D64: ='Process Inputs'!A177 -> years | K64: Total Wages | L64: per year | M64: =M63*M11 -> 1387975 | N64: =N63*N11 -> 2064008.333 | O64: 2754458.333 | P64: 3448512.5 | Q64: 4144008.333
M76: =D6 -> 1 | N76: =E6 -> 2 | O76: =F6 -> 3 | P76: =G6 -> 4 | Q76: =H6 -> 5
L77: Material | M77: =D12 -> 162180 | N77: 159283.3996 | O77: 157613.0392 | P77: 156438.5336 | Q77: 155533.5469
L78: Labor | M78: 1387975 | N78: 1032004.167 | O78: 918152.7778 | P78: 862128.125 | Q78: 828801.6667
L79: Energy and Utilities | M79: 261214.669 | N79: 233104.9665 | O79: 223741.279 | P79: 219060.6003 | Q79: 216252.5658
L80: Equipment | M80: =D17 -> 456676.9775 | N80: 362734.3037 | O80: 335967.4913 | P80: 323436.7249 | Q80: 316191.1098
L81: Facilities | M81: =D18 -> 524246.7918 | N81: =E18 -> 390199.3625 | O81: =F18 -> 347638.4419 | P81: =G18 -> 326755.7734 | Q81: =H18 -> 314353.4656
L82: Maintenace | M82: =D16 -> 17068.0743 | N82: =E16 -> 13813.74128 | O82: =F16 -> 12780.28538 | P82: =G16 -> 12273.18027 | Q82: =H16 -> 11971.9965
L83: Outsourced Parts | M83: =D15 -> 22949.5 | N83: =E15 -> 22939 | O83: 22928.5 | P83: 22918 | Q83: 22907.5
L84: SG&A | M84: =M8*M16 -> 634605.9514 | N84: =N8*N16 -> 404076.0428 | O84: =O8*O16 -> 334541.9321 | P84: =P8*P16 -> 299873.4771 | Q84: =Q8*Q16 -> 279086.5385
L85: D&E | M85: =M17*M8 -> 1269211.903 | N85: =N17*N8 -> 808152.0857 | O85: =O17*O8 -> 669083.8641 | P85: =P17*P8 -> 599746.9543 | Q85: =Q17*Q8 -> 558173.0771
L86: Margin for MSP | M86: =M8-SUM(M77:M85) -> 1609930.647 | N86: =N8-SUM(N77:N85) -> 614453.3597 | O86: =O8-SUM(O77:O85) -> 322971.7099 | P86: =P8-SUM(P77:P85) -> 176103.4025 | Q86: =Q8-SUM(Q77:Q85) -> 87593.91848
L87: MSP | M87: =SUM(M77:M86) -> 6346059.514 | N87: =SUM(N77:N86) -> 4040760.428 | O87: =SUM(O77:O86) -> 3345419.321 | P87: =SUM(P77:P86) -> 2998734.771 | Q87: =SUM(Q77:Q86) -> 2790865.385
M92: =M76 -> 1 | N92: =N76 -> 2 | O92: 3 | P92: 4 | Q92: 5
L93: Material | M93: =M77/20000 -> 8.109 | N93: =N77/20000 -> 7.964169978 | O93: 7.88065196 | P93: 7.821926679 | Q93: 7.776677343
L94: Labor | M94: =M78/20000 -> 69.39875 | N94: 51.60020833 | O94: 45.90763889 | P94: 43.10640625 | Q94: 41.44008333
L95: Energy and Utilities | M95: 13.06073345 | N95: 11.65524833 | O95: 11.18706395 | P95: 10.95303001 | Q95: 10.81262829
L96: Equipment | M96: 22.83384888 | N96: 18.13671519 | O96: 16.79837457 | P96: 16.17183625 | Q96: 15.80955549
L97: Facilities | M97: 26.21233959 | N97: 19.50996812 | O97: 17.3819221 | P97: 16.33778867 | Q97: 15.71767328
L98: Maintenace | M98: 0.853403715 | N98: 0.6906870642 | O98: 0.6390142692 | P98: 0.6136590133 | Q98: 0.5985998251
L99: Outsourced Parts | M99: 1.147475 | N99: 1.14695 | O99: 1.146425 | P99: 1.1459 | Q99: 1.145375
L100: SG&A | M100: 31.73029757 | N100: 20.20380214 | O100: 16.7270966 | P100: 14.99367386 | Q100: 13.95432693
L101: D&E | M101: 63.46059514 | N101: 40.40760428 | O101: 33.45419321 | P101: 29.98734771 | Q101: 27.90865385
L102: Margin for MSP | M102: 80.49653234 | N102: 30.72266798 | O102: 16.14858549 | P102: 8.805170126 | Q102: 4.379695924
L103: MSP | M103: 317.3029757 | N103: 202.0380214 | O103: 167.270966 | P103: 149.9367386 | Q103: 139.5432693

Sheet Financial Analysis dms
A1: Created by: Ran Fu, NREL (ran.fu@nrel.gov) | C1: Year
C2: 0 | D2: 1 | E2: 2 | F2: 3 | G2: 4 | H2: 5 | I2: 6 | J2: 7 | K2: 8 | L2: 9 | M2: 10 | N2: 11 | O2: 12 | P2: 13 | Q2: 14 | R2: 15 | S2: 16 | T2: 17 | U2: 18 | V2: 19 | W2: 20 | X2: 21 | Y2: 22 | Z2: 23 | AA2: 24 | AB2: 25 | AC2: 26 | AD2: 27 | AE2: 28 | AF2: 29 | AG2: 30
B3: Model Inputs
A4: Incomes | B4: Sales | C4: =Product_per_yr -> 1 | E4: from setup page
B5: Minimum sustainable price (MSP) | C5: 6346059.514
B6: Sales increase rate | C6: =CSI_SalesIncrease -> 0 | K6: Units are Million $
B7: COGS | C7: =O_COGS -> 1851387.243 | E7: Output summary | K7: Yellow is input
B8: Inflation on COGS | C8: =CSI_inflation -> 0.03
B9: SG & A expenses as % of sales | C9: ='DCF Summary'!C46 -> 0.1 | E9: CEMAC Standard Injputs sheet
B10: D & E expenses as % of sales | C10: ='DCF Summary'!C47 -> 0.2 | E10: CEMAC Standard Injputs sheet
B11: Interest rate, or cost of debt | C11: =CSI_Interest -> 0.0325 | E11: CEMAC Standard Injputs sheet
B12: Loan (or bond) maturity, years | C12: =CSI_loan_yrs -> 10 | E12: CEMAC Standard Injputs sheet
B13: Corporate tax rate | C13: =CSI_TaxRate -> 0.3 | E13: See International Indices sheet
B14: Dividend payout rate % | C14: =CSI_dividend_rate -> 0 | E14: Assumption
A15: WACC | B15: Cost of equity | C15: =CSI_equity_rate -> 0.1059 | E15: from my WACC sheet for China
B16: Calculated WACC | C16: =C15*(1-C21)+C11*C21*(1-C13) -> 0.052684
B17: Cash flow analysis period, years | C17: =CSI_analysis_yrs -> 20
A18: Working Capital | B18: Collection period, days | C18: =CSI_Collection_days -> 10 | E18: approx. makes NWC = 1/4 of sales, which matches the module's model
B19: Inventory turnover | C19: =CSI_Turnover -> 4 | E19: approx. makes NWC = 1/4 of sales, which matches the module's model
B20: Payable period, days | C20: =CSI_Payable_days -> 10 | E20: approx. makes NWC = 1/4 of sales, which matches the module's model
A21: Capex, at Year 0 | B21: Target capiture structure, % of debt in (debt + equity) | C21: =CSI_percent_debt -> 0.64 | E21: CEMAC Standard Injputs sheet
B22: Land | C22: 0 | E22: CEMAC Standard Injputs sheet
B23: Plant, or building | C23: =CSI_Building -> 18327200 | E23: CEMAC Standard Injputs sheet
B24: Equipment | C24: =O_EquipmentInv -> 7700000 | E24: Output tab
B25: Depreciable Tooling | C25: 0 | E25: Output tab
A26: New Capex | B26: Target capiture structure, % of debt in (debt + equity) | C26: 0.64 | D26: which year: | E26: not in use | G26: Still building
B27: New Capex 1, for land? | C27: =C22*0 -> 0 | E27: 3 | G27: Still building
B28: New Capex 1, for plant | C28: =C23*0 -> 0 | E28: 3 | G28: Still building
B29: New Capex 1, for equipment | C29: =C25*0 -> 0 | E29: 3 | G29: Still building
B30: Target capiture structure, % of debt in (debt + equity) | C30: 1 | G30: Still building
B31: New Capex 2, for land | C31: =C22*0 -> 0 | E31: 4 | G31: Still building
B32: New Capex 2, for plant | C32: =C23*0 -> 0 | E32: 4 | G32: Still building
B33: New Capex 2, for equipment | C33: =C25*0 -> 0 | E33: 4 | G33: Still building
B34: Target capiture structure, % of debt in (debt + equity) | C34: 1 | G34: Still building
B35: New Capex 3, for land | C35: =C22*0 -> 0 | E35: 5 | G35: Still building
B36: New Capex 3, for plant | C36: =C23*0 -> 0 | E36: 5 | G36: Still building
B37: New Capex 3, for equipment | C37: =C25*0 -> 0 | E37: 5 | G37: Still building
A38: Sell Capex | B38: Sell Capex 4, for land | C38: 0 | D38: which year: | E38: 15 | G38: Still building
B39: Sell Capex 4, for plant | C39: 0 | E39: 15 | G39: Still building
B40: Sell Capex 4, for equipment | C40: 0 | E40: 15 | G40: Still building
A41: Dep. | B41: Salvage value, default = 0 | C41: =0 -> 0 | E41: Assumption
B42: Depreciable life for plant, years | C42: =CSI_plant_life -> 25 | E42: not in use
B43: Depreciable life for equipment, years | C43: 0 | E43: not in use
A44: Payables at Year 1 | B44: Wages payable | D44: =O_Y1wages -> 1387975
B45: Interest payable | D45: =D90+D96 -> 541365.76
B46: Taxes payable | D46: 0
B47: Dividends payable | D47: 0
B48: Deferred taxes | D48: 0
B51: Income Statement
B52: Sales | D52: =C4*C5 -> 6346059.514 | E52: =D52*(1+$C$6) -> 6346059.514 | F52: 6346059.514 | G52: 6346059.514 | H52: 6346059.514 | I52: 6346059.514 | J52: 6346059.514 | K52: 6346059.514 | L52: 6346059.514 | M52: 6346059.514 | N52: 6346059.514 | O52: 6346059.514 | P52: 6346059.514 | Q52: 6346059.514 | R52: 6346059.514 | S52: 6346059.514 | T52: 6346059.514 | U52: 6346059.514 | V52: 6346059.514 | W52: 6346059.514 | X52: 6346059.514 | Y52: 6346059.514 | Z52: 6346059.514 | AA52: 6346059.514 | AB52: 6346059.514 | AC52: 6346059.514 | AD52: 6346059.514 | AE52: 6346059.514 | AF52: 6346059.514 | AG52: 6346059.514
A53: Variable costs | B53: Less: Cost of = Labor + Material + Energy + Maintenance | D53: =C4*C7 -> 1851387.243 | E53: =D53*(1+$C$6)*(1+$C$8) -> 1906928.861 | F53: 1964136.726 | G53: 2023060.828 | H53: 2083752.653 | I53: 2146265.233 | J53: 2210653.19 | K53: 2276972.785 | L53: 2345281.969 | M53: 2415640.428 | N53: 2488109.641 | O53: 2562752.93 | P53: 2639635.518 | Q53: 2718824.583 | R53: 2800389.321 | S53: 2884401.001 | T53: 2970933.031 | U53: 3060061.022 | V53: 3151862.852 | W53: 3246418.738 | X53: 3343811.3 | Y53: 3444125.639 | Z53: 3547449.408 | AA53: 3653872.89 | AB53: 3763489.077 | AC53: 3876393.749 | AD53: 3992685.562 | AE53: 4112466.129 | AF53: 4235840.112 | AG53: 4362915.316
B54: Gross profit | D54: =D52-D53 -> 4494672.27 | E54: 4439130.653 | F54: 4381922.787 | G54: 4322998.685 | H54: 4262306.861 | I54: 4199794.281 | J54: 4135406.324 | K54: 4069086.728 | L54: 4000777.545 | M54: 3930419.086 | N54: 3857949.873 | O54: 3783306.584 | P54: 3706423.996 | Q54: 3627234.93 | R54: 3545670.193 | S54: 3461658.513 | T54: 3375126.483 | U54: 3285998.492 | V54: 3194196.661 | W54: 3099640.776 | X54: 3002248.214 | Y54: 2901933.875 | Z54: 2798610.106 | AA54: 2692186.623 | AB54: 2582570.437 | AC54: 2469665.764 | AD54: 2353373.952 | AE54: 2233593.385 | AF54: 2110219.401 | AG54: 1983144.198
A55: Fixed costs | B55: Less: SG & A expenses | D55: =D56*D52 -> 634605.9514 | E55: 634605.9514 | F55: 634605.9514 | G55: 634605.9514 | H55: 634605.9514 | I55: 634605.9514 | J55: 634605.9514 | K55: 634605.9514 | L55: 634605.9514 | M55: 634605.9514 | N55: 634605.9514 | O55: 634605.9514 | P55: 634605.9514 | Q55: 634605.9514 | R55: 634605.9514 | S55: 634605.9514 | T55: 634605.9514 | U55: 634605.9514 | V55: 634605.9514 | W55: 634605.9514 | X55: 634605.9514 | Y55: 634605.9514 | Z55: 634605.9514 | AA55: 634605.9514 | AB55: 634605.9514 | AC55: 634605.9514 | AD55: 634605.9514 | AE55: 634605.9514 | AF55: 634605.9514 | AG55: 634605.9514
B56: SG & A expenses as % of sales | D56: =$C$9 -> 0.1 | E56: 0.1 | F56: 0.1 | G56: 0.1 | H56: 0.1 | I56: 0.1 | J56: 0.1 | K56: 0.1 | L56: 0.1 | M56: 0.1 | N56: 0.1 | O56: 0.1 | P56: 0.1 | Q56: 0.1 | R56: 0.1 | S56: 0.1 | T56: 0.1 | U56: 0.1 | V56: 0.1 | W56: 0.1 | X56: 0.1 | Y56: 0.1 | Z56: 0.1 | AA56: 0.1 | AB56: 0.1 | AC56: 0.1 | AD56: 0.1 | AE56: 0.1 | AF56: 0.1 | AG56: 0.1
B57: Less: R & D expenses | D57: =D58*D52 -> 1269211.903 | E57: 1269211.903 | F57: 1269211.903 | G57: 1269211.903 | H57: 1269211.903 | I57: 1269211.903 | J57: 1269211.903 | K57: 1269211.903 | L57: 1269211.903 | M57: 1269211.903 | N57: 1269211.903 | O57: 1269211.903 | P57: 1269211.903 | Q57: 1269211.903 | R57: 1269211.903 | S57: 1269211.903 | T57: 1269211.903 | U57: 1269211.903 | V57: 1269211.903 | W57: 1269211.903 | X57: 1269211.903 | Y57: 1269211.903 | Z57: 1269211.903 | AA57: 1269211.903 | AB57: 1269211.903 | AC57: 1269211.903 | AD57: 1269211.903 | AE57: 1269211.903 | AF57: 1269211.903 | AG57: 1269211.903
B58: R & D expenses as % of sales | D58: =$C$10 -> 0.2 | E58: 0.2 | F58: 0.2 | G58: 0.2 | H58: 0.2 | I58: 0.2 | J58: 0.2 | K58: 0.2 | L58: 0.2 | M58: 0.2 | N58: 0.2 | O58: 0.2 | P58: 0.2 | Q58: 0.2 | R58: 0.2 | S58: 0.2 | T58: 0.2 | U58: 0.2 | V58: 0.2 | W58: 0.2 | X58: 0.2 | Y58: 0.2 | Z58: 0.2 | AA58: 0.2 | AB58: 0.2 | AC58: 0.2 | AD58: 0.2 | AE58: 0.2 | AF58: 0.2 | AG58: 0.2
B59: EBITDA | D59: =D54-D55-D57 -> 2590854.416 | E59: 2535312.799 | F59: 2478104.933 | G59: 2419180.831 | H59: 2358489.006 | I59: 2295976.427 | J59: 2231588.47 | K59: 2165268.874 | L59: 2096959.691 | M59: 2026601.232 | N59: 1954132.019 | O59: 1879488.73 | P59: 1802606.142 | Q59: 1723417.076 | R59: 1641852.339 | S59: 1557840.659 | T59: 1471308.629 | U59: 1382180.638 | V59: 1290378.807 | W59: 1195822.922 | X59: 1098430.36 | Y59: 998116.0207 | Z59: 894792.2515 | AA59: 788368.7693 | AB59: 678752.5826 | AC59: 565847.9103 | AD59: 449556.0978 | AE59: 329775.5309 | AF59: 206401.5471 | AG59: 79326.3437
B60: EBITDA margin % | D60: =D59/D52 -> 0.408261916 | E60: 0.3995097735 | F60: 0.3904950667 | G60: 0.3812099187 | H60: 0.3716462163 | I60: 0.3617956028 | J60: 0.3516494708 | K60: 0.341198955 | L60: 0.3304349236 | M60: 0.3193479713 | N60: 0.3079284105 | O60: 0.2961662628 | P60: 0.2840512507 | Q60: 0.2715727882 | R60: 0.2587199718 | S60: 0.245481571 | T60: 0.2318460181 | U60: 0.2178013987 | V60: 0.2033354406 | W60: 0.1884355038 | X60: 0.1730885689 | Y60: 0.157281226 | Z60: 0.1409996628 | AA60: 0.1242296527 | AB60: 0.1069565423 | AC60: 0.08916523853 | AD60: 0.07084019569 | AE60: 0.05196540156 | AF60: 0.0325243636 | AG60: 0.01250009451
B61: Less: Depreciation expense | D61: =SUM(D66:D67) -> 7209066.667 | E61: =SUM(E66:E67) -> 7209066.667 | F61: 7209066.667 | G61: 1100000 | H61: 1100000 | I61: 1100000 | J61: 1100000 | K61: 0 | L61: 0 | M61: 0 | N61: 0 | O61: 0 | P61: 0 | Q61: 0 | R61: 0 | S61: 0 | T61: 0 | U61: 0 | V61: 0 | W61: 0 | X61: 0 | Y61: 0 | Z61: 0 | AA61: 0 | AB61: 0 | AC61: 0 | AD61: 0 | AE61: 0 | AF61: 0 | AG61: 0
B62: Depreciation expense as % of sales | D62: =D61/D52 -> 1.135991027 | E62: 1.135991027 | F62: 1.135991027 | G62: 0.1733359099 | H62: 0.1733359099 | I62: 0.1733359099 | J62: 0.1733359099 | K62: 0 | L62: 0 | M62: 0 | N62: 0 | O62: 0 | P62: 0 | Q62: 0 | R62: 0 | S62: 0 | T62: 0 | U62: 0 | V62: 0 | W62: 0 | X62: 0 | Y62: 0 | Z62: 0 | AA62: 0 | AB62: 0 | AC62: 0 | AD62: 0 | AE62: 0 | AF62: 0 | AG62: 0
B64: Depreciation expense:
B65: Net
B66: Building | C66: 0 | D66: =INDEX(Building_DC_Totals,ROW(A1),COLUMN(A1)) -> 6109066.667 | E66: 6109066.667 | F66: 6109066.667 | G66: 0 | H66: 0 | I66: 0 | J66: 0 | K66: 0 | L66: 0 | M66: 0 | N66: 0 | O66: 0 | P66: 0 | Q66: 0 | R66: 0 | S66: 0 | T66: 0 | U66: 0 | V66: 0 | W66: 0 | X66: 0 | Y66: 0 | Z66: 0 | AA66: 0 | AB66: 0 | AC66: 0 | AD66: 0 | AE66: 0 | AF66: 0 | AG66: 0
B67: Equipment and tooling | C67: 0 | D67: =INDEX(DC_totals,ROW(A1),COLUMN(A1)) -> 1100000 | E67: 1100000 | F67: 1100000 | G67: 1100000 | H67: 1100000 | I67: 1100000 | J67: 1100000 | K67: 0 | L67: 0 | M67: 0 | N67: 0 | O67: 0 | P67: 0 | Q67: 0 | R67: 0 | S67: 0 | T67: 0 | U67: 0 | V67: 0 | W67: 0 | X67: 0 | Y67: 0 | Z67: 0 | AA67: 0 | AB67: 0 | AC67: 0 | AD67: 0 | AE67: 0 | AF67: 0 | AG67: 0
B68: DDB
B69: Net:
B70: Plant at Year 0 | C70: =C23 -> 18327200 | D70: =C70-D76 -> 16861024 | E70: 15512142.08 | F70: 14271170.71 | G70: 13129477.06 | H70: 12079118.89 | I70: 11112789.38 | J70: 10223766.23 | K70: 9405864.932 | L70: 8653395.737 | M70: 7961124.078 | N70: 7324234.152 | O70: 6738295.42 | P70: 6199231.786 | Q70: 5703293.243 | R70: 5247029.784 | S70: 4827267.401 | T70: 4441086.009 | U70: 4085799.128 | V70: 3758935.198 | W70: 3458220.382 | X70: 3181562.752 | Y70: 2927037.732 | Z70: 2692874.713 | AA70: 2477444.736 | AB70: 2279249.157 | AC70: 2279249.157 | AD70: 2279249.157 | AE70: 2279249.157 | AF70: 2279249.157 | AG70: 2279249.157
B71: Equipment at Year 0 | C71: =C25 -> 0 | D71: 0 | E71: 0 | F71: 0 | G71: 0 | H71: 0 | I71: 0 | J71: 0 | K71: 0 | L71: 0 | M71: 0 | N71: 0 | O71: 0 | P71: 0 | Q71: 0 | R71: 0 | S71: 0 | T71: 0 | U71: 0 | V71: 0 | W71: 0 | X71: 0 | Y71: 0 | Z71: 0 | AA71: 0 | AB71: 0 | AC71: 0 | AD71: 0 | AE71: 0 | AF71: 0 | AG71: 0
B72: New Capex 1 | D72: =IF(C72<0.01,IF(D2=$E$28,$C$29,0),C72-D78) -> 0 | E72: 0 | F72: 0 | G72: 0 | H72: 0 | I72: 0 | J72: 0 | K72: 0 | L72: 0 | M72: 0 | N72: 0 | O72: 0 | P72: 0 | Q72: 0 | R72: 0 | S72: 0 | T72: 0 | U72: 0 | V72: 0 | W72: 0 | X72: 0 | Y72: 0 | Z72: 0 | AA72: 0 | AB72: 0 | AC72: 0 | AD72: 0 | AE72: 0 | AF72: 0 | AG72: 0
B73: New Capex 2 | D73: =IF(C73<0.01,IF(D2=$E$32,$C$33,0),C73-D79) -> 0 | E73: 0 | F73: 0 | G73: 0 | H73: 0 | I73: 0 | J73: 0 | K73: 0 | L73: 0 | M73: 0 | N73: 0 | O73: 0 | P73: 0 | Q73: 0 | R73: 0 | S73: 0 | T73: 0 | U73: 0 | V73: 0 | W73: 0 | X73: 0 | Y73: 0 | Z73: 0 | AA73: 0 | AB73: 0 | AC73: 0 | AD73: 0 | AE73: 0 | AF73: 0 | AG73: 0
B74: New Capex 3 | D74: =IF(C74<0.01,IF(D2=$E$36,$C$37,0),C74-D80) -> 0 | E74: 0 | F74: 0 | G74: 0 | H74: 0 | I74: 0 | J74: 0 | K74: 0 | L74: 0 | M74: 0 | N74: 0 | O74: 0 | P74: 0 | Q74: 0 | R74: 0 | S74: 0 | T74: 0 | U74: 0 | V74: 0 | W74: 0 | X74: 0 | Y74: 0 | Z74: 0 | AA74: 0 | AB74: 0 | AC74: 0 | AD74: 0 | AE74: 0 | AF74: 0 | AG74: 0
B75: Depreciation expense:
B76: Plant at Year 0 | D76: =IFERROR(DDB($C$70,$C$41,$C$42,D2),0) -> 1466176 | E76: 1348881.92 | F76: 1240971.366 | G76: 1141693.657 | H76: 1050358.165 | I76: 966329.5114 | J76: 889023.1505 | K76: 817901.2984 | L76: 752469.1945 | M76: 692271.659 | N76: 636889.9263 | O76: 585938.7322 | P76: 539063.6336 | Q76: 495938.5429 | R76: 456263.4595 | S76: 419762.3827 | T76: 386181.3921 | U76: 355286.8807 | V76: 326863.9303 | W76: 300714.8158 | X76: 276657.6306 | Y76: 254525.0201 | Z76: 234163.0185 | AA76: 215429.977 | AB76: 198195.5789 | AC76: 0 | AD76: 0 | AE76: 0 | AF76: 0 | AG76: 0
B77: Equipment at Year 0 | D77: =IFERROR(DDB($C$71,$C$41,$C$43,D2),0) -> 0 | E77: 0 | F77: 0 | G77: 0 | H77: 0 | I77: 0 | J77: 0 | K77: 0 | L77: 0 | M77: 0 | N77: 0 | O77: 0 | P77: 0 | Q77: 0 | R77: 0 | S77: 0 | T77: 0 | U77: 0 | V77: 0 | W77: 0 | X77: 0 | Y77: 0 | Z77: 0 | AA77: 0 | AB77: 0 | AC77: 0 | AD77: 0 | AE77: 0 | AF77: 0 | AG77: 0
B78: New Capex 1 | E78: =IFERROR(IF(D72<0.01,0,DDB($C$29,$C$41,$C$43,E2-$E$28)),0) -> 0 | F78: 0 | G78: 0 | H78: 0 | I78: 0 | J78: 0 | K78: 0 | L78: 0 | M78: 0 | N78: 0 | O78: 0 | P78: 0 | Q78: 0 | R78: 0 | S78: 0 | T78: 0 | U78: 0 | V78: 0 | W78: 0 | X78: 0 | Y78: 0 | Z78: 0 | AA78: 0 | AB78: 0 | AC78: 0 | AD78: 0 | AE78: 0 | AF78: 0 | AG78: 0
B79: New Capex 2 | E79: =IFERROR(IF(D73<0.01,0,DDB($C$33,$C$41,$C$43,E2-$E$32)),0) -> 0 | F79: 0 | G79: 0 | H79: 0 | I79: 0 | J79: 0 | K79: 0 | L79: 0 | M79: 0 | N79: 0 | O79: 0 | P79: 0 | Q79: 0 | R79: 0 | S79: 0 | T79: 0 | U79: 0 | V79: 0 | W79: 0 | X79: 0 | Y79: 0 | Z79: 0 | AA79: 0 | AB79: 0 | AC79: 0 | AD79: 0 | AE79: 0 | AF79: 0 | AG79: 0
B80: New Capex 3 | E80: =IFERROR(IF(D74<0.01,0,DDB($C$37,$C$41,$C$43,E2-$E$36)),0) -> 0 | F80: 0 | G80: 0 | H80: 0 | I80: 0 | J80: 0 | K80: 0 | L80: 0 | M80: 0 | N80: 0 | O80: 0 | P80: 0 | Q80: 0 | R80: 0 | S80: 0 | T80: 0 | U80: 0 | V80: 0 | W80: 0 | X80: 0 | Y80: 0 | Z80: 0 | AA80: 0 | AB80: 0 | AC80: 0 | AD80: 0 | AE80: 0 | AF80: 0 | AG80: 0
B82: EBIT or Operating income | D82: =D59-D61 -> -4618212.25 | E82: -4673753.868 | F82: -4730961.734 | G82: 1319180.831 | H82: 1258489.006 | I82: 1195976.427 | J82: 1131588.47 | K82: 2165268.874 | L82: 2096959.691 | M82: 2026601.232 | N82: 1954132.019 | O82: 1879488.73 | P82: 1802606.142 | Q82: 1723417.076 | R82: 1641852.339 | S82: 1557840.659 | T82: 1471308.629 | U82: 1382180.638 | V82: 1290378.807 | W82: 1195822.922 | X82: 1098430.36 | Y82: 998116.0207 | Z82: 894792.2515 | AA82: 788368.7693 | AB82: 678752.5826 | AC82: 565847.9103 | AD82: 449556.0978 | AE82: 329775.5309 | AF82: 206401.5471 | AG82: 79326.3437
B83: EBIT margin % or Operating margin | D83: =D82/D52 -> -0.7277291114 | E83: -0.7364812539 | F83: -0.7454959607 | G83: 0.2078740088 | H83: 0.1983103064 | I83: 0.1884596929 | J83: 0.178313561 | K83: 0.341198955 | L83: 0.3304349236 | M83: 0.3193479713 | N83: 0.3079284105 | O83: 0.2961662628 | P83: 0.2840512507 | Q83: 0.2715727882 | R83: 0.2587199718 | S83: 0.245481571 | T83: 0.2318460181 | U83: 0.2178013987 | V83: 0.2033354406 | W83: 0.1884355038 | X83: 0.1730885689 | Y83: 0.157281226 | Z83: 0.1409996628 | AA83: 0.1242296527 | AB83: 0.1069565423 | AC83: 0.08916523853 | AD83: 0.07084019569 | AE83: 0.05196540156 | AF83: 0.0325243636 | AG83: 0.01250009451
B86: Debt for Year-0 Capex | C86: =C153 -> 16657408
B87: Beginning balance of debt | D87: =C86 -> 16657408 | E87: =D91 -> 15221021.84 | F87: 13737953.14 | G87: 12206684.7 | H87: 10625650.04 | I87: 8993231.751 | J87: 7307759.867 | K87: 5567510.148 | L87: 3770702.313 | M87: 1915498.223 | N87: 0 | O87: 0 | P87: 0 | Q87: 0 | R87: 0 | S87: 0 | T87: 0 | U87: 0 | V87: 0 | W87: 0 | X87: 0 | Y87: 0 | Z87: 0 | AA87: 0 | AB87: 0 | AC87: 0 | AD87: 0 | AE87: 0 | AF87: 0 | AG87: 0
B88: Less: Total debt payment (average yearly debt payment in column C) | C88: =SUMIF(D2:AG2,"<=" & CSI_analysis_yrs,D88:AG88)/CSI_analysis_yrs -> 988875.9575 | D88: =-IF(D2<=$C$12,PMT($C$11,$C$12,$C$86),0) -> 1977751.915 | E88: 1977751.915 | F88: 1977751.915 | G88: 1977751.915 | H88: 1977751.915 | I88: 1977751.915 | J88: 1977751.915 | K88: 1977751.915 | L88: 1977751.915 | M88: 1977751.915 | N88: 0 | O88: 0 | P88: 0 | Q88: 0 | R88: 0 | S88: 0 | T88: 0 | U88: 0 | V88: 0 | W88: 0 | X88: 0 | Y88: 0 | Z88: 0 | AA88: 0 | AB88: 0 | AC88: 0 | AD88: 0 | AE88: 0 | AF88: 0 | AG88: 0
B89: · Principle payment | D89: =D88-D90 -> 1436386.155 | E89: 1483068.705 | F89: 1531268.438 | G89: 1581034.662 | H89: 1632418.289 | I89: 1685471.883 | J89: 1740249.719 | K89: 1796807.835 | L89: 1855204.09 | M89: 1915498.223 | N89: 0 | O89: 0 | P89: 0 | Q89: 0 | R89: 0 | S89: 0 | T89: 0 | U89: 0 | V89: 0 | W89: 0 | X89: 0 | Y89: 0 | Z89: 0 | AA89: 0 | AB89: 0 | AC89: 0 | AD89: 0 | AE89: 0 | AF89: 0 | AG89: 0
B90: · Interest payment | D90: =IF(D2<=$C$12,D87*$C$11,0) -> 541365.76 | E90: 494683.21 | F90: 446483.477 | G90: 396717.2528 | H90: 345333.6263 | I90: 292280.0319 | J90: 237502.1957 | K90: 180944.0798 | L90: 122547.8252 | M90: 62253.69224 | N90: 0 | O90: 0 | P90: 0 | Q90: 0 | R90: 0 | S90: 0 | T90: 0 | U90: 0 | V90: 0 | W90: 0 | X90: 0 | Y90: 0 | Z90: 0 | AA90: 0 | AB90: 0 | AC90: 0 | AD90: 0 | AE90: 0 | AF90: 0 | AG90: 0
B91: Ending balance of debt | D91: =D87-D89 -> 15221021.84 | E91: 13737953.14 | F91: 12206684.7 | G91: 10625650.04 | H91: 8993231.751 | I91: 7307759.867 | J91: 5567510.148 | K91: 3770702.313 | L91: 1915498.223 | M91: 0 | N91: 0 | O91: 0 | P91: 0 | Q91: 0 | R91: 0 | S91: 0 | T91: 0 | U91: 0 | V91: 0 | W91: 0 | X91: 0 | Y91: 0 | Z91: 0 | AA91: 0 | AB91: 0 | AC91: 0 | AD91: 0 | AE91: 0 | AF91: 0 | AG91: 0
B92: Debt for new Capex | C92: 0 | D92: =(INDEX(DC_Equipment,ROW(A2),COLUMN(A2)))*(CSI_newPercent_debt) -> 0 | E92: =(INDEX(DC_Equipment,ROW($A3),COLUMN($A3)))*(CSI_newPercent_debt) -> 0 | F92: =(INDEX(DC_Equipment,ROW($A4),COLUMN($A4)))*(CSI_newPercent_debt) -> 0 | G92: =(INDEX(DC_Equipment,ROW($A5),COLUMN($A5)))*(CSI_newPercent_debt) -> 0 | H92: =(INDEX(DC_Equipment,ROW($A6),COLUMN($A6)))*(CSI_newPercent_debt) -> 0 | I92: =(INDEX(DC_Equipment,ROW($A7),COLUMN($A7)))*(CSI_newPercent_debt) -> 0 | J92: =(INDEX(DC_Equipment,ROW($A8),COLUMN($A8)))*(CSI_newPercent_debt) -> 0 | K92: =(INDEX(DC_Equipment,ROW($A9),COLUMN($A9)))*(CSI_newPercent_debt) -> 0 | L92: =(INDEX(DC_Equipment,ROW($A10),COLUMN($A10)))*(CSI_newPercent_debt) -> 0 | M92: =(INDEX(DC_Equipment,ROW($A11),COLUMN($A11)))*(CSI_newPercent_debt) -> 0 | N92: =(INDEX(DC_Equipment,ROW($A12),COLUMN($A12)))*(CSI_newPercent_debt) -> 0 | O92: =(INDEX(DC_Equipment,ROW($A13),COLUMN($A13)))*(CSI_newPercent_debt) -> 0 | P92: =(INDEX(DC_Equipment,ROW($A14),COLUMN($A14)))*(CSI_newPercent_debt) -> 0 | Q92: =(INDEX(DC_Equipment,ROW($A15),COLUMN($A15)))*(CSI_newPercent_debt) -> 0 | R92: =(INDEX(DC_Equipment,ROW($A16),COLUMN($A16)))*(CSI_newPercent_debt) -> 0 | S92: =(INDEX(DC_Equipment,ROW($A17),COLUMN($A17)))*(CSI_newPercent_debt) -> 0 | T92: =(INDEX(DC_Equipment,ROW($A18),COLUMN($A18)))*(CSI_newPercent_debt) -> 0 | U92: =(INDEX(DC_Equipment,ROW($A19),COLUMN($A19)))*(CSI_newPercent_debt) -> 0 | V92: =(INDEX(DC_Equipment,ROW($A20),COLUMN($A20)))*(CSI_newPercent_debt) -> 0 | W92: =(INDEX(DC_Equipment,ROW($A21),COLUMN($A21)))*(CSI_newPercent_debt) -> 0 | X92: =(INDEX(DC_Equipment,ROW($A22),COLUMN($A22)))*(CSI_newPercent_debt) -> 0 | Y92: =(INDEX(DC_Equipment,ROW($A23),COLUMN($A23)))*(CSI_newPercent_debt) -> 0 | Z92: =(INDEX(DC_Equipment,ROW($A25),COLUMN($A25)))*(CSI_newPercent_debt) -> 0 | AA92: =(INDEX(DC_Equipment,ROW($A26),COLUMN($A26)))*(CSI_newPercent_debt) -> 0 | AB92: =(INDEX(DC_Equipment,ROW($A27),COLUMN($A27)))*(CSI_newPercent_debt) -> 0 | AC92: =(INDEX(DC_Equipment,ROW($A28),COLUMN($A28)))*(CSI_newPercent_debt) -> 0 | AD92: =(INDEX(DC_Equipment,ROW($A29),COLUMN($A29)))*(CSI_newPercent_debt) -> 0 | AE92: =(INDEX(DC_Equipment,ROW($A30),COLUMN($A30)))*(CSI_newPercent_debt) -> 0 | AF92: =(INDEX(DC_Equipment,ROW($A31),COLUMN($A31)))*(CSI_newPercent_debt) -> 0 | AG92: 0
B93: Beginning balance of debt = new Capex * % of debt | D93: =C97+D92 -> 0 | E93: 0 | F93: 0 | G93: 0 | H93: 0 | I93: 0 | J93: 0 | K93: 0 | L93: 0 | M93: =L97+M92 -> 0 | N93: =M97+N92 -> 0 | O93: 0 | P93: 0 | Q93: 0 | R93: 0 | S93: 0 | T93: 0 | U93: 0 | V93: 0 | W93: 0 | X93: 0 | Y93: 0 | Z93: 0 | AA93: 0 | AB93: 0 | AC93: 0 | AD93: 0 | AE93: 0 | AF93: 0 | AG93: 0
B94: Less: Total debt payment (average yearly debt payment in column C) | C94: =SUMIF(D2:AG2,"<=" & CSI_analysis_yrs,D94:AG94)/CSI_analysis_yrs -> 0 | D94: =-PMT(CSI_Interest,CSI_newLoan_yrs,D92) -> 0 | E94: =-PMT(CSI_Interest,CSI_newLoan_yrs,SUM(OFFSET(E92,0,-MIN(E2-1,CSI_newLoan_yrs-1)):E92)) -> 0 | F94: =-PMT(CSI_Interest,CSI_newLoan_yrs,SUM(OFFSET(F92,0,-MIN(F2-1,CSI_newLoan_yrs-1)):F92)) -> 0 | G94: =-PMT(CSI_Interest,CSI_newLoan_yrs,SUM(OFFSET(G92,0,-MIN(G2-1,CSI_newLoan_yrs-1)):G92)) -> 0 | H94: =-PMT(CSI_Interest,CSI_newLoan_yrs,SUM(OFFSET(H92,0,-MIN(H2-1,CSI_newLoan_yrs-1)):H92)) -> 0 | I94: =-PMT(CSI_Interest,CSI_newLoan_yrs,SUM(OFFSET(I92,0,-MIN(I2-1,CSI_newLoan_yrs-1)):I92)) -> 0 | J94: =-PMT(CSI_Interest,CSI_newLoan_yrs,SUM(OFFSET(J92,0,-MIN(J2-1,CSI_newLoan_yrs-1)):J92)) -> 0 | K94: =-PMT(CSI_Interest,CSI_newLoan_yrs,SUM(OFFSET(K92,0,-MIN(K2-1,CSI_newLoan_yrs-1)):K92)) -> 0 | L94: =-PMT(CSI_Interest,CSI_newLoan_yrs,SUM(OFFSET(L92,0,-MIN(L2-1,CSI_newLoan_yrs-1)):L92)) -> 0 | M94: =-PMT(CSI_Interest,CSI_newLoan_yrs,SUM(OFFSET(M92,0,-MIN(M2-1,CSI_newLoan_yrs-1)):M92)) -> 0 | N94: =-PMT(CSI_Interest,CSI_newLoan_yrs,SUM(OFFSET(N92,0,-MIN(N2-1,CSI_newLoan_yrs-1)):N92)) -> 0 | O94: =-PMT(CSI_Interest,CSI_newLoan_yrs,SUM(OFFSET(O92,0,-MIN(O2-1,CSI_newLoan_yrs-1)):O92)) -> 0 | P94: =-PMT(CSI_Interest,CSI_newLoan_yrs,SUM(OFFSET(P92,0,-MIN(P2-1,CSI_newLoan_yrs-1)):P92)) -> 0 | Q94: =-PMT(CSI_Interest,CSI_newLoan_yrs,SUM(OFFSET(Q92,0,-MIN(Q2-1,CSI_newLoan_yrs-1)):Q92)) -> 0 | R94: =-PMT(CSI_Interest,CSI_newLoan_yrs,SUM(OFFSET(R92,0,-MIN(R2-1,CSI_newLoan_yrs-1)):R92)) -> 0 | S94: =-PMT(CSI_Interest,CSI_newLoan_yrs,SUM(OFFSET(S92,0,-MIN(S2-1,CSI_newLoan_yrs-1)):S92)) -> 0 | T94: =-PMT(CSI_Interest,CSI_newLoan_yrs,SUM(OFFSET(T92,0,-MIN(T2-1,CSI_newLoan_yrs-1)):T92)) -> 0 | U94: =-PMT(CSI_Interest,CSI_newLoan_yrs,SUM(OFFSET(U92,0,-MIN(U2-1,CSI_newLoan_yrs-1)):U92)) -> 0 | V94: =-PMT(CSI_Interest,CSI_newLoan_yrs,SUM(OFFSET(V92,0,-MIN(V2-1,CSI_newLoan_yrs-1)):V92)) -> 0 | W94: =-PMT(CSI_Interest,CSI_newLoan_yrs,SUM(OFFSET(W92,0,-MIN(W2-1,CSI_newLoan_yrs-1)):W92)) -> 0 | X94: =-PMT(CSI_Interest,CSI_newLoan_yrs,SUM(OFFSET(X92,0,-MIN(X2-1,CSI_newLoan_yrs-1)):X92)) -> 0 | Y94: =-PMT(CSI_Interest,CSI_newLoan_yrs,SUM(OFFSET(Y92,0,-MIN(Y2-1,CSI_newLoan_yrs-1)):Y92)) -> 0 | Z94: =-PMT(CSI_Interest,CSI_newLoan_yrs,SUM(OFFSET(Z92,0,-MIN(Z2-1,CSI_newLoan_yrs-1)):Z92)) -> 0 | AA94: =-PMT(CSI_Interest,CSI_newLoan_yrs,SUM(OFFSET(AA92,0,-MIN(AA2-1,CSI_newLoan_yrs-1)):AA92)) -> 0 | AB94: =-PMT(CSI_Interest,CSI_newLoan_yrs,SUM(OFFSET(AB92,0,-MIN(AB2-1,CSI_newLoan_yrs-1)):AB92)) -> 0 | AC94: =-PMT(CSI_Interest,CSI_newLoan_yrs,SUM(OFFSET(AC92,0,-MIN(AC2-1,CSI_newLoan_yrs-1)):AC92)) -> 0 | AD94: =-PMT(CSI_Interest,CSI_newLoan_yrs,SUM(OFFSET(AD92,0,-MIN(AD2-1,CSI_newLoan_yrs-1)):AD92)) -> 0 | AE94: =-PMT(CSI_Interest,CSI_newLoan_yrs,SUM(OFFSET(AE92,0,-MIN(AE2-1,CSI_newLoan_yrs-1)):AE92)) -> 0 | AF94: =-PMT(CSI_Interest,CSI_newLoan_yrs,SUM(OFFSET(AF92,0,-MIN(AF2-1,CSI_newLoan_yrs-1)):AF92)) -> 0 | AG94: =-PMT(CSI_Interest,CSI_newLoan_yrs,SUM(OFFSET(AG92,0,-MIN(AG2-1,CSI_newLoan_yrs-1)):AG92)) -> 0
B95: · Principle payment | D95: =D94-D96 -> 0 | E95: =E94-E96 -> 0 | F95: 0 | G95: 0 | H95: 0 | I95: 0 | J95: 0 | K95: 0 | L95: 0 | M95: 0 | N95: 0 | O95: 0 | P95: 0 | Q95: 0 | R95: 0 | S95: 0 | T95: 0 | U95: 0 | V95: 0 | W95: 0 | X95: 0 | Y95: 0 | Z95: 0 | AA95: 0 | AB95: 0 | AC95: 0 | AD95: 0 | AE95: 0 | AF95: 0 | AG95: 0
B96: · Interest payment | D96: =D93*CSI_Interest -> 0 | E96: 0 | F96: 0 | G96: 0 | H96: 0 | I96: 0 | J96: 0 | K96: 0 | L96: 0 | M96: 0 | N96: 0 | O96: 0 | P96: 0 | Q96: 0 | R96: 0 | S96: 0 | T96: 0 | U96: 0 | V96: 0 | W96: 0 | X96: 0 | Y96: 0 | Z96: 0 | AA96: 0 | AB96: 0 | AC96: 0 | AD96: 0 | AE96: 0 | AF96: 0 | AG96: 0
B97: Ending balance of debt (=ROUND(D92-D94,2)) | D97: =ROUND(D93-D95,2) -> 0 | E97: =ROUND(E93-E95,2) -> 0 | F97: 0 | G97: 0 | H97: 0 | I97: 0 | J97: 0 | K97: 0 | L97: 0 | M97: 0 | N97: 0 | O97: 0 | P97: 0 | Q97: 0 | R97: 0 | S97: 0 | T97: 0 | U97: 0 | V97: 0 | W97: 0 | X97: 0 | Y97: 0 | Z97: 0 | AA97: 0 | AB97: 0 | AC97: 0 | AD97: 0 | AE97: 0 | AF97: 0 | AG97: 0
B98: Total principle expense | D98: =D89+D95 -> 1436386.155 | E98: =E89+E95 -> 1483068.705 | F98: 1531268.438 | G98: 1581034.662 | H98: 1632418.289 | I98: 1685471.883 | J98: 1740249.719 | K98: 1796807.835 | L98: 1855204.09 | M98: 1915498.223 | N98: 0 | O98: 0 | P98: 0 | Q98: 0 | R98: 0 | S98: 0 | T98: 0 | U98: 0 | V98: 0 | W98: 0 | X98: 0 | Y98: 0 | Z98: 0 | AA98: 0 | AB98: 0 | AC98: 0 | AD98: 0 | AE98: 0 | AF98: 0 | AG98: 0
B99: Total interest expense | D99: =D90+D96 -> 541365.76 | E99: 494683.21 | F99: 446483.477 | G99: 396717.2528 | H99: 345333.6263 | I99: 292280.0319 | J99: 237502.1957 | K99: 180944.0798 | L99: 122547.8252 | M99: 62253.69224 | N99: 0 | O99: 0 | P99: 0 | Q99: 0 | R99: 0 | S99: 0 | T99: 0 | U99: 0 | V99: 0 | W99: 0 | X99: 0 | Y99: 0 | Z99: 0 | AA99: 0 | AB99: 0 | AC99: 0 | AD99: 0 | AE99: 0 | AF99: 0 | AG99: 0
B102: Less: Total interest and principle expense | D102: =SUM(D98:D99) -> 1977751.915 | E102: 1977751.915 | F102: 1977751.915 | G102: 1977751.915 | H102: 1977751.915 | I102: 1977751.915 | J102: 1977751.915 | K102: 1977751.915 | L102: 1977751.915 | M102: 1977751.915 | N102: 0 | O102: 0 | P102: 0 | Q102: 0 | R102: 0 | S102: 0 | T102: 0 | U102: 0 | V102: 0 | W102: 0 | X102: 0 | Y102: 0 | Z102: 0 | AA102: 0 | AB102: 0 | AC102: 0 | AD102: 0 | AE102: 0 | AF102: 0 | AG102: 0
B103: Income from continuing operations (loss) | D103: =D82-D102 -> -6595964.166 | E103: -6651505.783 | F103: -6708713.649 | G103: -658571.0838 | H103: -719262.9086 | I103: -781775.4882 | J103: -846163.4452 | K103: 187516.9591 | L103: 119207.7756 | M103: 48849.3165 | N103: 1954132.019 | O103: 1879488.73 | P103: 1802606.142 | Q103: 1723417.076 | R103: 1641852.339 | S103: 1557840.659 | T103: 1471308.629 | U103: 1382180.638 | V103: 1290378.807 | W103: 1195822.922 | X103: 1098430.36 | Y103: 998116.0207 | Z103: 894792.2515 | AA103: 788368.7693 | AB103: 678752.5826 | AC103: 565847.9103 | AD103: 449556.0978 | AE103: 329775.5309 | AF103: 206401.5471 | AG103: 79326.3437
A104: Non-operation Income (loss) | B104: Gained from old land sale (Paid for new land purchase) | D104: =C125-D125 -> 0 | E104: 0 | F104: 0 | G104: 0 | H104: 0 | I104: 0 | J104: 0 | K104: 0 | L104: 0 | M104: 0 | N104: 0 | O104: 0 | P104: 0 | Q104: 0 | R104: 0 | S104: 0 | T104: 0 | U104: 0 | V104: 0 | W104: 0 | X104: 0 | Y104: 0 | Z104: 0 | AA104: 0 | AB104: 0 | AC104: 0 | AD104: 0 | AE104: 0 | AF104: 0 | AG104: 0
B105: Gained from old plant sale (Paid for new plant) | D105: 0 | E105: 0 | F105: 0 | G105: 0 | H105: 0 | I105: 0 | J105: 0 | K105: 0 | L105: 0 | M105: 0 | N105: 0 | O105: 0 | P105: 0 | Q105: 0 | R105: 0 | S105: 0 | T105: 0 | U105: 0 | V105: 0 | W105: 0 | X105: 0 | Y105: 0 | Z105: 0 | AA105: 0 | AB105: 0 | AC105: 0 | AD105: 0 | AE105: 0 | AF105: 0 | AG105: 0
B106: Gained from old equipment sale (Paid for new equipment) | D106: =C128-D128 -> 0 | E106: 0 | F106: 0 | G106: 0 | H106: 0 | I106: 0 | J106: 0 | K106: 0 | L106: 0 | M106: 0 | N106: 0 | O106: 0 | P106: 0 | Q106: 0 | R106: 0 | S106: 0 | T106: 0 | U106: 0 | V106: 0 | W106: 0 | X106: 0 | Y106: 0 | Z106: 0 | AA106: 0 | AB106: 0 | AC106: 0 | AD106: 0 | AE106: 0 | AF106: 0 | AG106: 0
B107: EBT, or pretax income | D107: =D103+SUM(D104:D106) -> -6595964.166 | E107: -6651505.783 | F107: -6708713.649 | G107: -658571.0838 | H107: -719262.9086 | I107: -781775.4882 | J107: -846163.4452 | K107: 187516.9591 | L107: 119207.7756 | M107: 48849.3165 | N107: 1954132.019 | O107: 1879488.73 | P107: 1802606.142 | Q107: 1723417.076 | R107: 1641852.339 | S107: 1557840.659 | T107: 1471308.629 | U107: 1382180.638 | V107: 1290378.807 | W107: 1195822.922 | X107: 1098430.36 | Y107: 998116.0207 | Z107: 894792.2515 | AA107: 788368.7693 | AB107: 678752.5826 | AC107: 565847.9103 | AD107: 449556.0978 | AE107: 329775.5309 | AF107: 206401.5471 | AG107: 79326.3437
B108: Cumulative before tax earnings….carry losses forward | D108: =C108+D107 -> -6595964.166 | E108: -13247469.95 | F108: -19956183.6 | G108: -20614754.68 | H108: -21334017.59 | I108: -22115793.08 | J108: -22961956.52 | K108: -22774439.56 | L108: -22655231.79 | M108: -22606382.47 | N108: -20652250.45 | O108: -18772761.72 | P108: -16970155.58 | Q108: -15246738.51 | R108: -13604886.17 | S108: -12047045.51 | T108: -10575736.88 | U108: -9193556.241 | V108: -7903177.434 | W108: -6707354.512 | X108: -5608924.152 | Y108: -4610808.132 | Z108: -3716015.88 | AA108: -2927647.111 | AB108: -2248894.528 | AC108: -1683046.618 | AD108: -1233490.52 | AE108: -903714.9892 | AF108: -697313.4422 | AG108: -617987.0985
B109: Less: Income tax expense (benefit) | D109: =IF(D107>0,IF(MIN(C108,0)+D107<0,0,$C$13*(MIN(C108,0)+D107)),0) -> 0 | E109: =IF(E107>0,IF(MIN(D108,0)+E107<0,0,$C$13*(MIN(D108,0)+E107)),0) -> 0 | F109: =IF(F107>0,IF(MIN(E108,0)+F107<0,0,$C$13*(MIN(E108,0)+F107)),0) -> 0 | G109: 0 | H109: 0 | I109: 0 | J109: 0 | K109: 0 | L109: 0 | M109: 0 | N109: 0 | O109: 0 | P109: 0 | Q109: 0 | R109: 0 | S109: 0 | T109: 0 | U109: 0 | V109: 0 | W109: 0 | X109: 0 | Y109: 0 | Z109: 0 | AA109: 0 | AB109: 0 | AC109: 0 | AD109: 0 | AE109: 0 | AF109: 0 | AG109: 0
B110: Effective tax rate | D110: =D109/D107 -> 0 | E110: 0 | F110: 0 | G110: 0 | H110: 0 | I110: 0 | J110: 0 | K110: 0 | L110: 0 | M110: 0 | N110: 0 | O110: 0 | P110: 0 | Q110: 0 | R110: 0 | S110: 0 | T110: 0 | U110: 0 | V110: 0 | W110: 0 | X110: 0 | Y110: 0 | Z110: 0 | AA110: 0 | AB110: 0 | AC110: 0 | AD110: 0 | AE110: 0 | AF110: 0 | AG110: 0
B111: Net income (loss) before salvage | D111: =D107-D109 -> -6595964.166 | E111: -6651505.783 | F111: -6708713.649 | G111: -658571.0838 | H111: -719262.9086 | I111: -781775.4882 | J111: -846163.4452 | K111: 187516.9591 | L111: 119207.7756 | M111: 48849.3165 | N111: 1954132.019 | O111: 1879488.73 | P111: 1802606.142 | Q111: 1723417.076 | R111: 1641852.339 | S111: 1557840.659 | T111: 1471308.629 | U111: 1382180.638 | V111: 1290378.807 | W111: 1195822.922 | X111: 1098430.36 | Y111: 998116.0207 | Z111: 894792.2515 | AA111: 788368.7693 | AB111: 678752.5826 | AC111: 565847.9103 | AD111: 449556.0978 | AE111: 329775.5309 | AF111: 206401.5471 | AG111: 79326.3437
B112: After-tax salvage value | D112: 0 | E112: 0 | F112: 0 | G112: 0 | H112: 0 | I112: 0 | J112: 0 | K112: 0 | L112: 0 | M112: 0 | N112: 0 | O112: 0 | P112: 0 | Q112: 0 | R112: 0 | S112: 0 | T112: 0 | U112: 0 | V112: 0 | W112: 0 | X112: 0 | Y112: 0 | Z112: 0 | AA112: 0 | AB112: 0 | AC112: 0 | AD112: 0 | AE112: 0 | AF112: 0 | AG112: 0
B113: Net Income | D113: =D111+D112 -> -6595964.166 | E113: -6651505.783 | F113: -6708713.649 | G113: -658571.0838 | H113: -719262.9086 | I113: -781775.4882 | J113: -846163.4452 | K113: 187516.9591 | L113: 119207.7756 | M113: 48849.3165 | N113: 1954132.019 | O113: 1879488.73 | P113: 1802606.142 | Q113: 1723417.076 | R113: 1641852.339 | S113: 1557840.659 | T113: 1471308.629 | U113: 1382180.638 | V113: 1290378.807 | W113: 1195822.922 | X113: 1098430.36 | Y113: 998116.0207 | Z113: 894792.2515 | AA113: 788368.7693 | AB113: 678752.5826 | AC113: 565847.9103 | AD113: 449556.0978 | AE113: 329775.5309 | AF113: 206401.5471 | AG113: 79326.3437
B114: Less: Common dividends declared | D114: =IF(D113>0,$C$14*D113,0) -> 0 | E114: 0 | F114: 0 | G114: 0 | H114: 0 | I114: 0 | J114: 0 | K114: 0 | L114: 0 | M114: 0 | N114: 0 | O114: 0 | P114: 0 | Q114: 0 | R114: 0 | S114: 0 | T114: 0 | U114: 0 | V114: 0 | W114: 0 | X114: 0 | Y114: 0 | Z114: 0 | AA114: 0 | AB114: 0 | AC114: 0 | AD114: 0 | AE114: 0 | AF114: 0 | AG114: 0
B116: Balance Sheet
B117: Assets
B118: Current asset
B119: Cash and cash equivalents ……zero for Year 0 | C119: =C122-SUM(C120:C121) -> 0 | D119: 520068.5892 | E119: -417802.9483 | F119: -1461452.996 | G119: -2614175.409 | H119: -3879366.772 | I119: -5260529.615 | J119: -6761275.716 | K119: -8385329.515 | L119: -10136531.64 | M119: -12018842.53 | N119: -10080842.36 | O119: -8217969.431 | P119: -6432477.564 | Q119: -4726688.191 | R119: -3102992.386 | S119: -1563852.957 | T119: -111806.5955 | U119: 1250533.908 | V119: 2520477.376 | W119: 3695251.899 | X119: 4772002.407 | Y119: 5747788.181 | Z119: 6619580.278 | AA119: 7384258.889 | AB119: 8038610.608 | AC119: 8579325.629 | AD119: 9002994.851 | AE119: 9306106.899 | AF119: 9485045.06 | AG119: 9536084.115
B120: Accounts receivables = (Collection period/365)*Sales | D120: =($C$18/365)*D52 -> 173864.6442 | E120: 173864.6442 | F120: 173864.6442 | G120: 173864.6442 | H120: 173864.6442 | I120: 173864.6442 | J120: 173864.6442 | K120: 173864.6442 | L120: 173864.6442 | M120: 173864.6442 | N120: 173864.6442 | O120: 173864.6442 | P120: 173864.6442 | Q120: 173864.6442 | R120: 173864.6442 | S120: 173864.6442 | T120: 173864.6442 | U120: 173864.6442 | V120: 173864.6442 | W120: 173864.6442 | X120: 173864.6442 | Y120: 173864.6442 | Z120: 173864.6442 | AA120: 173864.6442 | AB120: 173864.6442 | AC120: 173864.6442 | AD120: 173864.6442 | AE120: 173864.6442 | AF120: 173864.6442 | AG120: 173864.6442
B121: Inventory = COGS / Inventory turnover | D121: =D53/$C$19 -> 462846.8108 | E121: 476732.2151 | F121: 491034.1816 | G121: 505765.2071 | H121: 520938.1633 | I121: 536566.3082 | J121: 552663.2974 | K121: 569243.1963 | L121: 586320.4922 | M121: 603910.107 | N121: 622027.4102 | O121: 640688.2325 | P121: 659908.8795 | Q121: 679706.1459 | R121: 700097.3302 | S121: 721100.2501 | T121: 742733.2576 | U121: 765015.2554 | V121: 787965.713 | W121: 811604.6844 | X121: 835952.825 | Y121: 861031.4097 | Z121: 886862.352 | AA121: 913468.2226 | AB121: 940872.2692 | AC121: 969098.4373 | AD121: 998171.3904 | AE121: 1028116.532 | AF121: 1058960.028 | AG121: 1090728.829
B122: Current Asset | C122: =C140-C138 -> 0 | D122: 1156780.044 | E122: 232793.9111 | F122: -796554.1702 | G122: -1934545.557 | H122: -3184563.965 | I122: -4550098.663 | J122: -6034747.774 | K122: -7642221.675 | L122: -9376346.505 | M122: -11241067.78 | N122: -9284950.305 | O122: -7403416.554 | P122: -5598704.04 | Q122: -3873117.401 | R122: -2229030.412 | S122: -668888.0631 | T122: 804791.3063 | U122: 2189413.807 | V122: 3482307.733 | W122: 4680721.227 | X122: 5781819.876 | Y122: 6782684.235 | Z122: 7680307.275 | AA122: 8471591.756 | AB122: 9153347.522 | AC122: 9722288.711 | AD122: 10175030.89 | AE122: 10508088.08 | AF122: 10717869.73 | AG122: 10800677.59
B124: Noncurrent assets
B125: Land | C125: =$C$22 -> 0 | D125: =C125+IF(D2=$E$27,$C$27,0)+IF(D2=$E$31,$C$31,0)+IF(D2=$E$35,$C$35,0) -> 0 | E125: 0 | F125: 0 | G125: 0 | H125: 0 | I125: 0 | J125: 0 | K125: 0 | L125: 0 | M125: 0 | N125: 0 | O125: 0 | P125: 0 | Q125: 0 | R125: 0 | S125: 0 | T125: 0 | U125: 0 | V125: 0 | W125: 0 | X125: 0 | Y125: 0 | Z125: 0 | AA125: 0 | AB125: 0 | AC125: 0 | AD125: 0 | AE125: 0 | AF125: 0 | AG125: 0
B126: Gross Plant, or building | C126: =$C$23 -> 18327200 | D126: =C126+IF(D2=$E$28,$C$28,0)+IF(D2=$E$32,$C$32,0)+IF(D2=$E$36,$C$36,0) -> 18327200 | E126: 18327200 | F126: 18327200 | G126: 18327200 | H126: 18327200 | I126: 18327200 | J126: 18327200 | K126: 18327200 | L126: 18327200 | M126: 18327200 | N126: 18327200 | O126: 18327200 | P126: 18327200 | Q126: 18327200 | R126: 18327200 | S126: 18327200 | T126: 18327200 | U126: 18327200 | V126: 18327200 | W126: 18327200 | X126: 18327200 | Y126: 18327200 | Z126: 18327200 | AA126: 18327200 | AB126: 18327200 | AC126: 18327200 | AD126: 18327200 | AE126: 18327200 | AF126: 18327200 | AG126: 18327200
B127: Depreciable Tooling | C127: =$C$25 -> 0 | D127: =C127+INDEX(DC_Tooling,D2+1,1) -> 0 | E127: 0 | F127: 0 | G127: 0 | H127: 0 | I127: 0 | J127: 0 | K127: 0 | L127: 0 | M127: 0 | N127: 0 | O127: 0 | P127: 0 | Q127: 0 | R127: 0 | S127: 0 | T127: 0 | U127: 0 | V127: 0 | W127: 0 | X127: 0 | Y127: 0 | Z127: 0 | AA127: 0 | AB127: 0 | AC127: 0 | AD127: 0 | AE127: 0 | AF127: 0 | AG127: 0
B128: Gross equipment | C128: =$C$24 -> 7700000 | D128: =C128+D92/CSI_newPercent_debt -> 7700000 | E128: 7700000 | F128: 7700000 | G128: 7700000 | H128: 7700000 | I128: 7700000 | J128: 7700000 | K128: 7700000 | L128: 7700000 | M128: 7700000 | N128: 7700000 | O128: 7700000 | P128: 7700000 | Q128: 7700000 | R128: 7700000 | S128: 7700000 | T128: 7700000 | U128: 7700000 | V128: 7700000 | W128: 7700000 | X128: 7700000 | Y128: 7700000 | Z128: 7700000 | AA128: 7700000 | AB128: 7700000 | AC128: 7700000 | AD128: 7700000 | AE128: 7700000 | AF128: 7700000 | AG128: 7700000
B129: Less: Accumulated depreciation | D129: =C129+D61 -> 7209066.667 | E129: 14418133.33 | F129: 21627200 | G129: 22727200 | H129: 23827200 | I129: 24927200 | J129: 26027200 | K129: 26027200 | L129: 26027200 | M129: 26027200 | N129: 26027200 | O129: 26027200 | P129: 26027200 | Q129: 26027200 | R129: 26027200 | S129: 26027200 | T129: 26027200 | U129: 26027200 | V129: 26027200 | W129: 26027200 | X129: 26027200 | Y129: 26027200 | Z129: 26027200 | AA129: 26027200 | AB129: 26027200 | AC129: 26027200 | AD129: 26027200 | AE129: 26027200 | AF129: 26027200 | AG129: 26027200
B130: Net plant & equipment | C130: =SUM(C126:C128)-C129 -> 26027200 | D130: 18818133.33 | E130: 11609066.67 | F130: 4400000 | G130: 3300000 | H130: 2200000 | I130: 1100000 | J130: 0 | K130: 0 | L130: 0 | M130: 0 | N130: 0 | O130: 0 | P130: 0 | Q130: 0 | R130: 0 | S130: 0 | T130: 0 | U130: 0 | V130: 0 | W130: 0 | X130: 0 | Y130: 0 | Z130: 0 | AA130: 0 | AB130: 0 | AC130: 0 | AD130: 0 | AE130: 0 | AF130: 0 | AG130: 0
B132: Total gross fixed assets, PP&E | C132: =SUM(C125:C128) -> 26027200 | D132: 26027200 | E132: 26027200 | F132: 26027200 | G132: 26027200 | H132: 26027200 | I132: 26027200 | J132: 26027200 | K132: 26027200 | L132: 26027200 | M132: 26027200 | N132: 26027200 | O132: 26027200 | P132: 26027200 | Q132: 26027200 | R132: 26027200 | S132: 26027200 | T132: 26027200 | U132: 26027200 | V132: 26027200 | W132: 26027200 | X132: 26027200 | Y132: 26027200 | Z132: 26027200 | AA132: 26027200 | AB132: 26027200 | AC132: 26027200 | AD132: 26027200 | AE132: 26027200 | AF132: 26027200 | AG132: 26027200
B133: Gross PP&E / Sales | D133: =D132/D52 -> 4.101316722 | E133: 4.101316722 | F133: 4.101316722 | G133: 4.101316722 | H133: 4.101316722 | I133: 4.101316722 | J133: 4.101316722 | K133: 4.101316722 | L133: 4.101316722 | M133: 4.101316722 | N133: 4.101316722 | O133: 4.101316722 | P133: 4.101316722 | Q133: 4.101316722 | R133: 4.101316722 | S133: 4.101316722 | T133: 4.101316722 | U133: 4.101316722 | V133: 4.101316722 | W133: 4.101316722 | X133: 4.101316722 | Y133: 4.101316722 | Z133: 4.101316722 | AA133: 4.101316722 | AB133: 4.101316722 | AC133: 4.101316722 | AD133: 4.101316722 | AE133: 4.101316722 | AF133: 4.101316722 | AG133: 4.101316722
B134: Total net fixed assets, PP&E | C134: =C125+C130 -> 26027200 | D134: 18818133.33 | E134: 11609066.67 | F134: 4400000 | G134: 3300000 | H134: 2200000 | I134: 1100000 | J134: 0 | K134: 0 | L134: 0 | M134: 0 | N134: 0 | O134: 0 | P134: 0 | Q134: 0 | R134: 0 | S134: 0 | T134: 0 | U134: 0 | V134: 0 | W134: 0 | X134: 0 | Y134: 0 | Z134: 0 | AA134: 0 | AB134: 0 | AC134: 0 | AD134: 0 | AE134: 0 | AF134: 0 | AG134: 0
B135: Net PP&E / Sales | D135: =D134/D52 -> 2.965325694 | E135: 1.829334667 | F135: 0.6933436396 | G135: 0.5200077297 | H135: 0.3466718198 | I135: 0.1733359099 | J135: 0 | K135: 0 | L135: 0 | M135: 0 | N135: 0 | O135: 0 | P135: 0 | Q135: 0 | R135: 0 | S135: 0 | T135: 0 | U135: 0 | V135: 0 | W135: 0 | X135: 0 | Y135: 0 | Z135: 0 | AA135: 0 | AB135: 0 | AC135: 0 | AD135: 0 | AE135: 0 | AF135: 0 | AG135: 0
B137: Goodwill, default = 0 | C137: 0 | D137: 0 | E137: 0 | F137: 0 | G137: 0 | H137: 0 | I137: 0 | J137: 0 | K137: 0 | L137: 0 | M137: 0 | N137: 0 | O137: 0 | P137: 0 | Q137: 0 | R137: 0 | S137: 0 | T137: 0 | U137: 0 | V137: 0 | W137: 0 | X137: 0 | Y137: 0 | Z137: 0 | AA137: 0 | AB137: 0 | AC137: 0 | AD137: 0 | AE137: 0 | AF137: 0 | AG137: 0
B138: Noncurrent Assets | C138: =SUM(C137,C134) -> 26027200 | D138: 18818133.33 | E138: 11609066.67 | F138: 4400000 | G138: 3300000 | H138: 2200000 | I138: 1100000 | J138: 0 | K138: 0 | L138: 0 | M138: 0 | N138: 0 | O138: 0 | P138: 0 | Q138: 0 | R138: 0 | S138: 0 | T138: 0 | U138: 0 | V138: 0 | W138: 0 | X138: 0 | Y138: 0 | Z138: 0 | AA138: 0 | AB138: 0 | AC138: 0 | AD138: 0 | AE138: 0 | AF138: 0 | AG138: 0
B140: Total Assets | C140: =C165 -> 26027200 | D140: 19974913.38 | E140: 11841860.58 | F140: 3603445.83 | G140: 1365454.443 | H140: -984563.965 | I140: -3450098.663 | J140: -6034747.774 | K140: -7642221.675 | L140: -9376346.505 | M140: -11241067.78 | N140: -9284950.305 | O140: -7403416.554 | P140: -5598704.04 | Q140: -3873117.401 | R140: -2229030.412 | S140: -668888.0631 | T140: 804791.3063 | U140: 2189413.807 | V140: 3482307.733 | W140: 4680721.227 | X140: 5781819.876 | Y140: 6782684.235 | Z140: 7680307.275 | AA140: 8471591.756 | AB140: 9153347.522 | AC140: 9722288.711 | AD140: 10175030.89 | AE140: 10508088.08 | AF140: 10717869.73 | AG140: 10800677.59
B142: Liabilities & Equity
B143: Current liabilities
B144: Short-term debt, default = 0 | C144: 0 | D144: 0 | E144: 0 | F144: 0 | G144: 0 | H144: 0 | I144: 0 | J144: 0 | K144: 0 | L144: 0 | M144: 0 | N144: 0 | O144: 0 | P144: 0 | Q144: 0 | R144: 0 | S144: 0 | T144: 0 | U144: 0 | V144: 0 | W144: 0 | X144: 0 | Y144: 0 | Z144: 0 | AA144: 0 | AB144: 0 | AC144: 0 | AD144: 0 | AE144: 0 | AF144: 0 | AG144: 0
B145: Account payable = (Payable period/365)*COGS | D145: =($C$20/365)*D53 -> 50722.93817 | E145: 52244.62632 | F145: 53811.96511 | G145: 55426.32406 | H145: 57089.11378 | I145: 58801.7872 | J145: 60565.84081 | K145: 62382.81604 | L145: 64254.30052 | M145: 66181.92953 | N145: 68167.38742 | O145: 70212.40904 | P145: 72318.78131 | Q145: 74488.34475 | R145: 76722.99509 | S145: 79024.68495 | T145: 81395.4255 | U145: 83837.28826 | V145: 86352.40691 | W145: 88942.97912 | X145: 91611.26849 | Y145: 94359.60654 | Z145: 97190.39474 | AA145: 100106.1066 | AB145: 103109.2898 | AC145: 106202.5685 | AD145: 109388.6455 | AE145: 112670.3049 | AF145: 116050.414 | AG145: 119531.9265
B146: Wages payable | D146: =$D$44 -> 1387975 | E146: 1387975 | F146: 1387975 | G146: 1387975 | H146: 1387975 | I146: 1387975 | J146: 1387975 | K146: 1387975 | L146: 1387975 | M146: 1387975 | N146: 1387975 | O146: 1387975 | P146: 1387975 | Q146: 1387975 | R146: 1387975 | S146: 1387975 | T146: 1387975 | U146: 1387975 | V146: 1387975 | W146: 1387975 | X146: 1387975 | Y146: 1387975 | Z146: 1387975 | AA146: 1387975 | AB146: 1387975 | AC146: 1387975 | AD146: 1387975 | AE146: 1387975 | AF146: 1387975 | AG146: 1387975
B147: Intererst payable | D147: =$D$45 -> 541365.76 | E147: 541365.76 | F147: 541365.76 | G147: 541365.76 | H147: 541365.76 | I147: 541365.76 | J147: 541365.76 | K147: 541365.76 | L147: 541365.76 | M147: 541365.76 | N147: 541365.76 | O147: 541365.76 | P147: 541365.76 | Q147: 541365.76 | R147: 541365.76 | S147: 541365.76 | T147: 541365.76 | U147: 541365.76 | V147: 541365.76 | W147: 541365.76 | X147: 541365.76 | Y147: 541365.76 | Z147: 541365.76 | AA147: 541365.76 | AB147: 541365.76 | AC147: 541365.76 | AD147: 541365.76 | AE147: 541365.76 | AF147: 541365.76 | AG147: 541365.76
B148: Taxes payable | D148: =$D$46 -> 0 | E148: =$D$46 -> 0 | F148: 0 | G148: 0 | H148: 0 | I148: 0 | J148: 0 | K148: 0 | L148: 0 | M148: 0 | N148: 0 | O148: 0 | P148: 0 | Q148: 0 | R148: 0 | S148: 0 | T148: 0 | U148: 0 | V148: 0 | W148: 0 | X148: 0 | Y148: 0 | Z148: 0 | AA148: 0 | AB148: 0 | AC148: 0 | AD148: 0 | AE148: 0 | AF148: 0 | AG148: 0
B149: Dividends payable | D149: =$D$47 -> 0 | E149: 0 | F149: 0 | G149: 0 | H149: 0 | I149: 0 | J149: 0 | K149: 0 | L149: 0 | M149: 0 | N149: 0 | O149: 0 | P149: 0 | Q149: 0 | R149: 0 | S149: 0 | T149: 0 | U149: 0 | V149: 0 | W149: 0 | X149: 0 | Y149: 0 | Z149: 0 | AA149: 0 | AB149: 0 | AC149: 0 | AD149: 0 | AE149: 0 | AF149: 0 | AG149: 0
B150: Current Liabilities | C150: =SUM(C144:C149) -> 0 | D150: 1980063.698 | E150: 1981585.386 | F150: 1983152.725 | G150: 1984767.084 | H150: 1986429.874 | I150: 1988142.547 | J150: 1989906.601 | K150: 1991723.576 | L150: 1993595.061 | M150: 1995522.69 | N150: 1997508.147 | O150: 1999553.169 | P150: 2001659.541 | Q150: 2003829.105 | R150: 2006063.755 | S150: 2008365.445 | T150: 2010736.185 | U150: 2013178.048 | V150: 2015693.167 | W150: 2018283.739 | X150: 2020952.028 | Y150: 2023700.367 | Z150: 2026531.155 | AA150: 2029446.867 | AB150: 2032450.05 | AC150: 2035543.328 | AD150: 2038729.406 | AE150: 2042011.065 | AF150: 2045391.174 | AG150: 2048872.686
B152: Noncurrent liabilities
B153: Long-term debt …...e.g. bank loan, corporate bond | C153: =CSI_percent_debt*SUM(C22:C25) -> 16657408 | D153: =D91+D97 -> 15221021.84 | E153: =E91+E97 -> 13737953.14 | F153: 12206684.7 | G153: 10625650.04 | H153: 8993231.751 | I153: 7307759.867 | J153: 5567510.148 | K153: 3770702.313 | L153: 1915498.223 | M153: 0 | N153: 0 | O153: 0 | P153: 0 | Q153: 0 | R153: 0 | S153: 0 | T153: 0 | U153: 0 | V153: 0 | W153: 0 | X153: 0 | Y153: 0 | Z153: 0 | AA153: 0 | AB153: 0 | AC153: 0 | AD153: 0 | AE153: 0 | AF153: 0 | AG153: 0
B154: Deferred taxes | D154: =$D$48 -> 0 | E154: 0 | F154: 0 | G154: 0 | H154: 0 | I154: 0 | J154: 0 | K154: 0 | L154: 0 | M154: 0 | N154: 0 | O154: 0 | P154: 0 | Q154: 0 | R154: 0 | S154: 0 | T154: 0 | U154: 0 | V154: 0 | W154: 0 | X154: 0 | Y154: 0 | Z154: 0 | AA154: 0 | AB154: 0 | AC154: 0 | AD154: 0 | AE154: 0 | AF154: 0 | AG154: 0
B155: Noncurrent Liabilities | C155: =SUM(C153:C154) -> 16657408 | D155: 15221021.84 | E155: 13737953.14 | F155: 12206684.7 | G155: 10625650.04 | H155: 8993231.751 | I155: 7307759.867 | J155: 5567510.148 | K155: 3770702.313 | L155: 1915498.223 | M155: 0 | N155: 0 | O155: 0 | P155: 0 | Q155: 0 | R155: 0 | S155: 0 | T155: 0 | U155: 0 | V155: 0 | W155: 0 | X155: 0 | Y155: 0 | Z155: 0 | AA155: 0 | AB155: 0 | AC155: 0 | AD155: 0 | AE155: 0 | AF155: 0 | AG155: 0
B157: Stockholders' equity
B158: New stock issued for new Capex = new Capex x % of equity | D158: =D92*(1-CSI_newPercent_debt) -> 0 | E158: 0 | F158: 0 | G158: 0 | H158: 0 | I158: 0 | J158: 0 | K158: 0 | L158: 0 | M158: 0 | N158: 0 | O158: 0 | P158: 0 | Q158: 0 | R158: 0 | S158: 0 | T158: 0 | U158: 0 | V158: 0 | W158: 0 | X158: 0 | Y158: 0 | Z158: 0 | AA158: 0 | AB158: 0 | AC158: 0 | AD158: 0 | AE158: 0 | AF158: 0 | AG158: 0
B159: New stock issued for Capex 2 = Capex 2 x % of equity | D159: =IF(D2=$E$32,SUM($C$31:$C$33)*(1-$C$30),0) -> 0 | E159: 0 | F159: 0 | G159: 0 | H159: 0 | I159: 0 | J159: 0 | K159: 0 | L159: 0 | M159: 0 | N159: 0 | O159: 0 | P159: 0 | Q159: 0 | R159: 0 | S159: 0 | T159: 0 | U159: 0 | V159: 0 | W159: 0 | X159: 0 | Y159: 0 | Z159: 0 | AA159: 0 | AB159: 0 | AC159: 0 | AD159: 0 | AE159: 0 | AF159: 0 | AG159: 0
B160: New stock issued for Capex 3 = Capex 3 x % of equity | D160: =IF(D2=$E$36,SUM($C$35:$C$37)*(1-$C$34),0) -> 0 | E160: 0 | F160: 0 | G160: 0 | H160: 0 | I160: 0 | J160: 0 | K160: 0 | L160: 0 | M160: 0 | N160: 0 | O160: 0 | P160: 0 | Q160: 0 | R160: 0 | S160: 0 | T160: 0 | U160: 0 | V160: 0 | W160: 0 | X160: 0 | Y160: 0 | Z160: 0 | AA160: 0 | AB160: 0 | AC160: 0 | AD160: 0 | AE160: 0 | AF160: 0 | AG160: 0
B161: Common stock market cap, assuming constant share price | C161: =(1-C21)*SUM(C22:C25) -> 9369792 | D161: =C161+D158 -> 9369792 | E161: =D161+E158 -> 9369792 | F161: 9369792 | G161: 9369792 | H161: 9369792 | I161: 9369792 | J161: 9369792 | K161: 9369792 | L161: 9369792 | M161: 9369792 | N161: 9369792 | O161: 9369792 | P161: 9369792 | Q161: 9369792 | R161: 9369792 | S161: 9369792 | T161: 9369792 | U161: 9369792 | V161: 9369792 | W161: 9369792 | X161: 9369792 | Y161: 9369792 | Z161: 9369792 | AA161: 9369792 | AB161: 9369792 | AC161: 9369792 | AD161: 9369792 | AE161: 9369792 | AF161: 9369792 | AG161: 9369792
B162: Retained earnings | D162: =C162+D113-D114 -> -6595964.166 | E162: -13247469.95 | F162: -19956183.6 | G162: -20614754.68 | H162: -21334017.59 | I162: -22115793.08 | J162: -22961956.52 | K162: -22774439.56 | L162: -22655231.79 | M162: -22606382.47 | N162: -20652250.45 | O162: -18772761.72 | P162: -16970155.58 | Q162: -15246738.51 | R162: -13604886.17 | S162: -12047045.51 | T162: -10575736.88 | U162: -9193556.241 | V162: -7903177.434 | W162: -6707354.512 | X162: -5608924.152 | Y162: -4610808.132 | Z162: -3716015.88 | AA162: -2927647.111 | AB162: -2248894.528 | AC162: -1683046.618 | AD162: -1233490.52 | AE162: -903714.9892 | AF162: -697313.4422 | AG162: -617987.0985
B163: Stockholders' Equity | C163: =SUM(C161:C162) -> 9369792 | D163: 2773827.834 | E163: -3877677.948 | F163: -10586391.6 | G163: -11244962.68 | H163: -11964225.59 | I163: -12746001.08 | J163: -13592164.52 | K163: -13404647.56 | L163: -13285439.79 | M163: -13236590.47 | N163: -11282458.45 | O163: -9402969.723 | P163: -7600363.582 | Q163: -5876946.506 | R163: -4235094.167 | S163: -2677253.508 | T163: -1205944.879 | U163: 176235.7589 | V163: 1466614.566 | W163: 2662437.488 | X163: 3760867.848 | Y163: 4758983.868 | Z163: 5653776.12 | AA163: 6442144.889 | AB163: 7120897.472 | AC163: 7686745.382 | AD163: 8136301.48 | AE163: 8466077.011 | AF163: 8672478.558 | AG163: 8751804.902
B165: Total Liabilities & Stockholders' Equity | C165: =SUM(C163,C155,C150) -> 26027200 | D165: 19974913.38 | E165: 11841860.58 | F165: 3603445.83 | G165: 1365454.443 | H165: -984563.965 | I165: -3450098.663 | J165: -6034747.774 | K165: -7642221.675 | L165: -9376346.505 | M165: -11241067.78 | N165: -9284950.305 | O165: -7403416.554 | P165: -5598704.04 | Q165: -3873117.401 | R165: -2229030.412 | S165: -668888.0631 | T165: 804791.3063 | U165: 2189413.807 | V165: 3482307.733 | W165: 4680721.227 | X165: 5781819.876 | Y165: 6782684.235 | Z165: 7680307.275 | AA165: 8471591.756 | AB165: 9153347.522 | AC165: 9722288.711 | AD165: 10175030.89 | AE165: 10508088.08 | AF165: 10717869.73 | AG165: 10800677.59
B167: Cash Flow Statement
B168: Cash flow from operations
B169: Cash collections from customers | D169: =D52-(D120-C120) -> 6172194.869 | E169: 6346059.514 | F169: 6346059.514 | G169: 6346059.514 | H169: 6346059.514 | I169: 6346059.514 | J169: 6346059.514 | K169: 6346059.514 | L169: 6346059.514 | M169: 6346059.514 | N169: 6346059.514 | O169: 6346059.514 | P169: 6346059.514 | Q169: 6346059.514 | R169: 6346059.514 | S169: 6346059.514 | T169: 6346059.514 | U169: 6346059.514 | V169: 6346059.514 | W169: 6346059.514 | X169: 6346059.514 | Y169: 6346059.514 | Z169: 6346059.514 | AA169: 6346059.514 | AB169: 6346059.514 | AC169: 6346059.514 | AD169: 6346059.514 | AE169: 6346059.514 | AF169: 6346059.514 | AG169: 6346059.514
B170: Less: Cash paid to suppliers | D170: =D53-(C121-D121)-(D145-C145) -> 2263511.116 | E170: 1919292.577 | F170: 1976871.354 | G170: 2036177.495 | H170: 2097262.82 | I170: 2160180.704 | J170: 2224986.125 | K170: 2291735.709 | L170: 2360487.78 | M170: 2431302.414 | N170: 2504241.486 | O170: 2579368.731 | P170: 2656749.793 | Q170: 2736452.286 | R170: 2818545.855 | S170: 2903102.231 | T170: 2990195.298 | U170: 3079901.156 | V170: 3172298.191 | W170: 3267467.137 | X170: 3365491.151 | Y170: 3466455.886 | Z170: 3570449.562 | AA170: 3677563.049 | AB170: 3787889.94 | AC170: 3901526.639 | AD170: 4018572.438 | AE170: 4139129.611 | AF170: 4263303.499 | AG170: 4391202.604
B171: Less: Cash paid for operating expenses, excluding depreciation | D171: =D55+D57-(D146-C146) -> 515842.8541 | E171: 1903817.854 | F171: 1903817.854 | G171: 1903817.854 | H171: 1903817.854 | I171: 1903817.854 | J171: 1903817.854 | K171: 1903817.854 | L171: 1903817.854 | M171: 1903817.854 | N171: 1903817.854 | O171: 1903817.854 | P171: 1903817.854 | Q171: 1903817.854 | R171: 1903817.854 | S171: 1903817.854 | T171: 1903817.854 | U171: 1903817.854 | V171: 1903817.854 | W171: 1903817.854 | X171: 1903817.854 | Y171: 1903817.854 | Z171: 1903817.854 | AA171: 1903817.854 | AB171: 1903817.854 | AC171: 1903817.854 | AD171: 1903817.854 | AE171: 1903817.854 | AF171: 1903817.854 | AG171: 1903817.854
B172: Less: Cash paid for interest and principle | D172: =D102-(D147-C147) -> 1436386.155 | E172: 1977751.915 | F172: 1977751.915 | G172: 1977751.915 | H172: 1977751.915 | I172: 1977751.915 | J172: 1977751.915 | K172: 1977751.915 | L172: 1977751.915 | M172: 1977751.915 | N172: 0 | O172: 0 | P172: 0 | Q172: 0 | R172: 0 | S172: 0 | T172: 0 | U172: 0 | V172: 0 | W172: 0 | X172: 0 | Y172: 0 | Z172: 0 | AA172: 0 | AB172: 0 | AC172: 0 | AD172: 0 | AE172: 0 | AF172: 0 | AG172: 0
B173: Less: Cash paid for taxes | D173: =D109-(D148-C148)-(D154-C154) -> 0 | E173: 0 | F173: 0 | G173: 0 | H173: 0 | I173: 0 | J173: 0 | K173: 0 | L173: 0 | M173: 0 | N173: 0 | O173: 0 | P173: 0 | Q173: 0 | R173: 0 | S173: 0 | T173: 0 | U173: 0 | V173: 0 | W173: 0 | X173: 0 | Y173: 0 | Z173: 0 | AA173: 0 | AB173: 0 | AC173: 0 | AD173: 0 | AE173: 0 | AF173: 0 | AG173: 0
B174: Cash Flow from Operations (Loss) | D174: =D169-SUM(D170:D173) -> 1956454.744 | E174: 545197.1677 | F174: 487618.3904 | G174: 428312.2497 | H174: 367226.9249 | I174: 304309.0403 | J174: 239503.6192 | K174: 172754.0354 | L174: 104001.9642 | M174: 33187.33074 | N174: 1938000.173 | O174: 1862872.929 | P174: 1785491.867 | Q174: 1705789.373 | R174: 1623695.805 | S174: 1539139.429 | T174: 1452046.362 | U174: 1362340.503 | V174: 1269943.468 | W174: 1174774.523 | X174: 1076750.509 | Y174: 975785.774 | Z174: 871792.0974 | AA174: 764678.6106 | AB174: 654351.7191 | AC174: 540715.0209 | AD174: 423669.2217 | AE174: 303112.0486 | AF174: 178938.1603 | AG174: 51039.05528
B176: Cash flow from investments
B177: Cash gained from old land sale (Cash paid for new land) | D177: =D104 -> 0 | E177: 0 | F177: 0 | G177: 0 | H177: 0 | I177: 0 | J177: 0 | K177: 0 | L177: 0 | M177: 0 | N177: 0 | O177: 0 | P177: 0 | Q177: 0 | R177: 0 | S177: 0 | T177: 0 | U177: 0 | V177: 0 | W177: 0 | X177: 0 | Y177: 0 | Z177: 0 | AA177: 0 | AB177: 0 | AC177: 0 | AD177: 0 | AE177: 0 | AF177: 0 | AG177: 0
B178: Cash gained from old plant sale (Cash paid for new plant) | D178: 0 | E178: 0 | F178: 0 | G178: 0 | H178: 0 | I178: 0 | J178: 0 | K178: 0 | L178: 0 | M178: 0 | N178: 0 | O178: 0 | P178: 0 | Q178: 0 | R178: 0 | S178: 0 | T178: 0 | U178: 0 | V178: 0 | W178: 0 | X178: 0 | Y178: 0 | Z178: 0 | AA178: 0 | AB178: 0 | AC178: 0 | AD178: 0 | AE178: 0 | AF178: 0 | AG178: 0
B179: Cash gained from old equipment sale (Cash paid for new equipment) | D179: 0 | E179: 0 | F179: 0 | G179: 0 | H179: 0 | I179: 0 | J179: 0 | K179: 0 | L179: 0 | M179: 0 | N179: 0 | O179: 0 | P179: 0 | Q179: 0 | R179: 0 | S179: 0 | T179: 0 | U179: 0 | V179: 0 | W179: 0 | X179: 0 | Y179: 0 | Z179: 0 | AA179: 0 | AB179: 0 | AC179: 0 | AD179: 0 | AE179: 0 | AF179: 0 | AG179: 0
B180: Cash Flow from Investments (Loss) | D180: =SUM(D177:D179) -> 0 | E180: 0 | F180: 0 | G180: 0 | H180: 0 | I180: 0 | J180: 0 | K180: 0 | L180: 0 | M180: 0 | N180: 0 | O180: 0 | P180: 0 | Q180: 0 | R180: 0 | S180: 0 | T180: 0 | U180: 0 | V180: 0 | W180: 0 | X180: 0 | Y180: 0 | Z180: 0 | AA180: 0 | AB180: 0 | AC180: 0 | AD180: 0 | AE180: 0 | AF180: 0 | AG180: 0
B182: Cash flow from financing
B183: Cash gained from new stock issued (Cash paid for repurchased/retired stock) | D183: =D161-C161 -> 0 | E183: 0 | F183: 0 | G183: 0 | H183: 0 | I183: 0 | J183: 0 | K183: 0 | L183: 0 | M183: 0 | N183: 0 | O183: 0 | P183: 0 | Q183: 0 | R183: 0 | S183: 0 | T183: 0 | U183: 0 | V183: 0 | W183: 0 | X183: 0 | Y183: 0 | Z183: 0 | AA183: 0 | AB183: 0 | AC183: 0 | AD183: 0 | AE183: 0 | AF183: 0 | AG183: 0
B184: Less: Cash paid for dividends | D184: =D114-(D149-C149) -> 0 | E184: 0 | F184: 0 | G184: 0 | H184: 0 | I184: 0 | J184: 0 | K184: 0 | L184: 0 | M184: 0 | N184: 0 | O184: 0 | P184: 0 | Q184: 0 | R184: 0 | S184: 0 | T184: 0 | U184: 0 | V184: 0 | W184: 0 | X184: 0 | Y184: 0 | Z184: 0 | AA184: 0 | AB184: 0 | AC184: 0 | AD184: 0 | AE184: 0 | AF184: 0 | AG184: 0
B185: Cash gained from equity-holders (Cash paid to equity-holders) | D185: =D183-D184 -> 0 | E185: 0 | F185: 0 | G185: 0 | H185: 0 | I185: 0 | J185: 0 | K185: 0 | L185: 0 | M185: 0 | N185: 0 | O185: 0 | P185: 0 | Q185: 0 | R185: 0 | S185: 0 | T185: 0 | U185: 0 | V185: 0 | W185: 0 | X185: 0 | Y185: 0 | Z185: 0 | AA185: 0 | AB185: 0 | AC185: 0 | AD185: 0 | AE185: 0 | AF185: 0 | AG185: 0
B186: Cash gained from debt-holders (Cash paid to debt-holders) | D186: =(D144-C144)+(D153-C153) -> -1436386.155 | E186: -1483068.705 | F186: -1531268.438 | G186: -1581034.662 | H186: -1632418.289 | I186: -1685471.883 | J186: -1740249.719 | K186: -1796807.835 | L186: -1855204.09 | M186: -1915498.223 | N186: 0 | O186: 0 | P186: 0 | Q186: 0 | R186: 0 | S186: 0 | T186: 0 | U186: 0 | V186: 0 | W186: 0 | X186: 0 | Y186: 0 | Z186: 0 | AA186: 0 | AB186: 0 | AC186: 0 | AD186: 0 | AE186: 0 | AF186: 0 | AG186: 0
B187: Cash Flow from Financing (Loss) | D187: =SUM(D185:D186) -> -1436386.155 | E187: -1483068.705 | F187: -1531268.438 | G187: -1581034.662 | H187: -1632418.289 | I187: -1685471.883 | J187: -1740249.719 | K187: -1796807.835 | L187: -1855204.09 | M187: -1915498.223 | N187: 0 | O187: 0 | P187: 0 | Q187: 0 | R187: 0 | S187: 0 | T187: 0 | U187: 0 | V187: 0 | W187: 0 | X187: 0 | Y187: 0 | Z187: 0 | AA187: 0 | AB187: 0 | AC187: 0 | AD187: 0 | AE187: 0 | AF187: 0 | AG187: 0
B189: Total Cash Flow | D189: =SUM(D174,D180,D187) -> 520068.5892 | E189: -937871.5375 | F189: -1043650.048 | G189: -1152722.413 | H189: -1265191.364 | I189: -1381162.843 | J189: -1500746.1 | K189: -1624053.8 | L189: -1751202.126 | M189: -1882310.892 | N189: 1938000.173 | O189: 1862872.929 | P189: 1785491.867 | Q189: 1705789.373 | R189: 1623695.805 | S189: 1539139.429 | T189: 1452046.362 | U189: 1362340.503 | V189: 1269943.468 | W189: 1174774.523 | X189: 1076750.509 | Y189: 975785.774 | Z189: 871792.0974 | AA189: 764678.6106 | AB189: 654351.7191 | AC189: 540715.0209 | AD189: 423669.2217 | AE189: 303112.0486 | AF189: 178938.1603 | AG189: 51039.05528
B191: Free Cash Flow Analysis
B192: Working capital | C192: =C122-C150 -> 0 | D192: -823283.654 | E192: -1748791.475 | F192: -2779706.895 | G192: -3919312.641 | H192: -5170993.839 | I192: -6538241.21 | J192: -8024654.375 | K192: -9633945.251 | L192: -11369941.57 | M192: -13236590.47 | N192: -11282458.45 | O192: -9402969.723 | P192: -7600363.582 | Q192: -5876946.506 | R192: -4235094.167 | S192: -2677253.508 | T192: -1205944.879 | U192: 176235.7589 | V192: 1466614.566 | W192: 2662437.488 | X192: 3760867.848 | Y192: 4758983.868 | Z192: 5653776.12 | AA192: 6442144.889 | AB192: 7120897.472 | AC192: 7686745.382 | AD192: 8136301.48 | AE192: 8466077.011 | AF192: 8672478.558 | AG192: 8751804.902
B193: Fixed capital investment, Capital Expenditures, or CapEx | C193: =C132-0 -> 26027200 | D193: =D132-C132 -> 0 | E193: 0 | F193: 0 | G193: 0 | H193: 0 | I193: 0 | J193: 0 | K193: 0 | L193: 0 | M193: 0 | N193: 0 | O193: 0 | P193: 0 | Q193: 0 | R193: 0 | S193: 0 | T193: 0 | U193: 0 | V193: 0 | W193: 0 | X193: 0 | Y193: 0 | Z193: 0 | AA193: 0 | AB193: 0 | AC193: 0 | AD193: 0 | AE193: 0 | AF193: 0 | AG193: 0
B194: Net working capital investment….NWCInv = Δ non-cash current asset – Δ non-debt current liability | C194: =(C120-0+C121-0)-(C145-0+C146-0+C147-0+C148-0+C149-0) -> 0 | D194: =(D120-C120+D121-C121)-(D145-C145+D146-C146+D147-C147+D148-C148+D149-C149) -> -1343352.243 | E194: 12363.71618 | F194: 12734.62766 | G194: 13116.66649 | H194: 13510.16649 | I194: 13915.47148 | J194: 14332.93563 | K194: 14762.9237 | L194: 15205.81141 | M194: 15661.98575 | N194: 16131.84532 | O194: 16615.80068 | P194: 17114.2747 | Q194: 17627.70294 | R194: 18156.53403 | S194: 18701.23005 | T194: 19262.26696 | U194: 19840.13496 | V194: 20435.33901 | W194: 21048.39918 | X194: 21679.85116 | Y194: 22330.24669 | Z194: 23000.1541 | AA194: 23690.15872 | AB194: 24400.86348 | AC194: 25132.88938 | AD194: 25886.87607 | AE194: 26663.48235 | AF194: 27463.38682 | AG194: 28287.28842
B195: Net borrowing (pay back) = Note payable + long-term debt | C195: =(C144-0)+(C153-0) -> 16657408 | D195: =(D144-C144)+(D153-C153) -> -1436386.155 | E195: -1483068.705 | F195: -1531268.438 | G195: -1581034.662 | H195: -1632418.289 | I195: -1685471.883 | J195: -1740249.719 | K195: -1796807.835 | L195: -1855204.09 | M195: -1915498.223 | N195: 0 | O195: 0 | P195: 0 | Q195: 0 | R195: 0 | S195: 0 | T195: 0 | U195: 0 | V195: 0 | W195: 0 | X195: 0 | Y195: 0 | Z195: 0 | AA195: 0 | AB195: 0 | AC195: 0 | AD195: 0 | AE195: 0 | AF195: 0 | AG195: 0
B196: Noncash charges….add back dep., deferred tax; subtract unusual gain) | D196: =D61+ABS(D154) -> 7209066.667 | E196: 7209066.667 | F196: 7209066.667 | G196: 1100000 | H196: 1100000 | I196: 1100000 | J196: 1100000 | K196: 0 | L196: 0 | M196: 0 | N196: 0 | O196: 0 | P196: 0 | Q196: 0 | R196: 0 | S196: 0 | T196: 0 | U196: 0 | V196: 0 | W196: 0 | X196: 0 | Y196: 0 | Z196: 0 | AA196: 0 | AB196: 0 | AC196: 0 | AD196: 0 | AE196: 0 | AF196: 0 | AG196: 0
B198: Free cash flow to firm (FCFF): cash available to equity-holders & debt-holders | D198: =IF(D2>$C$17,0,D113+D196+D102*(1-D110)-D193-D194) -> 3934206.659 | E198: 2522949.083 | F198: 2465370.305 | G198: 2406064.165 | H198: 2344978.84 | I198: 2282060.955 | J198: 2217255.534 | K198: 2150505.951 | L198: 2081753.879 | M198: 2010939.246 | N198: 1938000.173 | O198: 1862872.929 | P198: 1785491.867 | Q198: 1705789.373 | R198: 1623695.805 | S198: 1539139.429 | T198: 1452046.362 | U198: 1362340.503 | V198: 1269943.468 | W198: 1174774.523 | X198: 0 | Y198: 0 | Z198: 0 | AA198: 0 | AB198: 0 | AC198: 0 | AD198: 0 | AE198: 0 | AF198: 0 | AG198: 0
B199: Discounted FCFF at WACC, until analysis period | D199: =D198/(1+$C$16)^D2 -> 3737310.208 | E199: 2276734.779 | F199: 2113431.103 | G199: 1959363.966 | H199: 1814048.182 | I199: 1677023.345 | J199: 1547852.573 | K199: 1426121.319 | L199: 1311436.251 | M199: 1203424.169 | N199: 1101730.999 | O199: 1006020.816 | P199: 915974.9352 | Q199: 831291.0332 | R199: 751682.3242 | S199: 676876.7725 | T199: 606616.3456 | U199: 540656.3049 | V199: 478764.5327 | W199: 420720.8921 | X199: 0 | Y199: 0 | Z199: 0 | AA199: 0 | AB199: 0 | AC199: 0 | AD199: 0 | AE199: 0 | AF199: 0 | AG199: 0
B200: Firm valuation | D200: =SUM(D199:AG199) -> 26397080.85
B201: Growth rate of FCFF | E201: =E198/D198-1 -> -0.358714653 | F201: -0.02282201321 | G201: -0.02405567249 | H201: -0.02538806975 | I201: -0.02683089652 | J201: -0.02839776079 | K201: -0.03010459675 | L201: -0.03197018416 | M201: -0.03401681347 | N201: -0.03627114671 | O201: -0.03876534461 | P201: -0.04153856161 | Q201: -0.0446389565 | R201: -0.04812643922 | S201: -0.05207648835 | T201: -0.05658556027 | U201: -0.06177892199 | V201: -0.0678222768 | W201: -0.07493951353 | X201: -1
B203: Free cash flow to equity (FCFE): cash flow available to equity-holders | D203: =IF(D2>$C$17,0,D198-D99*(1-$C$13)+D195) -> 2118864.472 | E203: 693602.1306 | F203: 621563.4335 | G203: 547327.4256 | H203: 470827.0128 | I203: 391993.0499 | J203: 310754.2779 | K203: 227037.2594 | L203: 140766.3117 | M203: 51863.43842 | N203: 1938000.173 | O203: 1862872.929 | P203: 1785491.867 | Q203: 1705789.373 | R203: 1623695.805 | S203: 1539139.429 | T203: 1452046.362 | U203: 1362340.503 | V203: 1269943.468 | W203: 1174774.523 | X203: 0 | Y203: 0 | Z203: 0 | AA203: 0 | AB203: 0 | AC203: 0 | AD203: 0 | AE203: 0 | AF203: 0 | AG203: 0
B204: Discounted FCFE at cost of equity, until analysis period | D204: =D203/(1+$C$15)^D2 -> 1915963.896 | E204: 567124.8827 | F204: 459555.4097 | G204: 365918.0039 | H204: 284630.9232 | I204: 214280.78 | J204: 153605.2677 | K204: 101477.6196 | L204: 56892.6298 | M204: 18954.0807 | N204: 640441.3627 | O204: 556663.7422 | P204: 482449.3454 | Q204: 416776.6616 | R204: 358729.2567 | S204: 307485.2127 | T204: 262307.6134 | U204: 222535.9723 | V204: 187578.5116 | W204: 156905.2077 | X204: 0 | Y204: 0 | Z204: 0 | AA204: 0 | AB204: 0 | AC204: 0 | AD204: 0 | AE204: 0 | AF204: 0 | AG204: 0
B205: Equity valuation | D205: =SUM(D204:AG204) -> 7730276.379
B206: Growth rate of FCFE | E206: =E203/D203-1 -> -0.6726538485 | F206: -0.1038617011 | G206: -0.119434323 | H206: -0.1397708378 | I206: -0.1674372132 | J206: -0.2072454397 | K206: -0.2693994081 | L206: -0.3799858574 | M206: -0.6315635624 | N206: 36.3673677 | O206: -0.03876534461 | P206: -0.04153856161 | Q206: -0.0446389565 | R206: -0.04812643922 | S206: -0.05207648835 | T206: -0.05658556027 | U206: -0.06177892199 | V206: -0.0678222768 | W206: -0.07493951353 | X206: -1
B208: Capital Budgeting
B209: Accumulative NWCInv | C209: =C194 -> 0 | D209: =C209+D194 -> -1343352.243 | E209: -1330988.527 | F209: -1318253.899 | G209: -1305137.233 | H209: -1291627.066 | I209: -1277711.595 | J209: -1263378.659 | K209: -1248615.735 | L209: -1233409.924 | M209: -1217747.938 | N209: -1201616.093 | O209: -1185000.292 | P209: -1167886.018 | Q209: -1150258.315 | R209: -1132101.781 | S209: -1113400.551 | T209: -1094138.284 | U209: -1074298.149 | V209: -1053862.81 | W209: -1032814.41 | X209: -1011134.559 | Y209: -988804.3126 | Z209: -965804.1585 | AA209: -942113.9998 | AB209: -917713.1363 | AC209: -892580.2469 | AD209: -866693.3709 | AE209: -840029.8885 | AF209: -812566.5017 | AG209: -784279.2133
B210: Investment outlay = FCInv + NWCInv | C210: =-(C193+C194) -> -26027200 | D210: 1343352.243 | E210: -12363.71618 | F210: -12734.62766 | G210: -13116.66649 | H210: -13510.16649 | I210: -13915.47148 | J210: -14332.93563 | K210: -14762.9237 | L210: -15205.81141 | M210: -15661.98575 | N210: -16131.84532 | O210: -16615.80068 | P210: -17114.2747 | Q210: -17627.70294 | R210: -18156.53403 | S210: -18701.23005 | T210: -19262.26696 | U210: -19840.13496 | V210: -20435.33901 | W210: -21048.39918 | X210: -21679.85116 | Y210: -22330.24669 | Z210: -23000.1541 | AA210: -23690.15872 | AB210: -24400.86348 | AC210: -25132.88938 | AD210: -25886.87607 | AE210: -26663.48235 | AF210: -27463.38682 | AG210: -28287.28842
B211: After-tax operating cash flow = (S–C–D)(1–T)+D = EBIT(1-T)+D | D211: =D82*(1-D110)+D196 -> 2590854.416 | E211: 2535312.799 | F211: 2478104.933 | G211: 2419180.831 | H211: 2358489.006 | I211: 2295976.427 | J211: 2231588.47 | K211: 2165268.874 | L211: 2096959.691 | M211: 2026601.232 | N211: 1954132.019 | O211: 1879488.73 | P211: 1802606.142 | Q211: 1723417.076 | R211: 1641852.339 | S211: 1557840.659 | T211: 1471308.629 | U211: 1382180.638 | V211: 1290378.807 | W211: 1195822.922 | X211: 1098430.36 | Y211: 998116.0207 | Z211: 894792.2515 | AA211: 788368.7693 | AB211: 678752.5826 | AC211: 565847.9103 | AD211: 449556.0978 | AE211: 329775.5309 | AF211: 206401.5471 | AG211: 79326.3437
B212: Terminal year after-tax non-operating cash flow = Sal + NWCInv - T(Sal - B) | D212: =IF(D2=$C$17,D209+D130,"") ->  | W212: -1032814.41
B213: Total cash flow for capital budgeting, until analysis period | C213: =IF(C2>$C$17,0,SUM(C210:C212)) -> -26027200 | D213: 3934206.659 | E213: 2522949.083 | F213: 2465370.305 | G213: 2406064.165 | H213: 2344978.84 | I213: 2282060.955 | J213: 2217255.534 | K213: 2150505.951 | L213: 2081753.879 | M213: 2010939.246 | N213: 1938000.173 | O213: 1862872.929 | P213: 1785491.867 | Q213: 1705789.373 | R213: 1623695.805 | S213: 1539139.429 | T213: 1452046.362 | U213: 1362340.503 | V213: 1269943.468 | W213: 141960.1121 | X213: 0 | Y213: 0 | Z213: 0 | AA213: 0 | AB213: 0 | AC213: 0 | AD213: 0 | AE213: 0 | AF213: 0 | AG213: 0
B214: Discounted cash flow for capital budgeting, until analysis period | C214: =C213/(1+$C$16)^C2 -> -26027200 | D214: 3737310.208 | E214: 2276734.779 | F214: 2113431.103 | G214: 1959363.966 | H214: 1814048.182 | I214: 1677023.345 | J214: 1547852.573 | K214: 1426121.319 | L214: 1311436.251 | M214: 1203424.169 | N214: 1101730.999 | O214: 1006020.816 | P214: 915974.9352 | Q214: 831291.0332 | R214: 751682.3242 | S214: 676876.7725 | T214: 606616.3456 | U214: 540656.3049 | V214: 478764.5327 | W214: 50840.0411 | X214: 0 | Y214: 0 | Z214: 0 | AA214: 0 | AB214: 0 | AC214: 0 | AD214: 0 | AE214: 0 | AF214: 0 | AG214: 0
B215: NPV of project | C215: =SUM(C214:AG214) -> 0.0005430760866
B216: IRR of project | C216: =IRR(C213:AG213) -> 0.052684
B217: WACC | C217: =C16 -> 0.052684
B219: EVA
B220: Invested Capital = short & long-term loans + Equity | C220: =C144+C153+C161 -> 26027200 | D220: 24590813.84 | E220: 23107745.14 | F220: 21576476.7 | G220: 19995442.04 | H220: 18363023.75 | I220: 16677551.87 | J220: 14937302.15 | K220: 13140494.31 | L220: 11285290.22 | M220: 9369792 | N220: 9369792 | O220: 9369792 | P220: 9369792 | Q220: 9369792 | R220: 9369792 | S220: 9369792 | T220: 9369792 | U220: 9369792 | V220: 9369792 | W220: 9369792 | X220: 9369792 | Y220: 9369792 | Z220: 9369792 | AA220: 9369792 | AB220: 9369792 | AC220: 9369792 | AD220: 9369792 | AE220: 9369792 | AF220: 9369792 | AG220: 9369792
B221: EVA = EBIT x (1 - Tax rate) - (WACC x Invested Capital) | D221: =D82*(1-D110)-$C$16*D220 -> -5913754.687 | E221: -5891162.313 | F221: -5867696.832 | G221: 265740.9629 | H221: 291051.4632 | I221: 317336.2843 | J221: 344631.6435 | K221: 1472975.072 | L221: 1502405.461 | M221: 1532963.11 | N221: 1460493.897 | O221: 1385850.608 | P221: 1308968.02 | Q221: 1229778.954 | R221: 1148214.217 | S221: 1064202.537 | T221: 977670.5072 | U221: 888542.5163 | V221: 796740.6856 | W221: 702184.8001 | X221: 604792.238 | Y221: 504477.899 | Z221: 401154.1298 | AA221: 294730.6476 | AB221: 185114.4608 | AC221: 72209.78853 | AD221: -44082.02394 | AE221: -163862.5908 | AF221: -287236.5747 | AG221: -414311.778
B222: Return on Invested Capital, ROIC = NOPAT / Invested Capital | D222: =D82*(1-D110)/D220 -> -0.1878023346 | E222: -0.2022591923 | F222: -0.2192647947 | G222: 0.06597407693 | H222: 0.06853386586 | I222: 0.07171174981 | J222: 0.07575588006 | K222: 0.1647783426 | L222: 0.1858135368 | M222: 0.216290952 | N222: 0.208556606 | O222: 0.2005902297 | P222: 0.1923848621 | Q222: 0.1839333334 | R222: 0.1752282589 | S222: 0.1662620322 | T222: 0.1570268186 | U222: 0.1475145487 | V222: 0.1377169106 | W222: 0.1276253434 | X222: 0.1172310292 | Y222: 0.1065248856 | Z222: 0.09549755763 | AA222: 0.08413940985 | AB222: 0.07244051763 | AC222: 0.06039065865 | AD222: 0.04797930389 | AE222: 0.0351956085 | AF222: 0.02202840224 | AG222: 0.008466179794
B225: Ratios
B226: Profitablity ratio
B227: Gross profit margin | D227: =D54/D52 -> 0.708261916 | E227: 0.6995097735 | F227: 0.6904950667 | G227: 0.6812099187 | H227: 0.6716462163 | I227: 0.6617956028 | J227: 0.6516494708 | K227: 0.641198955 | L227: 0.6304349236 | M227: 0.6193479713 | N227: 0.6079284105 | O227: 0.5961662628 | P227: 0.5840512507 | Q227: 0.5715727882 | R227: 0.5587199718 | S227: 0.545481571 | T227: 0.5318460181 | U227: 0.5178013987 | V227: 0.5033354406 | W227: 0.4884355038 | X227: 0.4730885689 | Y227: 0.457281226 | Z227: 0.4409996628 | AA227: 0.4242296527 | AB227: 0.4069565423 | AC227: 0.3891652385 | AD227: 0.3708401957 | AE227: 0.3519654016 | AF227: 0.3325243636 | AG227: 0.3125000945
B228: Operating profit margin = EBIT/sales | D228: =D82/D52 -> -0.7277291114 | E228: -0.7364812539 | F228: -0.7454959607 | G228: 0.2078740088 | H228: 0.1983103064 | I228: 0.1884596929 | J228: 0.178313561 | K228: 0.341198955 | L228: 0.3304349236 | M228: 0.3193479713 | N228: 0.3079284105 | O228: 0.2961662628 | P228: 0.2840512507 | Q228: 0.2715727882 | R228: 0.2587199718 | S228: 0.245481571 | T228: 0.2318460181 | U228: 0.2178013987 | V228: 0.2033354406 | W228: 0.1884355038 | X228: 0.1730885689 | Y228: 0.157281226 | Z228: 0.1409996628 | AA228: 0.1242296527 | AB228: 0.1069565423 | AC228: 0.08916523853 | AD228: 0.07084019569 | AE228: 0.05196540156 | AF228: 0.0325243636 | AG228: 0.01250009451
... 39 more rows

Sheet DCF Summary Graph

Sheet Expense Graph
A1: Country Analysized | B1: =AnalysisCountry -> 1
A2: Material | B2: =INDEX('DCF Summary'!$L$76:$Q$87,MATCH(A2,expensevariable,0),MATCH(AnalysisCountry,expensecountry,0)) -> 162180
A3: Labor | B3: =INDEX('DCF Summary'!$L$76:$Q$87,MATCH(A3,expensevariable,0),MATCH(AnalysisCountry,expensecountry,0)) -> 1387975
A4: Energy and Utilities | B4: =INDEX('DCF Summary'!$L$76:$Q$87,MATCH(A4,expensevariable,0),MATCH(AnalysisCountry,expensecountry,0)) -> 261214.669
A5: Equipment | B5: =INDEX('DCF Summary'!$L$76:$Q$87,MATCH(A5,expensevariable,0),MATCH(AnalysisCountry,expensecountry,0)) -> 456676.9775
A6: Facilities | B6: =INDEX('DCF Summary'!$L$76:$Q$87,MATCH(A6,expensevariable,0),MATCH(AnalysisCountry,expensecountry,0)) -> 524246.7918
A7: Maintenace | B7: =INDEX('DCF Summary'!$L$76:$Q$87,MATCH(A7,expensevariable,0),MATCH(AnalysisCountry,expensecountry,0)) -> 17068.0743
A8: SG&A | B8: =INDEX('DCF Summary'!$L$76:$Q$87,MATCH(A8,expensevariable,0),MATCH(AnalysisCountry,expensecountry,0)) -> 634605.9514
A9: R&D | B9: =INDEX('DCF Summary'!$L$76:$Q$87,MATCH(A9,expensevariable,0),MATCH(AnalysisCountry,expensecountry,0)) -> 
A10: Margin for MSP | B10: =INDEX('DCF Summary'!$L$76:$Q$87,MATCH(A10,expensevariable,0),MATCH(AnalysisCountry,expensecountry,0)) -> 1609930.647
A16: Product_per_yr | B16: =Product_per_yr -> 1
C18: 1 | D18: 2 | E18: 3 | F18: 4 | G18: 5 | H18: 6 | I18: 7 | J18: 8 | K18: 9 | L18: 10 | M18: 11 | N18: 12 | O18: 13 | P18: 14 | Q18: 15 | R18: 16 | S18: 17 | T18: 18 | U18: 19 | V18: 20
A19: Cost of = Labor + Material + Energy + Maintenance | B19: Cost of Labor, Material, Energy, & Maintenance | C19: ='Financial Analysis dms'!D53 -> 1851387.243 | D19: ='Financial Analysis dms'!E53 -> 1906928.861 | E19: ='Financial Analysis dms'!F53 -> 1964136.726 | F19: ='Financial Analysis dms'!G53 -> 2023060.828 | G19: ='Financial Analysis dms'!H53 -> 2083752.653 | H19: ='Financial Analysis dms'!I53 -> 2146265.233 | I19: ='Financial Analysis dms'!J53 -> 2210653.19 | J19: ='Financial Analysis dms'!K53 -> 2276972.785 | K19: ='Financial Analysis dms'!L53 -> 2345281.969 | L19: ='Financial Analysis dms'!M53 -> 2415640.428 | M19: ='Financial Analysis dms'!N53 -> 2488109.641 | N19: ='Financial Analysis dms'!O53 -> 2562752.93 | O19: ='Financial Analysis dms'!P53 -> 2639635.518 | P19: ='Financial Analysis dms'!Q53 -> 2718824.583 | Q19: ='Financial Analysis dms'!R53 -> 2800389.321 | R19: ='Financial Analysis dms'!S53 -> 2884401.001 | S19: ='Financial Analysis dms'!T53 -> 2970933.031 | T19: ='Financial Analysis dms'!U53 -> 3060061.022 | U19: ='Financial Analysis dms'!V53 -> 3151862.852 | V19: ='Financial Analysis dms'!W53 -> 3246418.738
A20: SG & A expenses | B20: SG & A expense | C20: ='Financial Analysis dms'!D55 -> 634605.9514 | D20: ='Financial Analysis dms'!E55 -> 634605.9514 | E20: ='Financial Analysis dms'!F55 -> 634605.9514 | F20: ='Financial Analysis dms'!G55 -> 634605.9514 | G20: ='Financial Analysis dms'!H55 -> 634605.9514 | H20: ='Financial Analysis dms'!I55 -> 634605.9514 | I20: ='Financial Analysis dms'!J55 -> 634605.9514 | J20: ='Financial Analysis dms'!K55 -> 634605.9514 | K20: ='Financial Analysis dms'!L55 -> 634605.9514 | L20: ='Financial Analysis dms'!M55 -> 634605.9514 | M20: ='Financial Analysis dms'!N55 -> 634605.9514 | N20: ='Financial Analysis dms'!O55 -> 634605.9514 | O20: ='Financial Analysis dms'!P55 -> 634605.9514 | P20: ='Financial Analysis dms'!Q55 -> 634605.9514 | Q20: ='Financial Analysis dms'!R55 -> 634605.9514 | R20: ='Financial Analysis dms'!S55 -> 634605.9514 | S20: ='Financial Analysis dms'!T55 -> 634605.9514 | T20: ='Financial Analysis dms'!U55 -> 634605.9514 | U20: ='Financial Analysis dms'!V55 -> 634605.9514 | V20: ='Financial Analysis dms'!W55 -> 634605.9514
A21: R & D expenses | B21: D & E expense | C21: ='Financial Analysis dms'!D57 -> 1269211.903 | D21: ='Financial Analysis dms'!E57 -> 1269211.903 | E21: ='Financial Analysis dms'!F57 -> 1269211.903 | F21: ='Financial Analysis dms'!G57 -> 1269211.903 | G21: ='Financial Analysis dms'!H57 -> 1269211.903 | H21: ='Financial Analysis dms'!I57 -> 1269211.903 | I21: ='Financial Analysis dms'!J57 -> 1269211.903 | J21: ='Financial Analysis dms'!K57 -> 1269211.903 | K21: ='Financial Analysis dms'!L57 -> 1269211.903 | L21: ='Financial Analysis dms'!M57 -> 1269211.903 | M21: ='Financial Analysis dms'!N57 -> 1269211.903 | N21: ='Financial Analysis dms'!O57 -> 1269211.903 | O21: ='Financial Analysis dms'!P57 -> 1269211.903 | P21: ='Financial Analysis dms'!Q57 -> 1269211.903 | Q21: ='Financial Analysis dms'!R57 -> 1269211.903 | R21: ='Financial Analysis dms'!S57 -> 1269211.903 | S21: ='Financial Analysis dms'!T57 -> 1269211.903 | T21: ='Financial Analysis dms'!U57 -> 1269211.903 | U21: ='Financial Analysis dms'!V57 -> 1269211.903 | V21: ='Financial Analysis dms'!W57 -> 1269211.903
A22: D61 – Depreciation | B22: Equipment & Building Depreciation expense | C22: ='Financial Analysis dms'!D61 -> 7209066.667 | D22: ='Financial Analysis dms'!E61 -> 7209066.667 | E22: ='Financial Analysis dms'!F61 -> 7209066.667 | F22: ='Financial Analysis dms'!G61 -> 1100000 | G22: ='Financial Analysis dms'!H61 -> 1100000 | H22: ='Financial Analysis dms'!I61 -> 1100000 | I22: ='Financial Analysis dms'!J61 -> 1100000 | J22: ='Financial Analysis dms'!K61 -> 0 | K22: ='Financial Analysis dms'!L61 -> 0 | L22: ='Financial Analysis dms'!M61 -> 0 | M22: ='Financial Analysis dms'!N61 -> 0 | N22: ='Financial Analysis dms'!O61 -> 0 | O22: ='Financial Analysis dms'!P61 -> 0 | P22: ='Financial Analysis dms'!Q61 -> 0 | Q22: ='Financial Analysis dms'!R61 -> 0 | R22: ='Financial Analysis dms'!S61 -> 0 | S22: ='Financial Analysis dms'!T61 -> 0 | T22: ='Financial Analysis dms'!U61 -> 0 | U22: ='Financial Analysis dms'!V61 -> 0 | V22: ='Financial Analysis dms'!W61 -> 0
A23: D102- Interest and Principle expense | B23: Interest and Principle expense | C23: ='Financial Analysis dms'!D102 -> 1977751.915 | D23: ='Financial Analysis dms'!E102 -> 1977751.915 | E23: ='Financial Analysis dms'!F102 -> 1977751.915 | F23: ='Financial Analysis dms'!G102 -> 1977751.915 | G23: ='Financial Analysis dms'!H102 -> 1977751.915 | H23: ='Financial Analysis dms'!I102 -> 1977751.915 | I23: ='Financial Analysis dms'!J102 -> 1977751.915 | J23: ='Financial Analysis dms'!K102 -> 1977751.915 | K23: ='Financial Analysis dms'!L102 -> 1977751.915 | L23: ='Financial Analysis dms'!M102 -> 1977751.915 | M23: ='Financial Analysis dms'!N102 -> 0 | N23: ='Financial Analysis dms'!O102 -> 0 | O23: ='Financial Analysis dms'!P102 -> 0 | P23: ='Financial Analysis dms'!Q102 -> 0 | Q23: ='Financial Analysis dms'!R102 -> 0 | R23: ='Financial Analysis dms'!S102 -> 0 | S23: ='Financial Analysis dms'!T102 -> 0 | T23: ='Financial Analysis dms'!U102 -> 0 | U23: ='Financial Analysis dms'!V102 -> 0 | V23: ='Financial Analysis dms'!W102 -> 0
A24: D109- Taxable Income | B24: Income tax expense | C24: ='Financial Analysis dms'!D109 -> 0 | D24: ='Financial Analysis dms'!E109 -> 0 | E24: ='Financial Analysis dms'!F109 -> 0 | F24: ='Financial Analysis dms'!G109 -> 0 | G24: ='Financial Analysis dms'!H109 -> 0 | H24: ='Financial Analysis dms'!I109 -> 0 | I24: ='Financial Analysis dms'!J109 -> 0 | J24: ='Financial Analysis dms'!K109 -> 0 | K24: ='Financial Analysis dms'!L109 -> 0 | L24: ='Financial Analysis dms'!M109 -> 0 | M24: ='Financial Analysis dms'!N109 -> 0 | N24: ='Financial Analysis dms'!O109 -> 0 | O24: ='Financial Analysis dms'!P109 -> 0 | P24: ='Financial Analysis dms'!Q109 -> 0 | Q24: ='Financial Analysis dms'!R109 -> 0 | R24: ='Financial Analysis dms'!S109 -> 0 | S24: ='Financial Analysis dms'!T109 -> 0 | T24: ='Financial Analysis dms'!U109 -> 0 | U24: ='Financial Analysis dms'!V109 -> 0 | V24: ='Financial Analysis dms'!W109 -> 0

Sheet Depreciation Calcs
B2: Equipment and Tooling Depreciation
P4: Depreciation Charge
B5: Equipment & Tooling Summary Table | J5: =F7 -> 20 | K5: Analysis Year | L5: Inflation Multiplier | M5: Equipment Replacements | N5: Depreciable Tooling | P5: Operation Year | Q5: 1 | R5: 2 | S5: 3 | T5: 4 | U5: 5 | V5: 6 | W5: 7 | X5: 8 | Y5: 9 | Z5: 10 | AA5: 11 | AB5: 12 | AC5: 13 | AD5: 14 | AE5: 15 | AF5: 16 | AG5: 17 | AH5: 18 | AI5: 19 | AJ5: 20 | AK5: 21 | AL5: 22 | AM5: 23 | AN5: 24 | AO5: 25 | AP5: 26 | AQ5: 27 | AR5: 28 | AS5: 29 | AT5: 30 | AU5: Remaining Value at End of Analysis Period
B6: Equipment | C6: Process Step | D6: Table Name | E6: Installed Equipment Cost (USD) | F6: Equipment Life (y) | G6: Depreciable Tooling Cost (USD) | H6: Depreciable Tooling Life (y) | J6: =IF(GCD($J$5,K6)=$J$5,"replace", "") -> replace | K6: 0 | L6: 0 | M6: =tblI_Equipment[[#Totals],[Installed Equipment Cost (USD)]] -> 7700000 | N6: =tblI_Equipment[[#Totals],[Depreciable Tooling Cost (USD)]] -> 0 | Q6: =$M6*INDEX(tbl_MACRS_Schedule[#Data],MATCH(Q$5,tbl_MACRS_Schedule[Years],0),MATCH(CSI_Equipment_deprec,tbl_MACRS_Schedule[#Headers],0))+$N6*INDEX(tbl_MACRS_Schedule[#Data],MATCH(Q5,tbl_MACRS_Schedule[Years],0),MATCH(CSI_Tooling_deprec,tbl_MACRS_Schedule[#Headers],0)) -> 1100000 | R6: =$M6*INDEX(tbl_MACRS_Schedule[#Data],MATCH(R$5,tbl_MACRS_Schedule[Years],0),MATCH(CSI_Equipment_deprec,tbl_MACRS_Schedule[#Headers],0))+$N6*INDEX(tbl_MACRS_Schedule[#Data],MATCH(R5,tbl_MACRS_Schedule[Years],0),MATCH(CSI_Tooling_deprec,tbl_MACRS_Schedule[#Headers],0)) -> 1100000 | S6: =$M6*INDEX(tbl_MACRS_Schedule[#Data],MATCH(S$5,tbl_MACRS_Schedule[Years],0),MATCH(CSI_Equipment_deprec,tbl_MACRS_Schedule[#Headers],0))+$N6*INDEX(tbl_MACRS_Schedule[#Data],MATCH(S5,tbl_MACRS_Schedule[Years],0),MATCH(CSI_Tooling_deprec,tbl_MACRS_Schedule[#Headers],0)) -> 1100000 | T6: =$M6*INDEX(tbl_MACRS_Schedule[#Data],MATCH(T$5,tbl_MACRS_Schedule[Years],0),MATCH(CSI_Equipment_deprec,tbl_MACRS_Schedule[#Headers],0))+$N6*INDEX(tbl_MACRS_Schedule[#Data],MATCH(T5,tbl_MACRS_Schedule[Years],0),MATCH(CSI_Tooling_deprec,tbl_MACRS_Schedule[#Headers],0)) -> 1100000 | U6: =$M6*INDEX(tbl_MACRS_Schedule[#Data],MATCH(U$5,tbl_MACRS_Schedule[Years],0),MATCH(CSI_Equipment_deprec,tbl_MACRS_Schedule[#Headers],0))+$N6*INDEX(tbl_MACRS_Schedule[#Data],MATCH(U5,tbl_MACRS_Schedule[Years],0),MATCH(CSI_Tooling_deprec,tbl_MACRS_Schedule[#Headers],0)) -> 1100000 | V6: =$M6*INDEX(tbl_MACRS_Schedule[#Data],MATCH(V$5,tbl_MACRS_Schedule[Years],0),MATCH(CSI_Equipment_deprec,tbl_MACRS_Schedule[#Headers],0))+$N6*INDEX(tbl_MACRS_Schedule[#Data],MATCH(V5,tbl_MACRS_Schedule[Years],0),MATCH(CSI_Tooling_deprec,tbl_MACRS_Schedule[#Headers],0)) -> 1100000 | W6: =$M6*INDEX(tbl_MACRS_Schedule[#Data],MATCH(W$5,tbl_MACRS_Schedule[Years],0),MATCH(CSI_Equipment_deprec,tbl_MACRS_Schedule[#Headers],0))+$N6*INDEX(tbl_MACRS_Schedule[#Data],MATCH(W5,tbl_MACRS_Schedule[Years],0),MATCH(CSI_Tooling_deprec,tbl_MACRS_Schedule[#Headers],0)) -> 1100000 | X6: =$M6*INDEX(tbl_MACRS_Schedule[#Data],MATCH(X$5,tbl_MACRS_Schedule[Years],0),MATCH(CSI_Equipment_deprec,tbl_MACRS_Schedule[#Headers],0))+$N6*INDEX(tbl_MACRS_Schedule[#Data],MATCH(X5,tbl_MACRS_Schedule[Years],0),MATCH(CSI_Tooling_deprec,tbl_MACRS_Schedule[#Headers],0)) -> 0 | Y6: =$M6*INDEX(tbl_MACRS_Schedule[#Data],MATCH(Y$5,tbl_MACRS_Schedule[Years],0),MATCH(CSI_Equipment_deprec,tbl_MACRS_Schedule[#Headers],0))+$N6*INDEX(tbl_MACRS_Schedule[#Data],MATCH(Y5,tbl_MACRS_Schedule[Years],0),MATCH(CSI_Tooling_deprec,tbl_MACRS_Schedule[#Headers],0)) -> 0 | Z6: =$M6*INDEX(tbl_MACRS_Schedule[#Data],MATCH(Z$5,tbl_MACRS_Schedule[Years],0),MATCH(CSI_Equipment_deprec,tbl_MACRS_Schedule[#Headers],0))+$N6*INDEX(tbl_MACRS_Schedule[#Data],MATCH(Z5,tbl_MACRS_Schedule[Years],0),MATCH(CSI_Tooling_deprec,tbl_MACRS_Schedule[#Headers],0)) -> 0 | AA6: =$M6*INDEX(tbl_MACRS_Schedule[#Data],MATCH(AA$5,tbl_MACRS_Schedule[Years],0),MATCH(CSI_Equipment_deprec,tbl_MACRS_Schedule[#Headers],0))+$N6*INDEX(tbl_MACRS_Schedule[#Data],MATCH(AA5,tbl_MACRS_Schedule[Years],0),MATCH(CSI_Tooling_deprec,tbl_MACRS_Schedule[#Headers],0)) -> 0 | AB6: =$M6*INDEX(tbl_MACRS_Schedule[#Data],MATCH(AB$5,tbl_MACRS_Schedule[Years],0),MATCH(CSI_Equipment_deprec,tbl_MACRS_Schedule[#Headers],0))+$N6*INDEX(tbl_MACRS_Schedule[#Data],MATCH(AB5,tbl_MACRS_Schedule[Years],0),MATCH(CSI_Tooling_deprec,tbl_MACRS_Schedule[#Headers],0)) -> 0 | AC6: =$M6*INDEX(tbl_MACRS_Schedule[#Data],MATCH(AC$5,tbl_MACRS_Schedule[Years],0),MATCH(CSI_Equipment_deprec,tbl_MACRS_Schedule[#Headers],0))+$N6*INDEX(tbl_MACRS_Schedule[#Data],MATCH(AC5,tbl_MACRS_Schedule[Years],0),MATCH(CSI_Tooling_deprec,tbl_MACRS_Schedule[#Headers],0)) -> 0 | AD6: =$M6*INDEX(tbl_MACRS_Schedule[#Data],MATCH(AD$5,tbl_MACRS_Schedule[Years],0),MATCH(CSI_Equipment_deprec,tbl_MACRS_Schedule[#Headers],0))+$N6*INDEX(tbl_MACRS_Schedule[#Data],MATCH(AD5,tbl_MACRS_Schedule[Years],0),MATCH(CSI_Tooling_deprec,tbl_MACRS_Schedule[#Headers],0)) -> 0 | AE6: =$M6*INDEX(tbl_MACRS_Schedule[#Data],MATCH(AE$5,tbl_MACRS_Schedule[Years],0),MATCH(CSI_Equipment_deprec,tbl_MACRS_Schedule[#Headers],0))+$N6*INDEX(tbl_MACRS_Schedule[#Data],MATCH(AE5,tbl_MACRS_Schedule[Years],0),MATCH(CSI_Tooling_deprec,tbl_MACRS_Schedule[#Headers],0)) -> 0 | AF6: =$M6*INDEX(tbl_MACRS_Schedule[#Data],MATCH(AF$5,tbl_MACRS_Schedule[Years],0),MATCH(CSI_Equipment_deprec,tbl_MACRS_Schedule[#Headers],0))+$N6*INDEX(tbl_MACRS_Schedule[#Data],MATCH(AF5,tbl_MACRS_Schedule[Years],0),MATCH(CSI_Tooling_deprec,tbl_MACRS_Schedule[#Headers],0)) -> 0 | AG6: =$M6*INDEX(tbl_MACRS_Schedule[#Data],MATCH(AG$5,tbl_MACRS_Schedule[Years],0),MATCH(CSI_Equipment_deprec,tbl_MACRS_Schedule[#Headers],0))+$N6*INDEX(tbl_MACRS_Schedule[#Data],MATCH(AG5,tbl_MACRS_Schedule[Years],0),MATCH(CSI_Tooling_deprec,tbl_MACRS_Schedule[#Headers],0)) -> 0 | AH6: =$M6*INDEX(tbl_MACRS_Schedule[#Data],MATCH(AH$5,tbl_MACRS_Schedule[Years],0),MATCH(CSI_Equipment_deprec,tbl_MACRS_Schedule[#Headers],0))+$N6*INDEX(tbl_MACRS_Schedule[#Data],MATCH(AH5,tbl_MACRS_Schedule[Years],0),MATCH(CSI_Tooling_deprec,tbl_MACRS_Schedule[#Headers],0)) -> 0 | AI6: =$M6*INDEX(tbl_MACRS_Schedule[#Data],MATCH(AI$5,tbl_MACRS_Schedule[Years],0),MATCH(CSI_Equipment_deprec,tbl_MACRS_Schedule[#Headers],0))+$N6*INDEX(tbl_MACRS_Schedule[#Data],MATCH(AI5,tbl_MACRS_Schedule[Years],0),MATCH(CSI_Tooling_deprec,tbl_MACRS_Schedule[#Headers],0)) -> 0 | AJ6: =$M6*INDEX(tbl_MACRS_Schedule[#Data],MATCH(AJ$5,tbl_MACRS_Schedule[Years],0),MATCH(CSI_Equipment_deprec,tbl_MACRS_Schedule[#Headers],0))+$N6*INDEX(tbl_MACRS_Schedule[#Data],MATCH(AJ5,tbl_MACRS_Schedule[Years],0),MATCH(CSI_Tooling_deprec,tbl_MACRS_Schedule[#Headers],0)) -> 0 | AK6: =$M6*INDEX(tbl_MACRS_Schedule[#Data],MATCH(AK$5,tbl_MACRS_Schedule[Years],0),MATCH(CSI_Equipment_deprec,tbl_MACRS_Schedule[#Headers],0))+$N6*INDEX(tbl_MACRS_Schedule[#Data],MATCH(AK5,tbl_MACRS_Schedule[Years],0),MATCH(CSI_Tooling_deprec,tbl_MACRS_Schedule[#Headers],0)) -> 0 | AU6: =M6+N6-SUMIF(Q5:AT5,"<=" & CSI_analysis_yrs,Q6:AT6) -> 0
C7: =ROW()-ROW(tblI_Equipment[#Headers]) -> 1 | D7: Life 1 | E7: =IFERROR(OFFSET(INDEX(DCF_Calculation_Table,MATCH(CONCATENATE("Equipment ",tblI_Equipment[[#This Row],[Table Name]]),VARIABLE_DESCRIPTION,0),MATCH(AnalysisCountry,CName,0)),1,0),0) -> 7700000 | F7: =IFERROR(INDEX(DCF_Calculation_Table,MATCH(CONCATENATE("Equipment ",tblI_Equipment[[#This Row],[Table Name]]),VARIABLE_DESCRIPTION,0),MATCH(AnalysisCountry,CName,0)),1) -> 20 | G7: =IFERROR(OFFSET(INDEX(DCF_Calculation_Table,MATCH(CONCATENATE("Depreciable Tooling ",tblI_Equipment[[#This Row],[Table Name]]),VARIABLE_DESCRIPTION,0),MATCH(AnalysisCountry,CName,0)),1,0),0) -> 0 | H7: =IFERROR(INDEX(DCF_Calculation_Table,MATCH(CONCATENATE("Depreciable Tooling ",tblI_Equipment[[#This Row],[Table Name]]),VARIABLE_DESCRIPTION,0),MATCH(AnalysisCountry,CName,0)),"1") -> 1 | K7: 1 | L7: 0 | M7: =SUMPRODUCT(( (CSI_analysis_yrs-K7)>0)*(MOD(K7,tblI_Equipment[Equipment Life (y)])=0),tblI_Equipment[Installed Equipment Cost (USD)]*L7) -> 0 | N7: =SUMPRODUCT(( (CSI_analysis_yrs-K7)>0.5*tblI_Equipment[Depreciable Tooling Life (y)])*(MOD(K7,tblI_Equipment[Depreciable Tooling Life (y)])=0),tblI_Equipment[Depreciable Tooling Cost (USD)]*L7) -> 0 | R7: =$M7*INDEX(tbl_MACRS_Schedule[#Data],MATCH(Q$5,tbl_MACRS_Schedule[Years],0),MATCH(CSI_Equipment_deprec,tbl_MACRS_Schedule[#Headers],0))+$N7*INDEX(tbl_MACRS_Schedule[#Data],MATCH(Q$5,tbl_MACRS_Schedule[Years],0),MATCH(CSI_Tooling_deprec,tbl_MACRS_Schedule[#Headers],0)) -> 0 | S7: =$M7*INDEX(tbl_MACRS_Schedule[#Data],MATCH(R$5,tbl_MACRS_Schedule[Years],0),MATCH(CSI_Equipment_deprec,tbl_MACRS_Schedule[#Headers],0))+$N7*INDEX(tbl_MACRS_Schedule[#Data],MATCH(R$5,tbl_MACRS_Schedule[Years],0),MATCH(CSI_Tooling_deprec,tbl_MACRS_Schedule[#Headers],0)) -> 0 | T7: =$M7*INDEX(tbl_MACRS_Schedule[#Data],MATCH(S$5,tbl_MACRS_Schedule[Years],0),MATCH(CSI_Equipment_deprec,tbl_MACRS_Schedule[#Headers],0))+$N7*INDEX(tbl_MACRS_Schedule[#Data],MATCH(S$5,tbl_MACRS_Schedule[Years],0),MATCH(CSI_Tooling_deprec,tbl_MACRS_Schedule[#Headers],0)) -> 0 | U7: =$M7*INDEX(tbl_MACRS_Schedule[#Data],MATCH(T$5,tbl_MACRS_Schedule[Years],0),MATCH(CSI_Equipment_deprec,tbl_MACRS_Schedule[#Headers],0))+$N7*INDEX(tbl_MACRS_Schedule[#Data],MATCH(T$5,tbl_MACRS_Schedule[Years],0),MATCH(CSI_Tooling_deprec,tbl_MACRS_Schedule[#Headers],0)) -> 0 | V7: =$M7*INDEX(tbl_MACRS_Schedule[#Data],MATCH(U$5,tbl_MACRS_Schedule[Years],0),MATCH(CSI_Equipment_deprec,tbl_MACRS_Schedule[#Headers],0))+$N7*INDEX(tbl_MACRS_Schedule[#Data],MATCH(U$5,tbl_MACRS_Schedule[Years],0),MATCH(CSI_Tooling_deprec,tbl_MACRS_Schedule[#Headers],0)) -> 0 | W7: =$M7*INDEX(tbl_MACRS_Schedule[#Data],MATCH(V$5,tbl_MACRS_Schedule[Years],0),MATCH(CSI_Equipment_deprec,tbl_MACRS_Schedule[#Headers],0))+$N7*INDEX(tbl_MACRS_Schedule[#Data],MATCH(V$5,tbl_MACRS_Schedule[Years],0),MATCH(CSI_Tooling_deprec,tbl_MACRS_Schedule[#Headers],0)) -> 0 | X7: =$M7*INDEX(tbl_MACRS_Schedule[#Data],MATCH(W$5,tbl_MACRS_Schedule[Years],0),MATCH(CSI_Equipment_deprec,tbl_MACRS_Schedule[#Headers],0))+$N7*INDEX(tbl_MACRS_Schedule[#Data],MATCH(W$5,tbl_MACRS_Schedule[Years],0),MATCH(CSI_Tooling_deprec,tbl_MACRS_Schedule[#Headers],0)) -> 0 | Y7: =$M7*INDEX(tbl_MACRS_Schedule[#Data],MATCH(X$5,tbl_MACRS_Schedule[Years],0),MATCH(CSI_Equipment_deprec,tbl_MACRS_Schedule[#Headers],0))+$N7*INDEX(tbl_MACRS_Schedule[#Data],MATCH(X$5,tbl_MACRS_Schedule[Years],0),MATCH(CSI_Tooling_deprec,tbl_MACRS_Schedule[#Headers],0)) -> 0 | Z7: =$M7*INDEX(tbl_MACRS_Schedule[#Data],MATCH(Y$5,tbl_MACRS_Schedule[Years],0),MATCH(CSI_Equipment_deprec,tbl_MACRS_Schedule[#Headers],0))+$N7*INDEX(tbl_MACRS_Schedule[#Data],MATCH(Y$5,tbl_MACRS_Schedule[Years],0),MATCH(CSI_Tooling_deprec,tbl_MACRS_Schedule[#Headers],0)) -> 0 | AA7: =$M7*INDEX(tbl_MACRS_Schedule[#Data],MATCH(Z$5,tbl_MACRS_Schedule[Years],0),MATCH(CSI_Equipment_deprec,tbl_MACRS_Schedule[#Headers],0))+$N7*INDEX(tbl_MACRS_Schedule[#Data],MATCH(Z$5,tbl_MACRS_Schedule[Years],0),MATCH(CSI_Tooling_deprec,tbl_MACRS_Schedule[#Headers],0)) -> 0 | AB7: =$M7*INDEX(tbl_MACRS_Schedule[#Data],MATCH(AA$5,tbl_MACRS_Schedule[Years],0),MATCH(CSI_Equipment_deprec,tbl_MACRS_Schedule[#Headers],0))+$N7*INDEX(tbl_MACRS_Schedule[#Data],MATCH(AA$5,tbl_MACRS_Schedule[Years],0),MATCH(CSI_Tooling_deprec,tbl_MACRS_Schedule[#Headers],0)) -> 0 | AC7: =$M7*INDEX(tbl_MACRS_Schedule[#Data],MATCH(AB$5,tbl_MACRS_Schedule[Years],0),MATCH(CSI_Equipment_deprec,tbl_MACRS_Schedule[#Headers],0))+$N7*INDEX(tbl_MACRS_Schedule[#Data],MATCH(AB$5,tbl_MACRS_Schedule[Years],0),MATCH(CSI_Tooling_deprec,tbl_MACRS_Schedule[#Headers],0)) -> 0 | AD7: =$M7*INDEX(tbl_MACRS_Schedule[#Data],MATCH(AC$5,tbl_MACRS_Schedule[Years],0),MATCH(CSI_Equipment_deprec,tbl_MACRS_Schedule[#Headers],0))+$N7*INDEX(tbl_MACRS_Schedule[#Data],MATCH(AC$5,tbl_MACRS_Schedule[Years],0),MATCH(CSI_Tooling_deprec,tbl_MACRS_Schedule[#Headers],0)) -> 0 | AE7: =$M7*INDEX(tbl_MACRS_Schedule[#Data],MATCH(AD$5,tbl_MACRS_Schedule[Years],0),MATCH(CSI_Equipment_deprec,tbl_MACRS_Schedule[#Headers],0))+$N7*INDEX(tbl_MACRS_Schedule[#Data],MATCH(AD$5,tbl_MACRS_Schedule[Years],0),MATCH(CSI_Tooling_deprec,tbl_MACRS_Schedule[#Headers],0)) -> 0 | AF7: =$M7*INDEX(tbl_MACRS_Schedule[#Data],MATCH(AE$5,tbl_MACRS_Schedule[Years],0),MATCH(CSI_Equipment_deprec,tbl_MACRS_Schedule[#Headers],0))+$N7*INDEX(tbl_MACRS_Schedule[#Data],MATCH(AE$5,tbl_MACRS_Schedule[Years],0),MATCH(CSI_Tooling_deprec,tbl_MACRS_Schedule[#Headers],0)) -> 0 | AG7: =$M7*INDEX(tbl_MACRS_Schedule[#Data],MATCH(AF$5,tbl_MACRS_Schedule[Years],0),MATCH(CSI_Equipment_deprec,tbl_MACRS_Schedule[#Headers],0))+$N7*INDEX(tbl_MACRS_Schedule[#Data],MATCH(AF$5,tbl_MACRS_Schedule[Years],0),MATCH(CSI_Tooling_deprec,tbl_MACRS_Schedule[#Headers],0)) -> 0 | AH7: =$M7*INDEX(tbl_MACRS_Schedule[#Data],MATCH(AG$5,tbl_MACRS_Schedule[Years],0),MATCH(CSI_Equipment_deprec,tbl_MACRS_Schedule[#Headers],0))+$N7*INDEX(tbl_MACRS_Schedule[#Data],MATCH(AG$5,tbl_MACRS_Schedule[Years],0),MATCH(CSI_Tooling_deprec,tbl_MACRS_Schedule[#Headers],0)) -> 0 | AI7: =$M7*INDEX(tbl_MACRS_Schedule[#Data],MATCH(AH$5,tbl_MACRS_Schedule[Years],0),MATCH(CSI_Equipment_deprec,tbl_MACRS_Schedule[#Headers],0))+$N7*INDEX(tbl_MACRS_Schedule[#Data],MATCH(AH$5,tbl_MACRS_Schedule[Years],0),MATCH(CSI_Tooling_deprec,tbl_MACRS_Schedule[#Headers],0)) -> 0 | AJ7: =$M7*INDEX(tbl_MACRS_Schedule[#Data],MATCH(AI$5,tbl_MACRS_Schedule[Years],0),MATCH(CSI_Equipment_deprec,tbl_MACRS_Schedule[#Headers],0))+$N7*INDEX(tbl_MACRS_Schedule[#Data],MATCH(AI$5,tbl_MACRS_Schedule[Years],0),MATCH(CSI_Tooling_deprec,tbl_MACRS_Schedule[#Headers],0)) -> 0 | AK7: =$M7*INDEX(tbl_MACRS_Schedule[#Data],MATCH(AJ$5,tbl_MACRS_Schedule[Years],0),MATCH(CSI_Equipment_deprec,tbl_MACRS_Schedule[#Headers],0))+$N7*INDEX(tbl_MACRS_Schedule[#Data],MATCH(AJ$5,tbl_MACRS_Schedule[Years],0),MATCH(CSI_Tooling_deprec,tbl_MACRS_Schedule[#Headers],0)) -> 0 | AL7: =$M7*INDEX(tbl_MACRS_Schedule[#Data],MATCH(AK$5,tbl_MACRS_Schedule[Years],0),MATCH(CSI_Equipment_deprec,tbl_MACRS_Schedule[#Headers],0))+$N7*INDEX(tbl_MACRS_Schedule[#Data],MATCH(AK$5,tbl_MACRS_Schedule[Years],0),MATCH(CSI_Tooling_deprec,tbl_MACRS_Schedule[#Headers],0)) -> 0 | AU7: 0
C8: =ROW()-ROW(tblI_Equipment[#Headers]) -> 2 | D8: Life 2 | E8: =IFERROR(OFFSET(INDEX(DCF_Calculation_Table,MATCH(CONCATENATE("Equipment ",tblI_Equipment[[#This Row],[Table Name]]),VARIABLE_DESCRIPTION,0),MATCH(AnalysisCountry,CName,0)),1,0),0) -> 0 | F8: =IFERROR(INDEX(DCF_Calculation_Table,MATCH(CONCATENATE("Equipment ",tblI_Equipment[[#This Row],[Table Name]]),VARIABLE_DESCRIPTION,0),MATCH(AnalysisCountry,CName,0)),1) -> 1 | G8: =IFERROR(OFFSET(INDEX(DCF_Calculation_Table,MATCH(CONCATENATE("Depreciable Tooling ",tblI_Equipment[[#This Row],[Table Name]]),VARIABLE_DESCRIPTION,0),MATCH(AnalysisCountry,CName,0)),1,0),0) -> 0 | H8: =IFERROR(INDEX(DCF_Calculation_Table,MATCH(CONCATENATE("Depreciable Tooling ",tblI_Equipment[[#This Row],[Table Name]]),VARIABLE_DESCRIPTION,0),MATCH(AnalysisCountry,CName,0)),"1") -> 1 | K8: 2 | L8: 0 | M8: =SUMPRODUCT(( (CSI_analysis_yrs-K8)>0)*(MOD(K8,tblI_Equipment[Equipment Life (y)])=0),tblI_Equipment[Installed Equipment Cost (USD)]*L8) -> 0 | N8: =SUMPRODUCT(( (CSI_analysis_yrs-K8)>0.5*tblI_Equipment[Depreciable Tooling Life (y)])*(MOD(K8,tblI_Equipment[Depreciable Tooling Life (y)])=0),tblI_Equipment[Depreciable Tooling Cost (USD)]*L8) -> 0 | S8: =$M8*INDEX(tbl_MACRS_Schedule[#Data],MATCH(Q$5,tbl_MACRS_Schedule[Years],0),MATCH(CSI_Equipment_deprec,tbl_MACRS_Schedule[#Headers],0))+$N8*INDEX(tbl_MACRS_Schedule[#Data],MATCH(Q$5,tbl_MACRS_Schedule[Years],0),MATCH(CSI_Tooling_deprec,tbl_MACRS_Schedule[#Headers],0)) -> 0 | T8: =$M8*INDEX(tbl_MACRS_Schedule[#Data],MATCH(R$5,tbl_MACRS_Schedule[Years],0),MATCH(CSI_Equipment_deprec,tbl_MACRS_Schedule[#Headers],0))+$N8*INDEX(tbl_MACRS_Schedule[#Data],MATCH(R$5,tbl_MACRS_Schedule[Years],0),MATCH(CSI_Tooling_deprec,tbl_MACRS_Schedule[#Headers],0)) -> 0 | U8: =$M8*INDEX(tbl_MACRS_Schedule[#Data],MATCH(S$5,tbl_MACRS_Schedule[Years],0),MATCH(CSI_Equipment_deprec,tbl_MACRS_Schedule[#Headers],0))+$N8*INDEX(tbl_MACRS_Schedule[#Data],MATCH(S$5,tbl_MACRS_Schedule[Years],0),MATCH(CSI_Tooling_deprec,tbl_MACRS_Schedule[#Headers],0)) -> 0 | V8: =$M8*INDEX(tbl_MACRS_Schedule[#Data],MATCH(T$5,tbl_MACRS_Schedule[Years],0),MATCH(CSI_Equipment_deprec,tbl_MACRS_Schedule[#Headers],0))+$N8*INDEX(tbl_MACRS_Schedule[#Data],MATCH(T$5,tbl_MACRS_Schedule[Years],0),MATCH(CSI_Tooling_deprec,tbl_MACRS_Schedule[#Headers],0)) -> 0 | W8: =$M8*INDEX(tbl_MACRS_Schedule[#Data],MATCH(U$5,tbl_MACRS_Schedule[Years],0),MATCH(CSI_Equipment_deprec,tbl_MACRS_Schedule[#Headers],0))+$N8*INDEX(tbl_MACRS_Schedule[#Data],MATCH(U$5,tbl_MACRS_Schedule[Years],0),MATCH(CSI_Tooling_deprec,tbl_MACRS_Schedule[#Headers],0)) -> 0 | X8: =$M8*INDEX(tbl_MACRS_Schedule[#Data],MATCH(V$5,tbl_MACRS_Schedule[Years],0),MATCH(CSI_Equipment_deprec,tbl_MACRS_Schedule[#Headers],0))+$N8*INDEX(tbl_MACRS_Schedule[#Data],MATCH(V$5,tbl_MACRS_Schedule[Years],0),MATCH(CSI_Tooling_deprec,tbl_MACRS_Schedule[#Headers],0)) -> 0 | Y8: =$M8*INDEX(tbl_MACRS_Schedule[#Data],MATCH(W$5,tbl_MACRS_Schedule[Years],0),MATCH(CSI_Equipment_deprec,tbl_MACRS_Schedule[#Headers],0))+$N8*INDEX(tbl_MACRS_Schedule[#Data],MATCH(W$5,tbl_MACRS_Schedule[Years],0),MATCH(CSI_Tooling_deprec,tbl_MACRS_Schedule[#Headers],0)) -> 0 | Z8: =$M8*INDEX(tbl_MACRS_Schedule[#Data],MATCH(X$5,tbl_MACRS_Schedule[Years],0),MATCH(CSI_Equipment_deprec,tbl_MACRS_Schedule[#Headers],0))+$N8*INDEX(tbl_MACRS_Schedule[#Data],MATCH(X$5,tbl_MACRS_Schedule[Years],0),MATCH(CSI_Tooling_deprec,tbl_MACRS_Schedule[#Headers],0)) -> 0 | AA8: =$M8*INDEX(tbl_MACRS_Schedule[#Data],MATCH(Y$5,tbl_MACRS_Schedule[Years],0),MATCH(CSI_Equipment_deprec,tbl_MACRS_Schedule[#Headers],0))+$N8*INDEX(tbl_MACRS_Schedule[#Data],MATCH(Y$5,tbl_MACRS_Schedule[Years],0),MATCH(CSI_Tooling_deprec,tbl_MACRS_Schedule[#Headers],0)) -> 0 | AB8: =$M8*INDEX(tbl_MACRS_Schedule[#Data],MATCH(Z$5,tbl_MACRS_Schedule[Years],0),MATCH(CSI_Equipment_deprec,tbl_MACRS_Schedule[#Headers],0))+$N8*INDEX(tbl_MACRS_Schedule[#Data],MATCH(Z$5,tbl_MACRS_Schedule[Years],0),MATCH(CSI_Tooling_deprec,tbl_MACRS_Schedule[#Headers],0)) -> 0 | AC8: =$M8*INDEX(tbl_MACRS_Schedule[#Data],MATCH(AA$5,tbl_MACRS_Schedule[Years],0),MATCH(CSI_Equipment_deprec,tbl_MACRS_Schedule[#Headers],0))+$N8*INDEX(tbl_MACRS_Schedule[#Data],MATCH(AA$5,tbl_MACRS_Schedule[Years],0),MATCH(CSI_Tooling_deprec,tbl_MACRS_Schedule[#Headers],0)) -> 0 | AD8: =$M8*INDEX(tbl_MACRS_Schedule[#Data],MATCH(AB$5,tbl_MACRS_Schedule[Years],0),MATCH(CSI_Equipment_deprec,tbl_MACRS_Schedule[#Headers],0))+$N8*INDEX(tbl_MACRS_Schedule[#Data],MATCH(AB$5,tbl_MACRS_Schedule[Years],0),MATCH(CSI_Tooling_deprec,tbl_MACRS_Schedule[#Headers],0)) -> 0 | AE8: =$M8*INDEX(tbl_MACRS_Schedule[#Data],MATCH(AC$5,tbl_MACRS_Schedule[Years],0),MATCH(CSI_Equipment_deprec,tbl_MACRS_Schedule[#Headers],0))+$N8*INDEX(tbl_MACRS_Schedule[#Data],MATCH(AC$5,tbl_MACRS_Schedule[Years],0),MATCH(CSI_Tooling_deprec,tbl_MACRS_Schedule[#Headers],0)) -> 0 | AF8: =$M8*INDEX(tbl_MACRS_Schedule[#Data],MATCH(AD$5,tbl_MACRS_Schedule[Years],0),MATCH(CSI_Equipment_deprec,tbl_MACRS_Schedule[#Headers],0))+$N8*INDEX(tbl_MACRS_Schedule[#Data],MATCH(AD$5,tbl_MACRS_Schedule[Years],0),MATCH(CSI_Tooling_deprec,tbl_MACRS_Schedule[#Headers],0)) -> 0 | AG8: =$M8*INDEX(tbl_MACRS_Schedule[#Data],MATCH(AE$5,tbl_MACRS_Schedule[Years],0),MATCH(CSI_Equipment_deprec,tbl_MACRS_Schedule[#Headers],0))+$N8*INDEX(tbl_MACRS_Schedule[#Data],MATCH(AE$5,tbl_MACRS_Schedule[Years],0),MATCH(CSI_Tooling_deprec,tbl_MACRS_Schedule[#Headers],0)) -> 0 | AH8: =$M8*INDEX(tbl_MACRS_Schedule[#Data],MATCH(AF$5,tbl_MACRS_Schedule[Years],0),MATCH(CSI_Equipment_deprec,tbl_MACRS_Schedule[#Headers],0))+$N8*INDEX(tbl_MACRS_Schedule[#Data],MATCH(AF$5,tbl_MACRS_Schedule[Years],0),MATCH(CSI_Tooling_deprec,tbl_MACRS_Schedule[#Headers],0)) -> 0 | AI8: =$M8*INDEX(tbl_MACRS_Schedule[#Data],MATCH(AG$5,tbl_MACRS_Schedule[Years],0),MATCH(CSI_Equipment_deprec,tbl_MACRS_Schedule[#Headers],0))+$N8*INDEX(tbl_MACRS_Schedule[#Data],MATCH(AG$5,tbl_MACRS_Schedule[Years],0),MATCH(CSI_Tooling_deprec,tbl_MACRS_Schedule[#Headers],0)) -> 0 | AJ8: =$M8*INDEX(tbl_MACRS_Schedule[#Data],MATCH(AH$5,tbl_MACRS_Schedule[Years],0),MATCH(CSI_Equipment_deprec,tbl_MACRS_Schedule[#Headers],0))+$N8*INDEX(tbl_MACRS_Schedule[#Data],MATCH(AH$5,tbl_MACRS_Schedule[Years],0),MATCH(CSI_Tooling_deprec,tbl_MACRS_Schedule[#Headers],0)) -> 0 | AK8: =$M8*INDEX(tbl_MACRS_Schedule[#Data],MATCH(AI$5,tbl_MACRS_Schedule[Years],0),MATCH(CSI_Equipment_deprec,tbl_MACRS_Schedule[#Headers],0))+$N8*INDEX(tbl_MACRS_Schedule[#Data],MATCH(AI$5,tbl_MACRS_Schedule[Years],0),MATCH(CSI_Tooling_deprec,tbl_MACRS_Schedule[#Headers],0)) -> 0 | AL8: =$M8*INDEX(tbl_MACRS_Schedule[#Data],MATCH(AJ$5,tbl_MACRS_Schedule[Years],0),MATCH(CSI_Equipment_deprec,tbl_MACRS_Schedule[#Headers],0))+$N8*INDEX(tbl_MACRS_Schedule[#Data],MATCH(AJ$5,tbl_MACRS_Schedule[Years],0),MATCH(CSI_Tooling_deprec,tbl_MACRS_Schedule[#Headers],0)) -> 0 | AM8: =$M8*INDEX(tbl_MACRS_Schedule[#Data],MATCH(AK$5,tbl_MACRS_Schedule[Years],0),MATCH(CSI_Equipment_deprec,tbl_MACRS_Schedule[#Headers],0))+$N8*INDEX(tbl_MACRS_Schedule[#Data],MATCH(AK$5,tbl_MACRS_Schedule[Years],0),MATCH(CSI_Tooling_deprec,tbl_MACRS_Schedule[#Headers],0)) -> 0 | AU8: 0
C9: =ROW()-ROW(tblI_Equipment[#Headers]) -> 3 | D9: Life 3 | E9: =IFERROR(OFFSET(INDEX(DCF_Calculation_Table,MATCH(CONCATENATE("Equipment ",tblI_Equipment[[#This Row],[Table Name]]),VARIABLE_DESCRIPTION,0),MATCH(AnalysisCountry,CName,0)),1,0),0) -> 0 | F9: =IFERROR(INDEX(DCF_Calculation_Table,MATCH(CONCATENATE("Equipment ",tblI_Equipment[[#This Row],[Table Name]]),VARIABLE_DESCRIPTION,0),MATCH(AnalysisCountry,CName,0)),1) -> 1 | G9: =IFERROR(OFFSET(INDEX(DCF_Calculation_Table,MATCH(CONCATENATE("Depreciable Tooling ",tblI_Equipment[[#This Row],[Table Name]]),VARIABLE_DESCRIPTION,0),MATCH(AnalysisCountry,CName,0)),1,0),0) -> 0 | H9: =IFERROR(INDEX(DCF_Calculation_Table,MATCH(CONCATENATE("Depreciable Tooling ",tblI_Equipment[[#This Row],[Table Name]]),VARIABLE_DESCRIPTION,0),MATCH(AnalysisCountry,CName,0)),"1") -> 1 | K9: 3 | L9: 0 | M9: =SUMPRODUCT(( (CSI_analysis_yrs-K9)>0)*(MOD(K9,tblI_Equipment[Equipment Life (y)])=0),tblI_Equipment[Installed Equipment Cost (USD)]*L9) -> 0 | N9: =SUMPRODUCT(( (CSI_analysis_yrs-K9)>0.5*tblI_Equipment[Depreciable Tooling Life (y)])*(MOD(K9,tblI_Equipment[Depreciable Tooling Life (y)])=0),tblI_Equipment[Depreciable Tooling Cost (USD)]*L9) -> 0 | T9: =$M9*INDEX(tbl_MACRS_Schedule[#Data],MATCH(Q$5,tbl_MACRS_Schedule[Years],0),MATCH(CSI_Equipment_deprec,tbl_MACRS_Schedule[#Headers],0))+$N9*INDEX(tbl_MACRS_Schedule[#Data],MATCH(Q$5,tbl_MACRS_Schedule[Years],0),MATCH(CSI_Tooling_deprec,tbl_MACRS_Schedule[#Headers],0)) -> 0 | U9: =$M9*INDEX(tbl_MACRS_Schedule[#Data],MATCH(R$5,tbl_MACRS_Schedule[Years],0),MATCH(CSI_Equipment_deprec,tbl_MACRS_Schedule[#Headers],0))+$N9*INDEX(tbl_MACRS_Schedule[#Data],MATCH(R$5,tbl_MACRS_Schedule[Years],0),MATCH(CSI_Tooling_deprec,tbl_MACRS_Schedule[#Headers],0)) -> 0 | V9: =$M9*INDEX(tbl_MACRS_Schedule[#Data],MATCH(S$5,tbl_MACRS_Schedule[Years],0),MATCH(CSI_Equipment_deprec,tbl_MACRS_Schedule[#Headers],0))+$N9*INDEX(tbl_MACRS_Schedule[#Data],MATCH(S$5,tbl_MACRS_Schedule[Years],0),MATCH(CSI_Tooling_deprec,tbl_MACRS_Schedule[#Headers],0)) -> 0 | W9: =$M9*INDEX(tbl_MACRS_Schedule[#Data],MATCH(T$5,tbl_MACRS_Schedule[Years],0),MATCH(CSI_Equipment_deprec,tbl_MACRS_Schedule[#Headers],0))+$N9*INDEX(tbl_MACRS_Schedule[#Data],MATCH(T$5,tbl_MACRS_Schedule[Years],0),MATCH(CSI_Tooling_deprec,tbl_MACRS_Schedule[#Headers],0)) -> 0 | X9: =$M9*INDEX(tbl_MACRS_Schedule[#Data],MATCH(U$5,tbl_MACRS_Schedule[Years],0),MATCH(CSI_Equipment_deprec,tbl_MACRS_Schedule[#Headers],0))+$N9*INDEX(tbl_MACRS_Schedule[#Data],MATCH(U$5,tbl_MACRS_Schedule[Years],0),MATCH(CSI_Tooling_deprec,tbl_MACRS_Schedule[#Headers],0)) -> 0 | Y9: =$M9*INDEX(tbl_MACRS_Schedule[#Data],MATCH(V$5,tbl_MACRS_Schedule[Years],0),MATCH(CSI_Equipment_deprec,tbl_MACRS_Schedule[#Headers],0))+$N9*INDEX(tbl_MACRS_Schedule[#Data],MATCH(V$5,tbl_MACRS_Schedule[Years],0),MATCH(CSI_Tooling_deprec,tbl_MACRS_Schedule[#Headers],0)) -> 0 | Z9: =$M9*INDEX(tbl_MACRS_Schedule[#Data],MATCH(W$5,tbl_MACRS_Schedule[Years],0),MATCH(CSI_Equipment_deprec,tbl_MACRS_Schedule[#Headers],0))+$N9*INDEX(tbl_MACRS_Schedule[#Data],MATCH(W$5,tbl_MACRS_Schedule[Years],0),MATCH(CSI_Tooling_deprec,tbl_MACRS_Schedule[#Headers],0)) -> 0 | AA9: =$M9*INDEX(tbl_MACRS_Schedule[#Data],MATCH(X$5,tbl_MACRS_Schedule[Years],0),MATCH(CSI_Equipment_deprec,tbl_MACRS_Schedule[#Headers],0))+$N9*INDEX(tbl_MACRS_Schedule[#Data],MATCH(X$5,tbl_MACRS_Schedule[Years],0),MATCH(CSI_Tooling_deprec,tbl_MACRS_Schedule[#Headers],0)) -> 0 | AB9: =$M9*INDEX(tbl_MACRS_Schedule[#Data],MATCH(Y$5,tbl_MACRS_Schedule[Years],0),MATCH(CSI_Equipment_deprec,tbl_MACRS_Schedule[#Headers],0))+$N9*INDEX(tbl_MACRS_Schedule[#Data],MATCH(Y$5,tbl_MACRS_Schedule[Years],0),MATCH(CSI_Tooling_deprec,tbl_MACRS_Schedule[#Headers],0)) -> 0 | AC9: =$M9*INDEX(tbl_MACRS_Schedule[#Data],MATCH(Z$5,tbl_MACRS_Schedule[Years],0),MATCH(CSI_Equipment_deprec,tbl_MACRS_Schedule[#Headers],0))+$N9*INDEX(tbl_MACRS_Schedule[#Data],MATCH(Z$5,tbl_MACRS_Schedule[Years],0),MATCH(CSI_Tooling_deprec,tbl_MACRS_Schedule[#Headers],0)) -> 0 | AD9: =$M9*INDEX(tbl_MACRS_Schedule[#Data],MATCH(AA$5,tbl_MACRS_Schedule[Years],0),MATCH(CSI_Equipment_deprec,tbl_MACRS_Schedule[#Headers],0))+$N9*INDEX(tbl_MACRS_Schedule[#Data],MATCH(AA$5,tbl_MACRS_Schedule[Years],0),MATCH(CSI_Tooling_deprec,tbl_MACRS_Schedule[#Headers],0)) -> 0 | AE9: =$M9*INDEX(tbl_MACRS_Schedule[#Data],MATCH(AB$5,tbl_MACRS_Schedule[Years],0),MATCH(CSI_Equipment_deprec,tbl_MACRS_Schedule[#Headers],0))+$N9*INDEX(tbl_MACRS_Schedule[#Data],MATCH(AB$5,tbl_MACRS_Schedule[Years],0),MATCH(CSI_Tooling_deprec,tbl_MACRS_Schedule[#Headers],0)) -> 0 | AF9: =$M9*INDEX(tbl_MACRS_Schedule[#Data],MATCH(AC$5,tbl_MACRS_Schedule[Years],0),MATCH(CSI_Equipment_deprec,tbl_MACRS_Schedule[#Headers],0))+$N9*INDEX(tbl_MACRS_Schedule[#Data],MATCH(AC$5,tbl_MACRS_Schedule[Years],0),MATCH(CSI_Tooling_deprec,tbl_MACRS_Schedule[#Headers],0)) -> 0 | AG9: =$M9*INDEX(tbl_MACRS_Schedule[#Data],MATCH(AD$5,tbl_MACRS_Schedule[Years],0),MATCH(CSI_Equipment_deprec,tbl_MACRS_Schedule[#Headers],0))+$N9*INDEX(tbl_MACRS_Schedule[#Data],MATCH(AD$5,tbl_MACRS_Schedule[Years],0),MATCH(CSI_Tooling_deprec,tbl_MACRS_Schedule[#Headers],0)) -> 0 | AH9: =$M9*INDEX(tbl_MACRS_Schedule[#Data],MATCH(AE$5,tbl_MACRS_Schedule[Years],0),MATCH(CSI_Equipment_deprec,tbl_MACRS_Schedule[#Headers],0))+$N9*INDEX(tbl_MACRS_Schedule[#Data],MATCH(AE$5,tbl_MACRS_Schedule[Years],0),MATCH(CSI_Tooling_deprec,tbl_MACRS_Schedule[#Headers],0)) -> 0 | AI9: =$M9*INDEX(tbl_MACRS_Schedule[#Data],MATCH(AF$5,tbl_MACRS_Schedule[Years],0),MATCH(CSI_Equipment_deprec,tbl_MACRS_Schedule[#Headers],0))+$N9*INDEX(tbl_MACRS_Schedule[#Data],MATCH(AF$5,tbl_MACRS_Schedule[Years],0),MATCH(CSI_Tooling_deprec,tbl_MACRS_Schedule[#Headers],0)) -> 0 | AJ9: =$M9*INDEX(tbl_MACRS_Schedule[#Data],MATCH(AG$5,tbl_MACRS_Schedule[Years],0),MATCH(CSI_Equipment_deprec,tbl_MACRS_Schedule[#Headers],0))+$N9*INDEX(tbl_MACRS_Schedule[#Data],MATCH(AG$5,tbl_MACRS_Schedule[Years],0),MATCH(CSI_Tooling_deprec,tbl_MACRS_Schedule[#Headers],0)) -> 0 | AK9: =$M9*INDEX(tbl_MACRS_Schedule[#Data],MATCH(AH$5,tbl_MACRS_Schedule[Years],0),MATCH(CSI_Equipment_deprec,tbl_MACRS_Schedule[#Headers],0))+$N9*INDEX(tbl_MACRS_Schedule[#Data],MATCH(AH$5,tbl_MACRS_Schedule[Years],0),MATCH(CSI_Tooling_deprec,tbl_MACRS_Schedule[#Headers],0)) -> 0 | AL9: =$M9*INDEX(tbl_MACRS_Schedule[#Data],MATCH(AI$5,tbl_MACRS_Schedule[Years],0),MATCH(CSI_Equipment_deprec,tbl_MACRS_Schedule[#Headers],0))+$N9*INDEX(tbl_MACRS_Schedule[#Data],MATCH(AI$5,tbl_MACRS_Schedule[Years],0),MATCH(CSI_Tooling_deprec,tbl_MACRS_Schedule[#Headers],0)) -> 0 | AM9: =$M9*INDEX(tbl_MACRS_Schedule[#Data],MATCH(AJ$5,tbl_MACRS_Schedule[Years],0),MATCH(CSI_Equipment_deprec,tbl_MACRS_Schedule[#Headers],0))+$N9*INDEX(tbl_MACRS_Schedule[#Data],MATCH(AJ$5,tbl_MACRS_Schedule[Years],0),MATCH(CSI_Tooling_deprec,tbl_MACRS_Schedule[#Headers],0)) -> 0 | AN9: =$M9*INDEX(tbl_MACRS_Schedule[#Data],MATCH(AK$5,tbl_MACRS_Schedule[Years],0),MATCH(CSI_Equipment_deprec,tbl_MACRS_Schedule[#Headers],0))+$N9*INDEX(tbl_MACRS_Schedule[#Data],MATCH(AK$5,tbl_MACRS_Schedule[Years],0),MATCH(CSI_Tooling_deprec,tbl_MACRS_Schedule[#Headers],0)) -> 0 | AU9: 0
C10: =ROW()-ROW(tblI_Equipment[#Headers]) -> 4 | D10: Life 4 | E10: =IFERROR(OFFSET(INDEX(DCF_Calculation_Table,MATCH(CONCATENATE("Equipment ",tblI_Equipment[[#This Row],[Table Name]]),VARIABLE_DESCRIPTION,0),MATCH(AnalysisCountry,CName,0)),1,0),0) -> 0 | F10: =IFERROR(INDEX(DCF_Calculation_Table,MATCH(CONCATENATE("Equipment ",tblI_Equipment[[#This Row],[Table Name]]),VARIABLE_DESCRIPTION,0),MATCH(AnalysisCountry,CName,0)),1) -> 1 | G10: =IFERROR(OFFSET(INDEX(DCF_Calculation_Table,MATCH(CONCATENATE("Depreciable Tooling ",tblI_Equipment[[#This Row],[Table Name]]),VARIABLE_DESCRIPTION,0),MATCH(AnalysisCountry,CName,0)),1,0),0) -> 0 | H10: =IFERROR(INDEX(DCF_Calculation_Table,MATCH(CONCATENATE("Depreciable Tooling ",tblI_Equipment[[#This Row],[Table Name]]),VARIABLE_DESCRIPTION,0),MATCH(AnalysisCountry,CName,0)),"1") -> 1 | K10: 4 | L10: 0 | M10: =SUMPRODUCT(( (CSI_analysis_yrs-K10)>0)*(MOD(K10,tblI_Equipment[Equipment Life (y)])=0),tblI_Equipment[Installed Equipment Cost (USD)]*L10) -> 0 | N10: =SUMPRODUCT(( (CSI_analysis_yrs-K10)>0.5*tblI_Equipment[Depreciable Tooling Life (y)])*(MOD(K10,tblI_Equipment[Depreciable Tooling Life (y)])=0),tblI_Equipment[Depreciable Tooling Cost (USD)]*L10) -> 0 | U10: =$M10*INDEX(tbl_MACRS_Schedule[#Data],MATCH(Q$5,tbl_MACRS_Schedule[Years],0),MATCH(CSI_Equipment_deprec,tbl_MACRS_Schedule[#Headers],0))+$N10*INDEX(tbl_MACRS_Schedule[#Data],MATCH(Q$5,tbl_MACRS_Schedule[Years],0),MATCH(CSI_Tooling_deprec,tbl_MACRS_Schedule[#Headers],0)) -> 0 | V10: =$M10*INDEX(tbl_MACRS_Schedule[#Data],MATCH(R$5,tbl_MACRS_Schedule[Years],0),MATCH(CSI_Equipment_deprec,tbl_MACRS_Schedule[#Headers],0))+$N10*INDEX(tbl_MACRS_Schedule[#Data],MATCH(R$5,tbl_MACRS_Schedule[Years],0),MATCH(CSI_Tooling_deprec,tbl_MACRS_Schedule[#Headers],0)) -> 0 | W10: =$M10*INDEX(tbl_MACRS_Schedule[#Data],MATCH(S$5,tbl_MACRS_Schedule[Years],0),MATCH(CSI_Equipment_deprec,tbl_MACRS_Schedule[#Headers],0))+$N10*INDEX(tbl_MACRS_Schedule[#Data],MATCH(S$5,tbl_MACRS_Schedule[Years],0),MATCH(CSI_Tooling_deprec,tbl_MACRS_Schedule[#Headers],0)) -> 0 | X10: =$M10*INDEX(tbl_MACRS_Schedule[#Data],MATCH(T$5,tbl_MACRS_Schedule[Years],0),MATCH(CSI_Equipment_deprec,tbl_MACRS_Schedule[#Headers],0))+$N10*INDEX(tbl_MACRS_Schedule[#Data],MATCH(T$5,tbl_MACRS_Schedule[Years],0),MATCH(CSI_Tooling_deprec,tbl_MACRS_Schedule[#Headers],0)) -> 0 | Y10: =$M10*INDEX(tbl_MACRS_Schedule[#Data],MATCH(U$5,tbl_MACRS_Schedule[Years],0),MATCH(CSI_Equipment_deprec,tbl_MACRS_Schedule[#Headers],0))+$N10*INDEX(tbl_MACRS_Schedule[#Data],MATCH(U$5,tbl_MACRS_Schedule[Years],0),MATCH(CSI_Tooling_deprec,tbl_MACRS_Schedule[#Headers],0)) -> 0 | Z10: =$M10*INDEX(tbl_MACRS_Schedule[#Data],MATCH(V$5,tbl_MACRS_Schedule[Years],0),MATCH(CSI_Equipment_deprec,tbl_MACRS_Schedule[#Headers],0))+$N10*INDEX(tbl_MACRS_Schedule[#Data],MATCH(V$5,tbl_MACRS_Schedule[Years],0),MATCH(CSI_Tooling_deprec,tbl_MACRS_Schedule[#Headers],0)) -> 0 | AA10: =$M10*INDEX(tbl_MACRS_Schedule[#Data],MATCH(W$5,tbl_MACRS_Schedule[Years],0),MATCH(CSI_Equipment_deprec,tbl_MACRS_Schedule[#Headers],0))+$N10*INDEX(tbl_MACRS_Schedule[#Data],MATCH(W$5,tbl_MACRS_Schedule[Years],0),MATCH(CSI_Tooling_deprec,tbl_MACRS_Schedule[#Headers],0)) -> 0 | AB10: =$M10*INDEX(tbl_MACRS_Schedule[#Data],MATCH(X$5,tbl_MACRS_Schedule[Years],0),MATCH(CSI_Equipment_deprec,tbl_MACRS_Schedule[#Headers],0))+$N10*INDEX(tbl_MACRS_Schedule[#Data],MATCH(X$5,tbl_MACRS_Schedule[Years],0),MATCH(CSI_Tooling_deprec,tbl_MACRS_Schedule[#Headers],0)) -> 0 | AC10: =$M10*INDEX(tbl_MACRS_Schedule[#Data],MATCH(Y$5,tbl_MACRS_Schedule[Years],0),MATCH(CSI_Equipment_deprec,tbl_MACRS_Schedule[#Headers],0))+$N10*INDEX(tbl_MACRS_Schedule[#Data],MATCH(Y$5,tbl_MACRS_Schedule[Years],0),MATCH(CSI_Tooling_deprec,tbl_MACRS_Schedule[#Headers],0)) -> 0 | AD10: =$M10*INDEX(tbl_MACRS_Schedule[#Data],MATCH(Z$5,tbl_MACRS_Schedule[Years],0),MATCH(CSI_Equipment_deprec,tbl_MACRS_Schedule[#Headers],0))+$N10*INDEX(tbl_MACRS_Schedule[#Data],MATCH(Z$5,tbl_MACRS_Schedule[Years],0),MATCH(CSI_Tooling_deprec,tbl_MACRS_Schedule[#Headers],0)) -> 0 | AE10: =$M10*INDEX(tbl_MACRS_Schedule[#Data],MATCH(AA$5,tbl_MACRS_Schedule[Years],0),MATCH(CSI_Equipment_deprec,tbl_MACRS_Schedule[#Headers],0))+$N10*INDEX(tbl_MACRS_Schedule[#Data],MATCH(AA$5,tbl_MACRS_Schedule[Years],0),MATCH(CSI_Tooling_deprec,tbl_MACRS_Schedule[#Headers],0)) -> 0 | AF10: =$M10*INDEX(tbl_MACRS_Schedule[#Data],MATCH(AB$5,tbl_MACRS_Schedule[Years],0),MATCH(CSI_Equipment_deprec,tbl_MACRS_Schedule[#Headers],0))+$N10*INDEX(tbl_MACRS_Schedule[#Data],MATCH(AB$5,tbl_MACRS_Schedule[Years],0),MATCH(CSI_Tooling_deprec,tbl_MACRS_Schedule[#Headers],0)) -> 0 | AG10: =$M10*INDEX(tbl_MACRS_Schedule[#Data],MATCH(AC$5,tbl_MACRS_Schedule[Years],0),MATCH(CSI_Equipment_deprec,tbl_MACRS_Schedule[#Headers],0))+$N10*INDEX(tbl_MACRS_Schedule[#Data],MATCH(AC$5,tbl_MACRS_Schedule[Years],0),MATCH(CSI_Tooling_deprec,tbl_MACRS_Schedule[#Headers],0)) -> 0 | AH10: =$M10*INDEX(tbl_MACRS_Schedule[#Data],MATCH(AD$5,tbl_MACRS_Schedule[Years],0),MATCH(CSI_Equipment_deprec,tbl_MACRS_Schedule[#Headers],0))+$N10*INDEX(tbl_MACRS_Schedule[#Data],MATCH(AD$5,tbl_MACRS_Schedule[Years],0),MATCH(CSI_Tooling_deprec,tbl_MACRS_Schedule[#Headers],0)) -> 0 | AI10: =$M10*INDEX(tbl_MACRS_Schedule[#Data],MATCH(AE$5,tbl_MACRS_Schedule[Years],0),MATCH(CSI_Equipment_deprec,tbl_MACRS_Schedule[#Headers],0))+$N10*INDEX(tbl_MACRS_Schedule[#Data],MATCH(AE$5,tbl_MACRS_Schedule[Years],0),MATCH(CSI_Tooling_deprec,tbl_MACRS_Schedule[#Headers],0)) -> 0 | AJ10: =$M10*INDEX(tbl_MACRS_Schedule[#Data],MATCH(AF$5,tbl_MACRS_Schedule[Years],0),MATCH(CSI_Equipment_deprec,tbl_MACRS_Schedule[#Headers],0))+$N10*INDEX(tbl_MACRS_Schedule[#Data],MATCH(AF$5,tbl_MACRS_Schedule[Years],0),MATCH(CSI_Tooling_deprec,tbl_MACRS_Schedule[#Headers],0)) -> 0 | AK10: =$M10*INDEX(tbl_MACRS_Schedule[#Data],MATCH(AG$5,tbl_MACRS_Schedule[Years],0),MATCH(CSI_Equipment_deprec,tbl_MACRS_Schedule[#Headers],0))+$N10*INDEX(tbl_MACRS_Schedule[#Data],MATCH(AG$5,tbl_MACRS_Schedule[Years],0),MATCH(CSI_Tooling_deprec,tbl_MACRS_Schedule[#Headers],0)) -> 0 | AL10: =$M10*INDEX(tbl_MACRS_Schedule[#Data],MATCH(AH$5,tbl_MACRS_Schedule[Years],0),MATCH(CSI_Equipment_deprec,tbl_MACRS_Schedule[#Headers],0))+$N10*INDEX(tbl_MACRS_Schedule[#Data],MATCH(AH$5,tbl_MACRS_Schedule[Years],0),MATCH(CSI_Tooling_deprec,tbl_MACRS_Schedule[#Headers],0)) -> 0 | AM10: =$M10*INDEX(tbl_MACRS_Schedule[#Data],MATCH(AI$5,tbl_MACRS_Schedule[Years],0),MATCH(CSI_Equipment_deprec,tbl_MACRS_Schedule[#Headers],0))+$N10*INDEX(tbl_MACRS_Schedule[#Data],MATCH(AI$5,tbl_MACRS_Schedule[Years],0),MATCH(CSI_Tooling_deprec,tbl_MACRS_Schedule[#Headers],0)) -> 0 | AN10: =$M10*INDEX(tbl_MACRS_Schedule[#Data],MATCH(AJ$5,tbl_MACRS_Schedule[Years],0),MATCH(CSI_Equipment_deprec,tbl_MACRS_Schedule[#Headers],0))+$N10*INDEX(tbl_MACRS_Schedule[#Data],MATCH(AJ$5,tbl_MACRS_Schedule[Years],0),MATCH(CSI_Tooling_deprec,tbl_MACRS_Schedule[#Headers],0)) -> 0 | AO10: =$M10*INDEX(tbl_MACRS_Schedule[#Data],MATCH(AK$5,tbl_MACRS_Schedule[Years],0),MATCH(CSI_Equipment_deprec,tbl_MACRS_Schedule[#Headers],0))+$N10*INDEX(tbl_MACRS_Schedule[#Data],MATCH(AK$5,tbl_MACRS_Schedule[Years],0),MATCH(CSI_Tooling_deprec,tbl_MACRS_Schedule[#Headers],0)) -> 0 | AU10: 0
C11: =ROW()-ROW(tblI_Equipment[#Headers]) -> 5 | E11: =IFERROR(OFFSET(INDEX(DCF_Calculation_Table,MATCH(CONCATENATE("Equipment ",tblI_Equipment[[#This Row],[Table Name]]),VARIABLE_DESCRIPTION,0),MATCH(AnalysisCountry,CName,0)),1,0),0) -> 0 | F11: =IFERROR(INDEX(DCF_Calculation_Table,MATCH(CONCATENATE("Equipment ",tblI_Equipment[[#This Row],[Table Name]]),VARIABLE_DESCRIPTION,0),MATCH(AnalysisCountry,CName,0)),1) -> 1 | G11: =IFERROR(OFFSET(INDEX(DCF_Calculation_Table,MATCH(CONCATENATE("Depreciable Tooling ",tblI_Equipment[[#This Row],[Table Name]]),VARIABLE_DESCRIPTION,0),MATCH(AnalysisCountry,CName,0)),1,0),0) -> 0 | H11: =IFERROR(INDEX(DCF_Calculation_Table,MATCH(CONCATENATE("Depreciable Tooling ",tblI_Equipment[[#This Row],[Table Name]]),VARIABLE_DESCRIPTION,0),MATCH(AnalysisCountry,CName,0)),"1") -> 1 | K11: 5 | L11: 0 | M11: =SUMPRODUCT(( (CSI_analysis_yrs-K11)>0)*(MOD(K11,tblI_Equipment[Equipment Life (y)])=0),tblI_Equipment[Installed Equipment Cost (USD)]*L11) -> 0 | N11: =SUMPRODUCT(( (CSI_analysis_yrs-K11)>0.5*tblI_Equipment[Depreciable Tooling Life (y)])*(MOD(K11,tblI_Equipment[Depreciable Tooling Life (y)])=0),tblI_Equipment[Depreciable Tooling Cost (USD)]*L11) -> 0 | V11: =$M11*INDEX(tbl_MACRS_Schedule[#Data],MATCH(Q$5,tbl_MACRS_Schedule[Years],0),MATCH(CSI_Equipment_deprec,tbl_MACRS_Schedule[#Headers],0))+$N11*INDEX(tbl_MACRS_Schedule[#Data],MATCH(Q$5,tbl_MACRS_Schedule[Years],0),MATCH(CSI_Tooling_deprec,tbl_MACRS_Schedule[#Headers],0)) -> 0 | W11: =$M11*INDEX(tbl_MACRS_Schedule[#Data],MATCH(R$5,tbl_MACRS_Schedule[Years],0),MATCH(CSI_Equipment_deprec,tbl_MACRS_Schedule[#Headers],0))+$N11*INDEX(tbl_MACRS_Schedule[#Data],MATCH(R$5,tbl_MACRS_Schedule[Years],0),MATCH(CSI_Tooling_deprec,tbl_MACRS_Schedule[#Headers],0)) -> 0 | X11: =$M11*INDEX(tbl_MACRS_Schedule[#Data],MATCH(S$5,tbl_MACRS_Schedule[Years],0),MATCH(CSI_Equipment_deprec,tbl_MACRS_Schedule[#Headers],0))+$N11*INDEX(tbl_MACRS_Schedule[#Data],MATCH(S$5,tbl_MACRS_Schedule[Years],0),MATCH(CSI_Tooling_deprec,tbl_MACRS_Schedule[#Headers],0)) -> 0 | Y11: =$M11*INDEX(tbl_MACRS_Schedule[#Data],MATCH(T$5,tbl_MACRS_Schedule[Years],0),MATCH(CSI_Equipment_deprec,tbl_MACRS_Schedule[#Headers],0))+$N11*INDEX(tbl_MACRS_Schedule[#Data],MATCH(T$5,tbl_MACRS_Schedule[Years],0),MATCH(CSI_Tooling_deprec,tbl_MACRS_Schedule[#Headers],0)) -> 0 | Z11: =$M11*INDEX(tbl_MACRS_Schedule[#Data],MATCH(U$5,tbl_MACRS_Schedule[Years],0),MATCH(CSI_Equipment_deprec,tbl_MACRS_Schedule[#Headers],0))+$N11*INDEX(tbl_MACRS_Schedule[#Data],MATCH(U$5,tbl_MACRS_Schedule[Years],0),MATCH(CSI_Tooling_deprec,tbl_MACRS_Schedule[#Headers],0)) -> 0 | AA11: =$M11*INDEX(tbl_MACRS_Schedule[#Data],MATCH(V$5,tbl_MACRS_Schedule[Years],0),MATCH(CSI_Equipment_deprec,tbl_MACRS_Schedule[#Headers],0))+$N11*INDEX(tbl_MACRS_Schedule[#Data],MATCH(V$5,tbl_MACRS_Schedule[Years],0),MATCH(CSI_Tooling_deprec,tbl_MACRS_Schedule[#Headers],0)) -> 0 | AB11: =$M11*INDEX(tbl_MACRS_Schedule[#Data],MATCH(W$5,tbl_MACRS_Schedule[Years],0),MATCH(CSI_Equipment_deprec,tbl_MACRS_Schedule[#Headers],0))+$N11*INDEX(tbl_MACRS_Schedule[#Data],MATCH(W$5,tbl_MACRS_Schedule[Years],0),MATCH(CSI_Tooling_deprec,tbl_MACRS_Schedule[#Headers],0)) -> 0 | AC11: =$M11*INDEX(tbl_MACRS_Schedule[#Data],MATCH(X$5,tbl_MACRS_Schedule[Years],0),MATCH(CSI_Equipment_deprec,tbl_MACRS_Schedule[#Headers],0))+$N11*INDEX(tbl_MACRS_Schedule[#Data],MATCH(X$5,tbl_MACRS_Schedule[Years],0),MATCH(CSI_Tooling_deprec,tbl_MACRS_Schedule[#Headers],0)) -> 0 | AD11: =$M11*INDEX(tbl_MACRS_Schedule[#Data],MATCH(Y$5,tbl_MACRS_Schedule[Years],0),MATCH(CSI_Equipment_deprec,tbl_MACRS_Schedule[#Headers],0))+$N11*INDEX(tbl_MACRS_Schedule[#Data],MATCH(Y$5,tbl_MACRS_Schedule[Years],0),MATCH(CSI_Tooling_deprec,tbl_MACRS_Schedule[#Headers],0)) -> 0 | AE11: =$M11*INDEX(tbl_MACRS_Schedule[#Data],MATCH(Z$5,tbl_MACRS_Schedule[Years],0),MATCH(CSI_Equipment_deprec,tbl_MACRS_Schedule[#Headers],0))+$N11*INDEX(tbl_MACRS_Schedule[#Data],MATCH(Z$5,tbl_MACRS_Schedule[Years],0),MATCH(CSI_Tooling_deprec,tbl_MACRS_Schedule[#Headers],0)) -> 0 | AF11: =$M11*INDEX(tbl_MACRS_Schedule[#Data],MATCH(AA$5,tbl_MACRS_Schedule[Years],0),MATCH(CSI_Equipment_deprec,tbl_MACRS_Schedule[#Headers],0))+$N11*INDEX(tbl_MACRS_Schedule[#Data],MATCH(AA$5,tbl_MACRS_Schedule[Years],0),MATCH(CSI_Tooling_deprec,tbl_MACRS_Schedule[#Headers],0)) -> 0 | AG11: =$M11*INDEX(tbl_MACRS_Schedule[#Data],MATCH(AB$5,tbl_MACRS_Schedule[Years],0),MATCH(CSI_Equipment_deprec,tbl_MACRS_Schedule[#Headers],0))+$N11*INDEX(tbl_MACRS_Schedule[#Data],MATCH(AB$5,tbl_MACRS_Schedule[Years],0),MATCH(CSI_Tooling_deprec,tbl_MACRS_Schedule[#Headers],0)) -> 0 | AH11: =$M11*INDEX(tbl_MACRS_Schedule[#Data],MATCH(AC$5,tbl_MACRS_Schedule[Years],0),MATCH(CSI_Equipment_deprec,tbl_MACRS_Schedule[#Headers],0))+$N11*INDEX(tbl_MACRS_Schedule[#Data],MATCH(AC$5,tbl_MACRS_Schedule[Years],0),MATCH(CSI_Tooling_deprec,tbl_MACRS_Schedule[#Headers],0)) -> 0 | AI11: =$M11*INDEX(tbl_MACRS_Schedule[#Data],MATCH(AD$5,tbl_MACRS_Schedule[Years],0),MATCH(CSI_Equipment_deprec,tbl_MACRS_Schedule[#Headers],0))+$N11*INDEX(tbl_MACRS_Schedule[#Data],MATCH(AD$5,tbl_MACRS_Schedule[Years],0),MATCH(CSI_Tooling_deprec,tbl_MACRS_Schedule[#Headers],0)) -> 0 | AJ11: =$M11*INDEX(tbl_MACRS_Schedule[#Data],MATCH(AE$5,tbl_MACRS_Schedule[Years],0),MATCH(CSI_Equipment_deprec,tbl_MACRS_Schedule[#Headers],0))+$N11*INDEX(tbl_MACRS_Schedule[#Data],MATCH(AE$5,tbl_MACRS_Schedule[Years],0),MATCH(CSI_Tooling_deprec,tbl_MACRS_Schedule[#Headers],0)) -> 0 | AK11: =$M11*INDEX(tbl_MACRS_Schedule[#Data],MATCH(AF$5,tbl_MACRS_Schedule[Years],0),MATCH(CSI_Equipment_deprec,tbl_MACRS_Schedule[#Headers],0))+$N11*INDEX(tbl_MACRS_Schedule[#Data],MATCH(AF$5,tbl_MACRS_Schedule[Years],0),MATCH(CSI_Tooling_deprec,tbl_MACRS_Schedule[#Headers],0)) -> 0 | AL11: =$M11*INDEX(tbl_MACRS_Schedule[#Data],MATCH(AG$5,tbl_MACRS_Schedule[Years],0),MATCH(CSI_Equipment_deprec,tbl_MACRS_Schedule[#Headers],0))+$N11*INDEX(tbl_MACRS_Schedule[#Data],MATCH(AG$5,tbl_MACRS_Schedule[Years],0),MATCH(CSI_Tooling_deprec,tbl_MACRS_Schedule[#Headers],0)) -> 0 | AM11: =$M11*INDEX(tbl_MACRS_Schedule[#Data],MATCH(AH$5,tbl_MACRS_Schedule[Years],0),MATCH(CSI_Equipment_deprec,tbl_MACRS_Schedule[#Headers],0))+$N11*INDEX(tbl_MACRS_Schedule[#Data],MATCH(AH$5,tbl_MACRS_Schedule[Years],0),MATCH(CSI_Tooling_deprec,tbl_MACRS_Schedule[#Headers],0)) -> 0 | AN11: =$M11*INDEX(tbl_MACRS_Schedule[#Data],MATCH(AI$5,tbl_MACRS_Schedule[Years],0),MATCH(CSI_Equipment_deprec,tbl_MACRS_Schedule[#Headers],0))+$N11*INDEX(tbl_MACRS_Schedule[#Data],MATCH(AI$5,tbl_MACRS_Schedule[Years],0),MATCH(CSI_Tooling_deprec,tbl_MACRS_Schedule[#Headers],0)) -> 0 | AO11: =$M11*INDEX(tbl_MACRS_Schedule[#Data],MATCH(AJ$5,tbl_MACRS_Schedule[Years],0),MATCH(CSI_Equipment_deprec,tbl_MACRS_Schedule[#Headers],0))+$N11*INDEX(tbl_MACRS_Schedule[#Data],MATCH(AJ$5,tbl_MACRS_Schedule[Years],0),MATCH(CSI_Tooling_deprec,tbl_MACRS_Schedule[#Headers],0)) -> 0 | AP11: =$M11*INDEX(tbl_MACRS_Schedule[#Data],MATCH(AK$5,tbl_MACRS_Schedule[Years],0),MATCH(CSI_Equipment_deprec,tbl_MACRS_Schedule[#Headers],0))+$N11*INDEX(tbl_MACRS_Schedule[#Data],MATCH(AK$5,tbl_MACRS_Schedule[Years],0),MATCH(CSI_Tooling_deprec,tbl_MACRS_Schedule[#Headers],0)) -> 0 | AU11: 0
C12: =ROW()-ROW(tblI_Equipment[#Headers]) -> 6 | E12: =IFERROR(OFFSET(INDEX(DCF_Calculation_Table,MATCH(CONCATENATE("Equipment ",tblI_Equipment[[#This Row],[Table Name]]),VARIABLE_DESCRIPTION,0),MATCH(AnalysisCountry,CName,0)),1,0),0) -> 0 | F12: =IFERROR(INDEX(DCF_Calculation_Table,MATCH(CONCATENATE("Equipment ",tblI_Equipment[[#This Row],[Table Name]]),VARIABLE_DESCRIPTION,0),MATCH(AnalysisCountry,CName,0)),1) -> 1 | G12: =IFERROR(OFFSET(INDEX(DCF_Calculation_Table,MATCH(CONCATENATE("Depreciable Tooling ",tblI_Equipment[[#This Row],[Table Name]]),VARIABLE_DESCRIPTION,0),MATCH(AnalysisCountry,CName,0)),1,0),0) -> 0 | H12: =IFERROR(INDEX(DCF_Calculation_Table,MATCH(CONCATENATE("Depreciable Tooling ",tblI_Equipment[[#This Row],[Table Name]]),VARIABLE_DESCRIPTION,0),MATCH(AnalysisCountry,CName,0)),"1") -> 1 | K12: 6 | L12: 0 | M12: =SUMPRODUCT(( (CSI_analysis_yrs-K12)>0)*(MOD(K12,tblI_Equipment[Equipment Life (y)])=0),tblI_Equipment[Installed Equipment Cost (USD)]*L12) -> 0 | N12: =SUMPRODUCT(( (CSI_analysis_yrs-K12)>0.5*tblI_Equipment[Depreciable Tooling Life (y)])*(MOD(K12,tblI_Equipment[Depreciable Tooling Life (y)])=0),tblI_Equipment[Depreciable Tooling Cost (USD)]*L12) -> 0 | W12: =$M12*INDEX(tbl_MACRS_Schedule[#Data],MATCH(Q$5,tbl_MACRS_Schedule[Years],0),MATCH(CSI_Equipment_deprec,tbl_MACRS_Schedule[#Headers],0))+$N12*INDEX(tbl_MACRS_Schedule[#Data],MATCH(Q$5,tbl_MACRS_Schedule[Years],0),MATCH(CSI_Tooling_deprec,tbl_MACRS_Schedule[#Headers],0)) -> 0 | X12: =$M12*INDEX(tbl_MACRS_Schedule[#Data],MATCH(R$5,tbl_MACRS_Schedule[Years],0),MATCH(CSI_Equipment_deprec,tbl_MACRS_Schedule[#Headers],0))+$N12*INDEX(tbl_MACRS_Schedule[#Data],MATCH(R$5,tbl_MACRS_Schedule[Years],0),MATCH(CSI_Tooling_deprec,tbl_MACRS_Schedule[#Headers],0)) -> 0 | Y12: =$M12*INDEX(tbl_MACRS_Schedule[#Data],MATCH(S$5,tbl_MACRS_Schedule[Years],0),MATCH(CSI_Equipment_deprec,tbl_MACRS_Schedule[#Headers],0))+$N12*INDEX(tbl_MACRS_Schedule[#Data],MATCH(S$5,tbl_MACRS_Schedule[Years],0),MATCH(CSI_Tooling_deprec,tbl_MACRS_Schedule[#Headers],0)) -> 0 | Z12: =$M12*INDEX(tbl_MACRS_Schedule[#Data],MATCH(T$5,tbl_MACRS_Schedule[Years],0),MATCH(CSI_Equipment_deprec,tbl_MACRS_Schedule[#Headers],0))+$N12*INDEX(tbl_MACRS_Schedule[#Data],MATCH(T$5,tbl_MACRS_Schedule[Years],0),MATCH(CSI_Tooling_deprec,tbl_MACRS_Schedule[#Headers],0)) -> 0 | AA12: =$M12*INDEX(tbl_MACRS_Schedule[#Data],MATCH(U$5,tbl_MACRS_Schedule[Years],0),MATCH(CSI_Equipment_deprec,tbl_MACRS_Schedule[#Headers],0))+$N12*INDEX(tbl_MACRS_Schedule[#Data],MATCH(U$5,tbl_MACRS_Schedule[Years],0),MATCH(CSI_Tooling_deprec,tbl_MACRS_Schedule[#Headers],0)) -> 0 | AB12: =$M12*INDEX(tbl_MACRS_Schedule[#Data],MATCH(V$5,tbl_MACRS_Schedule[Years],0),MATCH(CSI_Equipment_deprec,tbl_MACRS_Schedule[#Headers],0))+$N12*INDEX(tbl_MACRS_Schedule[#Data],MATCH(V$5,tbl_MACRS_Schedule[Years],0),MATCH(CSI_Tooling_deprec,tbl_MACRS_Schedule[#Headers],0)) -> 0 | AC12: =$M12*INDEX(tbl_MACRS_Schedule[#Data],MATCH(W$5,tbl_MACRS_Schedule[Years],0),MATCH(CSI_Equipment_deprec,tbl_MACRS_Schedule[#Headers],0))+$N12*INDEX(tbl_MACRS_Schedule[#Data],MATCH(W$5,tbl_MACRS_Schedule[Years],0),MATCH(CSI_Tooling_deprec,tbl_MACRS_Schedule[#Headers],0)) -> 0 | AD12: =$M12*INDEX(tbl_MACRS_Schedule[#Data],MATCH(X$5,tbl_MACRS_Schedule[Years],0),MATCH(CSI_Equipment_deprec,tbl_MACRS_Schedule[#Headers],0))+$N12*INDEX(tbl_MACRS_Schedule[#Data],MATCH(X$5,tbl_MACRS_Schedule[Years],0),MATCH(CSI_Tooling_deprec,tbl_MACRS_Schedule[#Headers],0)) -> 0 | AE12: =$M12*INDEX(tbl_MACRS_Schedule[#Data],MATCH(Y$5,tbl_MACRS_Schedule[Years],0),MATCH(CSI_Equipment_deprec,tbl_MACRS_Schedule[#Headers],0))+$N12*INDEX(tbl_MACRS_Schedule[#Data],MATCH(Y$5,tbl_MACRS_Schedule[Years],0),MATCH(CSI_Tooling_deprec,tbl_MACRS_Schedule[#Headers],0)) -> 0 | AF12: =$M12*INDEX(tbl_MACRS_Schedule[#Data],MATCH(Z$5,tbl_MACRS_Schedule[Years],0),MATCH(CSI_Equipment_deprec,tbl_MACRS_Schedule[#Headers],0))+$N12*INDEX(tbl_MACRS_Schedule[#Data],MATCH(Z$5,tbl_MACRS_Schedule[Years],0),MATCH(CSI_Tooling_deprec,tbl_MACRS_Schedule[#Headers],0)) -> 0 | AG12: =$M12*INDEX(tbl_MACRS_Schedule[#Data],MATCH(AA$5,tbl_MACRS_Schedule[Years],0),MATCH(CSI_Equipment_deprec,tbl_MACRS_Schedule[#Headers],0))+$N12*INDEX(tbl_MACRS_Schedule[#Data],MATCH(AA$5,tbl_MACRS_Schedule[Years],0),MATCH(CSI_Tooling_deprec,tbl_MACRS_Schedule[#Headers],0)) -> 0 | AH12: =$M12*INDEX(tbl_MACRS_Schedule[#Data],MATCH(AB$5,tbl_MACRS_Schedule[Years],0),MATCH(CSI_Equipment_deprec,tbl_MACRS_Schedule[#Headers],0))+$N12*INDEX(tbl_MACRS_Schedule[#Data],MATCH(AB$5,tbl_MACRS_Schedule[Years],0),MATCH(CSI_Tooling_deprec,tbl_MACRS_Schedule[#Headers],0)) -> 0 | AI12: =$M12*INDEX(tbl_MACRS_Schedule[#Data],MATCH(AC$5,tbl_MACRS_Schedule[Years],0),MATCH(CSI_Equipment_deprec,tbl_MACRS_Schedule[#Headers],0))+$N12*INDEX(tbl_MACRS_Schedule[#Data],MATCH(AC$5,tbl_MACRS_Schedule[Years],0),MATCH(CSI_Tooling_deprec,tbl_MACRS_Schedule[#Headers],0)) -> 0 | AJ12: =$M12*INDEX(tbl_MACRS_Schedule[#Data],MATCH(AD$5,tbl_MACRS_Schedule[Years],0),MATCH(CSI_Equipment_deprec,tbl_MACRS_Schedule[#Headers],0))+$N12*INDEX(tbl_MACRS_Schedule[#Data],MATCH(AD$5,tbl_MACRS_Schedule[Years],0),MATCH(CSI_Tooling_deprec,tbl_MACRS_Schedule[#Headers],0)) -> 0 | AK12: =$M12*INDEX(tbl_MACRS_Schedule[#Data],MATCH(AE$5,tbl_MACRS_Schedule[Years],0),MATCH(CSI_Equipment_deprec,tbl_MACRS_Schedule[#Headers],0))+$N12*INDEX(tbl_MACRS_Schedule[#Data],MATCH(AE$5,tbl_MACRS_Schedule[Years],0),MATCH(CSI_Tooling_deprec,tbl_MACRS_Schedule[#Headers],0)) -> 0 | AL12: =$M12*INDEX(tbl_MACRS_Schedule[#Data],MATCH(AF$5,tbl_MACRS_Schedule[Years],0),MATCH(CSI_Equipment_deprec,tbl_MACRS_Schedule[#Headers],0))+$N12*INDEX(tbl_MACRS_Schedule[#Data],MATCH(AF$5,tbl_MACRS_Schedule[Years],0),MATCH(CSI_Tooling_deprec,tbl_MACRS_Schedule[#Headers],0)) -> 0 | AM12: =$M12*INDEX(tbl_MACRS_Schedule[#Data],MATCH(AG$5,tbl_MACRS_Schedule[Years],0),MATCH(CSI_Equipment_deprec,tbl_MACRS_Schedule[#Headers],0))+$N12*INDEX(tbl_MACRS_Schedule[#Data],MATCH(AG$5,tbl_MACRS_Schedule[Years],0),MATCH(CSI_Tooling_deprec,tbl_MACRS_Schedule[#Headers],0)) -> 0 | AN12: =$M12*INDEX(tbl_MACRS_Schedule[#Data],MATCH(AH$5,tbl_MACRS_Schedule[Years],0),MATCH(CSI_Equipment_deprec,tbl_MACRS_Schedule[#Headers],0))+$N12*INDEX(tbl_MACRS_Schedule[#Data],MATCH(AH$5,tbl_MACRS_Schedule[Years],0),MATCH(CSI_Tooling_deprec,tbl_MACRS_Schedule[#Headers],0)) -> 0 | AO12: =$M12*INDEX(tbl_MACRS_Schedule[#Data],MATCH(AI$5,tbl_MACRS_Schedule[Years],0),MATCH(CSI_Equipment_deprec,tbl_MACRS_Schedule[#Headers],0))+$N12*INDEX(tbl_MACRS_Schedule[#Data],MATCH(AI$5,tbl_MACRS_Schedule[Years],0),MATCH(CSI_Tooling_deprec,tbl_MACRS_Schedule[#Headers],0)) -> 0 | AP12: =$M12*INDEX(tbl_MACRS_Schedule[#Data],MATCH(AJ$5,tbl_MACRS_Schedule[Years],0),MATCH(CSI_Equipment_deprec,tbl_MACRS_Schedule[#Headers],0))+$N12*INDEX(tbl_MACRS_Schedule[#Data],MATCH(AJ$5,tbl_MACRS_Schedule[Years],0),MATCH(CSI_Tooling_deprec,tbl_MACRS_Schedule[#Headers],0)) -> 0 | AQ12: =$M12*INDEX(tbl_MACRS_Schedule[#Data],MATCH(AK$5,tbl_MACRS_Schedule[Years],0),MATCH(CSI_Equipment_deprec,tbl_MACRS_Schedule[#Headers],0))+$N12*INDEX(tbl_MACRS_Schedule[#Data],MATCH(AK$5,tbl_MACRS_Schedule[Years],0),MATCH(CSI_Tooling_deprec,tbl_MACRS_Schedule[#Headers],0)) -> 0 | AU12: 0
C13: =ROW()-ROW(tblI_Equipment[#Headers]) -> 7 | E13: =IFERROR(OFFSET(INDEX(DCF_Calculation_Table,MATCH(CONCATENATE("Equipment ",tblI_Equipment[[#This Row],[Table Name]]),VARIABLE_DESCRIPTION,0),MATCH(AnalysisCountry,CName,0)),1,0),0) -> 0 | F13: =IFERROR(INDEX(DCF_Calculation_Table,MATCH(CONCATENATE("Equipment ",tblI_Equipment[[#This Row],[Table Name]]),VARIABLE_DESCRIPTION,0),MATCH(AnalysisCountry,CName,0)),1) -> 1 | G13: =IFERROR(OFFSET(INDEX(DCF_Calculation_Table,MATCH(CONCATENATE("Depreciable Tooling ",tblI_Equipment[[#This Row],[Table Name]]),VARIABLE_DESCRIPTION,0),MATCH(AnalysisCountry,CName,0)),1,0),0) -> 0 | H13: =IFERROR(INDEX(DCF_Calculation_Table,MATCH(CONCATENATE("Depreciable Tooling ",tblI_Equipment[[#This Row],[Table Name]]),VARIABLE_DESCRIPTION,0),MATCH(AnalysisCountry,CName,0)),"1") -> 1 | K13: 7 | L13: 0 | M13: =SUMPRODUCT(( (CSI_analysis_yrs-K13)>0)*(MOD(K13,tblI_Equipment[Equipment Life (y)])=0),tblI_Equipment[Installed Equipment Cost (USD)]*L13) -> 0 | N13: =SUMPRODUCT(( (CSI_analysis_yrs-K13)>0.5*tblI_Equipment[Depreciable Tooling Life (y)])*(MOD(K13,tblI_Equipment[Depreciable Tooling Life (y)])=0),tblI_Equipment[Depreciable Tooling Cost (USD)]*L13) -> 0 | X13: =$M13*INDEX(tbl_MACRS_Schedule[#Data],MATCH(Q$5,tbl_MACRS_Schedule[Years],0),MATCH(CSI_Equipment_deprec,tbl_MACRS_Schedule[#Headers],0))+$N13*INDEX(tbl_MACRS_Schedule[#Data],MATCH(Q$5,tbl_MACRS_Schedule[Years],0),MATCH(CSI_Tooling_deprec,tbl_MACRS_Schedule[#Headers],0)) -> 0 | Y13: =$M13*INDEX(tbl_MACRS_Schedule[#Data],MATCH(R$5,tbl_MACRS_Schedule[Years],0),MATCH(CSI_Equipment_deprec,tbl_MACRS_Schedule[#Headers],0))+$N13*INDEX(tbl_MACRS_Schedule[#Data],MATCH(R$5,tbl_MACRS_Schedule[Years],0),MATCH(CSI_Tooling_deprec,tbl_MACRS_Schedule[#Headers],0)) -> 0 | Z13: =$M13*INDEX(tbl_MACRS_Schedule[#Data],MATCH(S$5,tbl_MACRS_Schedule[Years],0),MATCH(CSI_Equipment_deprec,tbl_MACRS_Schedule[#Headers],0))+$N13*INDEX(tbl_MACRS_Schedule[#Data],MATCH(S$5,tbl_MACRS_Schedule[Years],0),MATCH(CSI_Tooling_deprec,tbl_MACRS_Schedule[#Headers],0)) -> 0 | AA13: =$M13*INDEX(tbl_MACRS_Schedule[#Data],MATCH(T$5,tbl_MACRS_Schedule[Years],0),MATCH(CSI_Equipment_deprec,tbl_MACRS_Schedule[#Headers],0))+$N13*INDEX(tbl_MACRS_Schedule[#Data],MATCH(T$5,tbl_MACRS_Schedule[Years],0),MATCH(CSI_Tooling_deprec,tbl_MACRS_Schedule[#Headers],0)) -> 0 | AB13: =$M13*INDEX(tbl_MACRS_Schedule[#Data],MATCH(U$5,tbl_MACRS_Schedule[Years],0),MATCH(CSI_Equipment_deprec,tbl_MACRS_Schedule[#Headers],0))+$N13*INDEX(tbl_MACRS_Schedule[#Data],MATCH(U$5,tbl_MACRS_Schedule[Years],0),MATCH(CSI_Tooling_deprec,tbl_MACRS_Schedule[#Headers],0)) -> 0 | AC13: =$M13*INDEX(tbl_MACRS_Schedule[#Data],MATCH(V$5,tbl_MACRS_Schedule[Years],0),MATCH(CSI_Equipment_deprec,tbl_MACRS_Schedule[#Headers],0))+$N13*INDEX(tbl_MACRS_Schedule[#Data],MATCH(V$5,tbl_MACRS_Schedule[Years],0),MATCH(CSI_Tooling_deprec,tbl_MACRS_Schedule[#Headers],0)) -> 0 | AD13: =$M13*INDEX(tbl_MACRS_Schedule[#Data],MATCH(W$5,tbl_MACRS_Schedule[Years],0),MATCH(CSI_Equipment_deprec,tbl_MACRS_Schedule[#Headers],0))+$N13*INDEX(tbl_MACRS_Schedule[#Data],MATCH(W$5,tbl_MACRS_Schedule[Years],0),MATCH(CSI_Tooling_deprec,tbl_MACRS_Schedule[#Headers],0)) -> 0 | AE13: =$M13*INDEX(tbl_MACRS_Schedule[#Data],MATCH(X$5,tbl_MACRS_Schedule[Years],0),MATCH(CSI_Equipment_deprec,tbl_MACRS_Schedule[#Headers],0))+$N13*INDEX(tbl_MACRS_Schedule[#Data],MATCH(X$5,tbl_MACRS_Schedule[Years],0),MATCH(CSI_Tooling_deprec,tbl_MACRS_Schedule[#Headers],0)) -> 0 | AF13: =$M13*INDEX(tbl_MACRS_Schedule[#Data],MATCH(Y$5,tbl_MACRS_Schedule[Years],0),MATCH(CSI_Equipment_deprec,tbl_MACRS_Schedule[#Headers],0))+$N13*INDEX(tbl_MACRS_Schedule[#Data],MATCH(Y$5,tbl_MACRS_Schedule[Years],0),MATCH(CSI_Tooling_deprec,tbl_MACRS_Schedule[#Headers],0)) -> 0 | AG13: =$M13*INDEX(tbl_MACRS_Schedule[#Data],MATCH(Z$5,tbl_MACRS_Schedule[Years],0),MATCH(CSI_Equipment_deprec,tbl_MACRS_Schedule[#Headers],0))+$N13*INDEX(tbl_MACRS_Schedule[#Data],MATCH(Z$5,tbl_MACRS_Schedule[Years],0),MATCH(CSI_Tooling_deprec,tbl_MACRS_Schedule[#Headers],0)) -> 0 | AH13: =$M13*INDEX(tbl_MACRS_Schedule[#Data],MATCH(AA$5,tbl_MACRS_Schedule[Years],0),MATCH(CSI_Equipment_deprec,tbl_MACRS_Schedule[#Headers],0))+$N13*INDEX(tbl_MACRS_Schedule[#Data],MATCH(AA$5,tbl_MACRS_Schedule[Years],0),MATCH(CSI_Tooling_deprec,tbl_MACRS_Schedule[#Headers],0)) -> 0 | AI13: =$M13*INDEX(tbl_MACRS_Schedule[#Data],MATCH(AB$5,tbl_MACRS_Schedule[Years],0),MATCH(CSI_Equipment_deprec,tbl_MACRS_Schedule[#Headers],0))+$N13*INDEX(tbl_MACRS_Schedule[#Data],MATCH(AB$5,tbl_MACRS_Schedule[Years],0),MATCH(CSI_Tooling_deprec,tbl_MACRS_Schedule[#Headers],0)) -> 0 | AJ13: =$M13*INDEX(tbl_MACRS_Schedule[#Data],MATCH(AC$5,tbl_MACRS_Schedule[Years],0),MATCH(CSI_Equipment_deprec,tbl_MACRS_Schedule[#Headers],0))+$N13*INDEX(tbl_MACRS_Schedule[#Data],MATCH(AC$5,tbl_MACRS_Schedule[Years],0),MATCH(CSI_Tooling_deprec,tbl_MACRS_Schedule[#Headers],0)) -> 0 | AK13: =$M13*INDEX(tbl_MACRS_Schedule[#Data],MATCH(AD$5,tbl_MACRS_Schedule[Years],0),MATCH(CSI_Equipment_deprec,tbl_MACRS_Schedule[#Headers],0))+$N13*INDEX(tbl_MACRS_Schedule[#Data],MATCH(AD$5,tbl_MACRS_Schedule[Years],0),MATCH(CSI_Tooling_deprec,tbl_MACRS_Schedule[#Headers],0)) -> 0 | AL13: =$M13*INDEX(tbl_MACRS_Schedule[#Data],MATCH(AE$5,tbl_MACRS_Schedule[Years],0),MATCH(CSI_Equipment_deprec,tbl_MACRS_Schedule[#Headers],0))+$N13*INDEX(tbl_MACRS_Schedule[#Data],MATCH(AE$5,tbl_MACRS_Schedule[Years],0),MATCH(CSI_Tooling_deprec,tbl_MACRS_Schedule[#Headers],0)) -> 0 | AM13: =$M13*INDEX(tbl_MACRS_Schedule[#Data],MATCH(AF$5,tbl_MACRS_Schedule[Years],0),MATCH(CSI_Equipment_deprec,tbl_MACRS_Schedule[#Headers],0))+$N13*INDEX(tbl_MACRS_Schedule[#Data],MATCH(AF$5,tbl_MACRS_Schedule[Years],0),MATCH(CSI_Tooling_deprec,tbl_MACRS_Schedule[#Headers],0)) -> 0 | AN13: =$M13*INDEX(tbl_MACRS_Schedule[#Data],MATCH(AG$5,tbl_MACRS_Schedule[Years],0),MATCH(CSI_Equipment_deprec,tbl_MACRS_Schedule[#Headers],0))+$N13*INDEX(tbl_MACRS_Schedule[#Data],MATCH(AG$5,tbl_MACRS_Schedule[Years],0),MATCH(CSI_Tooling_deprec,tbl_MACRS_Schedule[#Headers],0)) -> 0 | AO13: =$M13*INDEX(tbl_MACRS_Schedule[#Data],MATCH(AH$5,tbl_MACRS_Schedule[Years],0),MATCH(CSI_Equipment_deprec,tbl_MACRS_Schedule[#Headers],0))+$N13*INDEX(tbl_MACRS_Schedule[#Data],MATCH(AH$5,tbl_MACRS_Schedule[Years],0),MATCH(CSI_Tooling_deprec,tbl_MACRS_Schedule[#Headers],0)) -> 0 | AP13: =$M13*INDEX(tbl_MACRS_Schedule[#Data],MATCH(AI$5,tbl_MACRS_Schedule[Years],0),MATCH(CSI_Equipment_deprec,tbl_MACRS_Schedule[#Headers],0))+$N13*INDEX(tbl_MACRS_Schedule[#Data],MATCH(AI$5,tbl_MACRS_Schedule[Years],0),MATCH(CSI_Tooling_deprec,tbl_MACRS_Schedule[#Headers],0)) -> 0 | AQ13: =$M13*INDEX(tbl_MACRS_Schedule[#Data],MATCH(AJ$5,tbl_MACRS_Schedule[Years],0),MATCH(CSI_Equipment_deprec,tbl_MACRS_Schedule[#Headers],0))+$N13*INDEX(tbl_MACRS_Schedule[#Data],MATCH(AJ$5,tbl_MACRS_Schedule[Years],0),MATCH(CSI_Tooling_deprec,tbl_MACRS_Schedule[#Headers],0)) -> 0 | AR13: =$M13*INDEX(tbl_MACRS_Schedule[#Data],MATCH(AK$5,tbl_MACRS_Schedule[Years],0),MATCH(CSI_Equipment_deprec,tbl_MACRS_Schedule[#Headers],0))+$N13*INDEX(tbl_MACRS_Schedule[#Data],MATCH(AK$5,tbl_MACRS_Schedule[Years],0),MATCH(CSI_Tooling_deprec,tbl_MACRS_Schedule[#Headers],0)) -> 0 | AU13: 0
C14: =ROW()-ROW(tblI_Equipment[#Headers]) -> 8 | E14: =IFERROR(OFFSET(INDEX(DCF_Calculation_Table,MATCH(CONCATENATE("Equipment ",tblI_Equipment[[#This Row],[Table Name]]),VARIABLE_DESCRIPTION,0),MATCH(AnalysisCountry,CName,0)),1,0),0) -> 0 | F14: =IFERROR(INDEX(DCF_Calculation_Table,MATCH(CONCATENATE("Equipment ",tblI_Equipment[[#This Row],[Table Name]]),VARIABLE_DESCRIPTION,0),MATCH(AnalysisCountry,CName,0)),1) -> 1 | G14: =IFERROR(OFFSET(INDEX(DCF_Calculation_Table,MATCH(CONCATENATE("Depreciable Tooling ",tblI_Equipment[[#This Row],[Table Name]]),VARIABLE_DESCRIPTION,0),MATCH(AnalysisCountry,CName,0)),1,0),0) -> 0 | H14: =IFERROR(INDEX(DCF_Calculation_Table,MATCH(CONCATENATE("Depreciable Tooling ",tblI_Equipment[[#This Row],[Table Name]]),VARIABLE_DESCRIPTION,0),MATCH(AnalysisCountry,CName,0)),"1") -> 1 | K14: 8 | L14: 0 | M14: =SUMPRODUCT(( (CSI_analysis_yrs-K14)>0)*(MOD(K14,tblI_Equipment[Equipment Life (y)])=0),tblI_Equipment[Installed Equipment Cost (USD)]*L14) -> 0 | N14: =SUMPRODUCT(( (CSI_analysis_yrs-K14)>0.5*tblI_Equipment[Depreciable Tooling Life (y)])*(MOD(K14,tblI_Equipment[Depreciable Tooling Life (y)])=0),tblI_Equipment[Depreciable Tooling Cost (USD)]*L14) -> 0 | Y14: =$M14*INDEX(tbl_MACRS_Schedule[#Data],MATCH(Q$5,tbl_MACRS_Schedule[Years],0),MATCH(CSI_Equipment_deprec,tbl_MACRS_Schedule[#Headers],0))+$N14*INDEX(tbl_MACRS_Schedule[#Data],MATCH(Q$5,tbl_MACRS_Schedule[Years],0),MATCH(CSI_Tooling_deprec,tbl_MACRS_Schedule[#Headers],0)) -> 0 | Z14: =$M14*INDEX(tbl_MACRS_Schedule[#Data],MATCH(R$5,tbl_MACRS_Schedule[Years],0),MATCH(CSI_Equipment_deprec,tbl_MACRS_Schedule[#Headers],0))+$N14*INDEX(tbl_MACRS_Schedule[#Data],MATCH(R$5,tbl_MACRS_Schedule[Years],0),MATCH(CSI_Tooling_deprec,tbl_MACRS_Schedule[#Headers],0)) -> 0 | AA14: =$M14*INDEX(tbl_MACRS_Schedule[#Data],MATCH(S$5,tbl_MACRS_Schedule[Years],0),MATCH(CSI_Equipment_deprec,tbl_MACRS_Schedule[#Headers],0))+$N14*INDEX(tbl_MACRS_Schedule[#Data],MATCH(S$5,tbl_MACRS_Schedule[Years],0),MATCH(CSI_Tooling_deprec,tbl_MACRS_Schedule[#Headers],0)) -> 0 | AB14: =$M14*INDEX(tbl_MACRS_Schedule[#Data],MATCH(T$5,tbl_MACRS_Schedule[Years],0),MATCH(CSI_Equipment_deprec,tbl_MACRS_Schedule[#Headers],0))+$N14*INDEX(tbl_MACRS_Schedule[#Data],MATCH(T$5,tbl_MACRS_Schedule[Years],0),MATCH(CSI_Tooling_deprec,tbl_MACRS_Schedule[#Headers],0)) -> 0 | AC14: =$M14*INDEX(tbl_MACRS_Schedule[#Data],MATCH(U$5,tbl_MACRS_Schedule[Years],0),MATCH(CSI_Equipment_deprec,tbl_MACRS_Schedule[#Headers],0))+$N14*INDEX(tbl_MACRS_Schedule[#Data],MATCH(U$5,tbl_MACRS_Schedule[Years],0),MATCH(CSI_Tooling_deprec,tbl_MACRS_Schedule[#Headers],0)) -> 0 | AD14: =$M14*INDEX(tbl_MACRS_Schedule[#Data],MATCH(V$5,tbl_MACRS_Schedule[Years],0),MATCH(CSI_Equipment_deprec,tbl_MACRS_Schedule[#Headers],0))+$N14*INDEX(tbl_MACRS_Schedule[#Data],MATCH(V$5,tbl_MACRS_Schedule[Years],0),MATCH(CSI_Tooling_deprec,tbl_MACRS_Schedule[#Headers],0)) -> 0 | AE14: =$M14*INDEX(tbl_MACRS_Schedule[#Data],MATCH(W$5,tbl_MACRS_Schedule[Years],0),MATCH(CSI_Equipment_deprec,tbl_MACRS_Schedule[#Headers],0))+$N14*INDEX(tbl_MACRS_Schedule[#Data],MATCH(W$5,tbl_MACRS_Schedule[Years],0),MATCH(CSI_Tooling_deprec,tbl_MACRS_Schedule[#Headers],0)) -> 0 | AF14: =$M14*INDEX(tbl_MACRS_Schedule[#Data],MATCH(X$5,tbl_MACRS_Schedule[Years],0),MATCH(CSI_Equipment_deprec,tbl_MACRS_Schedule[#Headers],0))+$N14*INDEX(tbl_MACRS_Schedule[#Data],MATCH(X$5,tbl_MACRS_Schedule[Years],0),MATCH(CSI_Tooling_deprec,tbl_MACRS_Schedule[#Headers],0)) -> 0 | AG14: =$M14*INDEX(tbl_MACRS_Schedule[#Data],MATCH(Y$5,tbl_MACRS_Schedule[Years],0),MATCH(CSI_Equipment_deprec,tbl_MACRS_Schedule[#Headers],0))+$N14*INDEX(tbl_MACRS_Schedule[#Data],MATCH(Y$5,tbl_MACRS_Schedule[Years],0),MATCH(CSI_Tooling_deprec,tbl_MACRS_Schedule[#Headers],0)) -> 0 | AH14: =$M14*INDEX(tbl_MACRS_Schedule[#Data],MATCH(Z$5,tbl_MACRS_Schedule[Years],0),MATCH(CSI_Equipment_deprec,tbl_MACRS_Schedule[#Headers],0))+$N14*INDEX(tbl_MACRS_Schedule[#Data],MATCH(Z$5,tbl_MACRS_Schedule[Years],0),MATCH(CSI_Tooling_deprec,tbl_MACRS_Schedule[#Headers],0)) -> 0 | AI14: =$M14*INDEX(tbl_MACRS_Schedule[#Data],MATCH(AA$5,tbl_MACRS_Schedule[Years],0),MATCH(CSI_Equipment_deprec,tbl_MACRS_Schedule[#Headers],0))+$N14*INDEX(tbl_MACRS_Schedule[#Data],MATCH(AA$5,tbl_MACRS_Schedule[Years],0),MATCH(CSI_Tooling_deprec,tbl_MACRS_Schedule[#Headers],0)) -> 0 | AJ14: =$M14*INDEX(tbl_MACRS_Schedule[#Data],MATCH(AB$5,tbl_MACRS_Schedule[Years],0),MATCH(CSI_Equipment_deprec,tbl_MACRS_Schedule[#Headers],0))+$N14*INDEX(tbl_MACRS_Schedule[#Data],MATCH(AB$5,tbl_MACRS_Schedule[Years],0),MATCH(CSI_Tooling_deprec,tbl_MACRS_Schedule[#Headers],0)) -> 0 | AK14: =$M14*INDEX(tbl_MACRS_Schedule[#Data],MATCH(AC$5,tbl_MACRS_Schedule[Years],0),MATCH(CSI_Equipment_deprec,tbl_MACRS_Schedule[#Headers],0))+$N14*INDEX(tbl_MACRS_Schedule[#Data],MATCH(AC$5,tbl_MACRS_Schedule[Years],0),MATCH(CSI_Tooling_deprec,tbl_MACRS_Schedule[#Headers],0)) -> 0 | AL14: =$M14*INDEX(tbl_MACRS_Schedule[#Data],MATCH(AD$5,tbl_MACRS_Schedule[Years],0),MATCH(CSI_Equipment_deprec,tbl_MACRS_Schedule[#Headers],0))+$N14*INDEX(tbl_MACRS_Schedule[#Data],MATCH(AD$5,tbl_MACRS_Schedule[Years],0),MATCH(CSI_Tooling_deprec,tbl_MACRS_Schedule[#Headers],0)) -> 0 | AM14: =$M14*INDEX(tbl_MACRS_Schedule[#Data],MATCH(AE$5,tbl_MACRS_Schedule[Years],0),MATCH(CSI_Equipment_deprec,tbl_MACRS_Schedule[#Headers],0))+$N14*INDEX(tbl_MACRS_Schedule[#Data],MATCH(AE$5,tbl_MACRS_Schedule[Years],0),MATCH(CSI_Tooling_deprec,tbl_MACRS_Schedule[#Headers],0)) -> 0 | AN14: =$M14*INDEX(tbl_MACRS_Schedule[#Data],MATCH(AF$5,tbl_MACRS_Schedule[Years],0),MATCH(CSI_Equipment_deprec,tbl_MACRS_Schedule[#Headers],0))+$N14*INDEX(tbl_MACRS_Schedule[#Data],MATCH(AF$5,tbl_MACRS_Schedule[Years],0),MATCH(CSI_Tooling_deprec,tbl_MACRS_Schedule[#Headers],0)) -> 0 | AO14: =$M14*INDEX(tbl_MACRS_Schedule[#Data],MATCH(AG$5,tbl_MACRS_Schedule[Years],0),MATCH(CSI_Equipment_deprec,tbl_MACRS_Schedule[#Headers],0))+$N14*INDEX(tbl_MACRS_Schedule[#Data],MATCH(AG$5,tbl_MACRS_Schedule[Years],0),MATCH(CSI_Tooling_deprec,tbl_MACRS_Schedule[#Headers],0)) -> 0 | AP14: =$M14*INDEX(tbl_MACRS_Schedule[#Data],MATCH(AH$5,tbl_MACRS_Schedule[Years],0),MATCH(CSI_Equipment_deprec,tbl_MACRS_Schedule[#Headers],0))+$N14*INDEX(tbl_MACRS_Schedule[#Data],MATCH(AH$5,tbl_MACRS_Schedule[Years],0),MATCH(CSI_Tooling_deprec,tbl_MACRS_Schedule[#Headers],0)) -> 0 | AQ14: =$M14*INDEX(tbl_MACRS_Schedule[#Data],MATCH(AI$5,tbl_MACRS_Schedule[Years],0),MATCH(CSI_Equipment_deprec,tbl_MACRS_Schedule[#Headers],0))+$N14*INDEX(tbl_MACRS_Schedule[#Data],MATCH(AI$5,tbl_MACRS_Schedule[Years],0),MATCH(CSI_Tooling_deprec,tbl_MACRS_Schedule[#Headers],0)) -> 0 | AR14: =$M14*INDEX(tbl_MACRS_Schedule[#Data],MATCH(AJ$5,tbl_MACRS_Schedule[Years],0),MATCH(CSI_Equipment_deprec,tbl_MACRS_Schedule[#Headers],0))+$N14*INDEX(tbl_MACRS_Schedule[#Data],MATCH(AJ$5,tbl_MACRS_Schedule[Years],0),MATCH(CSI_Tooling_deprec,tbl_MACRS_Schedule[#Headers],0)) -> 0 | AS14: =$M14*INDEX(tbl_MACRS_Schedule[#Data],MATCH(AK$5,tbl_MACRS_Schedule[Years],0),MATCH(CSI_Equipment_deprec,tbl_MACRS_Schedule[#Headers],0))+$N14*INDEX(tbl_MACRS_Schedule[#Data],MATCH(AK$5,tbl_MACRS_Schedule[Years],0),MATCH(CSI_Tooling_deprec,tbl_MACRS_Schedule[#Headers],0)) -> 0 | AU14: 0
C15: =ROW()-ROW(tblI_Equipment[#Headers]) -> 9 | E15: =IFERROR(OFFSET(INDEX(DCF_Calculation_Table,MATCH(CONCATENATE("Equipment ",tblI_Equipment[[#This Row],[Table Name]]),VARIABLE_DESCRIPTION,0),MATCH(AnalysisCountry,CName,0)),1,0),0) -> 0 | F15: =IFERROR(INDEX(DCF_Calculation_Table,MATCH(CONCATENATE("Equipment ",tblI_Equipment[[#This Row],[Table Name]]),VARIABLE_DESCRIPTION,0),MATCH(AnalysisCountry,CName,0)),1) -> 1 | G15: =IFERROR(OFFSET(INDEX(DCF_Calculation_Table,MATCH(CONCATENATE("Depreciable Tooling ",tblI_Equipment[[#This Row],[Table Name]]),VARIABLE_DESCRIPTION,0),MATCH(AnalysisCountry,CName,0)),1,0),0) -> 0 | H15: =IFERROR(INDEX(DCF_Calculation_Table,MATCH(CONCATENATE("Depreciable Tooling ",tblI_Equipment[[#This Row],[Table Name]]),VARIABLE_DESCRIPTION,0),MATCH(AnalysisCountry,CName,0)),"1") -> 1 | K15: 9 | L15: 0 | M15: =SUMPRODUCT(( (CSI_analysis_yrs-K15)>0)*(MOD(K15,tblI_Equipment[Equipment Life (y)])=0),tblI_Equipment[Installed Equipment Cost (USD)]*L15) -> 0 | N15: =SUMPRODUCT(( (CSI_analysis_yrs-K15)>0.5*tblI_Equipment[Depreciable Tooling Life (y)])*(MOD(K15,tblI_Equipment[Depreciable Tooling Life (y)])=0),tblI_Equipment[Depreciable Tooling Cost (USD)]*L15) -> 0 | Z15: =$M15*INDEX(tbl_MACRS_Schedule[#Data],MATCH(Q$5,tbl_MACRS_Schedule[Years],0),MATCH(CSI_Equipment_deprec,tbl_MACRS_Schedule[#Headers],0))+$N15*INDEX(tbl_MACRS_Schedule[#Data],MATCH(Q$5,tbl_MACRS_Schedule[Years],0),MATCH(CSI_Tooling_deprec,tbl_MACRS_Schedule[#Headers],0)) -> 0 | AA15: =$M15*INDEX(tbl_MACRS_Schedule[#Data],MATCH(R$5,tbl_MACRS_Schedule[Years],0),MATCH(CSI_Equipment_deprec,tbl_MACRS_Schedule[#Headers],0))+$N15*INDEX(tbl_MACRS_Schedule[#Data],MATCH(R$5,tbl_MACRS_Schedule[Years],0),MATCH(CSI_Tooling_deprec,tbl_MACRS_Schedule[#Headers],0)) -> 0 | AB15: =$M15*INDEX(tbl_MACRS_Schedule[#Data],MATCH(S$5,tbl_MACRS_Schedule[Years],0),MATCH(CSI_Equipment_deprec,tbl_MACRS_Schedule[#Headers],0))+$N15*INDEX(tbl_MACRS_Schedule[#Data],MATCH(S$5,tbl_MACRS_Schedule[Years],0),MATCH(CSI_Tooling_deprec,tbl_MACRS_Schedule[#Headers],0)) -> 0 | AC15: =$M15*INDEX(tbl_MACRS_Schedule[#Data],MATCH(T$5,tbl_MACRS_Schedule[Years],0),MATCH(CSI_Equipment_deprec,tbl_MACRS_Schedule[#Headers],0))+$N15*INDEX(tbl_MACRS_Schedule[#Data],MATCH(T$5,tbl_MACRS_Schedule[Years],0),MATCH(CSI_Tooling_deprec,tbl_MACRS_Schedule[#Headers],0)) -> 0 | AD15: =$M15*INDEX(tbl_MACRS_Schedule[#Data],MATCH(U$5,tbl_MACRS_Schedule[Years],0),MATCH(CSI_Equipment_deprec,tbl_MACRS_Schedule[#Headers],0))+$N15*INDEX(tbl_MACRS_Schedule[#Data],MATCH(U$5,tbl_MACRS_Schedule[Years],0),MATCH(CSI_Tooling_deprec,tbl_MACRS_Schedule[#Headers],0)) -> 0 | AE15: =$M15*INDEX(tbl_MACRS_Schedule[#Data],MATCH(V$5,tbl_MACRS_Schedule[Years],0),MATCH(CSI_Equipment_deprec,tbl_MACRS_Schedule[#Headers],0))+$N15*INDEX(tbl_MACRS_Schedule[#Data],MATCH(V$5,tbl_MACRS_Schedule[Years],0),MATCH(CSI_Tooling_deprec,tbl_MACRS_Schedule[#Headers],0)) -> 0 | AF15: =$M15*INDEX(tbl_MACRS_Schedule[#Data],MATCH(W$5,tbl_MACRS_Schedule[Years],0),MATCH(CSI_Equipment_deprec,tbl_MACRS_Schedule[#Headers],0))+$N15*INDEX(tbl_MACRS_Schedule[#Data],MATCH(W$5,tbl_MACRS_Schedule[Years],0),MATCH(CSI_Tooling_deprec,tbl_MACRS_Schedule[#Headers],0)) -> 0 | AG15: =$M15*INDEX(tbl_MACRS_Schedule[#Data],MATCH(X$5,tbl_MACRS_Schedule[Years],0),MATCH(CSI_Equipment_deprec,tbl_MACRS_Schedule[#Headers],0))+$N15*INDEX(tbl_MACRS_Schedule[#Data],MATCH(X$5,tbl_MACRS_Schedule[Years],0),MATCH(CSI_Tooling_deprec,tbl_MACRS_Schedule[#Headers],0)) -> 0 | AH15: =$M15*INDEX(tbl_MACRS_Schedule[#Data],MATCH(Y$5,tbl_MACRS_Schedule[Years],0),MATCH(CSI_Equipment_deprec,tbl_MACRS_Schedule[#Headers],0))+$N15*INDEX(tbl_MACRS_Schedule[#Data],MATCH(Y$5,tbl_MACRS_Schedule[Years],0),MATCH(CSI_Tooling_deprec,tbl_MACRS_Schedule[#Headers],0)) -> 0 | AI15: =$M15*INDEX(tbl_MACRS_Schedule[#Data],MATCH(Z$5,tbl_MACRS_Schedule[Years],0),MATCH(CSI_Equipment_deprec,tbl_MACRS_Schedule[#Headers],0))+$N15*INDEX(tbl_MACRS_Schedule[#Data],MATCH(Z$5,tbl_MACRS_Schedule[Years],0),MATCH(CSI_Tooling_deprec,tbl_MACRS_Schedule[#Headers],0)) -> 0 | AJ15: =$M15*INDEX(tbl_MACRS_Schedule[#Data],MATCH(AA$5,tbl_MACRS_Schedule[Years],0),MATCH(CSI_Equipment_deprec,tbl_MACRS_Schedule[#Headers],0))+$N15*INDEX(tbl_MACRS_Schedule[#Data],MATCH(AA$5,tbl_MACRS_Schedule[Years],0),MATCH(CSI_Tooling_deprec,tbl_MACRS_Schedule[#Headers],0)) -> 0 | AK15: =$M15*INDEX(tbl_MACRS_Schedule[#Data],MATCH(AB$5,tbl_MACRS_Schedule[Years],0),MATCH(CSI_Equipment_deprec,tbl_MACRS_Schedule[#Headers],0))+$N15*INDEX(tbl_MACRS_Schedule[#Data],MATCH(AB$5,tbl_MACRS_Schedule[Years],0),MATCH(CSI_Tooling_deprec,tbl_MACRS_Schedule[#Headers],0)) -> 0 | AL15: =$M15*INDEX(tbl_MACRS_Schedule[#Data],MATCH(AC$5,tbl_MACRS_Schedule[Years],0),MATCH(CSI_Equipment_deprec,tbl_MACRS_Schedule[#Headers],0))+$N15*INDEX(tbl_MACRS_Schedule[#Data],MATCH(AC$5,tbl_MACRS_Schedule[Years],0),MATCH(CSI_Tooling_deprec,tbl_MACRS_Schedule[#Headers],0)) -> 0 | AM15: =$M15*INDEX(tbl_MACRS_Schedule[#Data],MATCH(AD$5,tbl_MACRS_Schedule[Years],0),MATCH(CSI_Equipment_deprec,tbl_MACRS_Schedule[#Headers],0))+$N15*INDEX(tbl_MACRS_Schedule[#Data],MATCH(AD$5,tbl_MACRS_Schedule[Years],0),MATCH(CSI_Tooling_deprec,tbl_MACRS_Schedule[#Headers],0)) -> 0 | AN15: =$M15*INDEX(tbl_MACRS_Schedule[#Data],MATCH(AE$5,tbl_MACRS_Schedule[Years],0),MATCH(CSI_Equipment_deprec,tbl_MACRS_Schedule[#Headers],0))+$N15*INDEX(tbl_MACRS_Schedule[#Data],MATCH(AE$5,tbl_MACRS_Schedule[Years],0),MATCH(CSI_Tooling_deprec,tbl_MACRS_Schedule[#Headers],0)) -> 0 | AO15: =$M15*INDEX(tbl_MACRS_Schedule[#Data],MATCH(AF$5,tbl_MACRS_Schedule[Years],0),MATCH(CSI_Equipment_deprec,tbl_MACRS_Schedule[#Headers],0))+$N15*INDEX(tbl_MACRS_Schedule[#Data],MATCH(AF$5,tbl_MACRS_Schedule[Years],0),MATCH(CSI_Tooling_deprec,tbl_MACRS_Schedule[#Headers],0)) -> 0 | AP15: =$M15*INDEX(tbl_MACRS_Schedule[#Data],MATCH(AG$5,tbl_MACRS_Schedule[Years],0),MATCH(CSI_Equipment_deprec,tbl_MACRS_Schedule[#Headers],0))+$N15*INDEX(tbl_MACRS_Schedule[#Data],MATCH(AG$5,tbl_MACRS_Schedule[Years],0),MATCH(CSI_Tooling_deprec,tbl_MACRS_Schedule[#Headers],0)) -> 0 | AQ15: =$M15*INDEX(tbl_MACRS_Schedule[#Data],MATCH(AH$5,tbl_MACRS_Schedule[Years],0),MATCH(CSI_Equipment_deprec,tbl_MACRS_Schedule[#Headers],0))+$N15*INDEX(tbl_MACRS_Schedule[#Data],MATCH(AH$5,tbl_MACRS_Schedule[Years],0),MATCH(CSI_Tooling_deprec,tbl_MACRS_Schedule[#Headers],0)) -> 0 | AR15: =$M15*INDEX(tbl_MACRS_Schedule[#Data],MATCH(AI$5,tbl_MACRS_Schedule[Years],0),MATCH(CSI_Equipment_deprec,tbl_MACRS_Schedule[#Headers],0))+$N15*INDEX(tbl_MACRS_Schedule[#Data],MATCH(AI$5,tbl_MACRS_Schedule[Years],0),MATCH(CSI_Tooling_deprec,tbl_MACRS_Schedule[#Headers],0)) -> 0 | AS15: =$M15*INDEX(tbl_MACRS_Schedule[#Data],MATCH(AJ$5,tbl_MACRS_Schedule[Years],0),MATCH(CSI_Equipment_deprec,tbl_MACRS_Schedule[#Headers],0))+$N15*INDEX(tbl_MACRS_Schedule[#Data],MATCH(AJ$5,tbl_MACRS_Schedule[Years],0),MATCH(CSI_Tooling_deprec,tbl_MACRS_Schedule[#Headers],0)) -> 0 | AT15: =$M15*INDEX(tbl_MACRS_Schedule[#Data],MATCH(AK$5,tbl_MACRS_Schedule[Years],0),MATCH(CSI_Equipment_deprec,tbl_MACRS_Schedule[#Headers],0))+$N15*INDEX(tbl_MACRS_Schedule[#Data],MATCH(AK$5,tbl_MACRS_Schedule[Years],0),MATCH(CSI_Tooling_deprec,tbl_MACRS_Schedule[#Headers],0)) -> 0 | AU15: 0
C16: =ROW()-ROW(tblI_Equipment[#Headers]) -> 10 | E16: =IFERROR(OFFSET(INDEX(DCF_Calculation_Table,MATCH(CONCATENATE("Equipment ",tblI_Equipment[[#This Row],[Table Name]]),VARIABLE_DESCRIPTION,0),MATCH(AnalysisCountry,CName,0)),1,0),0) -> 0 | F16: =IFERROR(INDEX(DCF_Calculation_Table,MATCH(CONCATENATE("Equipment ",tblI_Equipment[[#This Row],[Table Name]]),VARIABLE_DESCRIPTION,0),MATCH(AnalysisCountry,CName,0)),1) -> 1 | G16: =IFERROR(OFFSET(INDEX(DCF_Calculation_Table,MATCH(CONCATENATE("Depreciable Tooling ",tblI_Equipment[[#This Row],[Table Name]]),VARIABLE_DESCRIPTION,0),MATCH(AnalysisCountry,CName,0)),1,0),0) -> 0 | H16: =IFERROR(INDEX(DCF_Calculation_Table,MATCH(CONCATENATE("Depreciable Tooling ",tblI_Equipment[[#This Row],[Table Name]]),VARIABLE_DESCRIPTION,0),MATCH(AnalysisCountry,CName,0)),"1") -> 1 | K16: 10 | L16: 0 | M16: =SUMPRODUCT(( (CSI_analysis_yrs-K16)>0)*(MOD(K16,tblI_Equipment[Equipment Life (y)])=0),tblI_Equipment[Installed Equipment Cost (USD)]*L16) -> 0 | N16: =SUMPRODUCT(( (CSI_analysis_yrs-K16)>0.5*tblI_Equipment[Depreciable Tooling Life (y)])*(MOD(K16,tblI_Equipment[Depreciable Tooling Life (y)])=0),tblI_Equipment[Depreciable Tooling Cost (USD)]*L16) -> 0 | AA16: =$M16*INDEX(tbl_MACRS_Schedule[#Data],MATCH(Q$5,tbl_MACRS_Schedule[Years],0),MATCH(CSI_Equipment_deprec,tbl_MACRS_Schedule[#Headers],0))+$N16*INDEX(tbl_MACRS_Schedule[#Data],MATCH(Q$5,tbl_MACRS_Schedule[Years],0),MATCH(CSI_Tooling_deprec,tbl_MACRS_Schedule[#Headers],0)) -> 0 | AB16: =$M16*INDEX(tbl_MACRS_Schedule[#Data],MATCH(R$5,tbl_MACRS_Schedule[Years],0),MATCH(CSI_Equipment_deprec,tbl_MACRS_Schedule[#Headers],0))+$N16*INDEX(tbl_MACRS_Schedule[#Data],MATCH(R$5,tbl_MACRS_Schedule[Years],0),MATCH(CSI_Tooling_deprec,tbl_MACRS_Schedule[#Headers],0)) -> 0 | AC16: =$M16*INDEX(tbl_MACRS_Schedule[#Data],MATCH(S$5,tbl_MACRS_Schedule[Years],0),MATCH(CSI_Equipment_deprec,tbl_MACRS_Schedule[#Headers],0))+$N16*INDEX(tbl_MACRS_Schedule[#Data],MATCH(S$5,tbl_MACRS_Schedule[Years],0),MATCH(CSI_Tooling_deprec,tbl_MACRS_Schedule[#Headers],0)) -> 0 | AD16: =$M16*INDEX(tbl_MACRS_Schedule[#Data],MATCH(T$5,tbl_MACRS_Schedule[Years],0),MATCH(CSI_Equipment_deprec,tbl_MACRS_Schedule[#Headers],0))+$N16*INDEX(tbl_MACRS_Schedule[#Data],MATCH(T$5,tbl_MACRS_Schedule[Years],0),MATCH(CSI_Tooling_deprec,tbl_MACRS_Schedule[#Headers],0)) -> 0 | AE16: =$M16*INDEX(tbl_MACRS_Schedule[#Data],MATCH(U$5,tbl_MACRS_Schedule[Years],0),MATCH(CSI_Equipment_deprec,tbl_MACRS_Schedule[#Headers],0))+$N16*INDEX(tbl_MACRS_Schedule[#Data],MATCH(U$5,tbl_MACRS_Schedule[Years],0),MATCH(CSI_Tooling_deprec,tbl_MACRS_Schedule[#Headers],0)) -> 0 | AF16: =$M16*INDEX(tbl_MACRS_Schedule[#Data],MATCH(V$5,tbl_MACRS_Schedule[Years],0),MATCH(CSI_Equipment_deprec,tbl_MACRS_Schedule[#Headers],0))+$N16*INDEX(tbl_MACRS_Schedule[#Data],MATCH(V$5,tbl_MACRS_Schedule[Years],0),MATCH(CSI_Tooling_deprec,tbl_MACRS_Schedule[#Headers],0)) -> 0 | AG16: =$M16*INDEX(tbl_MACRS_Schedule[#Data],MATCH(W$5,tbl_MACRS_Schedule[Years],0),MATCH(CSI_Equipment_deprec,tbl_MACRS_Schedule[#Headers],0))+$N16*INDEX(tbl_MACRS_Schedule[#Data],MATCH(W$5,tbl_MACRS_Schedule[Years],0),MATCH(CSI_Tooling_deprec,tbl_MACRS_Schedule[#Headers],0)) -> 0 | AH16: =$M16*INDEX(tbl_MACRS_Schedule[#Data],MATCH(X$5,tbl_MACRS_Schedule[Years],0),MATCH(CSI_Equipment_deprec,tbl_MACRS_Schedule[#Headers],0))+$N16*INDEX(tbl_MACRS_Schedule[#Data],MATCH(X$5,tbl_MACRS_Schedule[Years],0),MATCH(CSI_Tooling_deprec,tbl_MACRS_Schedule[#Headers],0)) -> 0 | AI16: =$M16*INDEX(tbl_MACRS_Schedule[#Data],MATCH(Y$5,tbl_MACRS_Schedule[Years],0),MATCH(CSI_Equipment_deprec,tbl_MACRS_Schedule[#Headers],0))+$N16*INDEX(tbl_MACRS_Schedule[#Data],MATCH(Y$5,tbl_MACRS_Schedule[Years],0),MATCH(CSI_Tooling_deprec,tbl_MACRS_Schedule[#Headers],0)) -> 0 | AJ16: =$M16*INDEX(tbl_MACRS_Schedule[#Data],MATCH(Z$5,tbl_MACRS_Schedule[Years],0),MATCH(CSI_Equipment_deprec,tbl_MACRS_Schedule[#Headers],0))+$N16*INDEX(tbl_MACRS_Schedule[#Data],MATCH(Z$5,tbl_MACRS_Schedule[Years],0),MATCH(CSI_Tooling_deprec,tbl_MACRS_Schedule[#Headers],0)) -> 0 | AK16: =$M16*INDEX(tbl_MACRS_Schedule[#Data],MATCH(AA$5,tbl_MACRS_Schedule[Years],0),MATCH(CSI_Equipment_deprec,tbl_MACRS_Schedule[#Headers],0))+$N16*INDEX(tbl_MACRS_Schedule[#Data],MATCH(AA$5,tbl_MACRS_Schedule[Years],0),MATCH(CSI_Tooling_deprec,tbl_MACRS_Schedule[#Headers],0)) -> 0 | AL16: =$M16*INDEX(tbl_MACRS_Schedule[#Data],MATCH(AB$5,tbl_MACRS_Schedule[Years],0),MATCH(CSI_Equipment_deprec,tbl_MACRS_Schedule[#Headers],0))+$N16*INDEX(tbl_MACRS_Schedule[#Data],MATCH(AB$5,tbl_MACRS_Schedule[Years],0),MATCH(CSI_Tooling_deprec,tbl_MACRS_Schedule[#Headers],0)) -> 0 | AM16: =$M16*INDEX(tbl_MACRS_Schedule[#Data],MATCH(AC$5,tbl_MACRS_Schedule[Years],0),MATCH(CSI_Equipment_deprec,tbl_MACRS_Schedule[#Headers],0))+$N16*INDEX(tbl_MACRS_Schedule[#Data],MATCH(AC$5,tbl_MACRS_Schedule[Years],0),MATCH(CSI_Tooling_deprec,tbl_MACRS_Schedule[#Headers],0)) -> 0 | AN16: =$M16*INDEX(tbl_MACRS_Schedule[#Data],MATCH(AD$5,tbl_MACRS_Schedule[Years],0),MATCH(CSI_Equipment_deprec,tbl_MACRS_Schedule[#Headers],0))+$N16*INDEX(tbl_MACRS_Schedule[#Data],MATCH(AD$5,tbl_MACRS_Schedule[Years],0),MATCH(CSI_Tooling_deprec,tbl_MACRS_Schedule[#Headers],0)) -> 0 | AO16: =$M16*INDEX(tbl_MACRS_Schedule[#Data],MATCH(AE$5,tbl_MACRS_Schedule[Years],0),MATCH(CSI_Equipment_deprec,tbl_MACRS_Schedule[#Headers],0))+$N16*INDEX(tbl_MACRS_Schedule[#Data],MATCH(AE$5,tbl_MACRS_Schedule[Years],0),MATCH(CSI_Tooling_deprec,tbl_MACRS_Schedule[#Headers],0)) -> 0 | AP16: =$M16*INDEX(tbl_MACRS_Schedule[#Data],MATCH(AF$5,tbl_MACRS_Schedule[Years],0),MATCH(CSI_Equipment_deprec,tbl_MACRS_Schedule[#Headers],0))+$N16*INDEX(tbl_MACRS_Schedule[#Data],MATCH(AF$5,tbl_MACRS_Schedule[Years],0),MATCH(CSI_Tooling_deprec,tbl_MACRS_Schedule[#Headers],0)) -> 0 | AQ16: =$M16*INDEX(tbl_MACRS_Schedule[#Data],MATCH(AG$5,tbl_MACRS_Schedule[Years],0),MATCH(CSI_Equipment_deprec,tbl_MACRS_Schedule[#Headers],0))+$N16*INDEX(tbl_MACRS_Schedule[#Data],MATCH(AG$5,tbl_MACRS_Schedule[Years],0),MATCH(CSI_Tooling_deprec,tbl_MACRS_Schedule[#Headers],0)) -> 0 | AR16: =$M16*INDEX(tbl_MACRS_Schedule[#Data],MATCH(AH$5,tbl_MACRS_Schedule[Years],0),MATCH(CSI_Equipment_deprec,tbl_MACRS_Schedule[#Headers],0))+$N16*INDEX(tbl_MACRS_Schedule[#Data],MATCH(AH$5,tbl_MACRS_Schedule[Years],0),MATCH(CSI_Tooling_deprec,tbl_MACRS_Schedule[#Headers],0)) -> 0 | AS16: =$M16*INDEX(tbl_MACRS_Schedule[#Data],MATCH(AI$5,tbl_MACRS_Schedule[Years],0),MATCH(CSI_Equipment_deprec,tbl_MACRS_Schedule[#Headers],0))+$N16*INDEX(tbl_MACRS_Schedule[#Data],MATCH(AI$5,tbl_MACRS_Schedule[Years],0),MATCH(CSI_Tooling_deprec,tbl_MACRS_Schedule[#Headers],0)) -> 0 | AT16: =$M16*INDEX(tbl_MACRS_Schedule[#Data],MATCH(AJ$5,tbl_MACRS_Schedule[Years],0),MATCH(CSI_Equipment_deprec,tbl_MACRS_Schedule[#Headers],0))+$N16*INDEX(tbl_MACRS_Schedule[#Data],MATCH(AJ$5,tbl_MACRS_Schedule[Years],0),MATCH(CSI_Tooling_deprec,tbl_MACRS_Schedule[#Headers],0)) -> 0 | AU16: 0
C17: =ROW()-ROW(tblI_Equipment[#Headers]) -> 11 | E17: =IFERROR(OFFSET(INDEX(DCF_Calculation_Table,MATCH(CONCATENATE("Equipment ",tblI_Equipment[[#This Row],[Table Name]]),VARIABLE_DESCRIPTION,0),MATCH(AnalysisCountry,CName,0)),1,0),0) -> 0 | F17: =IFERROR(INDEX(DCF_Calculation_Table,MATCH(CONCATENATE("Equipment ",tblI_Equipment[[#This Row],[Table Name]]),VARIABLE_DESCRIPTION,0),MATCH(AnalysisCountry,CName,0)),1) -> 1 | G17: =IFERROR(OFFSET(INDEX(DCF_Calculation_Table,MATCH(CONCATENATE("Depreciable Tooling ",tblI_Equipment[[#This Row],[Table Name]]),VARIABLE_DESCRIPTION,0),MATCH(AnalysisCountry,CName,0)),1,0),0) -> 0 | H17: =IFERROR(INDEX(DCF_Calculation_Table,MATCH(CONCATENATE("Depreciable Tooling ",tblI_Equipment[[#This Row],[Table Name]]),VARIABLE_DESCRIPTION,0),MATCH(AnalysisCountry,CName,0)),"1") -> 1 | K17: 11 | L17: 0 | M17: =SUMPRODUCT(( (CSI_analysis_yrs-K17)>0)*(MOD(K17,tblI_Equipment[Equipment Life (y)])=0),tblI_Equipment[Installed Equipment Cost (USD)]*L17) -> 0 | N17: =SUMPRODUCT(( (CSI_analysis_yrs-K17)>0.5*tblI_Equipment[Depreciable Tooling Life (y)])*(MOD(K17,tblI_Equipment[Depreciable Tooling Life (y)])=0),tblI_Equipment[Depreciable Tooling Cost (USD)]*L17) -> 0 | AB17: =$M17*INDEX(tbl_MACRS_Schedule[#Data],MATCH(Q$5,tbl_MACRS_Schedule[Years],0),MATCH(CSI_Equipment_deprec,tbl_MACRS_Schedule[#Headers],0))+$N17*INDEX(tbl_MACRS_Schedule[#Data],MATCH(Q$5,tbl_MACRS_Schedule[Years],0),MATCH(CSI_Tooling_deprec,tbl_MACRS_Schedule[#Headers],0)) -> 0 | AC17: =$M17*INDEX(tbl_MACRS_Schedule[#Data],MATCH(R$5,tbl_MACRS_Schedule[Years],0),MATCH(CSI_Equipment_deprec,tbl_MACRS_Schedule[#Headers],0))+$N17*INDEX(tbl_MACRS_Schedule[#Data],MATCH(R$5,tbl_MACRS_Schedule[Years],0),MATCH(CSI_Tooling_deprec,tbl_MACRS_Schedule[#Headers],0)) -> 0 | AD17: =$M17*INDEX(tbl_MACRS_Schedule[#Data],MATCH(S$5,tbl_MACRS_Schedule[Years],0),MATCH(CSI_Equipment_deprec,tbl_MACRS_Schedule[#Headers],0))+$N17*INDEX(tbl_MACRS_Schedule[#Data],MATCH(S$5,tbl_MACRS_Schedule[Years],0),MATCH(CSI_Tooling_deprec,tbl_MACRS_Schedule[#Headers],0)) -> 0 | AE17: =$M17*INDEX(tbl_MACRS_Schedule[#Data],MATCH(T$5,tbl_MACRS_Schedule[Years],0),MATCH(CSI_Equipment_deprec,tbl_MACRS_Schedule[#Headers],0))+$N17*INDEX(tbl_MACRS_Schedule[#Data],MATCH(T$5,tbl_MACRS_Schedule[Years],0),MATCH(CSI_Tooling_deprec,tbl_MACRS_Schedule[#Headers],0)) -> 0 | AF17: =$M17*INDEX(tbl_MACRS_Schedule[#Data],MATCH(U$5,tbl_MACRS_Schedule[Years],0),MATCH(CSI_Equipment_deprec,tbl_MACRS_Schedule[#Headers],0))+$N17*INDEX(tbl_MACRS_Schedule[#Data],MATCH(U$5,tbl_MACRS_Schedule[Years],0),MATCH(CSI_Tooling_deprec,tbl_MACRS_Schedule[#Headers],0)) -> 0 | AG17: =$M17*INDEX(tbl_MACRS_Schedule[#Data],MATCH(V$5,tbl_MACRS_Schedule[Years],0),MATCH(CSI_Equipment_deprec,tbl_MACRS_Schedule[#Headers],0))+$N17*INDEX(tbl_MACRS_Schedule[#Data],MATCH(V$5,tbl_MACRS_Schedule[Years],0),MATCH(CSI_Tooling_deprec,tbl_MACRS_Schedule[#Headers],0)) -> 0 | AH17: =$M17*INDEX(tbl_MACRS_Schedule[#Data],MATCH(W$5,tbl_MACRS_Schedule[Years],0),MATCH(CSI_Equipment_deprec,tbl_MACRS_Schedule[#Headers],0))+$N17*INDEX(tbl_MACRS_Schedule[#Data],MATCH(W$5,tbl_MACRS_Schedule[Years],0),MATCH(CSI_Tooling_deprec,tbl_MACRS_Schedule[#Headers],0)) -> 0 | AI17: =$M17*INDEX(tbl_MACRS_Schedule[#Data],MATCH(X$5,tbl_MACRS_Schedule[Years],0),MATCH(CSI_Equipment_deprec,tbl_MACRS_Schedule[#Headers],0))+$N17*INDEX(tbl_MACRS_Schedule[#Data],MATCH(X$5,tbl_MACRS_Schedule[Years],0),MATCH(CSI_Tooling_deprec,tbl_MACRS_Schedule[#Headers],0)) -> 0 | AJ17: =$M17*INDEX(tbl_MACRS_Schedule[#Data],MATCH(Y$5,tbl_MACRS_Schedule[Years],0),MATCH(CSI_Equipment_deprec,tbl_MACRS_Schedule[#Headers],0))+$N17*INDEX(tbl_MACRS_Schedule[#Data],MATCH(Y$5,tbl_MACRS_Schedule[Years],0),MATCH(CSI_Tooling_deprec,tbl_MACRS_Schedule[#Headers],0)) -> 0 | AK17: =$M17*INDEX(tbl_MACRS_Schedule[#Data],MATCH(Z$5,tbl_MACRS_Schedule[Years],0),MATCH(CSI_Equipment_deprec,tbl_MACRS_Schedule[#Headers],0))+$N17*INDEX(tbl_MACRS_Schedule[#Data],MATCH(Z$5,tbl_MACRS_Schedule[Years],0),MATCH(CSI_Tooling_deprec,tbl_MACRS_Schedule[#Headers],0)) -> 0 | AL17: =$M17*INDEX(tbl_MACRS_Schedule[#Data],MATCH(AA$5,tbl_MACRS_Schedule[Years],0),MATCH(CSI_Equipment_deprec,tbl_MACRS_Schedule[#Headers],0))+$N17*INDEX(tbl_MACRS_Schedule[#Data],MATCH(AA$5,tbl_MACRS_Schedule[Years],0),MATCH(CSI_Tooling_deprec,tbl_MACRS_Schedule[#Headers],0)) -> 0 | AM17: =$M17*INDEX(tbl_MACRS_Schedule[#Data],MATCH(AB$5,tbl_MACRS_Schedule[Years],0),MATCH(CSI_Equipment_deprec,tbl_MACRS_Schedule[#Headers],0))+$N17*INDEX(tbl_MACRS_Schedule[#Data],MATCH(AB$5,tbl_MACRS_Schedule[Years],0),MATCH(CSI_Tooling_deprec,tbl_MACRS_Schedule[#Headers],0)) -> 0 | AN17: =$M17*INDEX(tbl_MACRS_Schedule[#Data],MATCH(AC$5,tbl_MACRS_Schedule[Years],0),MATCH(CSI_Equipment_deprec,tbl_MACRS_Schedule[#Headers],0))+$N17*INDEX(tbl_MACRS_Schedule[#Data],MATCH(AC$5,tbl_MACRS_Schedule[Years],0),MATCH(CSI_Tooling_deprec,tbl_MACRS_Schedule[#Headers],0)) -> 0 | AO17: =$M17*INDEX(tbl_MACRS_Schedule[#Data],MATCH(AD$5,tbl_MACRS_Schedule[Years],0),MATCH(CSI_Equipment_deprec,tbl_MACRS_Schedule[#Headers],0))+$N17*INDEX(tbl_MACRS_Schedule[#Data],MATCH(AD$5,tbl_MACRS_Schedule[Years],0),MATCH(CSI_Tooling_deprec,tbl_MACRS_Schedule[#Headers],0)) -> 0 | AP17: =$M17*INDEX(tbl_MACRS_Schedule[#Data],MATCH(AE$5,tbl_MACRS_Schedule[Years],0),MATCH(CSI_Equipment_deprec,tbl_MACRS_Schedule[#Headers],0))+$N17*INDEX(tbl_MACRS_Schedule[#Data],MATCH(AE$5,tbl_MACRS_Schedule[Years],0),MATCH(CSI_Tooling_deprec,tbl_MACRS_Schedule[#Headers],0)) -> 0 | AQ17: =$M17*INDEX(tbl_MACRS_Schedule[#Data],MATCH(AF$5,tbl_MACRS_Schedule[Years],0),MATCH(CSI_Equipment_deprec,tbl_MACRS_Schedule[#Headers],0))+$N17*INDEX(tbl_MACRS_Schedule[#Data],MATCH(AF$5,tbl_MACRS_Schedule[Years],0),MATCH(CSI_Tooling_deprec,tbl_MACRS_Schedule[#Headers],0)) -> 0 | AR17: =$M17*INDEX(tbl_MACRS_Schedule[#Data],MATCH(AG$5,tbl_MACRS_Schedule[Years],0),MATCH(CSI_Equipment_deprec,tbl_MACRS_Schedule[#Headers],0))+$N17*INDEX(tbl_MACRS_Schedule[#Data],MATCH(AG$5,tbl_MACRS_Schedule[Years],0),MATCH(CSI_Tooling_deprec,tbl_MACRS_Schedule[#Headers],0)) -> 0 | AS17: =$M17*INDEX(tbl_MACRS_Schedule[#Data],MATCH(AH$5,tbl_MACRS_Schedule[Years],0),MATCH(CSI_Equipment_deprec,tbl_MACRS_Schedule[#Headers],0))+$N17*INDEX(tbl_MACRS_Schedule[#Data],MATCH(AH$5,tbl_MACRS_Schedule[Years],0),MATCH(CSI_Tooling_deprec,tbl_MACRS_Schedule[#Headers],0)) -> 0 | AT17: =$M17*INDEX(tbl_MACRS_Schedule[#Data],MATCH(AI$5,tbl_MACRS_Schedule[Years],0),MATCH(CSI_Equipment_deprec,tbl_MACRS_Schedule[#Headers],0))+$N17*INDEX(tbl_MACRS_Schedule[#Data],MATCH(AI$5,tbl_MACRS_Schedule[Years],0),MATCH(CSI_Tooling_deprec,tbl_MACRS_Schedule[#Headers],0)) -> 0 | AU17: 0
C18: =ROW()-ROW(tblI_Equipment[#Headers]) -> 12 | E18: =IFERROR(OFFSET(INDEX(DCF_Calculation_Table,MATCH(CONCATENATE("Equipment ",tblI_Equipment[[#This Row],[Table Name]]),VARIABLE_DESCRIPTION,0),MATCH(AnalysisCountry,CName,0)),1,0),0) -> 0 | F18: =IFERROR(INDEX(DCF_Calculation_Table,MATCH(CONCATENATE("Equipment ",tblI_Equipment[[#This Row],[Table Name]]),VARIABLE_DESCRIPTION,0),MATCH(AnalysisCountry,CName,0)),1) -> 1 | G18: =IFERROR(OFFSET(INDEX(DCF_Calculation_Table,MATCH(CONCATENATE("Depreciable Tooling ",tblI_Equipment[[#This Row],[Table Name]]),VARIABLE_DESCRIPTION,0),MATCH(AnalysisCountry,CName,0)),1,0),0) -> 0 | H18: =IFERROR(INDEX(DCF_Calculation_Table,MATCH(CONCATENATE("Depreciable Tooling ",tblI_Equipment[[#This Row],[Table Name]]),VARIABLE_DESCRIPTION,0),MATCH(AnalysisCountry,CName,0)),"1") -> 1 | K18: 12 | L18: 0 | M18: =SUMPRODUCT(( (CSI_analysis_yrs-K18)>0)*(MOD(K18,tblI_Equipment[Equipment Life (y)])=0),tblI_Equipment[Installed Equipment Cost (USD)]*L18) -> 0 | N18: =SUMPRODUCT(( (CSI_analysis_yrs-K18)>0.5*tblI_Equipment[Depreciable Tooling Life (y)])*(MOD(K18,tblI_Equipment[Depreciable Tooling Life (y)])=0),tblI_Equipment[Depreciable Tooling Cost (USD)]*L18) -> 0 | AC18: =$M18*INDEX(tbl_MACRS_Schedule[#Data],MATCH(Q$5,tbl_MACRS_Schedule[Years],0),MATCH(CSI_Equipment_deprec,tbl_MACRS_Schedule[#Headers],0))+$N18*INDEX(tbl_MACRS_Schedule[#Data],MATCH(Q$5,tbl_MACRS_Schedule[Years],0),MATCH(CSI_Tooling_deprec,tbl_MACRS_Schedule[#Headers],0)) -> 0 | AD18: =$M18*INDEX(tbl_MACRS_Schedule[#Data],MATCH(R$5,tbl_MACRS_Schedule[Years],0),MATCH(CSI_Equipment_deprec,tbl_MACRS_Schedule[#Headers],0))+$N18*INDEX(tbl_MACRS_Schedule[#Data],MATCH(R$5,tbl_MACRS_Schedule[Years],0),MATCH(CSI_Tooling_deprec,tbl_MACRS_Schedule[#Headers],0)) -> 0 | AE18: =$M18*INDEX(tbl_MACRS_Schedule[#Data],MATCH(S$5,tbl_MACRS_Schedule[Years],0),MATCH(CSI_Equipment_deprec,tbl_MACRS_Schedule[#Headers],0))+$N18*INDEX(tbl_MACRS_Schedule[#Data],MATCH(S$5,tbl_MACRS_Schedule[Years],0),MATCH(CSI_Tooling_deprec,tbl_MACRS_Schedule[#Headers],0)) -> 0 | AF18: =$M18*INDEX(tbl_MACRS_Schedule[#Data],MATCH(T$5,tbl_MACRS_Schedule[Years],0),MATCH(CSI_Equipment_deprec,tbl_MACRS_Schedule[#Headers],0))+$N18*INDEX(tbl_MACRS_Schedule[#Data],MATCH(T$5,tbl_MACRS_Schedule[Years],0),MATCH(CSI_Tooling_deprec,tbl_MACRS_Schedule[#Headers],0)) -> 0 | AG18: =$M18*INDEX(tbl_MACRS_Schedule[#Data],MATCH(U$5,tbl_MACRS_Schedule[Years],0),MATCH(CSI_Equipment_deprec,tbl_MACRS_Schedule[#Headers],0))+$N18*INDEX(tbl_MACRS_Schedule[#Data],MATCH(U$5,tbl_MACRS_Schedule[Years],0),MATCH(CSI_Tooling_deprec,tbl_MACRS_Schedule[#Headers],0)) -> 0 | AH18: =$M18*INDEX(tbl_MACRS_Schedule[#Data],MATCH(V$5,tbl_MACRS_Schedule[Years],0),MATCH(CSI_Equipment_deprec,tbl_MACRS_Schedule[#Headers],0))+$N18*INDEX(tbl_MACRS_Schedule[#Data],MATCH(V$5,tbl_MACRS_Schedule[Years],0),MATCH(CSI_Tooling_deprec,tbl_MACRS_Schedule[#Headers],0)) -> 0 | AI18: =$M18*INDEX(tbl_MACRS_Schedule[#Data],MATCH(W$5,tbl_MACRS_Schedule[Years],0),MATCH(CSI_Equipment_deprec,tbl_MACRS_Schedule[#Headers],0))+$N18*INDEX(tbl_MACRS_Schedule[#Data],MATCH(W$5,tbl_MACRS_Schedule[Years],0),MATCH(CSI_Tooling_deprec,tbl_MACRS_Schedule[#Headers],0)) -> 0 | AJ18: =$M18*INDEX(tbl_MACRS_Schedule[#Data],MATCH(X$5,tbl_MACRS_Schedule[Years],0),MATCH(CSI_Equipment_deprec,tbl_MACRS_Schedule[#Headers],0))+$N18*INDEX(tbl_MACRS_Schedule[#Data],MATCH(X$5,tbl_MACRS_Schedule[Years],0),MATCH(CSI_Tooling_deprec,tbl_MACRS_Schedule[#Headers],0)) -> 0 | AK18: =$M18*INDEX(tbl_MACRS_Schedule[#Data],MATCH(Y$5,tbl_MACRS_Schedule[Years],0),MATCH(CSI_Equipment_deprec,tbl_MACRS_Schedule[#Headers],0))+$N18*INDEX(tbl_MACRS_Schedule[#Data],MATCH(Y$5,tbl_MACRS_Schedule[Years],0),MATCH(CSI_Tooling_deprec,tbl_MACRS_Schedule[#Headers],0)) -> 0 | AL18: =$M18*INDEX(tbl_MACRS_Schedule[#Data],MATCH(Z$5,tbl_MACRS_Schedule[Years],0),MATCH(CSI_Equipment_deprec,tbl_MACRS_Schedule[#Headers],0))+$N18*INDEX(tbl_MACRS_Schedule[#Data],MATCH(Z$5,tbl_MACRS_Schedule[Years],0),MATCH(CSI_Tooling_deprec,tbl_MACRS_Schedule[#Headers],0)) -> 0 | AM18: =$M18*INDEX(tbl_MACRS_Schedule[#Data],MATCH(AA$5,tbl_MACRS_Schedule[Years],0),MATCH(CSI_Equipment_deprec,tbl_MACRS_Schedule[#Headers],0))+$N18*INDEX(tbl_MACRS_Schedule[#Data],MATCH(AA$5,tbl_MACRS_Schedule[Years],0),MATCH(CSI_Tooling_deprec,tbl_MACRS_Schedule[#Headers],0)) -> 0 | AN18: =$M18*INDEX(tbl_MACRS_Schedule[#Data],MATCH(AB$5,tbl_MACRS_Schedule[Years],0),MATCH(CSI_Equipment_deprec,tbl_MACRS_Schedule[#Headers],0))+$N18*INDEX(tbl_MACRS_Schedule[#Data],MATCH(AB$5,tbl_MACRS_Schedule[Years],0),MATCH(CSI_Tooling_deprec,tbl_MACRS_Schedule[#Headers],0)) -> 0 | AO18: =$M18*INDEX(tbl_MACRS_Schedule[#Data],MATCH(AC$5,tbl_MACRS_Schedule[Years],0),MATCH(CSI_Equipment_deprec,tbl_MACRS_Schedule[#Headers],0))+$N18*INDEX(tbl_MACRS_Schedule[#Data],MATCH(AC$5,tbl_MACRS_Schedule[Years],0),MATCH(CSI_Tooling_deprec,tbl_MACRS_Schedule[#Headers],0)) -> 0 | AP18: =$M18*INDEX(tbl_MACRS_Schedule[#Data],MATCH(AD$5,tbl_MACRS_Schedule[Years],0),MATCH(CSI_Equipment_deprec,tbl_MACRS_Schedule[#Headers],0))+$N18*INDEX(tbl_MACRS_Schedule[#Data],MATCH(AD$5,tbl_MACRS_Schedule[Years],0),MATCH(CSI_Tooling_deprec,tbl_MACRS_Schedule[#Headers],0)) -> 0 | AQ18: =$M18*INDEX(tbl_MACRS_Schedule[#Data],MATCH(AE$5,tbl_MACRS_Schedule[Years],0),MATCH(CSI_Equipment_deprec,tbl_MACRS_Schedule[#Headers],0))+$N18*INDEX(tbl_MACRS_Schedule[#Data],MATCH(AE$5,tbl_MACRS_Schedule[Years],0),MATCH(CSI_Tooling_deprec,tbl_MACRS_Schedule[#Headers],0)) -> 0 | AR18: =$M18*INDEX(tbl_MACRS_Schedule[#Data],MATCH(AF$5,tbl_MACRS_Schedule[Years],0),MATCH(CSI_Equipment_deprec,tbl_MACRS_Schedule[#Headers],0))+$N18*INDEX(tbl_MACRS_Schedule[#Data],MATCH(AF$5,tbl_MACRS_Schedule[Years],0),MATCH(CSI_Tooling_deprec,tbl_MACRS_Schedule[#Headers],0)) -> 0 | AS18: =$M18*INDEX(tbl_MACRS_Schedule[#Data],MATCH(AG$5,tbl_MACRS_Schedule[Years],0),MATCH(CSI_Equipment_deprec,tbl_MACRS_Schedule[#Headers],0))+$N18*INDEX(tbl_MACRS_Schedule[#Data],MATCH(AG$5,tbl_MACRS_Schedule[Years],0),MATCH(CSI_Tooling_deprec,tbl_MACRS_Schedule[#Headers],0)) -> 0 | AT18: =$M18*INDEX(tbl_MACRS_Schedule[#Data],MATCH(AH$5,tbl_MACRS_Schedule[Years],0),MATCH(CSI_Equipment_deprec,tbl_MACRS_Schedule[#Headers],0))+$N18*INDEX(tbl_MACRS_Schedule[#Data],MATCH(AH$5,tbl_MACRS_Schedule[Years],0),MATCH(CSI_Tooling_deprec,tbl_MACRS_Schedule[#Headers],0)) -> 0 | AU18: 0
C19: =ROW()-ROW(tblI_Equipment[#Headers]) -> 13 | E19: =IFERROR(OFFSET(INDEX(DCF_Calculation_Table,MATCH(CONCATENATE("Equipment ",tblI_Equipment[[#This Row],[Table Name]]),VARIABLE_DESCRIPTION,0),MATCH(AnalysisCountry,CName,0)),1,0),0) -> 0 | F19: =IFERROR(INDEX(DCF_Calculation_Table,MATCH(CONCATENATE("Equipment ",tblI_Equipment[[#This Row],[Table Name]]),VARIABLE_DESCRIPTION,0),MATCH(AnalysisCountry,CName,0)),1) -> 1 | G19: =IFERROR(OFFSET(INDEX(DCF_Calculation_Table,MATCH(CONCATENATE("Depreciable Tooling ",tblI_Equipment[[#This Row],[Table Name]]),VARIABLE_DESCRIPTION,0),MATCH(AnalysisCountry,CName,0)),1,0),0) -> 0 | H19: =IFERROR(INDEX(DCF_Calculation_Table,MATCH(CONCATENATE("Depreciable Tooling ",tblI_Equipment[[#This Row],[Table Name]]),VARIABLE_DESCRIPTION,0),MATCH(AnalysisCountry,CName,0)),"1") -> 1 | K19: 13 | L19: 0 | M19: =SUMPRODUCT(( (CSI_analysis_yrs-K19)>0)*(MOD(K19,tblI_Equipment[Equipment Life (y)])=0),tblI_Equipment[Installed Equipment Cost (USD)]*L19) -> 0 | N19: =SUMPRODUCT(( (CSI_analysis_yrs-K19)>0.5*tblI_Equipment[Depreciable Tooling Life (y)])*(MOD(K19,tblI_Equipment[Depreciable Tooling Life (y)])=0),tblI_Equipment[Depreciable Tooling Cost (USD)]*L19) -> 0 | AD19: =$M19*INDEX(tbl_MACRS_Schedule[#Data],MATCH(Q$5,tbl_MACRS_Schedule[Years],0),MATCH(CSI_Equipment_deprec,tbl_MACRS_Schedule[#Headers],0))+$N19*INDEX(tbl_MACRS_Schedule[#Data],MATCH(Q$5,tbl_MACRS_Schedule[Years],0),MATCH(CSI_Tooling_deprec,tbl_MACRS_Schedule[#Headers],0)) -> 0 | AE19: =$M19*INDEX(tbl_MACRS_Schedule[#Data],MATCH(R$5,tbl_MACRS_Schedule[Years],0),MATCH(CSI_Equipment_deprec,tbl_MACRS_Schedule[#Headers],0))+$N19*INDEX(tbl_MACRS_Schedule[#Data],MATCH(R$5,tbl_MACRS_Schedule[Years],0),MATCH(CSI_Tooling_deprec,tbl_MACRS_Schedule[#Headers],0)) -> 0 | AF19: =$M19*INDEX(tbl_MACRS_Schedule[#Data],MATCH(S$5,tbl_MACRS_Schedule[Years],0),MATCH(CSI_Equipment_deprec,tbl_MACRS_Schedule[#Headers],0))+$N19*INDEX(tbl_MACRS_Schedule[#Data],MATCH(S$5,tbl_MACRS_Schedule[Years],0),MATCH(CSI_Tooling_deprec,tbl_MACRS_Schedule[#Headers],0)) -> 0 | AG19: =$M19*INDEX(tbl_MACRS_Schedule[#Data],MATCH(T$5,tbl_MACRS_Schedule[Years],0),MATCH(CSI_Equipment_deprec,tbl_MACRS_Schedule[#Headers],0))+$N19*INDEX(tbl_MACRS_Schedule[#Data],MATCH(T$5,tbl_MACRS_Schedule[Years],0),MATCH(CSI_Tooling_deprec,tbl_MACRS_Schedule[#Headers],0)) -> 0 | AH19: =$M19*INDEX(tbl_MACRS_Schedule[#Data],MATCH(U$5,tbl_MACRS_Schedule[Years],0),MATCH(CSI_Equipment_deprec,tbl_MACRS_Schedule[#Headers],0))+$N19*INDEX(tbl_MACRS_Schedule[#Data],MATCH(U$5,tbl_MACRS_Schedule[Years],0),MATCH(CSI_Tooling_deprec,tbl_MACRS_Schedule[#Headers],0)) -> 0 | AI19: =$M19*INDEX(tbl_MACRS_Schedule[#Data],MATCH(V$5,tbl_MACRS_Schedule[Years],0),MATCH(CSI_Equipment_deprec,tbl_MACRS_Schedule[#Headers],0))+$N19*INDEX(tbl_MACRS_Schedule[#Data],MATCH(V$5,tbl_MACRS_Schedule[Years],0),MATCH(CSI_Tooling_deprec,tbl_MACRS_Schedule[#Headers],0)) -> 0 | AJ19: =$M19*INDEX(tbl_MACRS_Schedule[#Data],MATCH(W$5,tbl_MACRS_Schedule[Years],0),MATCH(CSI_Equipment_deprec,tbl_MACRS_Schedule[#Headers],0))+$N19*INDEX(tbl_MACRS_Schedule[#Data],MATCH(W$5,tbl_MACRS_Schedule[Years],0),MATCH(CSI_Tooling_deprec,tbl_MACRS_Schedule[#Headers],0)) -> 0 | AK19: =$M19*INDEX(tbl_MACRS_Schedule[#Data],MATCH(X$5,tbl_MACRS_Schedule[Years],0),MATCH(CSI_Equipment_deprec,tbl_MACRS_Schedule[#Headers],0))+$N19*INDEX(tbl_MACRS_Schedule[#Data],MATCH(X$5,tbl_MACRS_Schedule[Years],0),MATCH(CSI_Tooling_deprec,tbl_MACRS_Schedule[#Headers],0)) -> 0 | AL19: =$M19*INDEX(tbl_MACRS_Schedule[#Data],MATCH(Y$5,tbl_MACRS_Schedule[Years],0),MATCH(CSI_Equipment_deprec,tbl_MACRS_Schedule[#Headers],0))+$N19*INDEX(tbl_MACRS_Schedule[#Data],MATCH(Y$5,tbl_MACRS_Schedule[Years],0),MATCH(CSI_Tooling_deprec,tbl_MACRS_Schedule[#Headers],0)) -> 0 | AM19: =$M19*INDEX(tbl_MACRS_Schedule[#Data],MATCH(Z$5,tbl_MACRS_Schedule[Years],0),MATCH(CSI_Equipment_deprec,tbl_MACRS_Schedule[#Headers],0))+$N19*INDEX(tbl_MACRS_Schedule[#Data],MATCH(Z$5,tbl_MACRS_Schedule[Years],0),MATCH(CSI_Tooling_deprec,tbl_MACRS_Schedule[#Headers],0)) -> 0 | AN19: =$M19*INDEX(tbl_MACRS_Schedule[#Data],MATCH(AA$5,tbl_MACRS_Schedule[Years],0),MATCH(CSI_Equipment_deprec,tbl_MACRS_Schedule[#Headers],0))+$N19*INDEX(tbl_MACRS_Schedule[#Data],MATCH(AA$5,tbl_MACRS_Schedule[Years],0),MATCH(CSI_Tooling_deprec,tbl_MACRS_Schedule[#Headers],0)) -> 0 | AO19: =$M19*INDEX(tbl_MACRS_Schedule[#Data],MATCH(AB$5,tbl_MACRS_Schedule[Years],0),MATCH(CSI_Equipment_deprec,tbl_MACRS_Schedule[#Headers],0))+$N19*INDEX(tbl_MACRS_Schedule[#Data],MATCH(AB$5,tbl_MACRS_Schedule[Years],0),MATCH(CSI_Tooling_deprec,tbl_MACRS_Schedule[#Headers],0)) -> 0 | AP19: =$M19*INDEX(tbl_MACRS_Schedule[#Data],MATCH(AC$5,tbl_MACRS_Schedule[Years],0),MATCH(CSI_Equipment_deprec,tbl_MACRS_Schedule[#Headers],0))+$N19*INDEX(tbl_MACRS_Schedule[#Data],MATCH(AC$5,tbl_MACRS_Schedule[Years],0),MATCH(CSI_Tooling_deprec,tbl_MACRS_Schedule[#Headers],0)) -> 0 | AQ19: =$M19*INDEX(tbl_MACRS_Schedule[#Data],MATCH(AD$5,tbl_MACRS_Schedule[Years],0),MATCH(CSI_Equipment_deprec,tbl_MACRS_Schedule[#Headers],0))+$N19*INDEX(tbl_MACRS_Schedule[#Data],MATCH(AD$5,tbl_MACRS_Schedule[Years],0),MATCH(CSI_Tooling_deprec,tbl_MACRS_Schedule[#Headers],0)) -> 0 | AR19: =$M19*INDEX(tbl_MACRS_Schedule[#Data],MATCH(AE$5,tbl_MACRS_Schedule[Years],0),MATCH(CSI_Equipment_deprec,tbl_MACRS_Schedule[#Headers],0))+$N19*INDEX(tbl_MACRS_Schedule[#Data],MATCH(AE$5,tbl_MACRS_Schedule[Years],0),MATCH(CSI_Tooling_deprec,tbl_MACRS_Schedule[#Headers],0)) -> 0 | AS19: =$M19*INDEX(tbl_MACRS_Schedule[#Data],MATCH(AF$5,tbl_MACRS_Schedule[Years],0),MATCH(CSI_Equipment_deprec,tbl_MACRS_Schedule[#Headers],0))+$N19*INDEX(tbl_MACRS_Schedule[#Data],MATCH(AF$5,tbl_MACRS_Schedule[Years],0),MATCH(CSI_Tooling_deprec,tbl_MACRS_Schedule[#Headers],0)) -> 0 | AT19: =$M19*INDEX(tbl_MACRS_Schedule[#Data],MATCH(AG$5,tbl_MACRS_Schedule[Years],0),MATCH(CSI_Equipment_deprec,tbl_MACRS_Schedule[#Headers],0))+$N19*INDEX(tbl_MACRS_Schedule[#Data],MATCH(AG$5,tbl_MACRS_Schedule[Years],0),MATCH(CSI_Tooling_deprec,tbl_MACRS_Schedule[#Headers],0)) -> 0 | AU19: 0
C20: =ROW()-ROW(tblI_Equipment[#Headers]) -> 14 | E20: =IFERROR(OFFSET(INDEX(DCF_Calculation_Table,MATCH(CONCATENATE("Equipment ",tblI_Equipment[[#This Row],[Table Name]]),VARIABLE_DESCRIPTION,0),MATCH(AnalysisCountry,CName,0)),1,0),0) -> 0 | F20: =IFERROR(INDEX(DCF_Calculation_Table,MATCH(CONCATENATE("Equipment ",tblI_Equipment[[#This Row],[Table Name]]),VARIABLE_DESCRIPTION,0),MATCH(AnalysisCountry,CName,0)),1) -> 1 | G20: =IFERROR(OFFSET(INDEX(DCF_Calculation_Table,MATCH(CONCATENATE("Depreciable Tooling ",tblI_Equipment[[#This Row],[Table Name]]),VARIABLE_DESCRIPTION,0),MATCH(AnalysisCountry,CName,0)),1,0),0) -> 0 | H20: =IFERROR(INDEX(DCF_Calculation_Table,MATCH(CONCATENATE("Depreciable Tooling ",tblI_Equipment[[#This Row],[Table Name]]),VARIABLE_DESCRIPTION,0),MATCH(AnalysisCountry,CName,0)),"1") -> 1 | K20: 14 | L20: 0 | M20: =SUMPRODUCT(( (CSI_analysis_yrs-K20)>0)*(MOD(K20,tblI_Equipment[Equipment Life (y)])=0),tblI_Equipment[Installed Equipment Cost (USD)]*L20) -> 0 | N20: =SUMPRODUCT(( (CSI_analysis_yrs-K20)>0.5*tblI_Equipment[Depreciable Tooling Life (y)])*(MOD(K20,tblI_Equipment[Depreciable Tooling Life (y)])=0),tblI_Equipment[Depreciable Tooling Cost (USD)]*L20) -> 0 | AE20: =$M20*INDEX(tbl_MACRS_Schedule[#Data],MATCH(Q$5,tbl_MACRS_Schedule[Years],0),MATCH(CSI_Equipment_deprec,tbl_MACRS_Schedule[#Headers],0))+$N20*INDEX(tbl_MACRS_Schedule[#Data],MATCH(Q$5,tbl_MACRS_Schedule[Years],0),MATCH(CSI_Tooling_deprec,tbl_MACRS_Schedule[#Headers],0)) -> 0 | AF20: =$M20*INDEX(tbl_MACRS_Schedule[#Data],MATCH(R$5,tbl_MACRS_Schedule[Years],0),MATCH(CSI_Equipment_deprec,tbl_MACRS_Schedule[#Headers],0))+$N20*INDEX(tbl_MACRS_Schedule[#Data],MATCH(R$5,tbl_MACRS_Schedule[Years],0),MATCH(CSI_Tooling_deprec,tbl_MACRS_Schedule[#Headers],0)) -> 0 | AG20: =$M20*INDEX(tbl_MACRS_Schedule[#Data],MATCH(S$5,tbl_MACRS_Schedule[Years],0),MATCH(CSI_Equipment_deprec,tbl_MACRS_Schedule[#Headers],0))+$N20*INDEX(tbl_MACRS_Schedule[#Data],MATCH(S$5,tbl_MACRS_Schedule[Years],0),MATCH(CSI_Tooling_deprec,tbl_MACRS_Schedule[#Headers],0)) -> 0 | AH20: =$M20*INDEX(tbl_MACRS_Schedule[#Data],MATCH(T$5,tbl_MACRS_Schedule[Years],0),MATCH(CSI_Equipment_deprec,tbl_MACRS_Schedule[#Headers],0))+$N20*INDEX(tbl_MACRS_Schedule[#Data],MATCH(T$5,tbl_MACRS_Schedule[Years],0),MATCH(CSI_Tooling_deprec,tbl_MACRS_Schedule[#Headers],0)) -> 0 | AI20: =$M20*INDEX(tbl_MACRS_Schedule[#Data],MATCH(U$5,tbl_MACRS_Schedule[Years],0),MATCH(CSI_Equipment_deprec,tbl_MACRS_Schedule[#Headers],0))+$N20*INDEX(tbl_MACRS_Schedule[#Data],MATCH(U$5,tbl_MACRS_Schedule[Years],0),MATCH(CSI_Tooling_deprec,tbl_MACRS_Schedule[#Headers],0)) -> 0 | AJ20: =$M20*INDEX(tbl_MACRS_Schedule[#Data],MATCH(V$5,tbl_MACRS_Schedule[Years],0),MATCH(CSI_Equipment_deprec,tbl_MACRS_Schedule[#Headers],0))+$N20*INDEX(tbl_MACRS_Schedule[#Data],MATCH(V$5,tbl_MACRS_Schedule[Years],0),MATCH(CSI_Tooling_deprec,tbl_MACRS_Schedule[#Headers],0)) -> 0 | AK20: =$M20*INDEX(tbl_MACRS_Schedule[#Data],MATCH(W$5,tbl_MACRS_Schedule[Years],0),MATCH(CSI_Equipment_deprec,tbl_MACRS_Schedule[#Headers],0))+$N20*INDEX(tbl_MACRS_Schedule[#Data],MATCH(W$5,tbl_MACRS_Schedule[Years],0),MATCH(CSI_Tooling_deprec,tbl_MACRS_Schedule[#Headers],0)) -> 0 | AL20: =$M20*INDEX(tbl_MACRS_Schedule[#Data],MATCH(X$5,tbl_MACRS_Schedule[Years],0),MATCH(CSI_Equipment_deprec,tbl_MACRS_Schedule[#Headers],0))+$N20*INDEX(tbl_MACRS_Schedule[#Data],MATCH(X$5,tbl_MACRS_Schedule[Years],0),MATCH(CSI_Tooling_deprec,tbl_MACRS_Schedule[#Headers],0)) -> 0 | AM20: =$M20*INDEX(tbl_MACRS_Schedule[#Data],MATCH(Y$5,tbl_MACRS_Schedule[Years],0),MATCH(CSI_Equipment_deprec,tbl_MACRS_Schedule[#Headers],0))+$N20*INDEX(tbl_MACRS_Schedule[#Data],MATCH(Y$5,tbl_MACRS_Schedule[Years],0),MATCH(CSI_Tooling_deprec,tbl_MACRS_Schedule[#Headers],0)) -> 0 | AN20: =$M20*INDEX(tbl_MACRS_Schedule[#Data],MATCH(Z$5,tbl_MACRS_Schedule[Years],0),MATCH(CSI_Equipment_deprec,tbl_MACRS_Schedule[#Headers],0))+$N20*INDEX(tbl_MACRS_Schedule[#Data],MATCH(Z$5,tbl_MACRS_Schedule[Years],0),MATCH(CSI_Tooling_deprec,tbl_MACRS_Schedule[#Headers],0)) -> 0 | AO20: =$M20*INDEX(tbl_MACRS_Schedule[#Data],MATCH(AA$5,tbl_MACRS_Schedule[Years],0),MATCH(CSI_Equipment_deprec,tbl_MACRS_Schedule[#Headers],0))+$N20*INDEX(tbl_MACRS_Schedule[#Data],MATCH(AA$5,tbl_MACRS_Schedule[Years],0),MATCH(CSI_Tooling_deprec,tbl_MACRS_Schedule[#Headers],0)) -> 0 | AP20: =$M20*INDEX(tbl_MACRS_Schedule[#Data],MATCH(AB$5,tbl_MACRS_Schedule[Years],0),MATCH(CSI_Equipment_deprec,tbl_MACRS_Schedule[#Headers],0))+$N20*INDEX(tbl_MACRS_Schedule[#Data],MATCH(AB$5,tbl_MACRS_Schedule[Years],0),MATCH(CSI_Tooling_deprec,tbl_MACRS_Schedule[#Headers],0)) -> 0 | AQ20: =$M20*INDEX(tbl_MACRS_Schedule[#Data],MATCH(AC$5,tbl_MACRS_Schedule[Years],0),MATCH(CSI_Equipment_deprec,tbl_MACRS_Schedule[#Headers],0))+$N20*INDEX(tbl_MACRS_Schedule[#Data],MATCH(AC$5,tbl_MACRS_Schedule[Years],0),MATCH(CSI_Tooling_deprec,tbl_MACRS_Schedule[#Headers],0)) -> 0 | AR20: =$M20*INDEX(tbl_MACRS_Schedule[#Data],MATCH(AD$5,tbl_MACRS_Schedule[Years],0),MATCH(CSI_Equipment_deprec,tbl_MACRS_Schedule[#Headers],0))+$N20*INDEX(tbl_MACRS_Schedule[#Data],MATCH(AD$5,tbl_MACRS_Schedule[Years],0),MATCH(CSI_Tooling_deprec,tbl_MACRS_Schedule[#Headers],0)) -> 0 | AS20: =$M20*INDEX(tbl_MACRS_Schedule[#Data],MATCH(AE$5,tbl_MACRS_Schedule[Years],0),MATCH(CSI_Equipment_deprec,tbl_MACRS_Schedule[#Headers],0))+$N20*INDEX(tbl_MACRS_Schedule[#Data],MATCH(AE$5,tbl_MACRS_Schedule[Years],0),MATCH(CSI_Tooling_deprec,tbl_MACRS_Schedule[#Headers],0)) -> 0 | AT20: =$M20*INDEX(tbl_MACRS_Schedule[#Data],MATCH(AF$5,tbl_MACRS_Schedule[Years],0),MATCH(CSI_Equipment_deprec,tbl_MACRS_Schedule[#Headers],0))+$N20*INDEX(tbl_MACRS_Schedule[#Data],MATCH(AF$5,tbl_MACRS_Schedule[Years],0),MATCH(CSI_Tooling_deprec,tbl_MACRS_Schedule[#Headers],0)) -> 0 | AU20: 0
C21: =ROW()-ROW(tblI_Equipment[#Headers]) -> 15 | E21: =IFERROR(OFFSET(INDEX(DCF_Calculation_Table,MATCH(CONCATENATE("Equipment ",tblI_Equipment[[#This Row],[Table Name]]),VARIABLE_DESCRIPTION,0),MATCH(AnalysisCountry,CName,0)),1,0),0) -> 0 | F21: =IFERROR(INDEX(DCF_Calculation_Table,MATCH(CONCATENATE("Equipment ",tblI_Equipment[[#This Row],[Table Name]]),VARIABLE_DESCRIPTION,0),MATCH(AnalysisCountry,CName,0)),1) -> 1 | G21: =IFERROR(OFFSET(INDEX(DCF_Calculation_Table,MATCH(CONCATENATE("Depreciable Tooling ",tblI_Equipment[[#This Row],[Table Name]]),VARIABLE_DESCRIPTION,0),MATCH(AnalysisCountry,CName,0)),1,0),0) -> 0 | H21: =IFERROR(INDEX(DCF_Calculation_Table,MATCH(CONCATENATE("Depreciable Tooling ",tblI_Equipment[[#This Row],[Table Name]]),VARIABLE_DESCRIPTION,0),MATCH(AnalysisCountry,CName,0)),"1") -> 1 | K21: 15 | L21: 0 | M21: =SUMPRODUCT(( (CSI_analysis_yrs-K21)>0)*(MOD(K21,tblI_Equipment[Equipment Life (y)])=0),tblI_Equipment[Installed Equipment Cost (USD)]*L21) -> 0 | N21: =SUMPRODUCT(( (CSI_analysis_yrs-K21)>0.5*tblI_Equipment[Depreciable Tooling Life (y)])*(MOD(K21,tblI_Equipment[Depreciable Tooling Life (y)])=0),tblI_Equipment[Depreciable Tooling Cost (USD)]*L21) -> 0 | AF21: =$M21*INDEX(tbl_MACRS_Schedule[#Data],MATCH(Q$5,tbl_MACRS_Schedule[Years],0),MATCH(CSI_Equipment_deprec,tbl_MACRS_Schedule[#Headers],0))+$N21*INDEX(tbl_MACRS_Schedule[#Data],MATCH(Q$5,tbl_MACRS_Schedule[Years],0),MATCH(CSI_Tooling_deprec,tbl_MACRS_Schedule[#Headers],0)) -> 0 | AG21: =$M21*INDEX(tbl_MACRS_Schedule[#Data],MATCH(R$5,tbl_MACRS_Schedule[Years],0),MATCH(CSI_Equipment_deprec,tbl_MACRS_Schedule[#Headers],0))+$N21*INDEX(tbl_MACRS_Schedule[#Data],MATCH(R$5,tbl_MACRS_Schedule[Years],0),MATCH(CSI_Tooling_deprec,tbl_MACRS_Schedule[#Headers],0)) -> 0 | AH21: =$M21*INDEX(tbl_MACRS_Schedule[#Data],MATCH(S$5,tbl_MACRS_Schedule[Years],0),MATCH(CSI_Equipment_deprec,tbl_MACRS_Schedule[#Headers],0))+$N21*INDEX(tbl_MACRS_Schedule[#Data],MATCH(S$5,tbl_MACRS_Schedule[Years],0),MATCH(CSI_Tooling_deprec,tbl_MACRS_Schedule[#Headers],0)) -> 0 | AI21: =$M21*INDEX(tbl_MACRS_Schedule[#Data],MATCH(T$5,tbl_MACRS_Schedule[Years],0),MATCH(CSI_Equipment_deprec,tbl_MACRS_Schedule[#Headers],0))+$N21*INDEX(tbl_MACRS_Schedule[#Data],MATCH(T$5,tbl_MACRS_Schedule[Years],0),MATCH(CSI_Tooling_deprec,tbl_MACRS_Schedule[#Headers],0)) -> 0 | AJ21: =$M21*INDEX(tbl_MACRS_Schedule[#Data],MATCH(U$5,tbl_MACRS_Schedule[Years],0),MATCH(CSI_Equipment_deprec,tbl_MACRS_Schedule[#Headers],0))+$N21*INDEX(tbl_MACRS_Schedule[#Data],MATCH(U$5,tbl_MACRS_Schedule[Years],0),MATCH(CSI_Tooling_deprec,tbl_MACRS_Schedule[#Headers],0)) -> 0 | AK21: =$M21*INDEX(tbl_MACRS_Schedule[#Data],MATCH(V$5,tbl_MACRS_Schedule[Years],0),MATCH(CSI_Equipment_deprec,tbl_MACRS_Schedule[#Headers],0))+$N21*INDEX(tbl_MACRS_Schedule[#Data],MATCH(V$5,tbl_MACRS_Schedule[Years],0),MATCH(CSI_Tooling_deprec,tbl_MACRS_Schedule[#Headers],0)) -> 0 | AL21: =$M21*INDEX(tbl_MACRS_Schedule[#Data],MATCH(W$5,tbl_MACRS_Schedule[Years],0),MATCH(CSI_Equipment_deprec,tbl_MACRS_Schedule[#Headers],0))+$N21*INDEX(tbl_MACRS_Schedule[#Data],MATCH(W$5,tbl_MACRS_Schedule[Years],0),MATCH(CSI_Tooling_deprec,tbl_MACRS_Schedule[#Headers],0)) -> 0 | AM21: =$M21*INDEX(tbl_MACRS_Schedule[#Data],MATCH(X$5,tbl_MACRS_Schedule[Years],0),MATCH(CSI_Equipment_deprec,tbl_MACRS_Schedule[#Headers],0))+$N21*INDEX(tbl_MACRS_Schedule[#Data],MATCH(X$5,tbl_MACRS_Schedule[Years],0),MATCH(CSI_Tooling_deprec,tbl_MACRS_Schedule[#Headers],0)) -> 0 | AN21: =$M21*INDEX(tbl_MACRS_Schedule[#Data],MATCH(Y$5,tbl_MACRS_Schedule[Years],0),MATCH(CSI_Equipment_deprec,tbl_MACRS_Schedule[#Headers],0))+$N21*INDEX(tbl_MACRS_Schedule[#Data],MATCH(Y$5,tbl_MACRS_Schedule[Years],0),MATCH(CSI_Tooling_deprec,tbl_MACRS_Schedule[#Headers],0)) -> 0 | AO21: =$M21*INDEX(tbl_MACRS_Schedule[#Data],MATCH(Z$5,tbl_MACRS_Schedule[Years],0),MATCH(CSI_Equipment_deprec,tbl_MACRS_Schedule[#Headers],0))+$N21*INDEX(tbl_MACRS_Schedule[#Data],MATCH(Z$5,tbl_MACRS_Schedule[Years],0),MATCH(CSI_Tooling_deprec,tbl_MACRS_Schedule[#Headers],0)) -> 0 | AP21: =$M21*INDEX(tbl_MACRS_Schedule[#Data],MATCH(AA$5,tbl_MACRS_Schedule[Years],0),MATCH(CSI_Equipment_deprec,tbl_MACRS_Schedule[#Headers],0))+$N21*INDEX(tbl_MACRS_Schedule[#Data],MATCH(AA$5,tbl_MACRS_Schedule[Years],0),MATCH(CSI_Tooling_deprec,tbl_MACRS_Schedule[#Headers],0)) -> 0 | AQ21: =$M21*INDEX(tbl_MACRS_Schedule[#Data],MATCH(AB$5,tbl_MACRS_Schedule[Years],0),MATCH(CSI_Equipment_deprec,tbl_MACRS_Schedule[#Headers],0))+$N21*INDEX(tbl_MACRS_Schedule[#Data],MATCH(AB$5,tbl_MACRS_Schedule[Years],0),MATCH(CSI_Tooling_deprec,tbl_MACRS_Schedule[#Headers],0)) -> 0 | AR21: =$M21*INDEX(tbl_MACRS_Schedule[#Data],MATCH(AC$5,tbl_MACRS_Schedule[Years],0),MATCH(CSI_Equipment_deprec,tbl_MACRS_Schedule[#Headers],0))+$N21*INDEX(tbl_MACRS_Schedule[#Data],MATCH(AC$5,tbl_MACRS_Schedule[Years],0),MATCH(CSI_Tooling_deprec,tbl_MACRS_Schedule[#Headers],0)) -> 0 | AS21: =$M21*INDEX(tbl_MACRS_Schedule[#Data],MATCH(AD$5,tbl_MACRS_Schedule[Years],0),MATCH(CSI_Equipment_deprec,tbl_MACRS_Schedule[#Headers],0))+$N21*INDEX(tbl_MACRS_Schedule[#Data],MATCH(AD$5,tbl_MACRS_Schedule[Years],0),MATCH(CSI_Tooling_deprec,tbl_MACRS_Schedule[#Headers],0)) -> 0 | AT21: =$M21*INDEX(tbl_MACRS_Schedule[#Data],MATCH(AE$5,tbl_MACRS_Schedule[Years],0),MATCH(CSI_Equipment_deprec,tbl_MACRS_Schedule[#Headers],0))+$N21*INDEX(tbl_MACRS_Schedule[#Data],MATCH(AE$5,tbl_MACRS_Schedule[Years],0),MATCH(CSI_Tooling_deprec,tbl_MACRS_Schedule[#Headers],0)) -> 0 | AU21: 0
C22: =ROW()-ROW(tblI_Equipment[#Headers]) -> 16 | E22: =IFERROR(OFFSET(INDEX(DCF_Calculation_Table,MATCH(CONCATENATE("Equipment ",tblI_Equipment[[#This Row],[Table Name]]),VARIABLE_DESCRIPTION,0),MATCH(AnalysisCountry,CName,0)),1,0),0) -> 0 | F22: =IFERROR(INDEX(DCF_Calculation_Table,MATCH(CONCATENATE("Equipment ",tblI_Equipment[[#This Row],[Table Name]]),VARIABLE_DESCRIPTION,0),MATCH(AnalysisCountry,CName,0)),1) -> 1 | G22: =IFERROR(OFFSET(INDEX(DCF_Calculation_Table,MATCH(CONCATENATE("Depreciable Tooling ",tblI_Equipment[[#This Row],[Table Name]]),VARIABLE_DESCRIPTION,0),MATCH(AnalysisCountry,CName,0)),1,0),0) -> 0 | H22: =IFERROR(INDEX(DCF_Calculation_Table,MATCH(CONCATENATE("Depreciable Tooling ",tblI_Equipment[[#This Row],[Table Name]]),VARIABLE_DESCRIPTION,0),MATCH(AnalysisCountry,CName,0)),"1") -> 1 | K22: 16 | L22: 0 | M22: =SUMPRODUCT(( (CSI_analysis_yrs-K22)>0)*(MOD(K22,tblI_Equipment[Equipment Life (y)])=0),tblI_Equipment[Installed Equipment Cost (USD)]*L22) -> 0 | N22: =SUMPRODUCT(( (CSI_analysis_yrs-K22)>0.5*tblI_Equipment[Depreciable Tooling Life (y)])*(MOD(K22,tblI_Equipment[Depreciable Tooling Life (y)])=0),tblI_Equipment[Depreciable Tooling Cost (USD)]*L22) -> 0 | AG22: =$M22*INDEX(tbl_MACRS_Schedule[#Data],MATCH(Q$5,tbl_MACRS_Schedule[Years],0),MATCH(CSI_Equipment_deprec,tbl_MACRS_Schedule[#Headers],0))+$N22*INDEX(tbl_MACRS_Schedule[#Data],MATCH(Q$5,tbl_MACRS_Schedule[Years],0),MATCH(CSI_Tooling_deprec,tbl_MACRS_Schedule[#Headers],0)) -> 0 | AH22: =$M22*INDEX(tbl_MACRS_Schedule[#Data],MATCH(R$5,tbl_MACRS_Schedule[Years],0),MATCH(CSI_Equipment_deprec,tbl_MACRS_Schedule[#Headers],0))+$N22*INDEX(tbl_MACRS_Schedule[#Data],MATCH(R$5,tbl_MACRS_Schedule[Years],0),MATCH(CSI_Tooling_deprec,tbl_MACRS_Schedule[#Headers],0)) -> 0 | AI22: =$M22*INDEX(tbl_MACRS_Schedule[#Data],MATCH(S$5,tbl_MACRS_Schedule[Years],0),MATCH(CSI_Equipment_deprec,tbl_MACRS_Schedule[#Headers],0))+$N22*INDEX(tbl_MACRS_Schedule[#Data],MATCH(S$5,tbl_MACRS_Schedule[Years],0),MATCH(CSI_Tooling_deprec,tbl_MACRS_Schedule[#Headers],0)) -> 0 | AJ22: =$M22*INDEX(tbl_MACRS_Schedule[#Data],MATCH(T$5,tbl_MACRS_Schedule[Years],0),MATCH(CSI_Equipment_deprec,tbl_MACRS_Schedule[#Headers],0))+$N22*INDEX(tbl_MACRS_Schedule[#Data],MATCH(T$5,tbl_MACRS_Schedule[Years],0),MATCH(CSI_Tooling_deprec,tbl_MACRS_Schedule[#Headers],0)) -> 0 | AK22: =$M22*INDEX(tbl_MACRS_Schedule[#Data],MATCH(U$5,tbl_MACRS_Schedule[Years],0),MATCH(CSI_Equipment_deprec,tbl_MACRS_Schedule[#Headers],0))+$N22*INDEX(tbl_MACRS_Schedule[#Data],MATCH(U$5,tbl_MACRS_Schedule[Years],0),MATCH(CSI_Tooling_deprec,tbl_MACRS_Schedule[#Headers],0)) -> 0 | AL22: =$M22*INDEX(tbl_MACRS_Schedule[#Data],MATCH(V$5,tbl_MACRS_Schedule[Years],0),MATCH(CSI_Equipment_deprec,tbl_MACRS_Schedule[#Headers],0))+$N22*INDEX(tbl_MACRS_Schedule[#Data],MATCH(V$5,tbl_MACRS_Schedule[Years],0),MATCH(CSI_Tooling_deprec,tbl_MACRS_Schedule[#Headers],0)) -> 0 | AM22: =$M22*INDEX(tbl_MACRS_Schedule[#Data],MATCH(W$5,tbl_MACRS_Schedule[Years],0),MATCH(CSI_Equipment_deprec,tbl_MACRS_Schedule[#Headers],0))+$N22*INDEX(tbl_MACRS_Schedule[#Data],MATCH(W$5,tbl_MACRS_Schedule[Years],0),MATCH(CSI_Tooling_deprec,tbl_MACRS_Schedule[#Headers],0)) -> 0 | AN22: =$M22*INDEX(tbl_MACRS_Schedule[#Data],MATCH(X$5,tbl_MACRS_Schedule[Years],0),MATCH(CSI_Equipment_deprec,tbl_MACRS_Schedule[#Headers],0))+$N22*INDEX(tbl_MACRS_Schedule[#Data],MATCH(X$5,tbl_MACRS_Schedule[Years],0),MATCH(CSI_Tooling_deprec,tbl_MACRS_Schedule[#Headers],0)) -> 0 | AO22: =$M22*INDEX(tbl_MACRS_Schedule[#Data],MATCH(Y$5,tbl_MACRS_Schedule[Years],0),MATCH(CSI_Equipment_deprec,tbl_MACRS_Schedule[#Headers],0))+$N22*INDEX(tbl_MACRS_Schedule[#Data],MATCH(Y$5,tbl_MACRS_Schedule[Years],0),MATCH(CSI_Tooling_deprec,tbl_MACRS_Schedule[#Headers],0)) -> 0 | AP22: =$M22*INDEX(tbl_MACRS_Schedule[#Data],MATCH(Z$5,tbl_MACRS_Schedule[Years],0),MATCH(CSI_Equipment_deprec,tbl_MACRS_Schedule[#Headers],0))+$N22*INDEX(tbl_MACRS_Schedule[#Data],MATCH(Z$5,tbl_MACRS_Schedule[Years],0),MATCH(CSI_Tooling_deprec,tbl_MACRS_Schedule[#Headers],0)) -> 0 | AQ22: =$M22*INDEX(tbl_MACRS_Schedule[#Data],MATCH(AA$5,tbl_MACRS_Schedule[Years],0),MATCH(CSI_Equipment_deprec,tbl_MACRS_Schedule[#Headers],0))+$N22*INDEX(tbl_MACRS_Schedule[#Data],MATCH(AA$5,tbl_MACRS_Schedule[Years],0),MATCH(CSI_Tooling_deprec,tbl_MACRS_Schedule[#Headers],0)) -> 0 | AR22: =$M22*INDEX(tbl_MACRS_Schedule[#Data],MATCH(AB$5,tbl_MACRS_Schedule[Years],0),MATCH(CSI_Equipment_deprec,tbl_MACRS_Schedule[#Headers],0))+$N22*INDEX(tbl_MACRS_Schedule[#Data],MATCH(AB$5,tbl_MACRS_Schedule[Years],0),MATCH(CSI_Tooling_deprec,tbl_MACRS_Schedule[#Headers],0)) -> 0 | AS22: =$M22*INDEX(tbl_MACRS_Schedule[#Data],MATCH(AC$5,tbl_MACRS_Schedule[Years],0),MATCH(CSI_Equipment_deprec,tbl_MACRS_Schedule[#Headers],0))+$N22*INDEX(tbl_MACRS_Schedule[#Data],MATCH(AC$5,tbl_MACRS_Schedule[Years],0),MATCH(CSI_Tooling_deprec,tbl_MACRS_Schedule[#Headers],0)) -> 0 | AT22: =$M22*INDEX(tbl_MACRS_Schedule[#Data],MATCH(AD$5,tbl_MACRS_Schedule[Years],0),MATCH(CSI_Equipment_deprec,tbl_MACRS_Schedule[#Headers],0))+$N22*INDEX(tbl_MACRS_Schedule[#Data],MATCH(AD$5,tbl_MACRS_Schedule[Years],0),MATCH(CSI_Tooling_deprec,tbl_MACRS_Schedule[#Headers],0)) -> 0 | AU22: 0
C23: =ROW()-ROW(tblI_Equipment[#Headers]) -> 17 | E23: =IFERROR(OFFSET(INDEX(DCF_Calculation_Table,MATCH(CONCATENATE("Equipment ",tblI_Equipment[[#This Row],[Table Name]]),VARIABLE_DESCRIPTION,0),MATCH(AnalysisCountry,CName,0)),1,0),0) -> 0 | F23: =IFERROR(INDEX(DCF_Calculation_Table,MATCH(CONCATENATE("Equipment ",tblI_Equipment[[#This Row],[Table Name]]),VARIABLE_DESCRIPTION,0),MATCH(AnalysisCountry,CName,0)),1) -> 1 | G23: =IFERROR(OFFSET(INDEX(DCF_Calculation_Table,MATCH(CONCATENATE("Depreciable Tooling ",tblI_Equipment[[#This Row],[Table Name]]),VARIABLE_DESCRIPTION,0),MATCH(AnalysisCountry,CName,0)),1,0),0) -> 0 | H23: =IFERROR(INDEX(DCF_Calculation_Table,MATCH(CONCATENATE("Depreciable Tooling ",tblI_Equipment[[#This Row],[Table Name]]),VARIABLE_DESCRIPTION,0),MATCH(AnalysisCountry,CName,0)),"1") -> 1 | K23: 17 | L23: 0 | M23: =SUMPRODUCT(( (CSI_analysis_yrs-K23)>0)*(MOD(K23,tblI_Equipment[Equipment Life (y)])=0),tblI_Equipment[Installed Equipment Cost (USD)]*L23) -> 0 | N23: =SUMPRODUCT(( (CSI_analysis_yrs-K23)>0.5*tblI_Equipment[Depreciable Tooling Life (y)])*(MOD(K23,tblI_Equipment[Depreciable Tooling Life (y)])=0),tblI_Equipment[Depreciable Tooling Cost (USD)]*L23) -> 0 | AH23: =$M23*INDEX(tbl_MACRS_Schedule[#Data],MATCH(Q$5,tbl_MACRS_Schedule[Years],0),MATCH(CSI_Equipment_deprec,tbl_MACRS_Schedule[#Headers],0))+$N23*INDEX(tbl_MACRS_Schedule[#Data],MATCH(Q$5,tbl_MACRS_Schedule[Years],0),MATCH(CSI_Tooling_deprec,tbl_MACRS_Schedule[#Headers],0)) -> 0 | AI23: =$M23*INDEX(tbl_MACRS_Schedule[#Data],MATCH(R$5,tbl_MACRS_Schedule[Years],0),MATCH(CSI_Equipment_deprec,tbl_MACRS_Schedule[#Headers],0))+$N23*INDEX(tbl_MACRS_Schedule[#Data],MATCH(R$5,tbl_MACRS_Schedule[Years],0),MATCH(CSI_Tooling_deprec,tbl_MACRS_Schedule[#Headers],0)) -> 0 | AJ23: =$M23*INDEX(tbl_MACRS_Schedule[#Data],MATCH(S$5,tbl_MACRS_Schedule[Years],0),MATCH(CSI_Equipment_deprec,tbl_MACRS_Schedule[#Headers],0))+$N23*INDEX(tbl_MACRS_Schedule[#Data],MATCH(S$5,tbl_MACRS_Schedule[Years],0),MATCH(CSI_Tooling_deprec,tbl_MACRS_Schedule[#Headers],0)) -> 0 | AK23: =$M23*INDEX(tbl_MACRS_Schedule[#Data],MATCH(T$5,tbl_MACRS_Schedule[Years],0),MATCH(CSI_Equipment_deprec,tbl_MACRS_Schedule[#Headers],0))+$N23*INDEX(tbl_MACRS_Schedule[#Data],MATCH(T$5,tbl_MACRS_Schedule[Years],0),MATCH(CSI_Tooling_deprec,tbl_MACRS_Schedule[#Headers],0)) -> 0 | AL23: =$M23*INDEX(tbl_MACRS_Schedule[#Data],MATCH(U$5,tbl_MACRS_Schedule[Years],0),MATCH(CSI_Equipment_deprec,tbl_MACRS_Schedule[#Headers],0))+$N23*INDEX(tbl_MACRS_Schedule[#Data],MATCH(U$5,tbl_MACRS_Schedule[Years],0),MATCH(CSI_Tooling_deprec,tbl_MACRS_Schedule[#Headers],0)) -> 0 | AM23: =$M23*INDEX(tbl_MACRS_Schedule[#Data],MATCH(V$5,tbl_MACRS_Schedule[Years],0),MATCH(CSI_Equipment_deprec,tbl_MACRS_Schedule[#Headers],0))+$N23*INDEX(tbl_MACRS_Schedule[#Data],MATCH(V$5,tbl_MACRS_Schedule[Years],0),MATCH(CSI_Tooling_deprec,tbl_MACRS_Schedule[#Headers],0)) -> 0 | AN23: =$M23*INDEX(tbl_MACRS_Schedule[#Data],MATCH(W$5,tbl_MACRS_Schedule[Years],0),MATCH(CSI_Equipment_deprec,tbl_MACRS_Schedule[#Headers],0))+$N23*INDEX(tbl_MACRS_Schedule[#Data],MATCH(W$5,tbl_MACRS_Schedule[Years],0),MATCH(CSI_Tooling_deprec,tbl_MACRS_Schedule[#Headers],0)) -> 0 | AO23: =$M23*INDEX(tbl_MACRS_Schedule[#Data],MATCH(X$5,tbl_MACRS_Schedule[Years],0),MATCH(CSI_Equipment_deprec,tbl_MACRS_Schedule[#Headers],0))+$N23*INDEX(tbl_MACRS_Schedule[#Data],MATCH(X$5,tbl_MACRS_Schedule[Years],0),MATCH(CSI_Tooling_deprec,tbl_MACRS_Schedule[#Headers],0)) -> 0 | AP23: =$M23*INDEX(tbl_MACRS_Schedule[#Data],MATCH(Y$5,tbl_MACRS_Schedule[Years],0),MATCH(CSI_Equipment_deprec,tbl_MACRS_Schedule[#Headers],0))+$N23*INDEX(tbl_MACRS_Schedule[#Data],MATCH(Y$5,tbl_MACRS_Schedule[Years],0),MATCH(CSI_Tooling_deprec,tbl_MACRS_Schedule[#Headers],0)) -> 0 | AQ23: =$M23*INDEX(tbl_MACRS_Schedule[#Data],MATCH(Z$5,tbl_MACRS_Schedule[Years],0),MATCH(CSI_Equipment_deprec,tbl_MACRS_Schedule[#Headers],0))+$N23*INDEX(tbl_MACRS_Schedule[#Data],MATCH(Z$5,tbl_MACRS_Schedule[Years],0),MATCH(CSI_Tooling_deprec,tbl_MACRS_Schedule[#Headers],0)) -> 0 | AR23: =$M23*INDEX(tbl_MACRS_Schedule[#Data],MATCH(AA$5,tbl_MACRS_Schedule[Years],0),MATCH(CSI_Equipment_deprec,tbl_MACRS_Schedule[#Headers],0))+$N23*INDEX(tbl_MACRS_Schedule[#Data],MATCH(AA$5,tbl_MACRS_Schedule[Years],0),MATCH(CSI_Tooling_deprec,tbl_MACRS_Schedule[#Headers],0)) -> 0 | AS23: =$M23*INDEX(tbl_MACRS_Schedule[#Data],MATCH(AB$5,tbl_MACRS_Schedule[Years],0),MATCH(CSI_Equipment_deprec,tbl_MACRS_Schedule[#Headers],0))+$N23*INDEX(tbl_MACRS_Schedule[#Data],MATCH(AB$5,tbl_MACRS_Schedule[Years],0),MATCH(CSI_Tooling_deprec,tbl_MACRS_Schedule[#Headers],0)) -> 0 | AT23: =$M23*INDEX(tbl_MACRS_Schedule[#Data],MATCH(AC$5,tbl_MACRS_Schedule[Years],0),MATCH(CSI_Equipment_deprec,tbl_MACRS_Schedule[#Headers],0))+$N23*INDEX(tbl_MACRS_Schedule[#Data],MATCH(AC$5,tbl_MACRS_Schedule[Years],0),MATCH(CSI_Tooling_deprec,tbl_MACRS_Schedule[#Headers],0)) -> 0 | AU23: 0
C24: =ROW()-ROW(tblI_Equipment[#Headers]) -> 18 | E24: =IFERROR(OFFSET(INDEX(DCF_Calculation_Table,MATCH(CONCATENATE("Equipment ",tblI_Equipment[[#This Row],[Table Name]]),VARIABLE_DESCRIPTION,0),MATCH(AnalysisCountry,CName,0)),1,0),0) -> 0 | F24: =IFERROR(INDEX(DCF_Calculation_Table,MATCH(CONCATENATE("Equipment ",tblI_Equipment[[#This Row],[Table Name]]),VARIABLE_DESCRIPTION,0),MATCH(AnalysisCountry,CName,0)),1) -> 1 | G24: =IFERROR(OFFSET(INDEX(DCF_Calculation_Table,MATCH(CONCATENATE("Depreciable Tooling ",tblI_Equipment[[#This Row],[Table Name]]),VARIABLE_DESCRIPTION,0),MATCH(AnalysisCountry,CName,0)),1,0),0) -> 0 | H24: =IFERROR(INDEX(DCF_Calculation_Table,MATCH(CONCATENATE("Depreciable Tooling ",tblI_Equipment[[#This Row],[Table Name]]),VARIABLE_DESCRIPTION,0),MATCH(AnalysisCountry,CName,0)),"1") -> 1 | K24: 18 | L24: 0 | M24: =SUMPRODUCT(( (CSI_analysis_yrs-K24)>0)*(MOD(K24,tblI_Equipment[Equipment Life (y)])=0),tblI_Equipment[Installed Equipment Cost (USD)]*L24) -> 0 | N24: =SUMPRODUCT(( (CSI_analysis_yrs-K24)>0.5*tblI_Equipment[Depreciable Tooling Life (y)])*(MOD(K24,tblI_Equipment[Depreciable Tooling Life (y)])=0),tblI_Equipment[Depreciable Tooling Cost (USD)]*L24) -> 0 | AI24: =$M24*INDEX(tbl_MACRS_Schedule[#Data],MATCH(Q$5,tbl_MACRS_Schedule[Years],0),MATCH(CSI_Equipment_deprec,tbl_MACRS_Schedule[#Headers],0))+$N24*INDEX(tbl_MACRS_Schedule[#Data],MATCH(Q$5,tbl_MACRS_Schedule[Years],0),MATCH(CSI_Tooling_deprec,tbl_MACRS_Schedule[#Headers],0)) -> 0 | AJ24: =$M24*INDEX(tbl_MACRS_Schedule[#Data],MATCH(R$5,tbl_MACRS_Schedule[Years],0),MATCH(CSI_Equipment_deprec,tbl_MACRS_Schedule[#Headers],0))+$N24*INDEX(tbl_MACRS_Schedule[#Data],MATCH(R$5,tbl_MACRS_Schedule[Years],0),MATCH(CSI_Tooling_deprec,tbl_MACRS_Schedule[#Headers],0)) -> 0 | AK24: =$M24*INDEX(tbl_MACRS_Schedule[#Data],MATCH(S$5,tbl_MACRS_Schedule[Years],0),MATCH(CSI_Equipment_deprec,tbl_MACRS_Schedule[#Headers],0))+$N24*INDEX(tbl_MACRS_Schedule[#Data],MATCH(S$5,tbl_MACRS_Schedule[Years],0),MATCH(CSI_Tooling_deprec,tbl_MACRS_Schedule[#Headers],0)) -> 0 | AL24: =$M24*INDEX(tbl_MACRS_Schedule[#Data],MATCH(T$5,tbl_MACRS_Schedule[Years],0),MATCH(CSI_Equipment_deprec,tbl_MACRS_Schedule[#Headers],0))+$N24*INDEX(tbl_MACRS_Schedule[#Data],MATCH(T$5,tbl_MACRS_Schedule[Years],0),MATCH(CSI_Tooling_deprec,tbl_MACRS_Schedule[#Headers],0)) -> 0 | AM24: =$M24*INDEX(tbl_MACRS_Schedule[#Data],MATCH(U$5,tbl_MACRS_Schedule[Years],0),MATCH(CSI_Equipment_deprec,tbl_MACRS_Schedule[#Headers],0))+$N24*INDEX(tbl_MACRS_Schedule[#Data],MATCH(U$5,tbl_MACRS_Schedule[Years],0),MATCH(CSI_Tooling_deprec,tbl_MACRS_Schedule[#Headers],0)) -> 0 | AN24: =$M24*INDEX(tbl_MACRS_Schedule[#Data],MATCH(V$5,tbl_MACRS_Schedule[Years],0),MATCH(CSI_Equipment_deprec,tbl_MACRS_Schedule[#Headers],0))+$N24*INDEX(tbl_MACRS_Schedule[#Data],MATCH(V$5,tbl_MACRS_Schedule[Years],0),MATCH(CSI_Tooling_deprec,tbl_MACRS_Schedule[#Headers],0)) -> 0 | AO24: =$M24*INDEX(tbl_MACRS_Schedule[#Data],MATCH(W$5,tbl_MACRS_Schedule[Years],0),MATCH(CSI_Equipment_deprec,tbl_MACRS_Schedule[#Headers],0))+$N24*INDEX(tbl_MACRS_Schedule[#Data],MATCH(W$5,tbl_MACRS_Schedule[Years],0),MATCH(CSI_Tooling_deprec,tbl_MACRS_Schedule[#Headers],0)) -> 0 | AP24: =$M24*INDEX(tbl_MACRS_Schedule[#Data],MATCH(X$5,tbl_MACRS_Schedule[Years],0),MATCH(CSI_Equipment_deprec,tbl_MACRS_Schedule[#Headers],0))+$N24*INDEX(tbl_MACRS_Schedule[#Data],MATCH(X$5,tbl_MACRS_Schedule[Years],0),MATCH(CSI_Tooling_deprec,tbl_MACRS_Schedule[#Headers],0)) -> 0 | AQ24: =$M24*INDEX(tbl_MACRS_Schedule[#Data],MATCH(Y$5,tbl_MACRS_Schedule[Years],0),MATCH(CSI_Equipment_deprec,tbl_MACRS_Schedule[#Headers],0))+$N24*INDEX(tbl_MACRS_Schedule[#Data],MATCH(Y$5,tbl_MACRS_Schedule[Years],0),MATCH(CSI_Tooling_deprec,tbl_MACRS_Schedule[#Headers],0)) -> 0 | AR24: =$M24*INDEX(tbl_MACRS_Schedule[#Data],MATCH(Z$5,tbl_MACRS_Schedule[Years],0),MATCH(CSI_Equipment_deprec,tbl_MACRS_Schedule[#Headers],0))+$N24*INDEX(tbl_MACRS_Schedule[#Data],MATCH(Z$5,tbl_MACRS_Schedule[Years],0),MATCH(CSI_Tooling_deprec,tbl_MACRS_Schedule[#Headers],0)) -> 0 | AS24: =$M24*INDEX(tbl_MACRS_Schedule[#Data],MATCH(AA$5,tbl_MACRS_Schedule[Years],0),MATCH(CSI_Equipment_deprec,tbl_MACRS_Schedule[#Headers],0))+$N24*INDEX(tbl_MACRS_Schedule[#Data],MATCH(AA$5,tbl_MACRS_Schedule[Years],0),MATCH(CSI_Tooling_deprec,tbl_MACRS_Schedule[#Headers],0)) -> 0 | AT24: =$M24*INDEX(tbl_MACRS_Schedule[#Data],MATCH(AB$5,tbl_MACRS_Schedule[Years],0),MATCH(CSI_Equipment_deprec,tbl_MACRS_Schedule[#Headers],0))+$N24*INDEX(tbl_MACRS_Schedule[#Data],MATCH(AB$5,tbl_MACRS_Schedule[Years],0),MATCH(CSI_Tooling_deprec,tbl_MACRS_Schedule[#Headers],0)) -> 0 | AU24: 0
C25: =ROW()-ROW(tblI_Equipment[#Headers]) -> 19 | E25: =IFERROR(OFFSET(INDEX(DCF_Calculation_Table,MATCH(CONCATENATE("Equipment ",tblI_Equipment[[#This Row],[Table Name]]),VARIABLE_DESCRIPTION,0),MATCH(AnalysisCountry,CName,0)),1,0),0) -> 0 | F25: =IFERROR(INDEX(DCF_Calculation_Table,MATCH(CONCATENATE("Equipment ",tblI_Equipment[[#This Row],[Table Name]]),VARIABLE_DESCRIPTION,0),MATCH(AnalysisCountry,CName,0)),1) -> 1 | G25: =IFERROR(OFFSET(INDEX(DCF_Calculation_Table,MATCH(CONCATENATE("Depreciable Tooling ",tblI_Equipment[[#This Row],[Table Name]]),VARIABLE_DESCRIPTION,0),MATCH(AnalysisCountry,CName,0)),1,0),0) -> 0 | H25: =IFERROR(INDEX(DCF_Calculation_Table,MATCH(CONCATENATE("Depreciable Tooling ",tblI_Equipment[[#This Row],[Table Name]]),VARIABLE_DESCRIPTION,0),MATCH(AnalysisCountry,CName,0)),"1") -> 1 | K25: 19 | L25: 0 | M25: =SUMPRODUCT(( (CSI_analysis_yrs-K25)>0)*(MOD(K25,tblI_Equipment[Equipment Life (y)])=0),tblI_Equipment[Installed Equipment Cost (USD)]*L25) -> 0 | N25: =SUMPRODUCT(( (CSI_analysis_yrs-K25)>0.5*tblI_Equipment[Depreciable Tooling Life (y)])*(MOD(K25,tblI_Equipment[Depreciable Tooling Life (y)])=0),tblI_Equipment[Depreciable Tooling Cost (USD)]*L25) -> 0 | AJ25: =$M25*INDEX(tbl_MACRS_Schedule[#Data],MATCH(Q$5,tbl_MACRS_Schedule[Years],0),MATCH(CSI_Equipment_deprec,tbl_MACRS_Schedule[#Headers],0))+$N25*INDEX(tbl_MACRS_Schedule[#Data],MATCH(Q$5,tbl_MACRS_Schedule[Years],0),MATCH(CSI_Tooling_deprec,tbl_MACRS_Schedule[#Headers],0)) -> 0 | AK25: =$M25*INDEX(tbl_MACRS_Schedule[#Data],MATCH(R$5,tbl_MACRS_Schedule[Years],0),MATCH(CSI_Equipment_deprec,tbl_MACRS_Schedule[#Headers],0))+$N25*INDEX(tbl_MACRS_Schedule[#Data],MATCH(R$5,tbl_MACRS_Schedule[Years],0),MATCH(CSI_Tooling_deprec,tbl_MACRS_Schedule[#Headers],0)) -> 0 | AL25: =$M25*INDEX(tbl_MACRS_Schedule[#Data],MATCH(S$5,tbl_MACRS_Schedule[Years],0),MATCH(CSI_Equipment_deprec,tbl_MACRS_Schedule[#Headers],0))+$N25*INDEX(tbl_MACRS_Schedule[#Data],MATCH(S$5,tbl_MACRS_Schedule[Years],0),MATCH(CSI_Tooling_deprec,tbl_MACRS_Schedule[#Headers],0)) -> 0 | AM25: =$M25*INDEX(tbl_MACRS_Schedule[#Data],MATCH(T$5,tbl_MACRS_Schedule[Years],0),MATCH(CSI_Equipment_deprec,tbl_MACRS_Schedule[#Headers],0))+$N25*INDEX(tbl_MACRS_Schedule[#Data],MATCH(T$5,tbl_MACRS_Schedule[Years],0),MATCH(CSI_Tooling_deprec,tbl_MACRS_Schedule[#Headers],0)) -> 0 | AN25: =$M25*INDEX(tbl_MACRS_Schedule[#Data],MATCH(U$5,tbl_MACRS_Schedule[Years],0),MATCH(CSI_Equipment_deprec,tbl_MACRS_Schedule[#Headers],0))+$N25*INDEX(tbl_MACRS_Schedule[#Data],MATCH(U$5,tbl_MACRS_Schedule[Years],0),MATCH(CSI_Tooling_deprec,tbl_MACRS_Schedule[#Headers],0)) -> 0 | AO25: =$M25*INDEX(tbl_MACRS_Schedule[#Data],MATCH(V$5,tbl_MACRS_Schedule[Years],0),MATCH(CSI_Equipment_deprec,tbl_MACRS_Schedule[#Headers],0))+$N25*INDEX(tbl_MACRS_Schedule[#Data],MATCH(V$5,tbl_MACRS_Schedule[Years],0),MATCH(CSI_Tooling_deprec,tbl_MACRS_Schedule[#Headers],0)) -> 0 | AP25: =$M25*INDEX(tbl_MACRS_Schedule[#Data],MATCH(W$5,tbl_MACRS_Schedule[Years],0),MATCH(CSI_Equipment_deprec,tbl_MACRS_Schedule[#Headers],0))+$N25*INDEX(tbl_MACRS_Schedule[#Data],MATCH(W$5,tbl_MACRS_Schedule[Years],0),MATCH(CSI_Tooling_deprec,tbl_MACRS_Schedule[#Headers],0)) -> 0 | AQ25: =$M25*INDEX(tbl_MACRS_Schedule[#Data],MATCH(X$5,tbl_MACRS_Schedule[Years],0),MATCH(CSI_Equipment_deprec,tbl_MACRS_Schedule[#Headers],0))+$N25*INDEX(tbl_MACRS_Schedule[#Data],MATCH(X$5,tbl_MACRS_Schedule[Years],0),MATCH(CSI_Tooling_deprec,tbl_MACRS_Schedule[#Headers],0)) -> 0 | AR25: =$M25*INDEX(tbl_MACRS_Schedule[#Data],MATCH(Y$5,tbl_MACRS_Schedule[Years],0),MATCH(CSI_Equipment_deprec,tbl_MACRS_Schedule[#Headers],0))+$N25*INDEX(tbl_MACRS_Schedule[#Data],MATCH(Y$5,tbl_MACRS_Schedule[Years],0),MATCH(CSI_Tooling_deprec,tbl_MACRS_Schedule[#Headers],0)) -> 0 | AS25: =$M25*INDEX(tbl_MACRS_Schedule[#Data],MATCH(Z$5,tbl_MACRS_Schedule[Years],0),MATCH(CSI_Equipment_deprec,tbl_MACRS_Schedule[#Headers],0))+$N25*INDEX(tbl_MACRS_Schedule[#Data],MATCH(Z$5,tbl_MACRS_Schedule[Years],0),MATCH(CSI_Tooling_deprec,tbl_MACRS_Schedule[#Headers],0)) -> 0 | AT25: =$M25*INDEX(tbl_MACRS_Schedule[#Data],MATCH(AA$5,tbl_MACRS_Schedule[Years],0),MATCH(CSI_Equipment_deprec,tbl_MACRS_Schedule[#Headers],0))+$N25*INDEX(tbl_MACRS_Schedule[#Data],MATCH(AA$5,tbl_MACRS_Schedule[Years],0),MATCH(CSI_Tooling_deprec,tbl_MACRS_Schedule[#Headers],0)) -> 0 | AU25: 0
C26: =ROW()-ROW(tblI_Equipment[#Headers]) -> 20 | E26: =IFERROR(OFFSET(INDEX(DCF_Calculation_Table,MATCH(CONCATENATE("Equipment ",tblI_Equipment[[#This Row],[Table Name]]),VARIABLE_DESCRIPTION,0),MATCH(AnalysisCountry,CName,0)),1,0),0) -> 0 | F26: =IFERROR(INDEX(DCF_Calculation_Table,MATCH(CONCATENATE("Equipment ",tblI_Equipment[[#This Row],[Table Name]]),VARIABLE_DESCRIPTION,0),MATCH(AnalysisCountry,CName,0)),1) -> 1 | G26: =IFERROR(OFFSET(INDEX(DCF_Calculation_Table,MATCH(CONCATENATE("Depreciable Tooling ",tblI_Equipment[[#This Row],[Table Name]]),VARIABLE_DESCRIPTION,0),MATCH(AnalysisCountry,CName,0)),1,0),0) -> 0 | H26: =IFERROR(INDEX(DCF_Calculation_Table,MATCH(CONCATENATE("Depreciable Tooling ",tblI_Equipment[[#This Row],[Table Name]]),VARIABLE_DESCRIPTION,0),MATCH(AnalysisCountry,CName,0)),"1") -> 1 | J26: replace | K26: 20 | L26: 0 | M26: =SUMPRODUCT(( (CSI_analysis_yrs-K26)>0)*(MOD(K26,tblI_Equipment[Equipment Life (y)])=0),tblI_Equipment[Installed Equipment Cost (USD)]*L26) -> 0 | N26: =SUMPRODUCT(( (CSI_analysis_yrs-K26)>0.5*tblI_Equipment[Depreciable Tooling Life (y)])*(MOD(K26,tblI_Equipment[Depreciable Tooling Life (y)])=0),tblI_Equipment[Depreciable Tooling Cost (USD)]*L26) -> 0 | AK26: =$M26*INDEX(tbl_MACRS_Schedule[#Data],MATCH(Q$5,tbl_MACRS_Schedule[Years],0),MATCH(CSI_Equipment_deprec,tbl_MACRS_Schedule[#Headers],0))+$N26*INDEX(tbl_MACRS_Schedule[#Data],MATCH(Q$5,tbl_MACRS_Schedule[Years],0),MATCH(CSI_Tooling_deprec,tbl_MACRS_Schedule[#Headers],0)) -> 0 | AL26: =$M26*INDEX(tbl_MACRS_Schedule[#Data],MATCH(R$5,tbl_MACRS_Schedule[Years],0),MATCH(CSI_Equipment_deprec,tbl_MACRS_Schedule[#Headers],0))+$N26*INDEX(tbl_MACRS_Schedule[#Data],MATCH(R$5,tbl_MACRS_Schedule[Years],0),MATCH(CSI_Tooling_deprec,tbl_MACRS_Schedule[#Headers],0)) -> 0 | AM26: =$M26*INDEX(tbl_MACRS_Schedule[#Data],MATCH(S$5,tbl_MACRS_Schedule[Years],0),MATCH(CSI_Equipment_deprec,tbl_MACRS_Schedule[#Headers],0))+$N26*INDEX(tbl_MACRS_Schedule[#Data],MATCH(S$5,tbl_MACRS_Schedule[Years],0),MATCH(CSI_Tooling_deprec,tbl_MACRS_Schedule[#Headers],0)) -> 0 | AN26: =$M26*INDEX(tbl_MACRS_Schedule[#Data],MATCH(T$5,tbl_MACRS_Schedule[Years],0),MATCH(CSI_Equipment_deprec,tbl_MACRS_Schedule[#Headers],0))+$N26*INDEX(tbl_MACRS_Schedule[#Data],MATCH(T$5,tbl_MACRS_Schedule[Years],0),MATCH(CSI_Tooling_deprec,tbl_MACRS_Schedule[#Headers],0)) -> 0 | AO26: =$M26*INDEX(tbl_MACRS_Schedule[#Data],MATCH(U$5,tbl_MACRS_Schedule[Years],0),MATCH(CSI_Equipment_deprec,tbl_MACRS_Schedule[#Headers],0))+$N26*INDEX(tbl_MACRS_Schedule[#Data],MATCH(U$5,tbl_MACRS_Schedule[Years],0),MATCH(CSI_Tooling_deprec,tbl_MACRS_Schedule[#Headers],0)) -> 0 | AP26: =$M26*INDEX(tbl_MACRS_Schedule[#Data],MATCH(V$5,tbl_MACRS_Schedule[Years],0),MATCH(CSI_Equipment_deprec,tbl_MACRS_Schedule[#Headers],0))+$N26*INDEX(tbl_MACRS_Schedule[#Data],MATCH(V$5,tbl_MACRS_Schedule[Years],0),MATCH(CSI_Tooling_deprec,tbl_MACRS_Schedule[#Headers],0)) -> 0 | AQ26: =$M26*INDEX(tbl_MACRS_Schedule[#Data],MATCH(W$5,tbl_MACRS_Schedule[Years],0),MATCH(CSI_Equipment_deprec,tbl_MACRS_Schedule[#Headers],0))+$N26*INDEX(tbl_MACRS_Schedule[#Data],MATCH(W$5,tbl_MACRS_Schedule[Years],0),MATCH(CSI_Tooling_deprec,tbl_MACRS_Schedule[#Headers],0)) -> 0 | AR26: =$M26*INDEX(tbl_MACRS_Schedule[#Data],MATCH(X$5,tbl_MACRS_Schedule[Years],0),MATCH(CSI_Equipment_deprec,tbl_MACRS_Schedule[#Headers],0))+$N26*INDEX(tbl_MACRS_Schedule[#Data],MATCH(X$5,tbl_MACRS_Schedule[Years],0),MATCH(CSI_Tooling_deprec,tbl_MACRS_Schedule[#Headers],0)) -> 0 | AS26: =$M26*INDEX(tbl_MACRS_Schedule[#Data],MATCH(Y$5,tbl_MACRS_Schedule[Years],0),MATCH(CSI_Equipment_deprec,tbl_MACRS_Schedule[#Headers],0))+$N26*INDEX(tbl_MACRS_Schedule[#Data],MATCH(Y$5,tbl_MACRS_Schedule[Years],0),MATCH(CSI_Tooling_deprec,tbl_MACRS_Schedule[#Headers],0)) -> 0 | AT26: =$M26*INDEX(tbl_MACRS_Schedule[#Data],MATCH(Z$5,tbl_MACRS_Schedule[Years],0),MATCH(CSI_Equipment_deprec,tbl_MACRS_Schedule[#Headers],0))+$N26*INDEX(tbl_MACRS_Schedule[#Data],MATCH(Z$5,tbl_MACRS_Schedule[Years],0),MATCH(CSI_Tooling_deprec,tbl_MACRS_Schedule[#Headers],0)) -> 0 | AU26: 0
C27: =ROW()-ROW(tblI_Equipment[#Headers]) -> 21 | D27: ='DCF Summary'!L63 -> per/piece | E27: =IFERROR(OFFSET(INDEX(DCF_Calculation_Table,MATCH(CONCATENATE("Equipment ",tblI_Equipment[[#This Row],[Table Name]]),VARIABLE_DESCRIPTION,0),MATCH(AnalysisCountry,CName,0)),1,0),0) -> 0 | F27: =IFERROR(INDEX(DCF_Calculation_Table,MATCH(CONCATENATE("Equipment ",tblI_Equipment[[#This Row],[Table Name]]),VARIABLE_DESCRIPTION,0),MATCH(AnalysisCountry,CName,0)),1) -> 1 | G27: =IFERROR(OFFSET(INDEX(DCF_Calculation_Table,MATCH(CONCATENATE("Depreciable Tooling ",tblI_Equipment[[#This Row],[Table Name]]),VARIABLE_DESCRIPTION,0),MATCH(AnalysisCountry,CName,0)),1,0),0) -> 0 | H27: =IFERROR(INDEX(DCF_Calculation_Table,MATCH(CONCATENATE("Depreciable Tooling ",tblI_Equipment[[#This Row],[Table Name]]),VARIABLE_DESCRIPTION,0),MATCH(AnalysisCountry,CName,0)),"1") -> 1 | K27: 21 | L27: 0 | M27: =SUMPRODUCT(( (CSI_analysis_yrs-K27)>0)*(MOD(K27,tblI_Equipment[Equipment Life (y)])=0),tblI_Equipment[Installed Equipment Cost (USD)]*L27) -> 0 | N27: =SUMPRODUCT(( (CSI_analysis_yrs-K27)>0.5*tblI_Equipment[Depreciable Tooling Life (y)])*(MOD(K27,tblI_Equipment[Depreciable Tooling Life (y)])=0),tblI_Equipment[Depreciable Tooling Cost (USD)]*L27) -> 0 | AL27: =$M27*INDEX(tbl_MACRS_Schedule[#Data],MATCH(Q$5,tbl_MACRS_Schedule[Years],0),MATCH(CSI_Equipment_deprec,tbl_MACRS_Schedule[#Headers],0))+$N27*INDEX(tbl_MACRS_Schedule[#Data],MATCH(Q$5,tbl_MACRS_Schedule[Years],0),MATCH(CSI_Tooling_deprec,tbl_MACRS_Schedule[#Headers],0)) -> 0 | AM27: =$M27*INDEX(tbl_MACRS_Schedule[#Data],MATCH(R$5,tbl_MACRS_Schedule[Years],0),MATCH(CSI_Equipment_deprec,tbl_MACRS_Schedule[#Headers],0))+$N27*INDEX(tbl_MACRS_Schedule[#Data],MATCH(R$5,tbl_MACRS_Schedule[Years],0),MATCH(CSI_Tooling_deprec,tbl_MACRS_Schedule[#Headers],0)) -> 0 | AN27: =$M27*INDEX(tbl_MACRS_Schedule[#Data],MATCH(S$5,tbl_MACRS_Schedule[Years],0),MATCH(CSI_Equipment_deprec,tbl_MACRS_Schedule[#Headers],0))+$N27*INDEX(tbl_MACRS_Schedule[#Data],MATCH(S$5,tbl_MACRS_Schedule[Years],0),MATCH(CSI_Tooling_deprec,tbl_MACRS_Schedule[#Headers],0)) -> 0 | AO27: =$M27*INDEX(tbl_MACRS_Schedule[#Data],MATCH(T$5,tbl_MACRS_Schedule[Years],0),MATCH(CSI_Equipment_deprec,tbl_MACRS_Schedule[#Headers],0))+$N27*INDEX(tbl_MACRS_Schedule[#Data],MATCH(T$5,tbl_MACRS_Schedule[Years],0),MATCH(CSI_Tooling_deprec,tbl_MACRS_Schedule[#Headers],0)) -> 0 | AP27: =$M27*INDEX(tbl_MACRS_Schedule[#Data],MATCH(U$5,tbl_MACRS_Schedule[Years],0),MATCH(CSI_Equipment_deprec,tbl_MACRS_Schedule[#Headers],0))+$N27*INDEX(tbl_MACRS_Schedule[#Data],MATCH(U$5,tbl_MACRS_Schedule[Years],0),MATCH(CSI_Tooling_deprec,tbl_MACRS_Schedule[#Headers],0)) -> 0 | AQ27: =$M27*INDEX(tbl_MACRS_Schedule[#Data],MATCH(V$5,tbl_MACRS_Schedule[Years],0),MATCH(CSI_Equipment_deprec,tbl_MACRS_Schedule[#Headers],0))+$N27*INDEX(tbl_MACRS_Schedule[#Data],MATCH(V$5,tbl_MACRS_Schedule[Years],0),MATCH(CSI_Tooling_deprec,tbl_MACRS_Schedule[#Headers],0)) -> 0 | AR27: =$M27*INDEX(tbl_MACRS_Schedule[#Data],MATCH(W$5,tbl_MACRS_Schedule[Years],0),MATCH(CSI_Equipment_deprec,tbl_MACRS_Schedule[#Headers],0))+$N27*INDEX(tbl_MACRS_Schedule[#Data],MATCH(W$5,tbl_MACRS_Schedule[Years],0),MATCH(CSI_Tooling_deprec,tbl_MACRS_Schedule[#Headers],0)) -> 0 | AS27: =$M27*INDEX(tbl_MACRS_Schedule[#Data],MATCH(X$5,tbl_MACRS_Schedule[Years],0),MATCH(CSI_Equipment_deprec,tbl_MACRS_Schedule[#Headers],0))+$N27*INDEX(tbl_MACRS_Schedule[#Data],MATCH(X$5,tbl_MACRS_Schedule[Years],0),MATCH(CSI_Tooling_deprec,tbl_MACRS_Schedule[#Headers],0)) -> 0 | AT27: =$M27*INDEX(tbl_MACRS_Schedule[#Data],MATCH(Y$5,tbl_MACRS_Schedule[Years],0),MATCH(CSI_Equipment_deprec,tbl_MACRS_Schedule[#Headers],0))+$N27*INDEX(tbl_MACRS_Schedule[#Data],MATCH(Y$5,tbl_MACRS_Schedule[Years],0),MATCH(CSI_Tooling_deprec,tbl_MACRS_Schedule[#Headers],0)) -> 0 | AU27: 0
C28: Total | E28: =SUBTOTAL(109,tblI_Equipment[Installed Equipment Cost (USD)]) -> 7700000 | G28: =SUBTOTAL(109,tblI_Equipment[Depreciable Tooling Cost (USD)]) -> 0 | K28: 22 | L28: 0 | M28: =SUMPRODUCT(( (CSI_analysis_yrs-K28)>0)*(MOD(K28,tblI_Equipment[Equipment Life (y)])=0),tblI_Equipment[Installed Equipment Cost (USD)]*L28) -> 0 | N28: =SUMPRODUCT(( (CSI_analysis_yrs-K28)>0.5*tblI_Equipment[Depreciable Tooling Life (y)])*(MOD(K28,tblI_Equipment[Depreciable Tooling Life (y)])=0),tblI_Equipment[Depreciable Tooling Cost (USD)]*L28) -> 0 | AM28: =$M28*INDEX(tbl_MACRS_Schedule[#Data],MATCH(Q$5,tbl_MACRS_Schedule[Years],0),MATCH(CSI_Equipment_deprec,tbl_MACRS_Schedule[#Headers],0))+$N28*INDEX(tbl_MACRS_Schedule[#Data],MATCH(Q$5,tbl_MACRS_Schedule[Years],0),MATCH(CSI_Tooling_deprec,tbl_MACRS_Schedule[#Headers],0)) -> 0 | AN28: =$M28*INDEX(tbl_MACRS_Schedule[#Data],MATCH(R$5,tbl_MACRS_Schedule[Years],0),MATCH(CSI_Equipment_deprec,tbl_MACRS_Schedule[#Headers],0))+$N28*INDEX(tbl_MACRS_Schedule[#Data],MATCH(R$5,tbl_MACRS_Schedule[Years],0),MATCH(CSI_Tooling_deprec,tbl_MACRS_Schedule[#Headers],0)) -> 0 | AO28: =$M28*INDEX(tbl_MACRS_Schedule[#Data],MATCH(S$5,tbl_MACRS_Schedule[Years],0),MATCH(CSI_Equipment_deprec,tbl_MACRS_Schedule[#Headers],0))+$N28*INDEX(tbl_MACRS_Schedule[#Data],MATCH(S$5,tbl_MACRS_Schedule[Years],0),MATCH(CSI_Tooling_deprec,tbl_MACRS_Schedule[#Headers],0)) -> 0 | AP28: =$M28*INDEX(tbl_MACRS_Schedule[#Data],MATCH(T$5,tbl_MACRS_Schedule[Years],0),MATCH(CSI_Equipment_deprec,tbl_MACRS_Schedule[#Headers],0))+$N28*INDEX(tbl_MACRS_Schedule[#Data],MATCH(T$5,tbl_MACRS_Schedule[Years],0),MATCH(CSI_Tooling_deprec,tbl_MACRS_Schedule[#Headers],0)) -> 0 | AQ28: =$M28*INDEX(tbl_MACRS_Schedule[#Data],MATCH(U$5,tbl_MACRS_Schedule[Years],0),MATCH(CSI_Equipment_deprec,tbl_MACRS_Schedule[#Headers],0))+$N28*INDEX(tbl_MACRS_Schedule[#Data],MATCH(U$5,tbl_MACRS_Schedule[Years],0),MATCH(CSI_Tooling_deprec,tbl_MACRS_Schedule[#Headers],0)) -> 0 | AR28: =$M28*INDEX(tbl_MACRS_Schedule[#Data],MATCH(V$5,tbl_MACRS_Schedule[Years],0),MATCH(CSI_Equipment_deprec,tbl_MACRS_Schedule[#Headers],0))+$N28*INDEX(tbl_MACRS_Schedule[#Data],MATCH(V$5,tbl_MACRS_Schedule[Years],0),MATCH(CSI_Tooling_deprec,tbl_MACRS_Schedule[#Headers],0)) -> 0 | AS28: =$M28*INDEX(tbl_MACRS_Schedule[#Data],MATCH(W$5,tbl_MACRS_Schedule[Years],0),MATCH(CSI_Equipment_deprec,tbl_MACRS_Schedule[#Headers],0))+$N28*INDEX(tbl_MACRS_Schedule[#Data],MATCH(W$5,tbl_MACRS_Schedule[Years],0),MATCH(CSI_Tooling_deprec,tbl_MACRS_Schedule[#Headers],0)) -> 0 | AT28: =$M28*INDEX(tbl_MACRS_Schedule[#Data],MATCH(X$5,tbl_MACRS_Schedule[Years],0),MATCH(CSI_Equipment_deprec,tbl_MACRS_Schedule[#Headers],0))+$N28*INDEX(tbl_MACRS_Schedule[#Data],MATCH(X$5,tbl_MACRS_Schedule[Years],0),MATCH(CSI_Tooling_deprec,tbl_MACRS_Schedule[#Headers],0)) -> 0 | AU28: 0
K29: 23 | L29: 0 | M29: =SUMPRODUCT(( (CSI_analysis_yrs-K29)>0)*(MOD(K29,tblI_Equipment[Equipment Life (y)])=0),tblI_Equipment[Installed Equipment Cost (USD)]*L29) -> 0 | N29: =SUMPRODUCT(( (CSI_analysis_yrs-K29)>0.5*tblI_Equipment[Depreciable Tooling Life (y)])*(MOD(K29,tblI_Equipment[Depreciable Tooling Life (y)])=0),tblI_Equipment[Depreciable Tooling Cost (USD)]*L29) -> 0 | AN29: =$M29*INDEX(tbl_MACRS_Schedule[#Data],MATCH(Q$5,tbl_MACRS_Schedule[Years],0),MATCH(CSI_Equipment_deprec,tbl_MACRS_Schedule[#Headers],0))+$N29*INDEX(tbl_MACRS_Schedule[#Data],MATCH(Q$5,tbl_MACRS_Schedule[Years],0),MATCH(CSI_Tooling_deprec,tbl_MACRS_Schedule[#Headers],0)) -> 0 | AO29: =$M29*INDEX(tbl_MACRS_Schedule[#Data],MATCH(R$5,tbl_MACRS_Schedule[Years],0),MATCH(CSI_Equipment_deprec,tbl_MACRS_Schedule[#Headers],0))+$N29*INDEX(tbl_MACRS_Schedule[#Data],MATCH(R$5,tbl_MACRS_Schedule[Years],0),MATCH(CSI_Tooling_deprec,tbl_MACRS_Schedule[#Headers],0)) -> 0 | AP29: =$M29*INDEX(tbl_MACRS_Schedule[#Data],MATCH(S$5,tbl_MACRS_Schedule[Years],0),MATCH(CSI_Equipment_deprec,tbl_MACRS_Schedule[#Headers],0))+$N29*INDEX(tbl_MACRS_Schedule[#Data],MATCH(S$5,tbl_MACRS_Schedule[Years],0),MATCH(CSI_Tooling_deprec,tbl_MACRS_Schedule[#Headers],0)) -> 0 | AQ29: =$M29*INDEX(tbl_MACRS_Schedule[#Data],MATCH(T$5,tbl_MACRS_Schedule[Years],0),MATCH(CSI_Equipment_deprec,tbl_MACRS_Schedule[#Headers],0))+$N29*INDEX(tbl_MACRS_Schedule[#Data],MATCH(T$5,tbl_MACRS_Schedule[Years],0),MATCH(CSI_Tooling_deprec,tbl_MACRS_Schedule[#Headers],0)) -> 0 | AR29: =$M29*INDEX(tbl_MACRS_Schedule[#Data],MATCH(U$5,tbl_MACRS_Schedule[Years],0),MATCH(CSI_Equipment_deprec,tbl_MACRS_Schedule[#Headers],0))+$N29*INDEX(tbl_MACRS_Schedule[#Data],MATCH(U$5,tbl_MACRS_Schedule[Years],0),MATCH(CSI_Tooling_deprec,tbl_MACRS_Schedule[#Headers],0)) -> 0 | AS29: =$M29*INDEX(tbl_MACRS_Schedule[#Data],MATCH(V$5,tbl_MACRS_Schedule[Years],0),MATCH(CSI_Equipment_deprec,tbl_MACRS_Schedule[#Headers],0))+$N29*INDEX(tbl_MACRS_Schedule[#Data],MATCH(V$5,tbl_MACRS_Schedule[Years],0),MATCH(CSI_Tooling_deprec,tbl_MACRS_Schedule[#Headers],0)) -> 0 | AT29: =$M29*INDEX(tbl_MACRS_Schedule[#Data],MATCH(W$5,tbl_MACRS_Schedule[Years],0),MATCH(CSI_Equipment_deprec,tbl_MACRS_Schedule[#Headers],0))+$N29*INDEX(tbl_MACRS_Schedule[#Data],MATCH(W$5,tbl_MACRS_Schedule[Years],0),MATCH(CSI_Tooling_deprec,tbl_MACRS_Schedule[#Headers],0)) -> 0 | AU29: 0
K30: 24 | L30: 0 | M30: =SUMPRODUCT(( (CSI_analysis_yrs-K30)>0)*(MOD(K30,tblI_Equipment[Equipment Life (y)])=0),tblI_Equipment[Installed Equipment Cost (USD)]*L30) -> 0 | N30: =SUMPRODUCT(( (CSI_analysis_yrs-K30)>0.5*tblI_Equipment[Depreciable Tooling Life (y)])*(MOD(K30,tblI_Equipment[Depreciable Tooling Life (y)])=0),tblI_Equipment[Depreciable Tooling Cost (USD)]*L30) -> 0 | AO30: =$M30*INDEX(tbl_MACRS_Schedule[#Data],MATCH(Q$5,tbl_MACRS_Schedule[Years],0),MATCH(CSI_Equipment_deprec,tbl_MACRS_Schedule[#Headers],0))+$N30*INDEX(tbl_MACRS_Schedule[#Data],MATCH(Q$5,tbl_MACRS_Schedule[Years],0),MATCH(CSI_Tooling_deprec,tbl_MACRS_Schedule[#Headers],0)) -> 0 | AP30: =$M30*INDEX(tbl_MACRS_Schedule[#Data],MATCH(R$5,tbl_MACRS_Schedule[Years],0),MATCH(CSI_Equipment_deprec,tbl_MACRS_Schedule[#Headers],0))+$N30*INDEX(tbl_MACRS_Schedule[#Data],MATCH(R$5,tbl_MACRS_Schedule[Years],0),MATCH(CSI_Tooling_deprec,tbl_MACRS_Schedule[#Headers],0)) -> 0 | AQ30: =$M30*INDEX(tbl_MACRS_Schedule[#Data],MATCH(S$5,tbl_MACRS_Schedule[Years],0),MATCH(CSI_Equipment_deprec,tbl_MACRS_Schedule[#Headers],0))+$N30*INDEX(tbl_MACRS_Schedule[#Data],MATCH(S$5,tbl_MACRS_Schedule[Years],0),MATCH(CSI_Tooling_deprec,tbl_MACRS_Schedule[#Headers],0)) -> 0 | AR30: =$M30*INDEX(tbl_MACRS_Schedule[#Data],MATCH(T$5,tbl_MACRS_Schedule[Years],0),MATCH(CSI_Equipment_deprec,tbl_MACRS_Schedule[#Headers],0))+$N30*INDEX(tbl_MACRS_Schedule[#Data],MATCH(T$5,tbl_MACRS_Schedule[Years],0),MATCH(CSI_Tooling_deprec,tbl_MACRS_Schedule[#Headers],0)) -> 0 | AS30: =$M30*INDEX(tbl_MACRS_Schedule[#Data],MATCH(U$5,tbl_MACRS_Schedule[Years],0),MATCH(CSI_Equipment_deprec,tbl_MACRS_Schedule[#Headers],0))+$N30*INDEX(tbl_MACRS_Schedule[#Data],MATCH(U$5,tbl_MACRS_Schedule[Years],0),MATCH(CSI_Tooling_deprec,tbl_MACRS_Schedule[#Headers],0)) -> 0 | AT30: =$M30*INDEX(tbl_MACRS_Schedule[#Data],MATCH(V$5,tbl_MACRS_Schedule[Years],0),MATCH(CSI_Equipment_deprec,tbl_MACRS_Schedule[#Headers],0))+$N30*INDEX(tbl_MACRS_Schedule[#Data],MATCH(V$5,tbl_MACRS_Schedule[Years],0),MATCH(CSI_Tooling_deprec,tbl_MACRS_Schedule[#Headers],0)) -> 0 | AU30: 0
E31: =SUMPRODUCT(( (CSI_analysis_yrs-K31)>0)*(MOD(K31,F7)=0),E7*L31) -> 0 | K31: 25 | L31: 0 | M31: =SUMPRODUCT(( (CSI_analysis_yrs-K31)>0)*(MOD(K31,tblI_Equipment[Equipment Life (y)])=0),tblI_Equipment[Installed Equipment Cost (USD)]*L31) -> 0 | N31: =SUMPRODUCT(( (CSI_analysis_yrs-K31)>0.5*tblI_Equipment[Depreciable Tooling Life (y)])*(MOD(K31,tblI_Equipment[Depreciable Tooling Life (y)])=0),tblI_Equipment[Depreciable Tooling Cost (USD)]*L31) -> 0 | AP31: =$M31*INDEX(tbl_MACRS_Schedule[#Data],MATCH(Q$5,tbl_MACRS_Schedule[Years],0),MATCH(CSI_Equipment_deprec,tbl_MACRS_Schedule[#Headers],0))+$N31*INDEX(tbl_MACRS_Schedule[#Data],MATCH(Q$5,tbl_MACRS_Schedule[Years],0),MATCH(CSI_Tooling_deprec,tbl_MACRS_Schedule[#Headers],0)) -> 0 | AQ31: =$M31*INDEX(tbl_MACRS_Schedule[#Data],MATCH(R$5,tbl_MACRS_Schedule[Years],0),MATCH(CSI_Equipment_deprec,tbl_MACRS_Schedule[#Headers],0))+$N31*INDEX(tbl_MACRS_Schedule[#Data],MATCH(R$5,tbl_MACRS_Schedule[Years],0),MATCH(CSI_Tooling_deprec,tbl_MACRS_Schedule[#Headers],0)) -> 0 | AR31: =$M31*INDEX(tbl_MACRS_Schedule[#Data],MATCH(S$5,tbl_MACRS_Schedule[Years],0),MATCH(CSI_Equipment_deprec,tbl_MACRS_Schedule[#Headers],0))+$N31*INDEX(tbl_MACRS_Schedule[#Data],MATCH(S$5,tbl_MACRS_Schedule[Years],0),MATCH(CSI_Tooling_deprec,tbl_MACRS_Schedule[#Headers],0)) -> 0 | AS31: =$M31*INDEX(tbl_MACRS_Schedule[#Data],MATCH(T$5,tbl_MACRS_Schedule[Years],0),MATCH(CSI_Equipment_deprec,tbl_MACRS_Schedule[#Headers],0))+$N31*INDEX(tbl_MACRS_Schedule[#Data],MATCH(T$5,tbl_MACRS_Schedule[Years],0),MATCH(CSI_Tooling_deprec,tbl_MACRS_Schedule[#Headers],0)) -> 0 | AT31: =$M31*INDEX(tbl_MACRS_Schedule[#Data],MATCH(U$5,tbl_MACRS_Schedule[Years],0),MATCH(CSI_Equipment_deprec,tbl_MACRS_Schedule[#Headers],0))+$N31*INDEX(tbl_MACRS_Schedule[#Data],MATCH(U$5,tbl_MACRS_Schedule[Years],0),MATCH(CSI_Tooling_deprec,tbl_MACRS_Schedule[#Headers],0)) -> 0 | AU31: 0
K32: 26 | L32: 0 | M32: =SUMPRODUCT(( (CSI_analysis_yrs-K32)>0)*(MOD(K32,tblI_Equipment[Equipment Life (y)])=0),tblI_Equipment[Installed Equipment Cost (USD)]*L32) -> 0 | N32: =SUMPRODUCT(( (CSI_analysis_yrs-K32)>0.5*tblI_Equipment[Depreciable Tooling Life (y)])*(MOD(K32,tblI_Equipment[Depreciable Tooling Life (y)])=0),tblI_Equipment[Depreciable Tooling Cost (USD)]*L32) -> 0 | AQ32: =$M32*INDEX(tbl_MACRS_Schedule[#Data],MATCH(Q$5,tbl_MACRS_Schedule[Years],0),MATCH(CSI_Equipment_deprec,tbl_MACRS_Schedule[#Headers],0))+$N32*INDEX(tbl_MACRS_Schedule[#Data],MATCH(Q$5,tbl_MACRS_Schedule[Years],0),MATCH(CSI_Tooling_deprec,tbl_MACRS_Schedule[#Headers],0)) -> 0 | AR32: =$M32*INDEX(tbl_MACRS_Schedule[#Data],MATCH(R$5,tbl_MACRS_Schedule[Years],0),MATCH(CSI_Equipment_deprec,tbl_MACRS_Schedule[#Headers],0))+$N32*INDEX(tbl_MACRS_Schedule[#Data],MATCH(R$5,tbl_MACRS_Schedule[Years],0),MATCH(CSI_Tooling_deprec,tbl_MACRS_Schedule[#Headers],0)) -> 0 | AS32: =$M32*INDEX(tbl_MACRS_Schedule[#Data],MATCH(S$5,tbl_MACRS_Schedule[Years],0),MATCH(CSI_Equipment_deprec,tbl_MACRS_Schedule[#Headers],0))+$N32*INDEX(tbl_MACRS_Schedule[#Data],MATCH(S$5,tbl_MACRS_Schedule[Years],0),MATCH(CSI_Tooling_deprec,tbl_MACRS_Schedule[#Headers],0)) -> 0 | AT32: =$M32*INDEX(tbl_MACRS_Schedule[#Data],MATCH(T$5,tbl_MACRS_Schedule[Years],0),MATCH(CSI_Equipment_deprec,tbl_MACRS_Schedule[#Headers],0))+$N32*INDEX(tbl_MACRS_Schedule[#Data],MATCH(T$5,tbl_MACRS_Schedule[Years],0),MATCH(CSI_Tooling_deprec,tbl_MACRS_Schedule[#Headers],0)) -> 0 | AU32: 0
K33: 27 | L33: 0 | M33: =SUMPRODUCT(( (CSI_analysis_yrs-K33)>0)*(MOD(K33,tblI_Equipment[Equipment Life (y)])=0),tblI_Equipment[Installed Equipment Cost (USD)]*L33) -> 0 | N33: =SUMPRODUCT(( (CSI_analysis_yrs-K33)>0.5*tblI_Equipment[Depreciable Tooling Life (y)])*(MOD(K33,tblI_Equipment[Depreciable Tooling Life (y)])=0),tblI_Equipment[Depreciable Tooling Cost (USD)]*L33) -> 0 | AR33: =$M33*INDEX(tbl_MACRS_Schedule[#Data],MATCH(Q$5,tbl_MACRS_Schedule[Years],0),MATCH(CSI_Equipment_deprec,tbl_MACRS_Schedule[#Headers],0))+$N33*INDEX(tbl_MACRS_Schedule[#Data],MATCH(Q$5,tbl_MACRS_Schedule[Years],0),MATCH(CSI_Tooling_deprec,tbl_MACRS_Schedule[#Headers],0)) -> 0 | AS33: =$M33*INDEX(tbl_MACRS_Schedule[#Data],MATCH(R$5,tbl_MACRS_Schedule[Years],0),MATCH(CSI_Equipment_deprec,tbl_MACRS_Schedule[#Headers],0))+$N33*INDEX(tbl_MACRS_Schedule[#Data],MATCH(R$5,tbl_MACRS_Schedule[Years],0),MATCH(CSI_Tooling_deprec,tbl_MACRS_Schedule[#Headers],0)) -> 0 | AT33: =$M33*INDEX(tbl_MACRS_Schedule[#Data],MATCH(S$5,tbl_MACRS_Schedule[Years],0),MATCH(CSI_Equipment_deprec,tbl_MACRS_Schedule[#Headers],0))+$N33*INDEX(tbl_MACRS_Schedule[#Data],MATCH(S$5,tbl_MACRS_Schedule[Years],0),MATCH(CSI_Tooling_deprec,tbl_MACRS_Schedule[#Headers],0)) -> 0 | AU33: 0
K34: 28 | L34: 0 | M34: =SUMPRODUCT(( (CSI_analysis_yrs-K34)>0)*(MOD(K34,tblI_Equipment[Equipment Life (y)])=0),tblI_Equipment[Installed Equipment Cost (USD)]*L34) -> 0 | N34: =SUMPRODUCT(( (CSI_analysis_yrs-K34)>0.5*tblI_Equipment[Depreciable Tooling Life (y)])*(MOD(K34,tblI_Equipment[Depreciable Tooling Life (y)])=0),tblI_Equipment[Depreciable Tooling Cost (USD)]*L34) -> 0 | AS34: =$M34*INDEX(tbl_MACRS_Schedule[#Data],MATCH(Q$5,tbl_MACRS_Schedule[Years],0),MATCH(CSI_Equipment_deprec,tbl_MACRS_Schedule[#Headers],0))+$N34*INDEX(tbl_MACRS_Schedule[#Data],MATCH(Q$5,tbl_MACRS_Schedule[Years],0),MATCH(CSI_Tooling_deprec,tbl_MACRS_Schedule[#Headers],0)) -> 0 | AT34: =$M34*INDEX(tbl_MACRS_Schedule[#Data],MATCH(R$5,tbl_MACRS_Schedule[Years],0),MATCH(CSI_Equipment_deprec,tbl_MACRS_Schedule[#Headers],0))+$N34*INDEX(tbl_MACRS_Schedule[#Data],MATCH(R$5,tbl_MACRS_Schedule[Years],0),MATCH(CSI_Tooling_deprec,tbl_MACRS_Schedule[#Headers],0)) -> 0 | AU34: 0
K35: 29 | L35: 0 | M35: =SUMPRODUCT(( (CSI_analysis_yrs-K35)>0)*(MOD(K35,tblI_Equipment[Equipment Life (y)])=0),tblI_Equipment[Installed Equipment Cost (USD)]*L35) -> 0 | N35: =SUMPRODUCT(( (CSI_analysis_yrs-K35)>0.5*tblI_Equipment[Depreciable Tooling Life (y)])*(MOD(K35,tblI_Equipment[Depreciable Tooling Life (y)])=0),tblI_Equipment[Depreciable Tooling Cost (USD)]*L35) -> 0 | P35: Total | AT35: =$M34*INDEX(tbl_MACRS_Schedule[#Data],MATCH(Q$5,tbl_MACRS_Schedule[Years],0),MATCH(CSI_Equipment_deprec,tbl_MACRS_Schedule[#Headers],0))+$N34*INDEX(tbl_MACRS_Schedule[#Data],MATCH(Q$5,tbl_MACRS_Schedule[Years],0),MATCH(CSI_Tooling_deprec,tbl_MACRS_Schedule[#Headers],0)) -> 0 | AU35: 0
K36: 30 | L36: 0 | M36: =SUMPRODUCT(( (CSI_analysis_yrs-K36)>0)*(MOD(K36,tblI_Equipment[Equipment Life (y)])=0),tblI_Equipment[Installed Equipment Cost (USD)]*L36) -> 0 | N36: =SUMPRODUCT(( (CSI_analysis_yrs-K36)>0.5*tblI_Equipment[Depreciable Tooling Life (y)])*(MOD(K36,tblI_Equipment[Depreciable Tooling Life (y)])=0),tblI_Equipment[Depreciable Tooling Cost (USD)]*L36) -> 0 | Q36: =IF(Q5<=CSI_analysis_yrs,SUM(Q6:Q35),0) -> 1100000 | R36: 1100000 | S36: 1100000 | T36: 1100000 | U36: 1100000 | V36: 1100000 | W36: 1100000 | X36: 0 | Y36: 0 | Z36: 0 | AA36: 0 | AB36: 0 | AC36: 0 | AD36: 0 | AE36: 0 | AF36: 0 | AG36: 0 | AH36: 0 | AI36: 0 | AJ36: 0 | AK36: 0 | AL36: 0 | AM36: 0 | AN36: 0 | AO36: 0 | AP36: 0 | AQ36: 0 | AR36: 0 | AS36: 0 | AT36: 0 | AU36: =SUM(AU6:AU35) -> 0
B43: Building Depreciation
P45: Depreciation Charge
P46: Operation Year | Q46: 1 | R46: 2 | S46: 3 | T46: 4 | U46: 5 | V46: 6 | W46: 7 | X46: 8 | Y46: 9 | Z46: 10 | AA46: 11 | AB46: 12 | AC46: 13 | AD46: 14 | AE46: 15 | AF46: 16 | AG46: 17 | AH46: 18 | AI46: 19 | AJ46: 20 | AK46: 21 | AL46: 22 | AM46: 23 | AN46: 24 | AO46: 25 | AP46: 26 | AQ46: 27 | AR46: 28 | AS46: 29 | AT46: 30
Q47: =CSI_Building*INDEX(tbl_MACRS_Schedule[#Data],MATCH(Q$5,tbl_MACRS_Schedule[Years],0),MATCH(CSI_Building_deprec,tbl_MACRS_Schedule[#Headers],0)) -> 6109066.667 | R47: =CSI_Building*INDEX(tbl_MACRS_Schedule[#Data],MATCH(R$5,tbl_MACRS_Schedule[Years],0),MATCH(CSI_Building_deprec,tbl_MACRS_Schedule[#Headers],0)) -> 6109066.667 | S47: =CSI_Building*INDEX(tbl_MACRS_Schedule[#Data],MATCH(S$5,tbl_MACRS_Schedule[Years],0),MATCH(CSI_Building_deprec,tbl_MACRS_Schedule[#Headers],0)) -> 6109066.667 | T47: =CSI_Building*INDEX(tbl_MACRS_Schedule[#Data],MATCH(T$5,tbl_MACRS_Schedule[Years],0),MATCH(CSI_Building_deprec,tbl_MACRS_Schedule[#Headers],0)) -> 0 | U47: =CSI_Building*INDEX(tbl_MACRS_Schedule[#Data],MATCH(U$5,tbl_MACRS_Schedule[Years],0),MATCH(CSI_Building_deprec,tbl_MACRS_Schedule[#Headers],0)) -> 0 | V47: =CSI_Building*INDEX(tbl_MACRS_Schedule[#Data],MATCH(V$5,tbl_MACRS_Schedule[Years],0),MATCH(CSI_Building_deprec,tbl_MACRS_Schedule[#Headers],0)) -> 0 | W47: =CSI_Building*INDEX(tbl_MACRS_Schedule[#Data],MATCH(W$5,tbl_MACRS_Schedule[Years],0),MATCH(CSI_Building_deprec,tbl_MACRS_Schedule[#Headers],0)) -> 0 | X47: =CSI_Building*INDEX(tbl_MACRS_Schedule[#Data],MATCH(X$5,tbl_MACRS_Schedule[Years],0),MATCH(CSI_Building_deprec,tbl_MACRS_Schedule[#Headers],0)) -> 0 | Y47: =CSI_Building*INDEX(tbl_MACRS_Schedule[#Data],MATCH(Y$5,tbl_MACRS_Schedule[Years],0),MATCH(CSI_Building_deprec,tbl_MACRS_Schedule[#Headers],0)) -> 0 | Z47: =CSI_Building*INDEX(tbl_MACRS_Schedule[#Data],MATCH(Z$5,tbl_MACRS_Schedule[Years],0),MATCH(CSI_Building_deprec,tbl_MACRS_Schedule[#Headers],0)) -> 0 | AA47: =CSI_Building*INDEX(tbl_MACRS_Schedule[#Data],MATCH(AA$5,tbl_MACRS_Schedule[Years],0),MATCH(CSI_Building_deprec,tbl_MACRS_Schedule[#Headers],0)) -> 0 | AB47: =CSI_Building*INDEX(tbl_MACRS_Schedule[#Data],MATCH(AB$5,tbl_MACRS_Schedule[Years],0),MATCH(CSI_Building_deprec,tbl_MACRS_Schedule[#Headers],0)) -> 0 | AC47: =CSI_Building*INDEX(tbl_MACRS_Schedule[#Data],MATCH(AC$5,tbl_MACRS_Schedule[Years],0),MATCH(CSI_Building_deprec,tbl_MACRS_Schedule[#Headers],0)) -> 0 | AD47: =CSI_Building*INDEX(tbl_MACRS_Schedule[#Data],MATCH(AD$5,tbl_MACRS_Schedule[Years],0),MATCH(CSI_Building_deprec,tbl_MACRS_Schedule[#Headers],0)) -> 0 | AE47: =CSI_Building*INDEX(tbl_MACRS_Schedule[#Data],MATCH(AE$5,tbl_MACRS_Schedule[Years],0),MATCH(CSI_Building_deprec,tbl_MACRS_Schedule[#Headers],0)) -> 0 | AF47: =CSI_Building*INDEX(tbl_MACRS_Schedule[#Data],MATCH(AF$5,tbl_MACRS_Schedule[Years],0),MATCH(CSI_Building_deprec,tbl_MACRS_Schedule[#Headers],0)) -> 0 | AG47: =CSI_Building*INDEX(tbl_MACRS_Schedule[#Data],MATCH(AG$5,tbl_MACRS_Schedule[Years],0),MATCH(CSI_Building_deprec,tbl_MACRS_Schedule[#Headers],0)) -> 0 | AH47: =CSI_Building*INDEX(tbl_MACRS_Schedule[#Data],MATCH(AH$5,tbl_MACRS_Schedule[Years],0),MATCH(CSI_Building_deprec,tbl_MACRS_Schedule[#Headers],0)) -> 0 | AI47: =CSI_Building*INDEX(tbl_MACRS_Schedule[#Data],MATCH(AI$5,tbl_MACRS_Schedule[Years],0),MATCH(CSI_Building_deprec,tbl_MACRS_Schedule[#Headers],0)) -> 0 | AJ47: =CSI_Building*INDEX(tbl_MACRS_Schedule[#Data],MATCH(AJ$5,tbl_MACRS_Schedule[Years],0),MATCH(CSI_Building_deprec,tbl_MACRS_Schedule[#Headers],0)) -> 0 | AK47: =CSI_Building*INDEX(tbl_MACRS_Schedule[#Data],MATCH(AK$5,tbl_MACRS_Schedule[Years],0),MATCH(CSI_Building_deprec,tbl_MACRS_Schedule[#Headers],0)) -> 0

Sheet MACRS Schedule
B4: MODIFIED ACCELERATED COST RECOVERY SYSTEM (MACRS)
B6: Years | C6: 3 year MACRS | D6: 5 year MACRS | E6: 7 year MACRS | F6: 10 year MACRS | G6: 15 year MACRS | H6: 20 year MACRS | I6: 3 Year Straighline | J6: 5 Year Straighline | K6: 7 Year Straighline | L6: 10 Year Straighline | M6: 15 Year Straighline | N6: 20 Year Straightline
B7: 1 | C7: 0.3333333333 | D7: 0.2 | E7: 0.1429 | F7: 0.1 | G7: 0.05 | H7: 0.0375 | I7: =1/3 -> 0.3333333333 | J7: 0.2 | K7: =1/7 -> 0.1428571429 | L7: 0.1 | M7: =1/15 -> 0.06666666667 | N7: =1/20 -> 0.05
B8: 2 | C8: 0.4445 | D8: 0.32 | E8: 0.2449 | F8: 0.18 | G8: 0.095 | H8: 0.0722 | I8: 0.3333333333 | J8: 0.2 | K8: 0.1428571429 | L8: 0.1 | M8: 0.06666666667 | N8: 0.05
B9: 3 | C9: 0.1481 | D9: 0.192 | E9: 0.1749 | F9: 0.144 | G9: 0.0855 | H9: 0.0668 | I9: 0.3333333333 | J9: 0.2 | K9: 0.1428571429 | L9: 0.1 | M9: 0.06666666667 | N9: 0.05
B10: 4 | C10: 0.0741 | D10: 0.1152 | E10: 0.1249 | F10: 0.1152 | G10: 0.077 | H10: 0.0618 | J10: 0.2 | K10: 0.1428571429 | L10: 0.1 | M10: 0.06666666667 | N10: 0.05
B11: 5 | D11: 0.1152 | E11: 0.0893 | F11: 0.0922 | G11: 0.0693 | H11: 0.0571 | J11: 0.2 | K11: 0.1428571429 | L11: 0.1 | M11: 0.06666666667 | N11: 0.05
B12: 6 | D12: 0.0576 | E12: 0.0893 | F12: 0.0737 | G12: 0.0623 | H12: 0.0528 | K12: 0.1428571429 | L12: 0.1 | M12: 0.06666666667 | N12: 0.05
B13: 7 | E13: 0.0893 | F13: 0.0655 | G13: 0.059 | H13: 0.0489 | K13: 0.1428571429 | L13: 0.1 | M13: 0.06666666667 | N13: 0.05
B14: 8 | E14: 0.0445 | F14: 0.0655 | G14: 0.059 | H14: 0.0452 | L14: 0.1 | M14: 0.06666666667 | N14: 0.05
B15: 9 | F15: 0.0655 | G15: 0.059 | H15: 0.0446 | L15: 0.1 | M15: 0.06666666667 | N15: 0.05
B16: 10 | F16: 0.0655 | G16: 0.059 | H16: 0.0446 | L16: 0.1 | M16: 0.06666666667 | N16: 0.05
B17: 11 | F17: 0.0329 | G17: 0.059 | H17: 0.0446 | M17: 0.06666666667 | N17: 0.05
B18: 12 | G18: 0.059 | H18: 0.0446 | M18: 0.06666666667 | N18: 0.05
B19: 13 | G19: 0.059 | H19: 0.0446 | M19: 0.06666666667 | N19: 0.05
B20: 14 | G20: 0.059 | H20: 0.0446 | M20: 0.06666666667 | N20: 0.05
B21: 15 | G21: 0.059 | H21: 0.0446 | M21: 0.06666666667 | N21: 0.05
B22: 16 | G22: 0.0299 | H22: 0.0446 | N22: 0.05
B23: 17 | H23: 0.0446 | N23: 0.05
B24: 18 | H24: 0.0446 | N24: 0.05
B25: 19 | H25: 0.0446 | N25: 0.05
B26: 20 | H26: 0.0446 | N26: 0.05
B27: 21 | H27: 0.0225
C28: 1.000033333 | D28: 1 | E28: 1 | F28: 1 | G28: 1 | H28: 1

Sheet CEMAC Standard Indicies Data
B5: Database File: | C5: CEMAC Standard Indices Data December 2016_RevisionI.xlsx
B6: Date Copied | C6: 2016-12-20T16:28:33
B7: All tables were successfully copied
B9: tbl_US_Wage | F9: tbl_Corporate_Interest_Rates | M9: tbl_International_Labor | AM9: tbl_Electricity_Data | AU9: tbl_NaturalGas_Data | BA9: tbl_World_Countries
B10: Wage Category | C10: Expected Use | D10: Mean Hourly Cost | F10: Country Name | G10: 2010 | H10: 2011 | I10: 2012 | J10: 2013 | K10: 2014 | M10: Country | N10: 1996 | O10: 1997 | P10: 1998 | Q10: 1999 | R10: 2000 | S10: 2001 | T10: 2002 | U10: 2003 | V10: 2004 | W10: 2005 | X10: 2006 | Y10: 2007 | Z10: 2008 | AA10: 2009 | AB10: 2010 | AC10: 2011 | AD10: 2012 | AE10: 2013 | AF10: 2014 Labor Cost (2013 rate adjusted for inflation and exchange rate) | AG10: 2014 Relative % Rate Compared to U.S. | AH10: 2014 Inflation Adjustment | AI10: 2014 Currency Adjustment | AJ10: Toal 2014 Adjustment | AK10: Note: | AM10: Country or State | AN10: Value (USD) | AO10: Min Value for Sensitivity | AP10: Max Value for Sensitivity | AQ10: Note | AR10: Date | AS10: Source | AU10: IEA Data | AV10: $ per MMBTU | AW10: Min Value for Sensitivity | AX10: Max Value for Sensitivity | AY10: Note | BA10: Countries and Territories | BB10: Region | BC10: Common Countries
B11: Helpers-Production Workers | C11: Unskilled labor | D11: 16.45847 | F11: Afghanistan | G11: 15.69 | H11: 15.14583333 | I11: 15 | J11: 15.07916667 | K11: 15 | M11: United States | N11: 22.46 | O11: 23.04 | P11: 23.48 | Q11: 24.01 | R11: 24.95 | S11: 26.21 | T11: 27.35 | U11: 28.56 | V11: 29.3 | W11: 30.13 | X11: 30.47 | Y11: 32.07 | Z11: 32.78 | AA11: 34.19 | AB11: 34.75 | AC11: 35.5 | AD11: 35.64 | AE11: 36.34 | AF11: 36.92951583 | AG11: 1 | AH11: 0.01622222977 | AI11: 0 | AJ11: 0.01622222977 | AM11: Austria | AN11: 0.1350596817 | AO11: 0.04162158164 | AP11: 0.1588533846 | AQ11: 2014 IEA Data (3) | AU11: Austria | AV11: 13.78929775 | AW11: 15.36427215 | AX11: 3.714157156 | AY11: IEA Data | BA11: United States of America | BB11: North America | BC11: x
B12: Structural Metal Fabricators and Fitters | C12: Skilled labor | D12: 19.66727 | F12: Albania | G12: 12.82232989 | H12: 12.4320986 | I12: 10.88034654 | J12: 9.826604344 | K12: 8.658617478 | M12: Argentina | N12: 7.43 | O12: 7.55 | P12: 8.01 | Q12: 8.08 | R12: 8.16 | S12: 8.27 | T12: 3.01 | U12: 3.65 | V12: 4.51 | W12: 5.51 | X12: 6.63 | Y12: 8.04 | Z12: 10.04 | AA12: 10.23 | AB12: 12.77 | AC12: 15.99 | AD12: 18.96 | AE12: 19.97 | AM12: Belgium | AN12: 0.1280503979 | AO12: 0.05195175733 | AP12: 0.1466370576 | AQ12: 2014 IEA Data | AU12: Belgium | AV12: 10.46352918 | AW12: 12.69198723 | AX12: 3.31966879 | AY12: IEA Data | BA12: United Kingdom | BB12: Europe | BC12: x
B13: Semiconductor Processors | C13: Skilled labor | D13: 23.63816 | F13: Algeria | G13: 8 | H13: 8 | I13: 8 | J13: 8 | K13: 8 | M13: Australia | N13: 19.17 | O13: 18.89 | P13: 17.13 | Q13: 18.13 | R13: 16.4 | S13: 15.03 | T13: 17.41 | U13: 22.52 | V13: 26.72 | W13: 28.59 | X13: 29.15 | Y13: 33.28 | Z13: 35.28 | AA13: 32.88 | AB13: 39.56 | AC13: 46.4 | AD13: 47.72 | AE13: 47.09 | AF13: 45.14079428 | AG13: 1.222350016 | AH13: 0.02487922705 | AI13: -0.06627242561 | AJ13: -0.04139319856 | AM13: Brazil | AN13: 0.162 | AR13: 2015-12-01 | AS13: https://en.wikipedia.org/wiki/Electricity_pricing#cite_note-20 | AU13: Canada | AV13: 4.486472112 | AW13: 7.606581416 | AX13: 1.652879155 | AY13: IEA Data | BA13: Taiwan | BB13: Asia | BC13: x
B14: Chemical Equipment Operators and Tenders | C14: Skilled labor | D14: 31.59331 | F14: American Samoa | M14: Austria | N14: 28.13 | O14: 24.91 | P14: 25.2 | Q14: 24.86 | R14: 21.92 | S14: 21.69 | T14: 23.28 | U14: 28.29 | V14: 31.12 | W14: 32.34 | X14: 33.59 | Y14: 38.06 | Z14: 42.63 | AA14: 42.59 | AB14: 40.12 | AC14: 43.42 | AD14: 41.9 | AE14: 44.37 | AF14: 43.78302148 | AG14: 1.185583415 | AH14: 0.01605805605 | AI14: -0.02928723153 | AJ14: -0.01322917548 | AK14: Euro | AM14: Canada | AN14: 0.09888504471 | AO14: 0.03753525116 | AP14: 0.1016490459 | AQ14: 2014 IEA Data | AU14: Czech Republic | AV14: 12.55334325 | AW14: 15.30253816 | AX14: 3.668318686 | AY14: IEA Data | BA14: Mexico | BB14: North America | BC14: x
B15: First-Line Supervisors of Production and Operating Workers | C15: Indirect Labor | D15: 37.95743 | F15: Andorra | M15: Belgium | N15: 32.72 | O15: 28.95 | P15: 29.31 | Q15: 28.75 | R15: 26.08 | S15: 25.77 | T15: 27.63 | U15: 34.91 | V15: 39.88 | W15: 40.96 | X15: 42.43 | Y15: 47.38 | Z15: 53.6 | AA15: 52.11 | AB15: 50.66 | AC15: 55.08 | AD15: 52.17 | AE15: 54.88 | AF15: 53.4588514 | AG15: 1.447591451 | AH15: 0.003391666667 | AI15: -0.02928723153 | AJ15: -0.02589556487 | AK15: Euro | AM15: China Rural | AN15: 0.053 | AO15: 0.02279 | AP15: 0.06201 | AQ15: From Ran's analysis for 2014 price | AR15: 42650 | AS15: Fu, Ran, Ted L. James, and Michael Woodhouse. "Economic measurements of polysilicon for the photovoltaic industry: market competition and manufacturing competitiveness." IEEE Journal of Photovoltaics 5, no. 2 (2015): 515-524. | AU15: Denmark | AV15: 14.37244391 | AW15: 20.040503 | AX15: 14.37244391 | AY15: IEA Data | BA15: Malaysia | BB15: Asia | BC15: x
B16: Industrial Engineers | C16: Indirect Labor | D16: 54.71004 | F16: Angola | G16: 22.54357202 | H16: 18.75724054 | I16: 16.65640132 | J16: 15.8086383 | K16: 16.38227094 | M16: Brazil | N16: 7.07 | O16: 7.03 | P16: 6.71 | Q16: 4.21 | R16: 4.34 | S16: 3.63 | T16: 3.08 | U16: 3.22 | V16: 3.82 | W16: 5.01 | X16: 5.99 | Y16: 7.1 | Z16: 8.44 | AA16: 8.12 | AB16: 10 | AC16: 11.63 | AD16: 10.84 | AE16: 10.69 | AF16: 10.47230782 | AG16: 0.2835755516 | AH16: 0.06332092342 | AI16: -0.08368501859 | AJ16: -0.02036409517 | AM16: China Urban | AN16: 0.115 | AO16: 0.04945 | AP16: 0.13455 | AQ16: From Ran's analysis for 2014 price | AR16: 42650 | AS16: Fu, Ran, Ted L. James, and Michael Woodhouse. "Economic measurements of polysilicon for the photovoltaic industry: market competition and manufacturing competitiveness." IEEE Journal of Photovoltaics 5, no. 2 (2015): 515-524. | AU16: Finland | AV16: 13.42145335 | AW16: 14.69519891 | AX16: 3.038952049 | AY16: IEA Data | BA16: South Korea | BB16: Asia | BC16: x
B17: Industrial Production Managers | C17: Indirect Labor | D17: 65.33919 | F17: Antigua and Barbuda | G17: 10.99934751 | H17: 10.91445252 | I17: 10.15719664 | J17: 9.952353294 | K17: 10.07184757 | M17: Canada | N17: 18.63 | O17: 18.49 | P17: 17.73 | Q17: 17.85 | R17: 18.34 | S17: 17.81 | T17: 18.06 | U17: 21.08 | V17: 23.68 | W17: 26.26 | X17: 28.57 | Y17: 31.25 | Z17: 32.03 | AA17: 29.35 | AB17: 34.35 | AC17: 36.29 | AD17: 36.58 | AE17: 36.33 | AF17: 34.51633344 | AG17: 0.9346543725 | AH17: 0.01906635907 | AI17: -0.06898836722 | AJ17: -0.04992200815 | AM17: Czech Republic | AN17: 0.1228417959 | AO17: 0.04675656831 | AP17: 0.1642078695 | AQ17: 2014 IEA Data | AU17: France | AV17: 14.41150587 | AW17: 16.03453397 | AX17: 3.77912532 | AY17: IEA Data | BA17: Japan | BB17: Asia | BC17: x
F18: Arab World | M18: Czech Republic | N18: 3.38 | O18: 3.25 | P18: 3.55 | Q18: 3.5 | R18: 3.4 | S18: 3.75 | T18: 4.61 | U18: 5.65 | V18: 6.57 | W18: 7.3 | X18: 8.16 | Y18: 9.81 | Z18: 12.23 | AA18: 11.42 | AB18: 11.43 | AC18: 12.71 | AD18: 11.87 | AE18: 12.17 | AF18: 11.51515339 | AG18: 0.3118143614 | AH18: 0.003371868979 | AI18: -0.05718013569 | AJ18: -0.05380826672 | AM18: Denmark | AN18: 0.1017974729 | AO18: 0.06278200896 | AP18: 0.1261185071 | AQ18: 2014 IEA Data | AU18: Germany | AV18: 13.11124165 | AW18: 16.37702373 | AX18: 4.147817593 | AY18: IEA Data | BA18: India | BB18: Asia | BC18: x
F19: Argentina | G19: 10.5575 | H19: 14.0875 | I19: 14.06083333 | J19: 17.14666667 | K19: 24.00916667 | M19: Denmark | N19: NA | O19: 23.72 | P19: 24.18 | Q19: 24.99 | R19: 22.24 | S19: 23.03 | T19: 25.42 | U19: 31.65 | V19: 35.66 | W19: 37.04 | X19: 38.2 | Y19: 44.41 | Z19: 49.61 | AA19: 49.26 | AB19: 48.5 | AC19: 52.43 | AD19: 49.29 | AE19: 51.07 | AF19: 51.39340729 | AG19: 1.391662093 | AH19: 0.005647542036 | AI19: 0.0006850854959 | AJ19: 0.006332627532 | AM19: Finland | AN19: 0.1044736592 | AO19: 0.04202275352 | AP19: 0.1167143806 | AQ19: 2014 IEA Data | AU19: Greece | AV19: 16.57185745 | AW19: 20.355325 | AX19: 3.281276154 | AY19: IEA Data | BA19: Germany | BB19: Europe | BC19: x
F20: Armenia | G20: 19.20042831 | H20: 17.75447379 | I20: 17.23006824 | J20: 15.99498737 | K20: 16.40866526 | M20: Estonia | N20: NA | O20: NA | P20: NA | Q20: NA | R20: 2.55 | S20: 2.68 | T20: 3.11 | U20: 4.11 | V20: 4.86 | W20: 5.52 | X20: 6.58 | Y20: 8.73 | Z20: 10.56 | AA20: 9.84 | AB20: 9.45 | AC20: 10.42 | AD20: 10.48 | AE20: 11.66 | AF20: 11.30162539 | AG20: 0.3060323196 | AH20: -0.001448155195 | AI20: -0.02928723153 | AJ20: -0.03073538673 | AK20: Euro | AM20: France | AN20: 0.1259079668 | AO20: 0.03891367151 | AP20: 0.1329200668 | AQ20: 2014 IEA Data | AU20: Hungary | AV20: 15.00399659 | AW20: 17.07184492 | AX20: 2.779980041 | AY20: IEA Data | BA20: China | BB20: Asia | BC20: x
F21: Aruba | G21: 10.65 | H21: 9.658333333 | I21: 9.183333333 | J21: 8.725 | K21: 8.233333333 | M21: Finland | N21: 25.01 | O21: 22.36 | P21: 21.81 | Q21: 22.08 | R21: 19.83 | S21: 20.43 | T21: 22.52 | U21: 28.04 | V21: 32.41 | W21: 33.59 | X21: 35.15 | Y21: 39.05 | Z21: 43.62 | AA21: 43.75 | AB21: 40.35 | AC21: 44.15 | AD21: 42.01 | AE21: 44.57 | AF21: 43.72977449 | AG21: 1.18414156 | AH21: 0.01043541398 | AI21: -0.02928723153 | AJ21: -0.01885181755 | AK21: Euro | AM21: Germany | AN21: 0.1791777188 | AO21: 0.04412890584 | AP21: 0.1791777188 | AQ21: 2014 IEA Data (3) | AU21: Ireland | AV21: 14.14610837 | AW21: 16.00351562 | AX21: 3.978981844 | AY21: IEA Data | BA21: Canada | BB21: North America | BC21: x
F22: Australia | G22: 7.279166667 | H22: 7.7375 | I22: 6.975 | J22: 6.179166667 | K22: 5.95 | M22: France | N22: 27.82 | O22: 24.87 | P22: 24.97 | Q22: 24.28 | R22: 21.33 | S22: 21.31 | T22: 23.04 | U22: 28.4 | V22: 32.11 | W22: 32.67 | X22: 33.85 | Y22: 37.96 | Z22: 41.63 | AA22: 39.72 | AB22: 39.04 | AC22: 42.77 | AD22: 40.67 | AE22: 42.85 | AF22: 41.81259187 | AG22: 1.132226917 | AH22: 0.005077006728 | AI22: -0.02928723153 | AJ22: -0.0242102248 | AK22: Euro | AM22: Greece | AN22: 0.1427055703 | AO22: 0.04533242145 | AP22: 0.1496835284 | AQ22: 2014 IEA Data (3) | AU22: Italy | AV22: 14.09929369 | AW22: 16.24250891 | AX22: 4.224594042 | AY22: IEA Data | BA22: Australia | BB22: Oceania | BC22: x
F23: Austria | M23: Germany | N23: 33.24 | O23: 29.18 | P23: 28.92 | Q23: 27.8 | R23: 25.37 | S23: 25.26 | T23: 27.42 | U23: 33.98 | V23: 37.67 | W23: 38.17 | X23: 39.31 | Y23: 43.72 | Z23: 47.27 | AA23: 45.76 | AB23: 44.25 | AC23: 47.61 | AD23: 45.89 | AE23: 48.98 | AF23: 47.98966059 | AG23: 1.299493359 | AH23: 0.009067970352 | AI23: -0.02928723153 | AJ23: -0.02021926118 | AK23: Euro | AM23: Hungary | AN23: 0.1232866798 | AO23: 0.04700088533 | AP23: 0.1687726492 | AQ23: 2014 IEA Data | AU23: Japan | AV23: 23.55350651 | AW23: 23.55350651 | AX23: 8.472770995 | AY23: IEA Data | BA23: Afghanistan | BB23: Asia
F24: Azerbaijan | G24: 20.7 | H24: 18.98833333 | I24: 18.34583333 | J24: 18.21 | K24: 17.8575 | M24: Greece | N24: 12.61 | O24: 11.61 | P24: 11.21 | Q24: 11.34 | R24: 9.94 | S24: 9.02 | T24: 11.09 | U24: 13.67 | V24: 15.87 | W24: 15.23 | X24: 16.58 | Y24: 19.72 | Z24: 23.02 | AA24: 22.65 | AB24: 22.33 | AC24: 22.63 | AD24: 19.4 | AE24: 18.96 | AF24: 18.15591293 | AG24: 0.4916369067 | AH24: -0.01312242411 | AI24: -0.02928723153 | AJ24: -0.04240965564 | AK24: Euro | AM24: India | AN24: 0.07 | AR24: 2015-12-01 | AS24: https://en.wikipedia.org/wiki/Electricity_pricing#cite_note-20 | AU24: Korea | AV24: 27.00576324 | AW24: 27.00576324 | AX24: 7.749534999 | AY24: IEA Data | BA24: Albania | BB24: Europe
F25: Bahamas, The | G25: 5.5 | H25: 5.0625 | I25: 4.75 | J25: 4.75 | K25: 4.75 | M25: Hungary | N25: 3.11 | O25: 3.05 | P25: 3.09 | Q25: 3.09 | R25: 2.96 | S25: 3.37 | T25: 4.18 | U25: 5.19 | V25: 6.17 | W25: 6.71 | X25: 6.85 | Y25: 8.66 | Z25: 9.77 | AA25: 8.62 | AB25: 8.4 | AC25: 9.15 | AD25: 8.8 | AE25: 9.44 | AF25: 9.056059289 | AG25: 0.2452255082 | AH25: -0.002380185734 | AI25: -0.03829149977 | AJ25: -0.04067168551 | AM25: Indonesia | AN25: 0.1 | AO25: 0.043 | AP25: 0.117 | AQ25: From Ran's analysis for 2014 price | AU25: Luxembourg | AV25: 12.50068113 | AW25: 16.55987935 | AX25: 9.362950678 | AY25: IEA Data | BA25: Algeria | BB25: Africa
F26: Bahrain | G26: 7.2475 | H26: 6.790833333 | I26: 6.035 | J26: 5.935 | K26: 5.868333333 | M26: Ireland | N26: 17.64 | O26: 17.42 | P26: 17.38 | Q26: 17.63 | R26: 16.4 | S26: 17.73 | T26: 19.6 | U26: 24.57 | V26: 28.28 | W26: 29.79 | X26: 31.58 | Y26: 36.7 | Z26: 41.82 | AA26: 41.94 | AB26: 40.66 | AC26: 42.73 | AD26: 40.72 | AE26: 41.98 | AF26: 40.83313271 | AG26: 1.105704524 | AH26: 0.001967858314 | AI26: -0.02928723153 | AJ26: -0.02731937322 | AM26: Ireland | AN26: 0.166312435 | AO26: 0.05325556591 | AP26: 0.1828173342 | AQ26: 2014 IEA Data | AU26: Netherlands | AV26: 12.66125928 | AW26: 13.13032102 | AX26: 2.998412435 | AY26: IEA Data | BA26: American Samoa | BB26: Oceania
F27: Bangladesh | G27: 13 | H27: 13.25 | I27: 13 | J27: 13 | K27: 13 | M27: Israel | N27: 10.9 | O27: 11.62 | P27: 11.67 | Q27: 11.38 | R27: 12.25 | S27: 13.01 | T27: 11.79 | U27: 12.47 | V27: 12.81 | W27: 13.27 | X27: 13.86 | Y27: 15.72 | Z27: 18.54 | AA27: 17.55 | AB27: 19.22 | AC27: 21.14 | AD27: 20.14 | AE27: 22.25 | AF27: 22.56008048 | AG27: 0.6108956473 | AH27: 0.004759560151 | AI27: 0.009176641023 | AJ27: 0.01393620117 | AM27: Italy | AN27: 0.3276513873 | AO27: 0.08744559508 | AP27: 0.3393195802 | AQ27: 2014 IEA Data | AU27: New Zealand | AV27: 8.245393071 | AW27: 8.245393071 | AX27: 2.340121378 | AY27: IEA Data | BA27: Andorra | BB27: Europe
F28: Barbados | G28: 8.7 | H28: 8.7 | I28: 8.7 | J28: 8.7 | K28: 8.383333333 | M28: Italy | N28: 21 | O28: 19.77 | P28: 19.21 | Q28: 18.73 | R28: 16.61 | S28: 16.83 | T28: 18.53 | U28: 23.35 | V28: 27.06 | W28: 27.68 | X28: 28.49 | Y28: 31.76 | Z28: 34.93 | AA28: 34.36 | AB28: 33.81 | AC28: 36.52 | AD28: 34.71 | AE28: 36.92 | AF28: 35.92771386 | AG28: 0.9728725939 | AH28: 0.002410575428 | AI28: -0.02928723153 | AJ28: -0.0268766561 | AK28: Euro | AM28: Japan | AN28: 0.1753741214 | AO28: 0.09092588351 | AP28: 0.2019606715 | AQ28: 2014 IEA Data | AU28: Poland | AV28: 12.85576076 | AW28: 13.40459746 | AX28: 3.128117324 | AY28: IEA Data | BA28: Angola | BB28: Africa
F29: Belarus | G29: 9.216666667 | H29: 13.575 | I29: 19.49166667 | J29: 19.13333333 | K29: 18.74166667 | M29: Japan | N29: 23.67 | O29: 22 | P29: 20.6 | Q29: 23.55 | R29: 25.03 | S29: 22.44 | T29: 21.45 | U29: 23.41 | V29: 25.26 | W29: 25.23 | X29: 24.03 | Y29: 23.72 | Z29: 27.48 | AA29: 30.06 | AB29: 31.75 | AC29: 35.66 | AD29: 35.35 | AE29: 29.13 | AF29: 27.63268555 | AG29: 0.7482547476 | AH29: 0.02740524781 | AI29: -0.07880636191 | AJ29: -0.05140111409 | AM29: Korea | AN29: 0.06745860366 | AO29: 0.0390572959 | AP29: 0.07768526388 | AQ29: 2014 IEA Data | AU29: Portugal | AV29: 17.52364807 | AW29: 17.52364807 | AX29: 6.481329443 | AY29: IEA Data | BA29: Anguilla | BB29: Latin America/Caribbean
F30: Belgium | M30: Mexico | N30: 3.05 | O30: 3.47 | P30: 3.58 | Q30: 4.02 | R30: 4.7 | S30: 5.41 | T30: 5.59 | U30: 5.31 | V30: 5.26 | W30: 5.61 | X30: 5.88 | Y30: 6.17 | Z30: 6.48 | AA30: 5.69 | AB30: 6.13 | AC30: 6.49 | AD30: 6.35 | AE30: 6.82 | AF30: 6.827036465 | AG30: 0.1848666659 | AH30: 0.04018617202 | AI30: -0.03915443228 | AJ30: 0.001031739741 | AM30: Luxembourg | AN30: 0.09880636605 | AO30: 0.0424867374 | AP30: 0.1156034483 | AQ30: 2014 IEA Data | AU30: Slovakia | AV30: 12.94678138 | AW30: 16.01716807 | AX30: 3.79611904 | AY30: IEA Data | BA30: Antigua and Barbuda | BB30: Latin America/Caribbean
F31: Belize | G31: 13.88333333 | H31: 13.36333333 | I31: 12.44083333 | J31: 11.56916667 | K31: 10.82178318 | M31: Malaysia | AF31: 0 | AG31: 0.069 | AJ31: 0 | AK31: Using 2015 data from the following source, got the US to Malaysia ratio Malaysia cost per hour USD $2.6 US cost per hour USD $37.96 : “Global Manufacturing Competitiveness Index | Deloitte | Manufacturing.” Accessed June 2, 2016. http://www2.deloitte.com/global/en/pages/manufacturing/articles/global-manufacturing-competitiveness-index.html. | AM31: Malaysia | AN31: 0.09773 | AO31: 0.0420239 | AP31: 0.1143441 | AQ31: From Ran's analysis for 2014 price | AS31: http://www.tnb.com.my/business/for-industrial/pricing-tariff.html | AU31: Spain | AV31: 13.03018854 | AW31: 14.16288035 | AX31: 3.375437093 | AY31: IEA Data | BA31: Argentina | BB31: Latin America/Caribbean
F32: Benin | M32: Netherlands | N32: NA | O32: 22.46 | P32: 23.25 | Q32: 23.28 | R32: 21 | S32: 21.58 | T32: 23.63 | U32: 29.57 | V32: 32.95 | W32: 33.26 | X32: 34.32 | Y32: 38.23 | Z32: 42.86 | AA32: 41.24 | AB32: 39.45 | AC32: 41.96 | AD32: 39.51 | AE32: 42.26 | AF32: 41.42760494 | AG32: 1.121802006 | AH32: 0.009590235397 | AI32: -0.02928723153 | AJ32: -0.01969699614 | AK32: Euro | AM32: Mexico | AN32: 0.1408911 | AO32: 0.060583173 | AP32: 0.164842587 | AQ32: From Ran's analysis for 2014 price | AS32: https://translate.google.com/translate?sl=es&tl=en&js=y&prev=_t&hl=en&ie=UTF-8&u=http%3A%2F%2Fapp.cfe.gob.mx%2FAplicaciones%2FCCFE%2FTarifas%2FTarifas%2Ftarifas_casa.asp&edit-text= (Use 70% to convert residential rate to industrial rate) | AU32: Sweden | AV32: 16.10957318 | AW32: 20.39107208 | AX32: 12.43461576 | AY32: IEA Data | BA32: Armenia | BB32: Asia
F33: Bermuda | M33: New Zealand | N33: 12.11 | O33: 12.04 | P33: 10.01 | Q33: 10.14 | R33: 8.95 | S33: 8.53 | T33: 9.73 | U33: 12.58 | V33: 14.74 | W33: 16.25 | X33: 15.73 | Y33: 18.8 | Z33: 18.82 | AA33: 17.17 | AB33: 20.39 | AC33: 23.32 | AD33: 24.9 | AE33: 25.85 | AF33: 26.36750487 | AG33: 0.713995412 | AH33: 0.008433480919 | AI33: 0.01158604988 | AJ33: 0.0200195308 | AM33: Netherlands | AN33: 0.1180371353 | AO33: 0.06205816425 | AP33: 0.1464902737 | AQ33: 2014 IEA Data (3) | AU33: Switzerland | AV33: 21.57204044 | AW33: 22.3394713 | AX33: 5.52124248 | AY33: IEA Data | BA33: Aruba | BB33: Latin America/Caribbean
F34: Bhutan | G34: 14 | H34: 14 | I34: 14 | J34: 14 | K34: 14.15 | M34: Norway | N34: NA | O34: 25.88 | P34: 26.1 | Q34: 26.59 | R34: 24.53 | S34: 25.36 | T34: 30.28 | U34: 35.59 | V34: 39.33 | W34: 42.04 | X34: 44.54 | Y34: 52.09 | Z34: 57.31 | AA34: 53.34 | AB34: 57.51 | AC34: 64.45 | AD34: 63.01 | AE34: 65.86 | AF34: 62.7345483 | AG34: 1.698764441 | AH34: 0.02025096285 | AI34: -0.06770695583 | AJ34: -0.04745599298 | AM34: New Zealand | AN34: 0.09444619791 | AO34: 0.03045584687 | AP34: 0.09893071758 | AQ34: 2014 IEA Data | AU34: Turkey | AV34: 9.629531483 | AW34: 11.42527489 | AX34: 3.535066526 | AY34: IEA Data | BA34: Austria | BB34: Europe
F35: Bolivia | G35: 9.909927149 | H35: 10.91539234 | I35: 11.13494786 | J35: 11.05139928 | K35: 9.694228216 | M35: Philippines | N35: 1.31 | O35: 1.24 | P35: 0.95 | Q35: 1.05 | R35: 0.99 | S35: 0.96 | T35: 1.01 | U35: 1.02 | V35: 1.08 | W35: 1.18 | X35: 1.33 | Y35: 1.58 | Z35: 1.74 | AA35: 1.68 | AB35: 1.85 | AC35: 1.99 | AD35: 2.08 | AE35: 2.12 | AF35: 2.114473228 | AG35: 0.05725699839 | AH35: 0.04129353234 | AI35: -0.04390050005 | AJ35: -0.002606967707 | AM35: Norway | AN35: 0.0436766106 | AO35: 0.01719605622 | AP35: 0.06291110645 | AQ35: 2014 IEA Data | AU35: United Kingdom | AV35: 11.75635281 | AW35: 12.94724405 | AX35: 2.450380935 | AY35: IEA Data | BA35: Azerbaijan | BB35: Asia
F36: Bosnia and Herzegovina | G36: 7.888333333 | H36: 7.431666667 | I36: 6.890833333 | J36: 6.987341667 | K36: 6.638108424 | M36: Poland | N36: NA | O36: 3.29 | P36: 3.6 | Q36: 3.54 | R36: 3.52 | S36: 4.03 | T36: 4.19 | U36: 4.52 | V36: 4.91 | W36: 5.73 | X36: 6.32 | Y36: 7.81 | Z36: 9.81 | AA36: 7.95 | AB36: 8.46 | AC36: 9.06 | AD36: 8.67 | AE36: 9.25 | AF36: 9.27770665 | AG36: 0.251227411 | AH36: 0.001069518717 | AI36: 0.00192579482 | AJ36: 0.002995313536 | AM36: Poland | AN36: 0.09994424413 | AO36: 0.03640179935 | AP36: 0.1284044649 | AQ36: 2014 IEA Data | AU36: United States | AV36: 5.281908003 | AW36: 8.419019629 | AX36: 2.653829969 | AY36: IEA Data | BA36: Bahamas | BB36: Latin America/Caribbean
F37: Botswana | G37: 11.45833333 | H37: 11 | I37: 11 | J37: 10.18923333 | K37: 9 | M37: Portugal | N37: 7.1 | O37: 6.44 | P37: 6.65 | Q37: 6.58 | R37: 5.9 | S37: 6.03 | T37: 6.65 | U37: 8.13 | V37: 9.2 | W37: 9.48 | X37: 9.92 | Y37: 11.16 | Z37: 12.48 | AA37: 12.34 | AB37: 12 | AC37: 13.24 | AD37: 12.39 | AE37: 12.9 | AF37: 12.48631293 | AG37: 0.3381120128 | AH37: -0.002781533675 | AI37: -0.02928723153 | AJ37: -0.03206876521 | AK37: Euro | AM37: Portugal | AN37: 0.1559018568 | AO37: 0.0729129876 | AP37: 0.1603952121 | AQ37: 2014 IEA Data | AU37: United States Low (West Virgina) | AV37: 4.5025 | AY37: EIA | BA37: Bahrain | BB37: Middle East
F38: Brazil | G38: 39.99166667 | H38: 43.88333333 | I38: 36.63666667 | J38: 27.39166667 | K38: 32.00833333 | M38: Singapore | N38: 11.93 | O38: 12.16 | P38: 11.46 | Q38: 11.01 | R38: 11.72 | S38: 12.21 | T38: 12.14 | U38: 12.75 | V38: 13.2 | W38: 13.24 | X38: 13.76 | Y38: 15.7 | Z38: 18.86 | AA38: 17.54 | AB38: 19.41 | AC38: 23.11 | AD38: 24.16 | AE38: 23.95 | AF38: 23.89420995 | AG38: 0.6470220204 | AH38: 0.0101010101 | AI38: -0.01243044868 | AJ38: -0.002329438579 | AM38: Slovakia | AN38: 0.156897878 | AO38: 0.06127390333 | AP38: 0.2057909456 | AQ38: 2014 IEA Data | AU38: United States High (New Hampshire) | AV38: 12.03222222 | AY38: EIA Alaska and Hawaii excluded | BA38: Bangladesh | BB38: Asia
F39: Brunei Darussalam | G39: 5.5 | H39: 5.5 | I39: 5.5 | J39: 5.5 | K39: 5.5 | M39: Slovakia | N39: 2.73 | O39: 2.84 | P39: 2.89 | Q39: 2.59 | R39: 2.6 | S39: 2.69 | T39: 3.24 | U39: 4.38 | V39: 5.2 | W39: 5.82 | X39: 6.56 | Y39: 8.53 | Z39: 10.72 | AA39: 11.21 | AB39: 10.71 | AC39: 11.74 | AD39: 11.43 | AE39: 12.31 | AF39: 11.94009823 | AG39: 0.3233212773 | AH39: -0.0007616532954 | AI39: -0.02928723153 | AJ39: -0.03004888483 | AK39: Euro | AM39: Spain | AN39: 0.1541194041 | AO39: 0.04633535113 | AP39: 0.1627026629 | AQ39: 2014 IEA Data | AU39: Other Country Data From Different Sources | AV39: $/MMBTU | AW39: Min Value for Sensitivity | AX39: Max Value for Sensitivity | AY39: Note | BA39: Barbados | BB39: Latin America/Caribbean
F40: Bulgaria | G40: 11.14436667 | H40: 10.62945833 | I40: 9.714208333 | J40: 9.050175 | K40: 8.277783333 | M40: South Korea | N40: 9.55 | O40: 9.24 | P40: 6.61 | Q40: 8.6 | R40: 9.62 | S40: 9 | T40: 10.24 | U40: 11.33 | V40: 12.63 | W40: 14.83 | X40: 17.36 | Y40: 19.43 | Z40: 16.8 | AA40: 15.03 | AB40: 17.88 | AC40: 19.19 | AD40: 20.44 | AE40: 21.96 | AF40: 23.11309981 | AG40: 0.6258706429 | AH40: 0.01272406427 | AI40: 0.03978503474 | AJ40: 0.05250909901 | AM40: Sweden | AN40: 0.08172740525 | AO40: 0.03438355215 | AP40: 0.1069644199 | AQ40: 2014 IEA Data | AU40: Brazil | AV40: 10.57 | AW40: 11.9441 | AX40: 3.4881 | AY40: Import price April 2014, end user price likely higher. Large fluctuations in price. | BA40: Belarus | BB40: Europe
F41: Burkina Faso | M41: Spain | N41: 15.48 | O41: 13.96 | P41: 14.15 | Q41: 13.91 | R41: 12.38 | S41: 12.48 | T41: 13.79 | U41: 17.37 | V41: 19.79 | W41: 20.71 | X41: 21.77 | Y41: 24.75 | Z41: 27.6 | AA41: 27.77 | AB41: 26.61 | AC41: 28.35 | AD41: 26.85 | AE41: 28.09 | AF41: 27.22602043 | AG41: 0.7372428211 | AH41: -0.001470318104 | AI41: -0.02928723153 | AJ41: -0.03075754964 | AK41: Euro | AM41: Switzerland | AN41: 0.1287431694 | AO41: 0.06889072576 | AP41: 0.1397574859 | AQ41: 2014 IEA Data | AU41: China | AV41: 10.64 | AW41: 12.0232 | AX41: 3.5112 | AY41: Prices are for bulk users. Natural gas not available in many locations. Current price is too low for many gas suppliers to profit, limiting supply. | BA41: Belgium | BB41: Europe
F42: Burundi | G42: 12.42 | H42: 13.2325 | I42: 14.32 | J42: 15.1475 | K42: 15.66833333 | M42: Sweden | N42: 27.16 | O42: 25.04 | P42: 25.21 | Q42: 24.87 | R42: 23.43 | S42: 21.94 | T42: 24.54 | U42: 30.99 | V42: 34.73 | W42: 35.38 | X42: 36.52 | Y42: 42.59 | Z42: 44.39 | AA42: 40.54 | AB42: 42.69 | AC42: 48.02 | AD42: 48.17 | AE42: 51.1 | AF42: 48.42509488 | AG42: 1.311284315 | AH42: -0.001796384941 | AI42: -0.05055009497 | AJ42: -0.05234647991 | AM42: Thailand | AN42: 0.08 | AO42: 0.0344 | AP42: 0.0936 | AQ42: From Ran's analysis for 2014 price | AS42: www.boi.go.th/index.php?page=utility_costs | AU42: India | AV42: 5.61 | AW42: 6.3393 | AX42: 1.8513 | AY42: Natural gas not available in many locations. Large price difference between government set price and acutal import/prodcution costs. Current price is too low to enourage large supply investments. | BA42: Belize | BB42: Latin America/Caribbean
F43: Cabo Verde | G43: 11.03989876 | H43: 9.810803815 | I43: 9.900358847 | J43: 10.52009902 | K43: 10.89772897 | M43: Switzerland | N43: 35.53 | O43: 30.43 | P43: 31 | Q43: 29.64 | R43: 26.95 | S43: 28.11 | T43: 31.06 | U43: 36.75 | V43: 39.39 | W43: 40.13 | X43: 40.88 | Y43: 43.51 | Z43: 49.17 | AA43: 50.29 | AB43: 51.12 | AC43: 60.4 | AD43: 61.28 | AE43: 63.23 | AF43: 63.96374299 | AG43: 1.732049326 | AH43: -0.0001322532539 | AI43: 0.01173660228 | AJ43: 0.01160434903 | AM43: Turkey | AN43: 0.1108519187 | AO43: 0.06521144485 | AP43: 0.1364239132 | AQ43: 2014 IEA Data | BA43: Benin | BB43: Africa
F44: Cambodia | M44: Taiwan | N44: 7.1 | O44: 7.07 | P44: 6.35 | Q44: 6.8 | R44: 7.31 | S44: 7.16 | T44: 6.83 | U44: 6.96 | V44: 7.27 | W44: 7.92 | X44: 8.05 | Y44: 8.18 | Z44: 8.69 | AA44: 7.77 | AB44: 8.31 | AC44: 9.28 | AD44: 9.39 | AE44: 9.37 | AG44: 0.2578425977 | AK44: Using 2013 DATA | AM44: U.S. Median | AN44: 0.0733 | AO44: 0.04001812171 | AP44: 0.07241559946 | AQ44: 2014 IEA Data | BA44: Bermuda | BB44: Latin America/Caribbean
F45: Cameroon | M45: United Kingdom | N45: 17.77 | O45: 19.3 | P45: 20.67 | Q45: 21.3 | R45: 20.63 | S45: 20.69 | T45: 22.03 | U45: 25.12 | V45: 28.47 | W45: 29.69 | X45: 31.17 | Y45: 35.21 | Z45: 33.91 | AA45: 29.25 | AB45: 28.99 | AC45: 30.54 | AD45: 30.87 | AE45: 31 | AF45: 33.08144205 | AG45: 0.8957995063 | AH45: 0.01460191609 | AI45: 0.05254137584 | AJ45: 0.06714329193 | AM45: United Kingdom | AN45: 0.1573402092 | AO45: 0.05518945634 | AP45: 0.1573402092 | AQ45: 2014 IEA Data | BA45: Bhutan | BB45: Asia
F46: Canada | G46: 2.604166667 | H46: 3 | I46: 3 | J46: 3 | K46: 3 | M46: India | N46: NA | O46: NA | P46: NA | Q46: 0.68 | R46: 0.7 | S46: 0.71 | T46: 0.73 | U46: 0.81 | V46: 0.85 | W46: 0.91 | X46: 0.95 | Y46: 1.17 | Z46: 1.26 | AA46: 1.23 | AB46: 1.46 | AC46: 1.59 | AD46: 1.536725893 | AE46: 1.56900965 | AF46: 1.606176031 | AG46: 0.04349301623 | AH46: 0.06353194544 | AI46: -0.03984414862 | AJ46: 0.02368779683 | AM46: United States Highest (California) | AN46: 0.1391 | AQ46: Energy Information Administration Data HI and AK excluded | BA46: Bolivia, Plurinational State of | BB46: Latin America/Caribbean
F47: Caribbean small states | M47: China | N47: NA | O47: NA | P47: NA | Q47: NA | R47: NA | S47: NA | T47: 0.6 | U47: 0.68 | V47: 0.74 | W47: 0.83 | X47: 0.95 | Y47: 1.21 | Z47: 1.59 | AA47: 1.74 | AB47: 1.98 | AC47: 2.62 | AD47: 3.07 | AE47: 3.208529633 | AF47: 3.312192864 | AG47: 0.0896895827 | AH47: 0.01992982607 | AI47: 0.01237881472 | AJ47: 0.03230864079 | AM47: United States Lowest (Washington) | AN47: 0.044 | AQ47: Energy Information Administration Data | BA47: Bosnia and Herzegovina | BB47: Europe
F48: Cayman Islands | M48: China Rural | U48: 0.41 | V48: 0.46 | W48: 0.5 | X48: 0.57 | Y48: 0.64 | Z48: 0.8 | AA48: 1.06 | AB48: 1.15 | AC48: 1.267185615 | AD48: 1.33073414 | AE48: 1.390781733 | AF48: 1.435716001 | AG48: 0.03887719534 | AH48: 0.01992982607 | AI48: 0.01237881472 | AJ48: 0.03230864079 | AM48: South Korea | AN48: 0.1 | AQ48: From Kelsey | BA48: Botswana | BB48: Africa
F49: Central African Republic | M49: China Urban | U49: 0.95 | V49: 1.09 | W49: 1.23 | X49: 1.35 | Y49: 1.56 | Z49: 1.96 | AA49: 2.58 | AB49: 2.85 | AC49: 3.140416525 | AD49: 3.297906347 | AE49: 3.446719948 | AF49: 3.558078784 | AG49: 0.09634783193 | AH49: 0.01992982607 | AI49: 0.01237881472 | AJ49: 0.03230864079 | AM49: Taiwan | AN49: 0.09 | AQ49: From Kelsey | BA49: Brazil | BB49: Latin America/Caribbean
F50: Central Europe and the Baltics | BA50: British Indian Ocean Territories | BB50: Africa
F51: Chad | BA51: British Virgin Islands | BB51: Latin America/Caribbean
F52: Channel Islands | BA52: Brunei Darussalam | BB52: Asia
F53: Chile | G53: 4.754826805 | H53: 9.030152523 | I53: 10.05726244 | J53: 9.261876782 | K53: 8.098058248 | BA53: Bulgaria | BB53: Europe
F54: China | G54: 5.81 | H54: 6.56 | I54: 6 | J54: 6 | K54: 5.6 | BA54: Burkina Faso | BB54: Africa
F55: Colombia | G55: 9.381489937 | H55: 11.21991845 | I55: 12.5850402 | J55: 10.98558617 | K55: 10.86733504 | BA55: Burundi | BB55: Africa
F56: Comoros | G56: 10.5 | H56: 10.5 | I56: 10.5 | J56: 10.5 | K56: 10.5 | BA56: Cabo Verde | BB56: Africa
F57: Congo, Dem. Rep. | G57: 56.51833333 | H57: 43.75340275 | I57: 28.44666667 | J57: 19.3660119 | K57: 18.6925 | BA57: Cambodia | BB57: Asia
F58: Congo, Rep. | BA58: Cameroon | BB58: Africa
F59: Costa Rica | G59: 17.09083333 | H59: 16.14583333 | I59: 18.2125 | J59: 15.18833333 | K59: 14.90305556 | BA59: Cayman Islands | BB59: Latin America/Caribbean
F60: Cote d'Ivoire | BA60: Central African Republic | BB60: Africa
F61: Croatia | G61: 10.37666667 | H61: 9.684166667 | I61: 9.480833333 | J61: 9.246666667 | BA61: Chad | BB61: Africa
F62: Cuba | BA62: Chile | BB62: Latin America/Caribbean
F63: Curacao | BA63: Christmas Islands | BB63: Oceania
F64: Cyprus | BA64: Cocos (Keeling) Islands | BB64: Oceania
F65: Czech Republic | G65: 5.887833333 | H65: 5.717833333 | I65: 5.406723237 | J65: 4.969893014 | K65: 4.644905464 | BA65: Colombia | BB65: Latin America/Caribbean
F66: Denmark | BA66: Comoros | BB66: Africa
F67: Djibouti | G67: 10.443 | H67: 11.48875 | I67: 11.98875 | J67: 11.93625 | K67: 12.69 | BA67: Congo | BB67: Africa
F68: Dominica | G68: 9.455013989 | H68: 8.840379655 | I68: 9.042981869 | J68: 9.073960019 | K68: 8.936640666 | BA68: Congo, Democratic Republic of the | BB68: Africa
F69: Dominican Republic | G69: 12.13666667 | H69: 15.55 | I69: 15.4825 | J69: 13.59140054 | K69: 13.9025 | BA69: Cook Islands | BB69: Oceania
F70: East Asia & Pacific (all income levels) | BA70: Costa Rica | BB70: Latin America/Caribbean
F71: East Asia & Pacific (developing only) | BA71: Côte d'Ivoire | BB71: Africa
F72: Ecuador | BA72: Croatia | BB72: Europe
F73: Egypt, Arab Rep. | G73: 11.00833325 | H73: 11.03333333 | I73: 12 | J73: 12.29166667 | K73: 11.70833333 | BA73: Cuba | BB73: Latin America/Caribbean
F74: El Salvador | BA74: Cyprus | BB74: Europe
F75: Equatorial Guinea | BA75: Czech Republic | BB75: Europe
F76: Eritrea | BA76: Denmark | BB76: Europe
F77: Estonia | G77: 7.760177765 | H77: 6.1170327 | I77: 5.747075316 | J77: 5.364483106 | K77: 4.763612657 | BA77: Djibouti | BB77: Africa
F78: Ethiopia | BA78: Dominica | BB78: Latin America/Caribbean
F79: Euro area | BA79: Dominican Republic | BB79: Latin America/Caribbean
F80: Europe & Central Asia (all income levels) | BA80: Ecuador | BB80: Latin America/Caribbean
F81: Europe & Central Asia (developing only) | BA81: Egypt | BB81: Middle East
F82: European Union | BA82: El Salvador | BB82: Latin America/Caribbean
F83: Faeroe Islands | BA83: Equatorial Guinea | BB83: Africa
F84: Fiji | G84: 7.489647346 | H84: 7.466058192 | I84: 6.968052878 | J84: 6.10473364 | K84: 5.761124822 | BA84: Eritrea | BB84: Africa
F85: Finland | BA85: Estonia | BB85: Europe
F86: Fragile and conflict affected situations | BA86: Ethiopia | BB86: Africa
F87: France | BA87: Falkland Islands (Malvinas) | BB87: Latin America/Caribbean
F88: French Polynesia | BA88: Faroe Islands | BB88: Europe
F89: Gabon | BA89: Fiji | BB89: Oceania
F90: Gambia, The | G90: 27 | H90: 28 | I90: 28 | J90: 28 | K90: 28.5 | BA90: Finland | BB90: Europe
F91: Georgia | G91: 15.845075 | H91: 14.99516667 | I91: 14.80845 | J91: 13.5948916 | K91: 11.90971177 | BA91: France | BB91: Europe
F92: Germany | G92: 3.25 | H92: 3.25 | I92: 3.25 | J92: 3.25 | K92: 3.25 | BA92: French Polynesia | BB92: Oceania
F93: Ghana | BA93: French South Antarctic Territories | BB93: Africa
F94: Greece | BA94: Gabon | BB94: Africa
F95: Greenland | BA95: Gambia | BB95: Africa
F96: Grenada | G96: 10.57501309 | H96: 10.68597901 | I96: 9.725900007 | J96: 9.270206825 | K96: 9.186013606 | BA96: Georgia | BB96: Asia
F97: Guam | BA97: Ghana | BB97: Africa
F98: Guatemala | G98: 13.34166667 | H98: 13.43 | I98: 13.48666667 | J98: 13.5975 | K98: 13.77333333 | BA98: Gibraltar | BB98: Europe
F99: Guinea | BA99: Greece | BB99: Europe
F100: Guinea-Bissau | BA100: Greenland | BB100: Europe
F101: Guyana | G101: 14.5417 | H101: 14.45140278 | I101: 13.86111111 | J101: 13.5 | K101: 12.83333333 | BA101: Grenada | BB101: Latin America/Caribbean
F102: Haiti | G102: 17.48166667 | H102: 11.61 | I102: 8.934166667 | J102: 8.7225 | K102: 10.77333333 | BA102: Guam | BB102: Oceania
F103: Heavily indebted poor countries (HIPC) | BA103: Guatemala | BB103: Latin America/Caribbean
F104: High income | BA104: Guinea | BB104: Africa
F105: High income: nonOECD | BA105: Guinea-Bissau | BB105: Africa
F106: High income: OECD | BA106: Guyana | BB106: Latin America/Caribbean
F107: Honduras | G107: 18.86466417 | H107: 18.55753167 | I107: 18.45069917 | J107: 20.08086667 | K107: 20.61221833 | BA107: Haiti | BB107: Latin America/Caribbean
F108: Hong Kong SAR, China | G108: 5 | H108: 5 | I108: 5 | J108: 5 | K108: 5 | BA108: Honduras | BB108: Latin America/Caribbean
F109: Hungary | G109: 7.586925113 | H109: 8.320381666 | I109: 9.001544511 | J109: 6.303912354 | K109: 4.435495898 | BA109: Hong Kong, China | BB109: Asia
F110: Iceland | G110: 10.2570287 | H110: 7.698072473 | I110: 8.324338772 | J110: 8.151666667 | K110: 7.7425 | BA110: Hungary | BB110: Europe
F111: India | G111: 8.33335 | H111: 10.16666667 | I111: 10.60416667 | J111: 10.29166667 | K111: 10.25 | BA111: Iceland | BB111: Europe
F112: Indonesia | G112: 13.25166667 | H112: 12.40333333 | I112: 11.795 | J112: 11.6575 | K112: 12.605 | BA112: Indonesia | BB112: Asia
F113: Iran, Islamic Rep. | G113: 12 | H113: 11 | I113: 11 | J113: 11 | K113: 14 | BA113: Iran, Islamic Republic of | BB113: Middle East
F114: Iraq | G114: 13.32583333 | H114: 13.60666667 | I114: 13.03416667 | J114: 13.12583333 | BA114: Iraq | BB114: Middle East
F115: Ireland | BA115: Ireland | BB115: Europe
F116: Isle of Man | BA116: Israel | BB116: Middle East
F117: Israel | G117: 4.964826333 | H117: 5.9691471 | I117: 5.551510842 | K117: 3.907431642 | BA117: Italy | BB117: Europe
F118: Italy | G118: 4.031666667 | H118: 4.599166667 | I118: 5.2225 | J118: 5.144166667 | K118: 4.866666667 | BA118: Jamaica | BB118: Latin America/Caribbean
F119: Jamaica | G119: 20.4544536 | H119: 19.50927929 | I119: 17.62827224 | J119: 17.71645756 | K119: 17.21700864 | BA119: Jordan | BB119: Middle East
F120: Japan | G120: 1.598333333 | H120: 1.500916667 | I120: 1.4075 | J120: 1.30375 | K120: 1.219166667 | BA120: Kazakhstan | BB120: Asia
F121: Jordan | G121: 9.024166667 | H121: 8.713333333 | I121: 8.780833333 | J121: 9.01 | K121: 8.99 | BA121: Kenya | BB121: Africa
F122: Kazakhstan | BA122: Kiribati | BB122: Oceania
F123: Kenya | G123: 14.3715 | H123: 15.04675999 | I123: 19.72340665 | J123: 17.31345769 | K123: 16.51393071 | BA123: Korea, Democratic People's Republic of | BB123: Asia
F124: Kiribati | BA124: Kuwait | BB124: Middle East
F125: Korea, Dem. Rep. | BA125: Kyrgyzstan | BB125: Asia
F126: South Korea | G126: 5.511666667 | H126: 5.7575 | I126: 5.395833333 | J126: 4.643333333 | K126: 4.263333333 | BA126: Lao People's Democratic Republic | BB126: Asia
